Workbook

Sheet PI vs gap
A1: Measurement | B1: Hall
A2: Type | B2: Gap dependence
A4: Project | B4: ='10 mm'!B5 -> 504314
A5: PS serial no | B5: ='10 mm'!B7 -> 2410103
A7: Measurement date | B7: =LEFT('10 mm'!B4,10) -> 26-09-2024
A11: Nominal gap [mm] | B11: Encoder [counts] | C11: Encoder [mm] | D11: PI [T^2mm^3] | E11: PI spec [T^2mm^3] | F11: Encoder value at 10 mm gap:
A12: ='10 mm'!$B$53 -> 10 | B12: ='10 mm'!$B$55 -> 19.9239 | C12: =-1*($F$12-B12)+10 -> 10 | D12: ='10 mm'!$K$3 -> 10451.59376 | F12: 19.9239
A13: ='15 mm'!$B$53 -> 15 | B13: ='15 mm'!$B$55 -> 24.9254 | C13: =-1*($F$12-B13)+10 -> 15.0015 | D13: ='15 mm'!$K$3 -> 7137.143396
A14: ='20 mm'!$B$53 -> 20 | B14: ='20 mm'!$B$55 -> 29.9245 | C14: 20.0006 | D14: ='20 mm'!$K$3 -> 4936.438636
A15: ='30 mm'!$B$53 -> 30 | B15: ='30 mm'!$B$55 -> 39.9213 | C15: 29.9974 | D15: ='30 mm'!$K$3 -> 2430.389508
A16: ='100 mm'!$B$53 -> 100 | B16: ='100 mm'!$B$55 -> 109.9224 | C16: 99.9985 | D16: ='100 mm'!$K$3 -> 38.66404085
A47: Measuring series at larger gaps:
A48: Reference magnet
A49: Tref | B49: 21.38 | C49: degC
A50: Hall ref field | B50: 0.505 | C50: T
A51: NMR ref field | B51: 0.50627 | C51: T
A53: Offset from Faro

Sheet 10 mm
A1: =IF('DF raw data'!A1="","",'DF raw data'!A1) -> Number of header lines | B1: =IF('DF raw data'!B1="","",'DF raw data'!B1) -> 54 | C1: =IF('DF raw data'!C1="","",'DF raw data'!C1) ->  | D1: =IF('DF raw data'!D1="","",'DF raw data'!D1) ->  | F1: T_coeff | G1: -0.001 | H1: /degC | J1: IBy total | K1: =J1267*1000 -> -1.526551738 | L1: muTm | M1: =L1267*1000 -> -4.938427087 | R1: DF ref | S1: 1
A2: =IF('DF raw data'!A2="","",'DF raw data'!A2) -> Measured by | B2: =IF('DF raw data'!B2="","",'DF raw data'!B2) -> Danfysik | C2: =IF('DF raw data'!C2="","",'DF raw data'!C2) ->  | D2: =IF('DF raw data'!D2="","",'DF raw data'!D2) ->  | F2: Tcorr | G2: 20 | H2: degC | J2: JBy total | K2: =K1267 -> -8.162943484 | L2: muTm^2 | M2: =M1267 -> 3.371014091
A3: =IF('DF raw data'!A3="","",'DF raw data'!A3) -> Operator | B3: =IF('DF raw data'!B3="","",'DF raw data'!B3) -> PMHA | C3: =IF('DF raw data'!C3="","",'DF raw data'!C3) ->  | D3: =IF('DF raw data'!D3="","",'DF raw data'!D3) ->  | F3: Step | G3: =A68-A67 -> 0.5 | H3: mm | J3: PI total | K3: =N1267 -> 10451.59376 | L3: T^2mm^3
A4: =IF('DF raw data'!A4="","",'DF raw data'!A4) -> Data-time | B4: =IF('DF raw data'!B4="","",'DF raw data'!B4) -> 26-09-2024, 16:01:50 | C4: =IF('DF raw data'!C4="","",'DF raw data'!C4) ->  | D4: =IF('DF raw data'!D4="","",'DF raw data'!D4) -> 
A5: =IF('DF raw data'!A5="","",'DF raw data'!A5) -> Project | B5: =IF('DF raw data'!B5="","",'DF raw data'!B5) -> 504314 | C5: =IF('DF raw data'!C5="","",'DF raw data'!C5) ->  | D5: Bamb avr | F5: =(AVERAGE(B67:B107) + AVERAGE(B1227:B1267))/2 -> -1.375539815e-05 | G5: =(AVERAGE(C67:C107) + AVERAGE(C1227:C1267))/2 -> 0.0002239127073 | H5: =(AVERAGE(D67:D107) + AVERAGE(D1227:D1267))/2 -> -2.87895472e-05
A6: =IF('DF raw data'!A6="","",'DF raw data'!A6) -> Magnet type | B6: =IF('DF raw data'!B6="","",'DF raw data'!B6) -> Dipole | C6: =IF('DF raw data'!C6="","",'DF raw data'!C6) -> 
A7: =IF('DF raw data'!A7="","",'DF raw data'!A7) -> Magnet nr. | B7: =IF('DF raw data'!B7="","",'DF raw data'!B7) -> 2410103 | C7: =IF('DF raw data'!C7="","",'DF raw data'!C7) -> 
A8: =IF('DF raw data'!A8="","",'DF raw data'!A8) -> Meas. number | B8: =IF('DF raw data'!B8="","",'DF raw data'!B8) -> 713 | C8: =IF('DF raw data'!C8="","",'DF raw data'!C8) -> 
A9: =IF('DF raw data'!A9="","",'DF raw data'!A9) -> Add. info | B9: =IF('DF raw data'!B9="","",'DF raw data'!B9) -> X-alignment scan 3) | C9: =IF('DF raw data'!C9="","",'DF raw data'!C9) ->  | D9: =IF('DF raw data'!D9="","",'DF raw data'!D9) -> 
A10: =IF('DF raw data'!A10="","",'DF raw data'!A10) -> Device | B10: =IF('DF raw data'!B10="","",'DF raw data'!B10) -> (HAL) HALL-PROBE | C10: =IF('DF raw data'!C10="","",'DF raw data'!C10) ->  | D10: =IF('DF raw data'!D10="","",'DF raw data'!D10) -> 
A11: =IF('DF raw data'!A11="","",'DF raw data'!A11) -> Goal | B11: =IF('DF raw data'!B11="","",'DF raw data'!B11) -> (AXI) AXis Integral (Line, EFB) | C11: =IF('DF raw data'!C11="","",'DF raw data'!C11) ->  | D11: =IF('DF raw data'!D11="","",'DF raw data'!D11) -> 
A12: =IF('DF raw data'!A12="","",'DF raw data'!A12) -> Power supply mode | B12: =IF('DF raw data'!B12="","",'DF raw data'!B12) -> (PM) Permanent Magnet (no MPS in use) | C12: =IF('DF raw data'!C12="","",'DF raw data'!C12) ->  | D12: =IF('DF raw data'!D12="","",'DF raw data'!D12) -> 
A13: =IF('DF raw data'!A13="","",'DF raw data'!A13) -> Data format | B13: =IF('DF raw data'!B13="","",'DF raw data'!B13) -> Raw data text file | C13: =IF('DF raw data'!C13="","",'DF raw data'!C13) ->  | D13: =IF('DF raw data'!D13="","",'DF raw data'!D13) -> 
A14: =IF('DF raw data'!A14="","",'DF raw data'!A14) -> Direction of the pos. x-axis | B14: =IF('DF raw data'!B14="","",'DF raw data'!B14) -> See test program | C14: =IF('DF raw data'!C14="","",'DF raw data'!C14) ->  | D14: =IF('DF raw data'!D14="","",'DF raw data'!D14) -> 
A15: =IF('DF raw data'!A15="","",'DF raw data'!A15) -> Direction of the pos. y-axis | B15: =IF('DF raw data'!B15="","",'DF raw data'!B15) -> Vertical up | C15: =IF('DF raw data'!C15="","",'DF raw data'!C15) ->  | D15: =IF('DF raw data'!D15="","",'DF raw data'!D15) -> 
A16: =IF('DF raw data'!A16="","",'DF raw data'!A16) -> Direction of the pos. z-axis | B16: =IF('DF raw data'!B16="","",'DF raw data'!B16) -> See test program | C16: =IF('DF raw data'!C16="","",'DF raw data'!C16) ->  | D16: =IF('DF raw data'!D16="","",'DF raw data'!D16) -> 
A17: =IF('DF raw data'!A17="","",'DF raw data'!A17) -> Mapper type | B17: =IF('DF raw data'!B17="","",'DF raw data'!B17) -> Precision Hall Mapper | C17: =IF('DF raw data'!C17="","",'DF raw data'!C17) ->  | D17: =IF('DF raw data'!D17="","",'DF raw data'!D17) -> 
A18: =IF('DF raw data'!A18="","",'DF raw data'!A18) -> Mapper Danfysik Reg. Number | B18: =IF('DF raw data'!B18="","",'DF raw data'!B18) -> 2033-D (mapper 1) | C18: =IF('DF raw data'!C18="","",'DF raw data'!C18) ->  | D18: =IF('DF raw data'!D18="","",'DF raw data'!D18) -> 
A19: =IF('DF raw data'!A19="","",'DF raw data'!A19) -> Measurement consept | B19: =IF('DF raw data'!B19="","",'DF raw data'!B19) -> Square line grid | C19: =IF('DF raw data'!C19="","",'DF raw data'!C19) ->  | D19: =IF('DF raw data'!D19="","",'DF raw data'!D19) -> 
A20: =IF('DF raw data'!A20="","",'DF raw data'!A20) -> Mode | B20: =IF('DF raw data'!B20="","",'DF raw data'!B20) -> On-the-fly measurement | C20: =IF('DF raw data'!C20="","",'DF raw data'!C20) ->  | D20: =IF('DF raw data'!D20="","",'DF raw data'!D20) -> 
A21: =IF('DF raw data'!A21="","",'DF raw data'!A21) ->  | B21: =IF('DF raw data'!B21="","",'DF raw data'!B21) ->  | C21: =IF('DF raw data'!C21="","",'DF raw data'!C21) ->  | D21: =IF('DF raw data'!D21="","",'DF raw data'!D21) -> 
A22: =IF('DF raw data'!A22="","",'DF raw data'!A22) -> Probe Name | B22: =IF('DF raw data'!B22="","",'DF raw data'!B22) -> ID12_By | C22: =IF('DF raw data'!C22="","",'DF raw data'!C22) ->  | D22: =IF('DF raw data'!D22="","",'DF raw data'!D22) -> 
A23: =IF('DF raw data'!A23="","",'DF raw data'!A23) -> Probe Type | B23: =IF('DF raw data'!B23="","",'DF raw data'!B23) -> DF_ID_3D_Bxyz | C23: =IF('DF raw data'!C23="","",'DF raw data'!C23) ->  | D23: =IF('DF raw data'!D23="","",'DF raw data'!D23) -> 
A24: =IF('DF raw data'!A24="","",'DF raw data'!A24) -> Probe Danfysik Reg. Number | B24: =IF('DF raw data'!B24="","",'DF raw data'!B24) -> 2277 | C24: =IF('DF raw data'!C24="","",'DF raw data'!C24) ->  | D24: =IF('DF raw data'!D24="","",'DF raw data'!D24) -> 
A25: =IF('DF raw data'!A25="","",'DF raw data'!A25) -> Probe Axis | B25: =IF('DF raw data'!B25="","",'DF raw data'!B25) -> By | C25: =IF('DF raw data'!C25="","",'DF raw data'!C25) ->  | D25: =IF('DF raw data'!D25="","",'DF raw data'!D25) -> 
A26: =IF('DF raw data'!A26="","",'DF raw data'!A26) -> Probe Current Supply | B26: =IF('DF raw data'!B26="","",'DF raw data'!B26) -> 1825-D | C26: =IF('DF raw data'!C26="","",'DF raw data'!C26) ->  | D26: =IF('DF raw data'!D26="","",'DF raw data'!D26) -> 
A27: =IF('DF raw data'!A27="","",'DF raw data'!A27) -> Probe Gain Correction | B27: =IF('DF raw data'!B27="","",'DF raw data'!B27) -> 0.99611 | C27: =IF('DF raw data'!C27="","",'DF raw data'!C27) ->  | D27: =IF('DF raw data'!D27="","",'DF raw data'!D27) -> 
A28: =IF('DF raw data'!A28="","",'DF raw data'!A28) -> Probe Offset Correction | B28: =IF('DF raw data'!B28="","",'DF raw data'!B28) -> 0.0027577 | C28: =IF('DF raw data'!C28="","",'DF raw data'!C28) ->  | D28: =IF('DF raw data'!D28="","",'DF raw data'!D28) -> 
A29: =IF('DF raw data'!A29="","",'DF raw data'!A29) -> DVM Number | B29: =IF('DF raw data'!B29="","",'DF raw data'!B29) -> 2 | C29: =IF('DF raw data'!C29="","",'DF raw data'!C29) ->  | D29: =IF('DF raw data'!D29="","",'DF raw data'!D29) -> 
A30: =IF('DF raw data'!A30="","",'DF raw data'!A30) -> DVM Type | B30: =IF('DF raw data'!B30="","",'DF raw data'!B30) -> K2701 | C30: =IF('DF raw data'!C30="","",'DF raw data'!C30) ->  | D30: =IF('DF raw data'!D30="","",'DF raw data'!D30) -> 
A31: =IF('DF raw data'!A31="","",'DF raw data'!A31) -> DVM Danfysik Reg. Number | B31: =IF('DF raw data'!B31="","",'DF raw data'!B31) -> 1743-D | C31: =IF('DF raw data'!C31="","",'DF raw data'!C31) ->  | D31: =IF('DF raw data'!D31="","",'DF raw data'!D31) -> 
A32: =IF('DF raw data'!A32="","",'DF raw data'!A32) -> Probe Name | B32: =IF('DF raw data'!B32="","",'DF raw data'!B32) -> ID12_Bx | C32: =IF('DF raw data'!C32="","",'DF raw data'!C32) ->  | D32: =IF('DF raw data'!D32="","",'DF raw data'!D32) -> 
A33: =IF('DF raw data'!A33="","",'DF raw data'!A33) -> Probe Type | B33: =IF('DF raw data'!B33="","",'DF raw data'!B33) -> DF_ID_3D_Bxyz | C33: =IF('DF raw data'!C33="","",'DF raw data'!C33) ->  | D33: =IF('DF raw data'!D33="","",'DF raw data'!D33) -> 
A34: =IF('DF raw data'!A34="","",'DF raw data'!A34) -> Probe Danfysik Reg. Number | B34: =IF('DF raw data'!B34="","",'DF raw data'!B34) -> 2277 | C34: =IF('DF raw data'!C34="","",'DF raw data'!C34) ->  | D34: =IF('DF raw data'!D34="","",'DF raw data'!D34) -> 
A35: =IF('DF raw data'!A35="","",'DF raw data'!A35) -> Probe Axis | B35: =IF('DF raw data'!B35="","",'DF raw data'!B35) -> Bx | C35: =IF('DF raw data'!C35="","",'DF raw data'!C35) ->  | D35: =IF('DF raw data'!D35="","",'DF raw data'!D35) -> 
A36: =IF('DF raw data'!A36="","",'DF raw data'!A36) -> Probe Current Supply | B36: =IF('DF raw data'!B36="","",'DF raw data'!B36) -> 1825-D | C36: =IF('DF raw data'!C36="","",'DF raw data'!C36) ->  | D36: =IF('DF raw data'!D36="","",'DF raw data'!D36) -> 
A37: =IF('DF raw data'!A37="","",'DF raw data'!A37) -> Probe Gain Correction | B37: =IF('DF raw data'!B37="","",'DF raw data'!B37) -> 1 | C37: =IF('DF raw data'!C37="","",'DF raw data'!C37) ->  | D37: =IF('DF raw data'!D37="","",'DF raw data'!D37) -> 
A38: =IF('DF raw data'!A38="","",'DF raw data'!A38) -> Probe Offset Correction | B38: =IF('DF raw data'!B38="","",'DF raw data'!B38) -> -0.17545 | C38: =IF('DF raw data'!C38="","",'DF raw data'!C38) ->  | D38: =IF('DF raw data'!D38="","",'DF raw data'!D38) -> 
A39: =IF('DF raw data'!A39="","",'DF raw data'!A39) -> DVM Number | B39: =IF('DF raw data'!B39="","",'DF raw data'!B39) -> 3 | C39: =IF('DF raw data'!C39="","",'DF raw data'!C39) ->  | D39: =IF('DF raw data'!D39="","",'DF raw data'!D39) -> 
A40: =IF('DF raw data'!A40="","",'DF raw data'!A40) -> DVM Type | B40: =IF('DF raw data'!B40="","",'DF raw data'!B40) -> K2701 | C40: =IF('DF raw data'!C40="","",'DF raw data'!C40) ->  | D40: =IF('DF raw data'!D40="","",'DF raw data'!D40) -> 
A41: =IF('DF raw data'!A41="","",'DF raw data'!A41) -> DVM Danfysik Reg. Number | B41: =IF('DF raw data'!B41="","",'DF raw data'!B41) -> 1744-D | C41: =IF('DF raw data'!C41="","",'DF raw data'!C41) ->  | D41: =IF('DF raw data'!D41="","",'DF raw data'!D41) -> 
A42: =IF('DF raw data'!A42="","",'DF raw data'!A42) -> Probe Name | B42: =IF('DF raw data'!B42="","",'DF raw data'!B42) -> ID12_Bz | C42: =IF('DF raw data'!C42="","",'DF raw data'!C42) ->  | D42: =IF('DF raw data'!D42="","",'DF raw data'!D42) -> 
A43: =IF('DF raw data'!A43="","",'DF raw data'!A43) -> Probe Type | B43: =IF('DF raw data'!B43="","",'DF raw data'!B43) -> DF_ID_3D_Bxyz | C43: =IF('DF raw data'!C43="","",'DF raw data'!C43) ->  | D43: =IF('DF raw data'!D43="","",'DF raw data'!D43) -> 
A44: =IF('DF raw data'!A44="","",'DF raw data'!A44) -> Probe Danfysik Reg. Number | B44: =IF('DF raw data'!B44="","",'DF raw data'!B44) -> 2277 | C44: =IF('DF raw data'!C44="","",'DF raw data'!C44) ->  | D44: =IF('DF raw data'!D44="","",'DF raw data'!D44) -> 
A45: =IF('DF raw data'!A45="","",'DF raw data'!A45) -> Probe Axis | B45: =IF('DF raw data'!B45="","",'DF raw data'!B45) -> Bz | C45: =IF('DF raw data'!C45="","",'DF raw data'!C45) ->  | D45: =IF('DF raw data'!D45="","",'DF raw data'!D45) -> 
A46: =IF('DF raw data'!A46="","",'DF raw data'!A46) -> Probe Current Supply | B46: =IF('DF raw data'!B46="","",'DF raw data'!B46) -> 1825-D | C46: =IF('DF raw data'!C46="","",'DF raw data'!C46) ->  | D46: =IF('DF raw data'!D46="","",'DF raw data'!D46) -> 
A47: =IF('DF raw data'!A47="","",'DF raw data'!A47) -> Probe Gain Correction | B47: =IF('DF raw data'!B47="","",'DF raw data'!B47) -> 1 | C47: =IF('DF raw data'!C47="","",'DF raw data'!C47) ->  | D47: =IF('DF raw data'!D47="","",'DF raw data'!D47) -> 
A48: =IF('DF raw data'!A48="","",'DF raw data'!A48) -> Probe Offset Correction | B48: =IF('DF raw data'!B48="","",'DF raw data'!B48) -> 0.0072997 | C48: =IF('DF raw data'!C48="","",'DF raw data'!C48) ->  | D48: =IF('DF raw data'!D48="","",'DF raw data'!D48) -> 
A49: =IF('DF raw data'!A49="","",'DF raw data'!A49) -> DVM Number | B49: =IF('DF raw data'!B49="","",'DF raw data'!B49) -> 8 | C49: =IF('DF raw data'!C49="","",'DF raw data'!C49) ->  | D49: =IF('DF raw data'!D49="","",'DF raw data'!D49) -> 
A50: =IF('DF raw data'!A50="","",'DF raw data'!A50) -> DVM Type | B50: =IF('DF raw data'!B50="","",'DF raw data'!B50) -> K2700 | C50: =IF('DF raw data'!C50="","",'DF raw data'!C50) ->  | D50: =IF('DF raw data'!D50="","",'DF raw data'!D50) -> 
A51: =IF('DF raw data'!A51="","",'DF raw data'!A51) -> DVM Danfysik Reg. Number | B51: =IF('DF raw data'!B51="","",'DF raw data'!B51) -> 1756-D | C51: =IF('DF raw data'!C51="","",'DF raw data'!C51) ->  | D51: =IF('DF raw data'!D51="","",'DF raw data'!D51) -> 
A52: =IF('DF raw data'!A52="","",'DF raw data'!A52) -> NTC voltage | B52: =IF('DF raw data'!B52="","",'DF raw data'!B52) -> 0.42245 | C52: =IF('DF raw data'!C52="","",'DF raw data'!C52) ->  | D52: =IF('DF raw data'!D52="","",'DF raw data'!D52) -> 
A53: =IF('DF raw data'!A53="","",'DF raw data'!A53) -> PS-Gap: | B53: =IF('DF raw data'!B53="","",'DF raw data'!B53) -> 10 | C53: =IF('DF raw data'!C53="","",'DF raw data'!C53) ->  | D53: =IF('DF raw data'!D53="","",'DF raw data'!D53) -> 
A54: =IF('DF raw data'!A54="","",'DF raw data'!A54) -> PS-Temperature: | B54: =IF('DF raw data'!B54="","",'DF raw data'!B54) -> 24 | C54: =IF('DF raw data'!C54="","",'DF raw data'!C54) ->  | D54: =IF('DF raw data'!D54="","",'DF raw data'!D54) -> 
A55: =IF('DF raw data'!A55="","",'DF raw data'!A55) -> PS-Encoder: | B55: =IF('DF raw data'!B55="","",'DF raw data'!B55) -> 19.9239 | C55: =IF('DF raw data'!C55="","",'DF raw data'!C55) ->  | D55: =IF('DF raw data'!D55="","",'DF raw data'!D55) -> 
A56: =IF('DF raw data'!A56="","",'DF raw data'!A56) ->  | B56: =IF('DF raw data'!B56="","",'DF raw data'!B56) -> 
A57: =IF('DF raw data'!A57="","",'DF raw data'!A57) -> Monitor-Index | B57: =IF('DF raw data'!B57="","",'DF raw data'!B57) -> [1,1,4]
A58: =IF('DF raw data'!A58="","",'DF raw data'!A58) ->  | B58: =IF('DF raw data'!B58="","",'DF raw data'!B58) -> 
A59: =IF('DF raw data'!A59="","",'DF raw data'!A59) -> Time [s] | B59: =IF('DF raw data'!B59="","",'DF raw data'!B59) -> Y [mm]
A60: =IF('DF raw data'!A60="","",'DF raw data'!A60) ->  | B60: =IF('DF raw data'!B60="","",'DF raw data'!B60) -> 
A61: =IF('DF raw data'!A61="","",'DF raw data'!A61) -> 207.3 | B61: =IF('DF raw data'!B61="","",'DF raw data'!B61) -> 31.65
A62: =IF('DF raw data'!A62="","",'DF raw data'!A62) ->  | B62: =IF('DF raw data'!B62="","",'DF raw data'!B62) -> 
A63: =IF('DF raw data'!A63="","",'DF raw data'!A63) -> Measurement-Index | B63: =IF('DF raw data'!B63="","",'DF raw data'!B63) -> [1,1,1201,2]
A64: =IF('DF raw data'!A64="","",'DF raw data'!A64) ->  | B64: =IF('DF raw data'!B64="","",'DF raw data'!B64) -> 
A65: =IF('DF raw data'!A65="","",'DF raw data'!A65) -> Z [mm] | B65: =IF('DF raw data'!B65="","",'DF raw data'!B65) -> By [T] | C65: =IF('DF raw data'!C65="","",'DF raw data'!C65) -> Bx [T] | D65: =IF('DF raw data'!D65="","",'DF raw data'!D65) -> Bz [T] | F65: By_corr | G65: Bx_corr | H65: Bz_corr | J65: Iy | K65: Jy | L65: Ix | M65: Jx | N65: PI
A66: =IF('DF raw data'!A66="","",'DF raw data'!A66) -> [1, 0, 0, 0] | B66: =IF('DF raw data'!B66="","",'DF raw data'!B66) ->  | C66: =IF('DF raw data'!C66="","",'DF raw data'!C66) ->  | D66: =IF('DF raw data'!D66="","",'DF raw data'!D66) -> 
A67: =IF('DF raw data'!A67="","",'DF raw data'!A67) -> -300 | B67: =IF('DF raw data'!B67="","",'DF raw data'!B67) -> 2.78677e-06 | C67: =IF('DF raw data'!C67="","",'DF raw data'!C67) -> 0.000263882 | D67: =IF('DF raw data'!D67="","",'DF raw data'!D67) -> -3.45024e-05 | F67: =(1-$G$1*($B$54-$G$2))*(B67-F$5) -> 1.660833682e-05 | G67: =(1-$G$1*($B$54-$G$2))*(C67-G$5) -> 4.012916985e-05 | H67: =(1-$G$1*($B$54-$G$2))*(D67-H$5) -> -5.735704216e-06 | J67: =F67*$G$3+J66 -> 8.304168409e-06 | K67: =J67*$G$3+K66 -> 4.152084205e-06 | L67: =G67*$G$3+L66 -> 2.006458493e-05 | M67: =L67*$G$3+M66 -> 1.003229246e-05 | N67: =(J67^2+L67^2)*$G$3+N66 -> 2.357733906e-10
A68: =IF('DF raw data'!A68="","",'DF raw data'!A68) -> -299.5 | B68: =IF('DF raw data'!B68="","",'DF raw data'!B68) -> -7.20713e-06 | C68: =IF('DF raw data'!C68="","",'DF raw data'!C68) -> 0.000261021 | D68: =IF('DF raw data'!D68="","",'DF raw data'!D68) -> -3.39151e-05 | F68: 6.574461219e-06 | G68: 3.725672585e-05 | H68: -5.146055016e-06 | J68: =F68*$G$3+J67 -> 1.159139902e-05 | K68: =J68*$G$3+K67 -> 9.947783714e-06 | L68: =G68*$G$3+L67 -> 3.869294785e-05 | M68: =L68*$G$3+M67 -> 2.937876639e-05 | N68: =(J68^2+L68^2)*$G$3+N67 -> 1.051525763e-09
A69: =IF('DF raw data'!A69="","",'DF raw data'!A69) -> -299 | B69: =IF('DF raw data'!B69="","",'DF raw data'!B69) -> -9.19361e-06 | C69: =IF('DF raw data'!C69="","",'DF raw data'!C69) -> 0.000263993 | D69: =IF('DF raw data'!D69="","",'DF raw data'!D69) -> -3.29853e-05 | F69: 4.580035299e-06 | G69: 4.024061385e-05 | H69: -4.212535816e-06 | J69: 1.388141667e-05 | K69: 1.688849205e-05 | L69: 5.881325478e-05 | M69: 5.878539378e-05 | N69: 2.877372096e-09
A70: =IF('DF raw data'!A70="","",'DF raw data'!A70) -> -298.5 | B70: =IF('DF raw data'!B70="","",'DF raw data'!B70) -> -4.7093e-06 | C70: =IF('DF raw data'!C70="","",'DF raw data'!C70) -> 0.000269114 | D70: =IF('DF raw data'!D70="","",'DF raw data'!D70) -> -3.26075e-05 | F70: 9.082282539e-06 | G70: 4.538209785e-05 | H70: -3.833224616e-06 | J70: 1.842255794e-05 | K70: 2.609977102e-05 | L70: 8.150430371e-05 | M70: 9.953754563e-05 | N70: 6.368543178e-09
A71: =IF('DF raw data'!A71="","",'DF raw data'!A71) -> -298 | B71: =IF('DF raw data'!B71="","",'DF raw data'!B71) -> -1.08595e-05 | C71: =IF('DF raw data'!C71="","",'DF raw data'!C71) -> 0.00026843 | D71: =IF('DF raw data'!D71="","",'DF raw data'!D71) -> -3.25e-05 | F71: 2.907481739e-06 | G71: 4.469536185e-05 | H71: -3.725294616e-06 | J71: 1.987629881e-05 | K71: 3.603792042e-05 | L71: 0.0001038519846 | M71: 0.000151463538 | N71: 1.195869416e-08
A72: =IF('DF raw data'!A72="","",'DF raw data'!A72) -> -297.5 | B72: =IF('DF raw data'!B72="","",'DF raw data'!B72) -> -8.80918e-06 | C72: =IF('DF raw data'!C72="","",'DF raw data'!C72) -> 0.000269932 | D72: =IF('DF raw data'!D72="","",'DF raw data'!D72) -> -3.23002e-05 | F72: 4.966003019e-06 | G72: 4.620336985e-05 | H72: -3.524695416e-06 | J72: 2.235930032e-05 | K72: 4.721757058e-05 | L72: 0.0001269536696 | M72: 0.0002149403727 | N72: 2.026728042e-08
A73: =IF('DF raw data'!A73="","",'DF raw data'!A73) -> -297 | B73: =IF('DF raw data'!B73="","",'DF raw data'!B73) -> -7.20826e-06 | C73: =IF('DF raw data'!C73="","",'DF raw data'!C73) -> 0.000270335 | D73: =IF('DF raw data'!D73="","",'DF raw data'!D73) -> -3.21234e-05 | F73: 6.573326699e-06 | G73: 4.660798185e-05 | H73: -3.347188216e-06 | J73: 2.564596367e-05 | K73: 6.004055241e-05 | L73: 0.0001502576605 | M73: 0.000290069203 | N73: 3.188482042e-08
A74: =IF('DF raw data'!A74="","",'DF raw data'!A74) -> -296.5 | B74: =IF('DF raw data'!B74="","",'DF raw data'!B74) -> -1.06026e-05 | C74: =IF('DF raw data'!C74="","",'DF raw data'!C74) -> 0.000263495 | D74: =IF('DF raw data'!D74="","",'DF raw data'!D74) -> -3.23552e-05 | F74: 3.165409339e-06 | G74: 3.974062185e-05 | H74: -3.579915416e-06 | J74: 2.722866834e-05 | K74: 7.365488658e-05 | L74: 0.0001701279714 | M74: 0.0003751331887 | N74: 4.672728394e-08
A75: =IF('DF raw data'!A75="","",'DF raw data'!A75) -> -296 | B75: =IF('DF raw data'!B75="","",'DF raw data'!B75) -> 6.71707e-07 | C75: =IF('DF raw data'!C75="","",'DF raw data'!C75) -> 0.000273511 | D75: =IF('DF raw data'!D75="","",'DF raw data'!D75) -> -3.29162e-05 | F75: 1.448481357e-05 | G75: 4.979668585e-05 | H75: -4.143159416e-06 | J75: 3.447107512e-05 | K75: 9.089042414e-05 | L75: 0.0001950263143 | M75: 0.0004726463459 | N75: 6.633904309e-08
A76: =IF('DF raw data'!A76="","",'DF raw data'!A76) -> -295.5 | B76: =IF('DF raw data'!B76="","",'DF raw data'!B76) -> -1.925e-05 | C76: =IF('DF raw data'!C76="","",'DF raw data'!C76) -> 0.000265379 | D76: =IF('DF raw data'!D76="","",'DF raw data'!D76) -> -3.27858e-05 | F76: -5.516580261e-06 | G76: 4.163215785e-05 | H76: -4.012237816e-06 | J76: 3.171278499e-05 | K76: 0.0001067468166 | L76: 0.0002158423933 | M76: 0.0005805675425 | N76: 9.013586282e-08
A77: =IF('DF raw data'!A77="","",'DF raw data'!A77) -> -295 | B77: =IF('DF raw data'!B77="","",'DF raw data'!B77) -> -9.96286e-06 | C77: =IF('DF raw data'!C77="","",'DF raw data'!C77) -> 0.00025724 | D77: =IF('DF raw data'!D77="","",'DF raw data'!D77) -> -3.21329e-05 | F77: 3.807708299e-06 | G77: 3.346060185e-05 | H77: -3.356726216e-06 | J77: 3.361663914e-05 | K77: 0.0001235551362 | L77: 0.0002325726942 | M77: 0.0006968538896 | N77: 1.177459311e-07
A78: =IF('DF raw data'!A78="","",'DF raw data'!A78) -> -294.5 | B78: =IF('DF raw data'!B78="","",'DF raw data'!B78) -> -8.29711e-06 | C78: =IF('DF raw data'!C78="","",'DF raw data'!C78) -> 0.000267764 | D78: =IF('DF raw data'!D78="","",'DF raw data'!D78) -> -3.17244e-05 | F78: 5.480121299e-06 | G78: 4.402669785e-05 | H78: -2.946592216e-06 | J78: 3.635669979e-05 | K78: 0.0001417334861 | L78: 0.0002545860431 | M78: 0.0008241469111 | N78: 1.508138626e-07
A79: =IF('DF raw data'!A79="","",'DF raw data'!A79) -> -294 | B79: =IF('DF raw data'!B79="","",'DF raw data'!B79) -> -1.02193e-05 | C79: =IF('DF raw data'!C79="","",'DF raw data'!C79) -> 0.000274263 | D79: =IF('DF raw data'!D79="","",'DF raw data'!D79) -> -3.1893e-05 | F79: 3.550242539e-06 | G79: 5.055169385e-05 | H79: -3.115866616e-06 | J79: 3.813182106e-05 | K79: 0.0001607993966 | L79: 0.00027986189 | M79: 0.0009640778562 | N79: 1.907022192e-07
A80: =IF('DF raw data'!A80="","",'DF raw data'!A80) -> -293.5 | B80: =IF('DF raw data'!B80="","",'DF raw data'!B80) -> -9.93905e-07 | C80: =IF('DF raw data'!C80="","",'DF raw data'!C80) -> 0.000270937 | D80: =IF('DF raw data'!D80="","",'DF raw data'!D80) -> -3.26352e-05 | F80: 1.281253912e-05 | G80: 4.721238985e-05 | H80: -3.861035416e-06 | J80: 4.453809062e-05 | K80: 0.0001830684419 | L80: 0.000303468085 | M80: 0.001115811899 | N80: 2.377404793e-07
A81: =IF('DF raw data'!A81="","",'DF raw data'!A81) -> -293 | B81: =IF('DF raw data'!B81="","",'DF raw data'!B81) -> -9.12953e-06 | C81: =IF('DF raw data'!C81="","",'DF raw data'!C81) -> 0.000269987 | D81: =IF('DF raw data'!D81="","",'DF raw data'!D81) -> -3.33071e-05 | F81: 4.644371619e-06 | G81: 4.625858985e-05 | H81: -4.535623016e-06 | J81: 4.686027643e-05 | K81: 0.0002064985801 | L81: 0.0003265973799 | M81: 0.001279110589 | N81: 2.921713463e-07
A82: =IF('DF raw data'!A82="","",'DF raw data'!A82) -> -292.5 | B82: =IF('DF raw data'!B82="","",'DF raw data'!B82) -> -1.45098e-05 | C82: =IF('DF raw data'!C82="","",'DF raw data'!C82) -> 0.000268218 | D82: =IF('DF raw data'!D82="","",'DF raw data'!D82) -> -3.31196e-05 | F82: -7.574194611e-07 | G82: 4.448251385e-05 | H82: -4.347373016e-06 | J82: 4.64815667e-05 | K82: 0.0002297393635 | L82: 0.0003488386368 | M82: 0.001453529907 | N82: 3.540958116e-07
A83: =IF('DF raw data'!A83="","",'DF raw data'!A83) -> -292 | B83: =IF('DF raw data'!B83="","",'DF raw data'!B83) -> -1.68815e-05 | C83: =IF('DF raw data'!C83="","",'DF raw data'!C83) -> 0.000269889 | D83: =IF('DF raw data'!D83="","",'DF raw data'!D83) -> -3.24039e-05 | F83: -3.138606261e-06 | G83: 4.616019785e-05 | H83: -3.628810216e-06 | J83: 4.491226356e-05 | K83: 0.0002521954953 | L83: 0.0003719187358 | M83: 0.001639489275 | N83: 4.242661403e-07
A84: =IF('DF raw data'!A84="","",'DF raw data'!A84) -> -291.5 | B84: =IF('DF raw data'!B84="","",'DF raw data'!B84) -> -9.70617e-06 | C84: =IF('DF raw data'!C84="","",'DF raw data'!C84) -> 0.00026525 | D84: =IF('DF raw data'!D84="","",'DF raw data'!D84) -> -3.19085e-05 | F84: 4.065425059e-06 | G84: 4.150264185e-05 | H84: -3.131428616e-06 | J84: 4.694497609e-05 | K84: 0.0002756679833 | L84: 0.0003926700567 | M84: 0.001835824303 | N84: 5.024629424e-07
A85: =IF('DF raw data'!A85="","",'DF raw data'!A85) -> -291 | B85: =IF('DF raw data'!B85="","",'DF raw data'!B85) -> -1.52782e-05 | C85: =IF('DF raw data'!C85="","",'DF raw data'!C85) -> 0.000263165 | D85: =IF('DF raw data'!D85="","",'DF raw data'!D85) -> -3.49381e-05 | F85: -1.528893061e-06 | G85: 3.940930185e-05 | H85: -6.173147016e-06 | J85: 4.618052956e-05 | K85: 0.0002987582481 | L85: 0.0004123747076 | M85: 0.002042011657 | N85: 5.885557128e-07
A86: =IF('DF raw data'!A86="","",'DF raw data'!A86) -> -290.5 | B86: =IF('DF raw data'!B86="","",'DF raw data'!B86) -> -8.68695e-06 | C86: =IF('DF raw data'!C86="","",'DF raw data'!C86) -> 0.000260312 | D86: =IF('DF raw data'!D86="","",'DF raw data'!D86) -> -2.32298e-05 | F86: 5.088721939e-06 | G86: 3.654488985e-05 | H86: 5.581986184e-06 | J86: 4.872489053e-05 | K86: 0.0003231206934 | L86: 0.0004306471525 | M86: 0.002257335233 | N86: 6.824712553e-07
A87: =IF('DF raw data'!A87="","",'DF raw data'!A87) -> -290 | B87: =IF('DF raw data'!B87="","",'DF raw data'!B87) -> 8.54351e-06 | C87: =IF('DF raw data'!C87="","",'DF raw data'!C87) -> 0.000270172 | D87: =IF('DF raw data'!D87="","",'DF raw data'!D87) -> -2.10923e-05 | F87: 2.238810378e-05 | G87: 4.644432985e-05 | H87: 7.728036184e-06 | J87: 5.991894242e-05 | K87: 0.0003530801646 | L87: 0.0004538693175 | M87: 0.002484269892 | N87: 7.872650738e-07
A88: =IF('DF raw data'!A88="","",'DF raw data'!A88) -> -289.5 | B88: =IF('DF raw data'!B88="","",'DF raw data'!B88) -> -3.36804e-06 | C88: =IF('DF raw data'!C88="","",'DF raw data'!C88) -> 0.000276865 | D88: =IF('DF raw data'!D88="","",'DF raw data'!D88) -> -2.64412e-05 | F88: 1.042890758e-05 | G88: 5.316410185e-05 | H88: 2.357740584e-06 | J88: 6.513339621e-05 | K88: 0.0003856468627 | L88: 0.0004804513684 | M88: 0.002724495576 | N88: 9.048030121e-07
A89: =IF('DF raw data'!A89="","",'DF raw data'!A89) -> -289 | B89: =IF('DF raw data'!B89="","",'DF raw data'!B89) -> -7.33737e-06 | C89: =IF('DF raw data'!C89="","",'DF raw data'!C89) -> 0.000269631 | D89: =IF('DF raw data'!D89="","",'DF raw data'!D89) -> -3.06143e-05 | F89: 6.443700259e-06 | G89: 4.590116585e-05 | H89: -1.832051816e-06 | J89: 6.835524634e-05 | K89: 0.0004198244859 | L89: 0.0005034019513 | M89: 0.002976196552 | N89: 1.033845994e-06
A90: =IF('DF raw data'!A90="","",'DF raw data'!A90) -> -288.5 | B90: =IF('DF raw data'!B90="","",'DF raw data'!B90) -> -7.21033e-06 | C90: =IF('DF raw data'!C90="","",'DF raw data'!C90) -> 0.000271715 | D90: =IF('DF raw data'!D90="","",'DF raw data'!D90) -> -2.82508e-05 | F90: 6.571248419e-06 | G90: 4.799350185e-05 | H90: 5.409021839e-07 | J90: 7.164087055e-05 | K90: 0.0004556449211 | L90: 0.0005273987022 | M90: 0.003239895903 | N90: 1.175486897e-06
A91: =IF('DF raw data'!A91="","",'DF raw data'!A91) -> -288 | B91: =IF('DF raw data'!B91="","",'DF raw data'!B91) -> -8.55557e-06 | C91: =IF('DF raw data'!C91="","",'DF raw data'!C91) -> 0.000271941 | D91: =IF('DF raw data'!D91="","",'DF raw data'!D91) -> -2.90995e-05 | F91: 5.220627459e-06 | G91: 4.822040585e-05 | H91: -3.111926161e-07 | J91: 7.425118428e-05 | K91: 0.0004927705133 | L91: 0.0005515089052 | M91: 0.003515650356 | N91: 1.330324552e-06
A92: =IF('DF raw data'!A92="","",'DF raw data'!A92) -> -287.5 | B92: =IF('DF raw data'!B92="","",'DF raw data'!B92) -> -9.12536e-06 | C92: =IF('DF raw data'!C92="","",'DF raw data'!C92) -> 0.000263095 | D92: =IF('DF raw data'!D92="","",'DF raw data'!D92) -> -3.8802e-05 | F92: 4.648558299e-06 | G92: 3.933902185e-05 | H92: -1.005250262e-05 | J92: 7.657546343e-05 | K92: 0.000531058245 | L92: 0.0005711784161 | M92: 0.003801239564 | N92: 1.496378845e-06
A93: =IF('DF raw data'!A93="","",'DF raw data'!A93) -> -287 | B93: =IF('DF raw data'!B93="","",'DF raw data'!B93) -> 6.30789e-06 | C93: =IF('DF raw data'!C93="","",'DF raw data'!C93) -> 0.000262129 | D93: =IF('DF raw data'!D93="","",'DF raw data'!D93) -> -3.11173e-05 | F93: 2.01435413e-05 | G93: 3.836915785e-05 | H93: -2.337063816e-06 | J93: 8.664723408e-05 | K93: 0.000574381862 | L93: 0.000590362995 | M93: 0.004096421061 | N93: 1.674396949e-06
A94: =IF('DF raw data'!A94="","",'DF raw data'!A94) -> -286.5 | B94: =IF('DF raw data'!B94="","",'DF raw data'!B94) -> -1.57288e-05 | C94: =IF('DF raw data'!C94="","",'DF raw data'!C94) -> 0.00025611 | D94: =IF('DF raw data'!D94="","",'DF raw data'!D94) -> -2.98871e-05 | F94: -1.981295461e-06 | G94: 3.232608185e-05 | H94: -1.101943016e-06 | J94: 8.565658635e-05 | K94: 0.0006172101552 | L94: 0.000606526036 | M94: 0.004399684079 | N94: 1.862002391e-06
A95: =IF('DF raw data'!A95="","",'DF raw data'!A95) -> -286 | B95: =IF('DF raw data'!B95="","",'DF raw data'!B95) -> -1.09818e-05 | C95: =IF('DF raw data'!C95="","",'DF raw data'!C95) -> 0.000253369 | D95: =IF('DF raw data'!D95="","",'DF raw data'!D95) -> -4.14698e-05 | F95: 2.784692539e-06 | G95: 2.957411785e-05 | H95: -1.273097382e-05 | J95: 8.704893262e-05 | K95: 0.0006607346215 | L95: 0.0006213130949 | M95: 0.004710340627 | N95: 2.05880613e-06
A96: =IF('DF raw data'!A96="","",'DF raw data'!A96) -> -285.5 | B96: =IF('DF raw data'!B96="","",'DF raw data'!B96) -> -1.64307e-05 | C96: =IF('DF raw data'!C96="","",'DF raw data'!C96) -> 0.00026382 | D96: =IF('DF raw data'!D96="","",'DF raw data'!D96) -> -3.42001e-05 | F96: -2.686003061e-06 | G96: 4.006692185e-05 | H96: -5.432195016e-06 | J96: 8.570593109e-05 | K96: 0.0007035875871 | L96: 0.0006413465558 | M96: 0.005031013904 | N96: 2.268141586e-06
A97: =IF('DF raw data'!A97="","",'DF raw data'!A97) -> -285 | B97: =IF('DF raw data'!B97="","",'DF raw data'!B97) -> -1.45124e-05 | C97: =IF('DF raw data'!C97="","",'DF raw data'!C97) -> 0.000256666 | D97: =IF('DF raw data'!D97="","",'DF raw data'!D97) -> -3.05445e-05 | F97: -7.600298611e-07 | G97: 3.288430585e-05 | H97: -1.761972616e-06 | J97: 8.532591616e-05 | K97: 0.0007462505451 | L97: 0.0006577887087 | M97: 0.005359908259 | N97: 2.488124834e-06
A98: =IF('DF raw data'!A98="","",'DF raw data'!A98) -> -284.5 | B98: =IF('DF raw data'!B98="","",'DF raw data'!B98) -> -6.30952e-06 | C98: =IF('DF raw data'!C98="","",'DF raw data'!C98) -> 0.000260277 | D98: =IF('DF raw data'!D98="","",'DF raw data'!D98) -> -3.45423e-05 | F98: 7.475661659e-06 | G98: 3.650974985e-05 | H98: -5.775763816e-06 | J98: 8.906374699e-05 | K98: 0.0007907824186 | L98: 0.0006760435837 | M98: 0.005697930051 | N98: 2.720608473e-06
A99: =IF('DF raw data'!A99="","",'DF raw data'!A99) -> -284 | B99: =IF('DF raw data'!B99="","",'DF raw data'!B99) -> -9.19529e-06 | C99: =IF('DF raw data'!C99="","",'DF raw data'!C99) -> 0.000264014 | D99: =IF('DF raw data'!D99="","",'DF raw data'!D99) -> -3.04002e-05 | F99: 4.578348579e-06 | G99: 4.026169785e-05 | H99: -1.617095416e-06 | J99: 9.135292128e-05 | K99: 0.0008364588793 | L99: 0.0006961744326 | M99: 0.006046017267 | N99: 2.967110572e-06
A100: =IF('DF raw data'!A100="","",'DF raw data'!A100) -> -283.5 | B100: =IF('DF raw data'!B100="","",'DF raw data'!B100) -> -9.00189e-06 | C100: =IF('DF raw data'!C100="","",'DF raw data'!C100) -> 0.00026959 | D100: =IF('DF raw data'!D100="","",'DF raw data'!D100) -> -3.12364e-05 | F100: 4.772522179e-06 | G100: 4.586000185e-05 | H100: -2.456640216e-06 | J100: 9.373918237e-05 | K100: 0.0008833284705 | L100: 0.0007191044335 | M100: 0.006405569484 | N100: 3.230059682e-06
A101: =IF('DF raw data'!A101="","",'DF raw data'!A101) -> -283 | B101: =IF('DF raw data'!B101="","",'DF raw data'!B101) -> -8.99711e-06 | C101: =IF('DF raw data'!C101="","",'DF raw data'!C101) -> 0.000273144 | D101: =IF('DF raw data'!D101="","",'DF raw data'!D101) -> -3.95001e-05 | F101: 4.777321299e-06 | G101: 4.942821785e-05 | H101: -1.075339502e-05 | J101: 9.612784302e-05 | K101: 0.000931392392 | L101: 0.0007438185424 | M101: 0.006777478755 | N101: 3.511312975e-06
A102: =IF('DF raw data'!A102="","",'DF raw data'!A102) -> -282.5 | B102: =IF('DF raw data'!B102="","",'DF raw data'!B102) -> -9.64406e-06 | C102: =IF('DF raw data'!C102="","",'DF raw data'!C102) -> 0.000264918 | D102: =IF('DF raw data'!D102="","",'DF raw data'!D102) -> -2.91529e-05 | F102: 4.127783499e-06 | G102: 4.116931385e-05 | H102: -3.648062161e-07 | J102: 9.819173476e-05 | K102: 0.0009804882593 | L102: 0.0007644031994 | M102: 0.007159680355 | N102: 3.808289909e-06
A103: =IF('DF raw data'!A103="","",'DF raw data'!A103) -> -282 | B103: =IF('DF raw data'!B103="","",'DF raw data'!B103) -> -1.00928e-05 | C103: =IF('DF raw data'!C103="","",'DF raw data'!C103) -> 0.000268374 | D103: =IF('DF raw data'!D103="","",'DF raw data'!D103) -> -2.93194e-05 | F103: 3.677248539e-06 | G103: 4.463913785e-05 | H103: -5.319722161e-07 | J103: 0.000100030359 | K103: 0.001030503439 | L103: 0.0007867227683 | M103: 0.007553041739 | N103: 4.122759303e-06
A104: =IF('DF raw data'!A104="","",'DF raw data'!A104) -> -281.5 | B104: =IF('DF raw data'!B104="","",'DF raw data'!B104) -> -9.77286e-06 | C104: =IF('DF raw data'!C104="","",'DF raw data'!C104) -> 0.000264282 | D104: =IF('DF raw data'!D104="","",'DF raw data'!D104) -> -2.81321e-05 | F104: 3.998468299e-06 | G104: 4.053076985e-05 | H104: 6.600769839e-07 | J104: 0.0001020295932 | K104: 0.001081518235 | L104: 0.0008069881532 | M104: 0.007956535815 | N104: 4.453579261e-06
A105: =IF('DF raw data'!A105="","",'DF raw data'!A105) -> -281 | B105: =IF('DF raw data'!B105="","",'DF raw data'!B105) -> 4.82788e-06 | C105: =IF('DF raw data'!C105="","",'DF raw data'!C105) -> 0.000258973 | D105: =IF('DF raw data'!D105="","",'DF raw data'!D105) -> -2.10905e-05 | F105: 1.865761126e-05 | G105: 3.520053385e-05 | H105: 7.729843384e-06 | J105: 0.0001113583988 | K105: 0.001137197435 | L105: 0.0008245884201 | M105: 0.008368830025 | N105: 4.799752639e-06
A106: =IF('DF raw data'!A106="","",'DF raw data'!A106) -> -280.5 | B106: =IF('DF raw data'!B106="","",'DF raw data'!B106) -> -1.4258e-05 | C106: =IF('DF raw data'!C106="","",'DF raw data'!C106) -> 0.000264577 | D106: =IF('DF raw data'!D106="","",'DF raw data'!D106) -> -2.65178e-05 | F106: -5.046122611e-07 | G106: 4.082694985e-05 | H106: 2.280834184e-06 | J106: 0.0001111060927 | K106: 0.001192750481 | L106: 0.0008450018951 | M106: 0.008791330973 | N106: 5.162939022e-06
A107: =IF('DF raw data'!A107="","",'DF raw data'!A107) -> -280 | B107: =IF('DF raw data'!B107="","",'DF raw data'!B107) -> -1.05434e-05 | C107: =IF('DF raw data'!C107="","",'DF raw data'!C107) -> 0.00026296 | D107: =IF('DF raw data'!D107="","",'DF raw data'!D107) -> -2.60953e-05 | F107: 3.224846139e-06 | G107: 3.920348185e-05 | H107: 2.705024184e-06 | J107: 0.0001127185158 | K107: 0.001249109739 | L107: 0.000864603636 | M107: 0.009223632791 | N107: 5.543061478e-06
A108: =IF('DF raw data'!A108="","",'DF raw data'!A108) -> -279.5 | B108: =IF('DF raw data'!B108="","",'DF raw data'!B108) -> -1.80327e-05 | C108: =IF('DF raw data'!C108="","",'DF raw data'!C108) -> 0.000272692 | D108: =IF('DF raw data'!D108="","",'DF raw data'!D108) -> -3.36675e-05 | F108: -4.294411061e-06 | G108: 4.897440985e-05 | H108: -4.897464616e-06 | J108: 0.0001105713102 | K108: 0.001304395394 | L108: 0.0008890908409 | M108: 0.009668178211 | N108: 5.944415747e-06
A109: =IF('DF raw data'!A109="","",'DF raw data'!A109) -> -279 | B109: =IF('DF raw data'!B109="","",'DF raw data'!B109) -> -9.52356e-06 | C109: =IF('DF raw data'!C109="","",'DF raw data'!C109) -> 0.000277699 | D109: =IF('DF raw data'!D109="","",'DF raw data'!D109) -> -1.82065e-05 | F109: 4.248765499e-06 | G109: 5.400143785e-05 | H109: 1.062537938e-05 | J109: 0.000112695693 | K109: 0.001360743241 | L109: 0.0009160915599 | M109: 0.01012622399 | N109: 6.37037778e-06
A110: =IF('DF raw data'!A110="","",'DF raw data'!A110) -> -278.5 | B110: =IF('DF raw data'!B110="","",'DF raw data'!B110) -> -4.45432e-06 | C110: =IF('DF raw data'!C110="","",'DF raw data'!C110) -> 0.000273026 | D110: =IF('DF raw data'!D110="","",'DF raw data'!D110) -> -3.07667e-05 | F110: 9.338282459e-06 | G110: 4.930974585e-05 | H110: -1.985061416e-06 | J110: 0.0001173648342 | K110: 0.001419425658 | L110: 0.0009407464328 | M110: 0.01059659721 | N110: 6.819766957e-06
A111: =IF('DF raw data'!A111="","",'DF raw data'!A111) -> -278 | B111: =IF('DF raw data'!B111="","",'DF raw data'!B111) -> -1.52153e-05 | C111: =IF('DF raw data'!C111="","",'DF raw data'!C111) -> 0.000273318 | D111: =IF('DF raw data'!D111="","",'DF raw data'!D111) -> -3.2702e-05 | F111: -1.465741461e-06 | G111: 4.960291385e-05 | H111: -3.928102616e-06 | J111: 0.0001166319635 | K111: 0.00147774164 | L111: 0.0009655478897 | M111: 0.01107937115 | N111: 7.292709828e-06
A112: =IF('DF raw data'!A112="","",'DF raw data'!A112) -> -277.5 | B112: =IF('DF raw data'!B112="","",'DF raw data'!B112) -> -8.29461e-06 | C112: =IF('DF raw data'!C112="","",'DF raw data'!C112) -> 0.000278016 | D112: =IF('DF raw data'!D112="","",'DF raw data'!D112) -> -3.57661e-05 | F112: 5.482631299e-06 | G112: 5.431970585e-05 | H112: -7.004459016e-06 | J112: 0.0001193732791 | K112: 0.001537428279 | L112: 0.0009927077426 | M112: 0.01157572502 | N112: 7.792569149e-06
A113: =IF('DF raw data'!A113="","",'DF raw data'!A113) -> -277 | B113: =IF('DF raw data'!B113="","",'DF raw data'!B113) -> -1.4136e-05 | C113: =IF('DF raw data'!C113="","",'DF raw data'!C113) -> 0.000273702 | D113: =IF('DF raw data'!D113="","",'DF raw data'!D113) -> -1.74831e-05 | F113: -3.821242611e-07 | G113: 4.998844985e-05 | H113: 1.135167298e-05 | J113: 0.000119182217 | K113: 0.001597019388 | L113: 0.001017701968 | M113: 0.01208457601 | N113: 8.317529997e-06
A114: =IF('DF raw data'!A114="","",'DF raw data'!A114) -> -276.5 | B114: =IF('DF raw data'!B114="","",'DF raw data'!B114) -> -1.59236e-05 | C114: =IF('DF raw data'!C114="","",'DF raw data'!C114) -> 0.000259546 | D114: =IF('DF raw data'!D114="","",'DF raw data'!D114) -> -2.64939e-05 | F114: -2.176874661e-06 | G114: 3.577582585e-05 | H114: 2.304829784e-06 | J114: 0.0001180937797 | K114: 0.001656066277 | L114: 0.00103558988 | M114: 0.01260237095 | N114: 8.860726268e-06
A115: =IF('DF raw data'!A115="","",'DF raw data'!A115) -> -276 | B115: =IF('DF raw data'!B115="","",'DF raw data'!B115) -> -1.2721e-05 | C115: =IF('DF raw data'!C115="","",'DF raw data'!C115) -> 0.000258546 | D115: =IF('DF raw data'!D115="","",'DF raw data'!D115) -> -2.63937e-05 | F115: 1.038535739e-06 | G115: 3.477182585e-05 | H115: 2.405430584e-06 | J115: 0.0001186130475 | K115: 0.001715372801 | L115: 0.001052975793 | M115: 0.01312885884 | N115: 9.422139806e-06
A116: =IF('DF raw data'!A116="","",'DF raw data'!A116) -> -275.5 | B116: =IF('DF raw data'!B116="","",'DF raw data'!B116) -> -6.88092e-06 | C116: =IF('DF raw data'!C116="","",'DF raw data'!C116) -> 0.00026478 | D116: =IF('DF raw data'!D116="","",'DF raw data'!D116) -> -4.27308e-05 | F116: 6.901976059e-06 | G116: 4.103076185e-05 | H116: -1.399701782e-05 | J116: 0.0001220640356 | K116: 0.001776404819 | L116: 0.001073491174 | M116: 0.01366560443 | N116: 1.000578127e-05
A117: =IF('DF raw data'!A117="","",'DF raw data'!A117) -> -275 | B117: =IF('DF raw data'!B117="","",'DF raw data'!B117) -> -1.72629e-05 | C117: =IF('DF raw data'!C117="","",'DF raw data'!C117) -> 0.000262579 | D117: =IF('DF raw data'!D117="","",'DF raw data'!D117) -> -3.63727e-05 | F117: -3.521531861e-06 | G117: 3.882095785e-05 | H117: -7.613485416e-06 | J117: 0.0001203032696 | K117: 0.001836556454 | L117: 0.001092901653 | M117: 0.01421205526 | N117: 1.061023472e-05
A118: =IF('DF raw data'!A118="","",'DF raw data'!A118) -> -274.5 | B118: =IF('DF raw data'!B118="","",'DF raw data'!B118) -> -1.62438e-05 | C118: =IF('DF raw data'!C118="","",'DF raw data'!C118) -> 0.000265313 | D118: =IF('DF raw data'!D118="","",'DF raw data'!D118) -> -2.6313e-05 | F118: -2.498355461e-06 | G118: 4.156589385e-05 | H118: 2.486453384e-06 | J118: 0.0001190540919 | K118: 0.0018960835 | L118: 0.0011136846 | M118: 0.01476889756 | N118: 1.123746835e-05
A119: =IF('DF raw data'!A119="","",'DF raw data'!A119) -> -274 | B119: =IF('DF raw data'!B119="","",'DF raw data'!B119) -> -1.95769e-05 | C119: =IF('DF raw data'!C119="","",'DF raw data'!C119) -> 0.000264375 | D119: =IF('DF raw data'!D119="","",'DF raw data'!D119) -> -2.41272e-05 | F119: -5.844787861e-06 | G119: 4.062414185e-05 | H119: 4.680996584e-06 | J119: 0.000116131698 | K119: 0.001954149349 | L119: 0.001133996671 | M119: 0.01533589589 | N119: 1.188718586e-05
A120: =IF('DF raw data'!A120="","",'DF raw data'!A120) -> -273.5 | B120: =IF('DF raw data'!B120="","",'DF raw data'!B120) -> -1.82254e-05 | C120: =IF('DF raw data'!C120="","",'DF raw data'!C120) -> 0.000256721 | D120: =IF('DF raw data'!D120="","",'DF raw data'!D120) -> -3.28371e-05 | F120: -4.487881861e-06 | G120: 3.293952585e-05 | H120: -4.063743016e-06 | J120: 0.000113887757 | K120: 0.002011093227 | L120: 0.001150466434 | M120: 0.01591112911 | N120: 1.255545758e-05
A121: =IF('DF raw data'!A121="","",'DF raw data'!A121) -> -273 | B121: =IF('DF raw data'!B121="","",'DF raw data'!B121) -> -8.61576e-06 | C121: =IF('DF raw data'!C121="","",'DF raw data'!C121) -> 0.000261658 | D121: =IF('DF raw data'!D121="","",'DF raw data'!D121) -> -3.46416e-05 | F121: 5.160196699e-06 | G121: 3.789627385e-05 | H121: -5.875461016e-06 | J121: 0.0001164678554 | K121: 0.002069327155 | L121: 0.001169414571 | M121: 0.0164958364 | N121: 1.324600518e-05
A122: =IF('DF raw data'!A122="","",'DF raw data'!A122) -> -272.5 | B122: =IF('DF raw data'!B122="","",'DF raw data'!B122) -> -1.81623e-05 | C122: =IF('DF raw data'!C122="","",'DF raw data'!C122) -> 0.000257365 | D122: =IF('DF raw data'!D122="","",'DF raw data'!D122) -> -3.15009e-05 | F122: -4.424529461e-06 | G122: 3.358610185e-05 | H122: -2.722198216e-06 | J122: 0.0001142555907 | K122: 0.00212645495 | L122: 0.001186207622 | M122: 0.01708894021 | N122: 1.395607661e-05
A123: =IF('DF raw data'!A123="","",'DF raw data'!A123) -> -272 | B123: =IF('DF raw data'!B123="","",'DF raw data'!B123) -> -1.69482e-05 | C123: =IF('DF raw data'!C123="","",'DF raw data'!C123) -> 0.000258509 | D123: =IF('DF raw data'!D123="","",'DF raw data'!D123) -> -2.76399e-05 | F123: -3.205573061e-06 | G123: 3.473467785e-05 | H123: 1.154245784e-06 | J123: 0.0001126528041 | K123: 0.002182781352 | L123: 0.001203574961 | M123: 0.01769072769 | N123: 1.468671828e-05
A124: =IF('DF raw data'!A124="","",'DF raw data'!A124) -> -271.5 | B124: =IF('DF raw data'!B124="","",'DF raw data'!B124) -> -1.85583e-05 | C124: =IF('DF raw data'!C124="","",'DF raw data'!C124) -> 0.00025364 | D124: =IF('DF raw data'!D124="","",'DF raw data'!D124) -> -1.35234e-05 | F124: -4.822113461e-06 | G124: 2.984620185e-05 | H124: 1.532721178e-05 | J124: 0.0001102417474 | K124: 0.002237902226 | L124: 0.001218498062 | M124: 0.01829997672 | N124: 1.543516367e-05
A125: =IF('DF raw data'!A125="","",'DF raw data'!A125) -> -271 | B125: =IF('DF raw data'!B125="","",'DF raw data'!B125) -> -2.14835e-06 | C125: =IF('DF raw data'!C125="","",'DF raw data'!C125) -> 0.000262518 | D125: =IF('DF raw data'!D125="","",'DF raw data'!D125) -> -3.09094e-05 | F125: 1.165347634e-05 | G125: 3.875971385e-05 | H125: -2.128332216e-06 | J125: 0.0001160684856 | K125: 0.002295936469 | L125: 0.001237877919 | M125: 0.01891891568 | N125: 1.620807049e-05
A126: =IF('DF raw data'!A126="","",'DF raw data'!A126) -> -270.5 | B126: =IF('DF raw data'!B126="","",'DF raw data'!B126) -> -8.9955e-06 | C126: =IF('DF raw data'!C126="","",'DF raw data'!C126) -> 0.00027004 | D126: =IF('DF raw data'!D126="","",'DF raw data'!D126) -> -4.131e-05 | F126: 4.778937739e-06 | G126: 4.631180185e-05 | H126: -1.257053462e-05 | J126: 0.0001184579544 | K126: 0.002355165446 | L126: 0.00126103382 | M126: 0.01954943259 | N126: 1.701018978e-05
A127: =IF('DF raw data'!A127="","",'DF raw data'!A127) -> -270 | B127: =IF('DF raw data'!B127="","",'DF raw data'!B127) -> -1.57984e-05 | C127: =IF('DF raw data'!C127="","",'DF raw data'!C127) -> 0.000266046 | D127: =IF('DF raw data'!D127="","",'DF raw data'!D127) -> -2.27016e-05 | F127: -2.051173861e-06 | G127: 4.230182585e-05 | H127: 6.112298984e-06 | J127: 0.0001174323675 | K127: 0.00241388163 | L127: 0.001282184733 | M127: 0.02019052495 | N127: 1.78390838e-05
A128: =IF('DF raw data'!A128="","",'DF raw data'!A128) -> -269.5 | B128: =IF('DF raw data'!B128="","",'DF raw data'!B128) -> 2.08242e-06 | C128: =IF('DF raw data'!C128="","",'DF raw data'!C128) -> 0.000262002 | D128: =IF('DF raw data'!D128="","",'DF raw data'!D128) -> -3.52884e-05 | F128: 1.590116942e-05 | G128: 3.824164985e-05 | H128: -6.524848216e-06 | J128: =F128*$G$3+J127 -> 0.0001253829522 | K128: =J128*$G$3+K127 -> 0.002476573106 | L128: =G128*$G$3+L127 -> 0.001301305557 | M128: =L128*$G$3+M127 -> 0.02084117773 | N128: =(J128^2+L128^2)*$G$3+N127 -> 1.869364232e-05
A129: =IF('DF raw data'!A129="","",'DF raw data'!A129) -> -269 | B129: =IF('DF raw data'!B129="","",'DF raw data'!B129) -> -8.10417e-06 | C129: =IF('DF raw data'!C129="","",'DF raw data'!C129) -> 0.000260783 | D129: =IF('DF raw data'!D129="","",'DF raw data'!D129) -> -3.33235e-05 | F129: 5.673833059e-06 | G129: 3.701777385e-05 | H129: -4.552088616e-06 | J129: 0.0001282198687 | K129: 0.00254068304 | L129: 0.001319814444 | M129: 0.02150108496 | N129: 1.957281757e-05
A130: =IF('DF raw data'!A130="","",'DF raw data'!A130) -> -268.5 | B130: =IF('DF raw data'!B130="","",'DF raw data'!B130) -> -6.51156e-06 | C130: =IF('DF raw data'!C130="","",'DF raw data'!C130) -> 0.00026845 | D130: =IF('DF raw data'!D130="","",'DF raw data'!D130) -> -1.96697e-05 | F130: 7.272813499e-06 | G130: 4.471544185e-05 | H130: 9.156326584e-06 | J130: 0.0001318562755 | K130: 0.002606611178 | L130: 0.001342172165 | M130: 0.02217217104 | N130: 2.048222367e-05
A131: =IF('DF raw data'!A131="","",'DF raw data'!A131) -> -268 | B131: =IF('DF raw data'!B131="","",'DF raw data'!B131) -> -2.25171e-07 | C131: =IF('DF raw data'!C131="","",'DF raw data'!C131) -> 0.000273846 | D131: =IF('DF raw data'!D131="","",'DF raw data'!D131) -> -3.27974e-05 | F131: =(1-$G$1*($B$54-$G$2))*(B131-F$5) -> 1.358434805e-05 | G131: =(1-$G$1*($B$54-$G$2))*(C131-G$5) -> 5.013302585e-05 | H131: =(1-$G$1*($B$54-$G$2))*(D131-H$5) -> -4.023884216e-06 | J131: 0.0001386484495 | K131: 0.002675935403 | L131: 0.001367238678 | M131: 0.02285579038 | N131: 2.142650617e-05
A132: =IF('DF raw data'!A132="","",'DF raw data'!A132) -> -267.5 | B132: =IF('DF raw data'!B132="","",'DF raw data'!B132) -> -1.054e-05 | C132: =IF('DF raw data'!C132="","",'DF raw data'!C132) -> 0.000271176 | D132: =IF('DF raw data'!D132="","",'DF raw data'!D132) -> -3.07275e-05 | F132: 3.228259739e-06 | G132: 4.745234585e-05 | H132: -1.945704616e-06 | J132: 0.0001402625794 | K132: 0.002746066692 | L132: 0.001390964851 | M132: 0.0235512728 | N132: 2.240373457e-05
A133: =IF('DF raw data'!A133="","",'DF raw data'!A133) -> -267 | B133: =IF('DF raw data'!B133="","",'DF raw data'!B133) -> -3.42939e-06 | C133: =IF('DF raw data'!C133="","",'DF raw data'!C133) -> 0.000263969 | D133: =IF('DF raw data'!D133="","",'DF raw data'!D133) -> -3.10408e-05 | F133: 1.036731218e-05 | G133: 4.021651785e-05 | H133: -2.260257816e-06 | J133: 0.0001454462355 | K133: 0.00281878981 | L133: 0.00141107311 | M133: 0.02425680936 | N133: 2.340987554e-05
A134: =IF('DF raw data'!A134="","",'DF raw data'!A134) -> -266.5 | B134: =IF('DF raw data'!B134="","",'DF raw data'!B134) -> -2.07768e-05 | C134: =IF('DF raw data'!C134="","",'DF raw data'!C134) -> 0.000262628 | D134: =IF('DF raw data'!D134="","",'DF raw data'!D134) -> -4.99544e-05 | F134: -7.049487461e-06 | G134: 3.887015385e-05 | H134: -2.124951222e-05 | J134: 0.0001419214917 | K134: 0.002889750556 | L134: 0.001430508187 | M134: 0.02497206345 | N134: 2.444312323e-05
A135: =IF('DF raw data'!A135="","",'DF raw data'!A135) -> -266 | B135: =IF('DF raw data'!B135="","",'DF raw data'!B135) -> -1.13791e-05 | C135: =IF('DF raw data'!C135="","",'DF raw data'!C135) -> 0.000256688 | D135: =IF('DF raw data'!D135="","",'DF raw data'!D135) -> -2.09712e-05 | F135: 2.385803339e-06 | G135: 3.290639385e-05 | H135: 7.849620584e-06 | J135: 0.0001431143934 | K135: 0.002961307753 | L135: 0.001446961384 | M135: 0.02569554414 | N135: 2.550021272e-05
A136: =IF('DF raw data'!A136="","",'DF raw data'!A136) -> -265.5 | B136: =IF('DF raw data'!B136="","",'DF raw data'!B136) -> -1.65621e-05 | C136: =IF('DF raw data'!C136="","",'DF raw data'!C136) -> 0.000256534 | D136: =IF('DF raw data'!D136="","",'DF raw data'!D136) -> -2.96741e-05 | F136: -2.817928661e-06 | G136: 3.275177785e-05 | H136: -8.880910161e-07 | J136: 0.0001417054291 | K136: 0.003032160467 | L136: 0.001463337273 | M136: 0.02642721278 | N136: 2.658093092e-05
A137: =IF('DF raw data'!A137="","",'DF raw data'!A137) -> -265 | B137: =IF('DF raw data'!B137="","",'DF raw data'!B137) -> -5.09836e-06 | C137: =IF('DF raw data'!C137="","",'DF raw data'!C137) -> 0.000262459 | D137: =IF('DF raw data'!D137="","",'DF raw data'!D137) -> -2.56157e-05 | F137: 8.691666299e-06 | G137: 3.870047785e-05 | H137: 3.186542584e-06 | J137: 0.0001460512622 | K137: 0.003105186098 | L137: 0.001482687512 | M137: 0.02716855654 | N137: 2.769077753e-05
A138: =IF('DF raw data'!A138="","",'DF raw data'!A138) -> -264.5 | B138: =IF('DF raw data'!B138="","",'DF raw data'!B138) -> -3.63084e-06 | C138: =IF('DF raw data'!C138="","",'DF raw data'!C138) -> 0.000268239 | D138: =IF('DF raw data'!D138="","",'DF raw data'!D138) -> -1.64226e-05 | F138: 1.016505638e-05 | G138: 4.450359785e-05 | H138: 1.241641498e-05 | J138: 0.0001511337904 | K138: 0.003180752994 | L138: 0.001504939311 | M138: 0.02792102619 | N138: 2.883461941e-05
A139: =IF('DF raw data'!A139="","",'DF raw data'!A139) -> -264 | B139: =IF('DF raw data'!B139="","",'DF raw data'!B139) -> -1.70817e-05 | C139: =IF('DF raw data'!C139="","",'DF raw data'!C139) -> 0.00027039 | D139: =IF('DF raw data'!D139="","",'DF raw data'!D139) -> -1.91372e-05 | F139: -3.339607061e-06 | G139: 4.666320185e-05 | H139: 9.690956584e-06 | J139: 0.0001494639869 | K139: 0.003255484987 | L139: 0.001528270912 | M139: 0.02868516165 | N139: 3.001359514e-05
A140: =IF('DF raw data'!A140="","",'DF raw data'!A140) -> -263.5 | B140: =IF('DF raw data'!B140="","",'DF raw data'!B140) -> -2.59844e-06 | C140: =IF('DF raw data'!C140="","",'DF raw data'!C140) -> 0.000274888 | D140: =IF('DF raw data'!D140="","",'DF raw data'!D140) -> -2.80144e-05 | F140: 1.120158598e-05 | G140: 5.117919385e-05 | H140: 7.782477839e-07 | J140: 0.0001550647799 | K140: 0.003333017377 | L140: 0.001553860509 | M140: 0.0294620919 | N140: 3.123285892e-05
A141: =IF('DF raw data'!A141="","",'DF raw data'!A141) -> -263 | B141: =IF('DF raw data'!B141="","",'DF raw data'!B141) -> -1.40051e-05 | C141: =IF('DF raw data'!C141="","",'DF raw data'!C141) -> 0.000269393 | D141: =IF('DF raw data'!D141="","",'DF raw data'!D141) -> -2.16115e-05 | F141: -2.507006611e-07 | G141: 4.566221385e-05 | H141: 7.206759384e-06 | J141: 0.0001549394296 | K141: 0.003410487092 | L141: 0.001576691616 | M141: 0.03025043771 | N141: 3.248784026e-05
A142: =IF('DF raw data'!A142="","",'DF raw data'!A142) -> -262.5 | B142: =IF('DF raw data'!B142="","",'DF raw data'!B142) -> -6.38062e-06 | C142: =IF('DF raw data'!C142="","",'DF raw data'!C142) -> 0.000270205 | D142: =IF('DF raw data'!D142="","",'DF raw data'!D142) -> -2.37156e-05 | F142: 7.404277259e-06 | G142: 4.647746185e-05 | H142: 5.094242984e-06 | J142: 0.0001586415682 | K142: 0.003489807876 | L142: 0.001599930346 | M142: 0.03105040288 | N142: 3.378031239e-05
A143: =IF('DF raw data'!A143="","",'DF raw data'!A143) -> -262 | B143: =IF('DF raw data'!B143="","",'DF raw data'!B143) -> -3.30243e-06 | C143: =IF('DF raw data'!C143="","",'DF raw data'!C143) -> 0.000271649 | D143: =IF('DF raw data'!D143="","",'DF raw data'!D143) -> -2.9216e-05 | F143: 1.049478002e-05 | G143: 4.792723785e-05 | H143: -4.281586161e-07 | J143: 0.0001638889582 | K143: 0.003571752355 | L143: 0.001623893965 | M143: 0.03186234986 | N143: 3.511225799e-05
A144: =IF('DF raw data'!A144="","",'DF raw data'!A144) -> -261.5 | B144: =IF('DF raw data'!B144="","",'DF raw data'!B144) -> -2.02444e-06 | C144: =IF('DF raw data'!C144="","",'DF raw data'!C144) -> 0.00026622 | D144: =IF('DF raw data'!D144="","",'DF raw data'!D144) -> -2.43764e-05 | F144: 1.177788198e-05 | G144: 4.247652185e-05 | H144: 4.430799784e-06 | J144: 0.0001697778992 | K144: 0.003656641305 | L144: 0.001645132226 | M144: 0.03268491598 | N144: 3.647990028e-05
A145: =IF('DF raw data'!A145="","",'DF raw data'!A145) -> -261 | B145: =IF('DF raw data'!B145="","",'DF raw data'!B145) -> -2.72579e-06 | C145: =IF('DF raw data'!C145="","",'DF raw data'!C145) -> 0.000265498 | D145: =IF('DF raw data'!D145="","",'DF raw data'!D145) -> -2.9219e-05 | F145: 1.107372658e-05 | G145: 4.175163385e-05 | H145: -4.311706161e-07 | J145: 0.0001753147625 | K145: 0.003744298686 | L145: 0.001666008043 | M145: 0.03351792 | N145: 3.788305932e-05
A146: =IF('DF raw data'!A146="","",'DF raw data'!A146) -> -260.5 | B146: =IF('DF raw data'!B146="","",'DF raw data'!B146) -> -9.06605e-06 | C146: =IF('DF raw data'!C146="","",'DF raw data'!C146) -> 0.000277751 | D146: =IF('DF raw data'!D146="","",'DF raw data'!D146) -> -3.16905e-05 | F146: 4.708105539e-06 | G146: 5.405364585e-05 | H146: -2.912556616e-06 | J146: 0.0001776688152 | K146: 0.003833133093 | L146: 0.001693034866 | M146: 0.03436443743 | N146: 3.933202595e-05
A147: =IF('DF raw data'!A147="","",'DF raw data'!A147) -> -260 | B147: =IF('DF raw data'!B147="","",'DF raw data'!B147) -> -1.52138e-05 | C147: =IF('DF raw data'!C147="","",'DF raw data'!C147) -> 0.000278499 | D147: =IF('DF raw data'!D147="","",'DF raw data'!D147) -> -3.45571e-05 | F147: -1.464235461e-06 | G147: 5.480463785e-05 | H147: -5.790623016e-06 | J147: 0.0001769366975 | K147: 0.003921601442 | L147: 0.001720437185 | M147: 0.03522465603 | N147: 4.08276313e-05
A148: =IF('DF raw data'!A148="","",'DF raw data'!A148) -> -259.5 | B148: =IF('DF raw data'!B148="","",'DF raw data'!B148) -> -7.27141e-06 | C148: =IF('DF raw data'!C148="","",'DF raw data'!C148) -> 0.00027567 | D148: =IF('DF raw data'!D148="","",'DF raw data'!D148) -> -3.33761e-05 | F148: 6.509924099e-06 | G148: 5.196432185e-05 | H148: -4.604899016e-06 | J148: 0.0001801916596 | K148: 0.004011697272 | L148: 0.001746419346 | M148: 0.0360978657 | N148: 4.236885608e-05
A149: =IF('DF raw data'!A149="","",'DF raw data'!A149) -> -259 | B149: =IF('DF raw data'!B149="","",'DF raw data'!B149) -> -1.18111e-05 | C149: =IF('DF raw data'!C149="","",'DF raw data'!C149) -> 0.000272138 | D149: =IF('DF raw data'!D149="","",'DF raw data'!D149) -> -4.63217e-05 | F149: 1.952075339e-06 | G149: 4.841819385e-05 | H149: -1.760228142e-05 | J149: 0.0001811676972 | K149: 0.004102281121 | L149: 0.001770628443 | M149: 0.03698317992 | N149: 4.395282949e-05
A150: =IF('DF raw data'!A150="","",'DF raw data'!A150) -> -258.5 | B150: =IF('DF raw data'!B150="","",'DF raw data'!B150) -> -1.98277e-05 | C150: =IF('DF raw data'!C150="","",'DF raw data'!C150) -> 0.000267974 | D150: =IF('DF raw data'!D150="","",'DF raw data'!D150) -> -3.20175e-05 | F150: -6.096591061e-06 | G150: 4.423753785e-05 | H150: -3.240864616e-06 | J150: 0.0001781194017 | K150: 0.004191340821 | L150: 0.001792747212 | M150: 0.03787955353 | N150: 4.557566404e-05
A151: =IF('DF raw data'!A151="","",'DF raw data'!A151) -> -258 | B151: =IF('DF raw data'!B151="","",'DF raw data'!B151) -> -7.97542e-06 | C151: =IF('DF raw data'!C151="","",'DF raw data'!C151) -> 0.000259624 | D151: =IF('DF raw data'!D151="","",'DF raw data'!D151) -> -3.41422e-05 | F151: 5.803098059e-06 | G151: 3.585413785e-05 | H151: -5.374063416e-06 | J151: 0.0001810209507 | K151: 0.004281851297 | L151: 0.001810674281 | M151: 0.03878489067 | N151: 4.7231319e-05
A152: =IF('DF raw data'!A152="","",'DF raw data'!A152) -> -257.5 | B152: =IF('DF raw data'!B152="","",'DF raw data'!B152) -> -9.12905e-06 | C152: =IF('DF raw data'!C152="","",'DF raw data'!C152) -> 0.000258341 | D152: =IF('DF raw data'!D152="","",'DF raw data'!D152) -> -3.35224e-05 | F152: 4.644853539e-06 | G152: 3.456600585e-05 | H152: -4.751784216e-06 | J152: 0.0001833433775 | K152: 0.004373522985 | L152: 0.001827957284 | M152: 0.03969886931 | N152: 4.891884032e-05
A153: =IF('DF raw data'!A153="","",'DF raw data'!A153) -> -257 | B153: =IF('DF raw data'!B153="","",'DF raw data'!B153) -> -4.13744e-06 | C153: =IF('DF raw data'!C153="","",'DF raw data'!C153) -> 0.000272301 | D153: =IF('DF raw data'!D153="","",'DF raw data'!D153) -> -2.58839e-05 | F153: 9.656429979e-06 | G153: 4.858184585e-05 | H153: 2.917269784e-06 | J153: 0.0001881715925 | K153: 0.004467608782 | L153: 0.001852248207 | M153: 0.04062499341 | N153: 5.06519563e-05
A154: =IF('DF raw data'!A154="","",'DF raw data'!A154) -> -256.5 | B154: =IF('DF raw data'!B154="","",'DF raw data'!B154) -> -9.65004e-06 | C154: =IF('DF raw data'!C154="","",'DF raw data'!C154) -> 0.000280682 | D154: =IF('DF raw data'!D154="","",'DF raw data'!D154) -> -2.03407e-05 | F154: 4.121779579e-06 | G154: 5.699636985e-05 | H154: 8.482642584e-06 | J154: 0.0001902324823 | K154: 0.004562725023 | L154: 0.001880746392 | M154: 0.04156536661 | N154: 5.243865399e-05
A155: =IF('DF raw data'!A155="","",'DF raw data'!A155) -> -256 | B155: =IF('DF raw data'!B155="","",'DF raw data'!B155) -> -8.16623e-06 | C155: =IF('DF raw data'!C155="","",'DF raw data'!C155) -> 0.000271873 | D155: =IF('DF raw data'!D155="","",'DF raw data'!D155) -> -3.64463e-05 | F155: 5.611524819e-06 | G155: 4.815213385e-05 | H155: -7.687379816e-06 | J155: 0.0001930382447 | K155: 0.004659244145 | L155: 0.001904822458 | M155: 0.04251777784 | N155: 5.427146017e-05
A156: =IF('DF raw data'!A156="","",'DF raw data'!A156) -> -255.5 | B156: =IF('DF raw data'!B156="","",'DF raw data'!B156) -> -5.93205e-06 | C156: =IF('DF raw data'!C156="","",'DF raw data'!C156) -> 0.00026696 | D156: =IF('DF raw data'!D156="","",'DF raw data'!D156) -> -2.42312e-05 | F156: 7.854641539e-06 | G156: 4.321948185e-05 | H156: 4.576580584e-06 | J156: 0.0001969655655 | K156: 0.004757726928 | L156: 0.001926432199 | M156: 0.04348099394 | N156: 5.61464284e-05
A157: =IF('DF raw data'!A157="","",'DF raw data'!A157) -> -255 | B157: =IF('DF raw data'!B157="","",'DF raw data'!B157) -> -2.99486e-05 | C157: =IF('DF raw data'!C157="","",'DF raw data'!C157) -> 0.000269806 | D157: =IF('DF raw data'!D157="","",'DF raw data'!D157) -> -3.28099e-05 | F157: -1.625797466e-05 | G157: 4.607686585e-05 | H157: -4.036434216e-06 | J157: 0.0001888365781 | K157: 0.004852145217 | L157: 0.001949470632 | M157: 0.04445572925 | N157: 5.80644759e-05
A158: =IF('DF raw data'!A158="","",'DF raw data'!A158) -> -254.5 | B158: =IF('DF raw data'!B158="","",'DF raw data'!B158) -> -6.18535e-06 | C158: =IF('DF raw data'!C158="","",'DF raw data'!C158) -> 0.000270858 | D158: =IF('DF raw data'!D158="","",'DF raw data'!D158) -> -2.87296e-05 | F158: 7.600328339e-06 | G158: 4.713307385e-05 | H158: 6.01869839e-08 | J158: 0.0001926367423 | K158: 0.004948463588 | L158: 0.001973037169 | M158: 0.04544224784 | N158: 6.002946819e-05
A159: =IF('DF raw data'!A159="","",'DF raw data'!A159) -> -254 | B159: =IF('DF raw data'!B159="","",'DF raw data'!B159) -> -1.41235e-05 | C159: =IF('DF raw data'!C159="","",'DF raw data'!C159) -> 0.000267529 | D159: =IF('DF raw data'!D159="","",'DF raw data'!D159) -> -3.64442e-05 | F159: -3.695742611e-07 | G159: 4.379075785e-05 | H159: -7.685271416e-06 | J159: 0.0001924519552 | K159: 0.005044689566 | L159: 0.001994932548 | M159: 0.04643971411 | N159: 6.203786501e-05
A160: =IF('DF raw data'!A160="","",'DF raw data'!A160) -> -253.5 | B160: =IF('DF raw data'!B160="","",'DF raw data'!B160) -> -2.03419e-05 | C160: =IF('DF raw data'!C160="","",'DF raw data'!C160) -> 0.00026487 | D160: =IF('DF raw data'!D160="","",'DF raw data'!D160) -> -2.921e-05 | F160: -6.612847861e-06 | G160: 4.112112185e-05 | H160: -4.221346161e-07 | J160: 0.0001891455312 | K160: 0.005139262331 | L160: 0.002015493109 | M160: 0.04744746067 | N160: 6.408685926e-05
A161: =IF('DF raw data'!A161="","",'DF raw data'!A161) -> -253 | B161: =IF('DF raw data'!B161="","",'DF raw data'!B161) -> -1.79729e-05 | C161: =IF('DF raw data'!C161="","",'DF raw data'!C161) -> 0.000260107 | D161: =IF('DF raw data'!D161="","",'DF raw data'!D161) -> -2.75027e-05 | F161: -4.234371861e-06 | G161: 3.633906985e-05 | H161: 1.291994584e-06 | J161: 0.0001870283453 | K161: 0.005232776504 | L161: 0.002033662644 | M161: 0.04846429199 | N161: 6.617224093e-05
A162: =IF('DF raw data'!A162="","",'DF raw data'!A162) -> -252.5 | B162: =IF('DF raw data'!B162="","",'DF raw data'!B162) -> -1.00931e-05 | C162: =IF('DF raw data'!C162="","",'DF raw data'!C162) -> 0.000271728 | D162: =IF('DF raw data'!D162="","",'DF raw data'!D162) -> -2.83229e-05 | F162: 3.676947339e-06 | G162: 4.800655385e-05 | H162: 4.685137839e-07 | J162: 0.000188866819 | K162: 0.005327209913 | L162: 0.002057665921 | M162: 0.04949312495 | N162: 6.830707079e-05
A163: =IF('DF raw data'!A163="","",'DF raw data'!A163) -> -252 | B163: =IF('DF raw data'!B163="","",'DF raw data'!B163) -> -2.49587e-05 | C163: =IF('DF raw data'!C163="","",'DF raw data'!C163) -> 0.000263664 | D163: =IF('DF raw data'!D163="","",'DF raw data'!D163) -> -2.23248e-05 | F163: -1.124811506e-05 | G163: 3.991029785e-05 | H163: 6.490606184e-06 | J163: 0.0001832427614 | K163: 0.005418831294 | L163: 0.00207762107 | M163: 0.05053193548 | N163: 7.04821144e-05
A164: =IF('DF raw data'!A164="","",'DF raw data'!A164) -> -251.5 | B164: =IF('DF raw data'!B164="","",'DF raw data'!B164) -> -1.33605e-05 | C164: =IF('DF raw data'!C164="","",'DF raw data'!C164) -> 0.000260655 | D164: =IF('DF raw data'!D164="","",'DF raw data'!D164) -> -2.77194e-05 | F164: 3.964777389e-07 | G164: 3.688926185e-05 | H164: 1.074427784e-06 | J164: 0.0001834410003 | K164: 0.005510551794 | L164: 0.002096065701 | M164: 0.05157996833 | N164: 7.269568541e-05
A165: =IF('DF raw data'!A165="","",'DF raw data'!A165) -> -251 | B165: =IF('DF raw data'!B165="","",'DF raw data'!B165) -> -1.59857e-05 | C165: =IF('DF raw data'!C165="","",'DF raw data'!C165) -> 0.000259423 | D165: =IF('DF raw data'!D165="","",'DF raw data'!D165) -> -2.95836e-05 | F165: -2.239223061e-06 | G165: 3.565233385e-05 | H165: -7.972290161e-07 | J165: 0.0001823213888 | K165: 0.005601712489 | L165: 0.002113891868 | M165: 0.05263691427 | N165: 7.494657537e-05
A166: =IF('DF raw data'!A166="","",'DF raw data'!A166) -> -250.5 | B166: =IF('DF raw data'!B166="","",'DF raw data'!B166) -> 1.37732e-06 | C166: =IF('DF raw data'!C166="","",'DF raw data'!C166) -> 0.000265252 | D166: =IF('DF raw data'!D166="","",'DF raw data'!D166) -> -3.4702e-05 | F166: 1.519324902e-05 | G166: 4.150464985e-05 | H166: -5.936102616e-06 | J166: 0.0001899180133 | K166: 0.005696671495 | L166: 0.002134644193 | M166: 0.05370423636 | N166: 7.724296271e-05
A167: =IF('DF raw data'!A167="","",'DF raw data'!A167) -> -250 | B167: =IF('DF raw data'!B167="","",'DF raw data'!B167) -> -1.14345e-05 | C167: =IF('DF raw data'!C167="","",'DF raw data'!C167) -> 0.000274347 | D167: =IF('DF raw data'!D167="","",'DF raw data'!D167) -> -3.43363e-05 | F167: 2.330181739e-06 | G167: 5.063602985e-05 | H167: -5.568939816e-06 | J167: 0.0001910831042 | K167: 0.005792213047 | L167: 0.002159962208 | M167: 0.05478421747 | N167: 7.959393746e-05
A168: =IF('DF raw data'!A168="","",'DF raw data'!A168) -> -249.5 | B168: =IF('DF raw data'!B168="","",'DF raw data'!B168) -> -1.93187e-05 | C168: =IF('DF raw data'!C168="","",'DF raw data'!C168) -> 0.000280421 | D168: =IF('DF raw data'!D168="","",'DF raw data'!D168) -> -2.66994e-05 | F168: -5.585555061e-06 | G168: 5.673432585e-05 | H168: 2.098507784e-06 | J168: 0.0001882903266 | K168: 0.005886358211 | L168: 0.002188329371 | M168: 0.05587838215 | N168: 8.20060568e-05
A169: =IF('DF raw data'!A169="","",'DF raw data'!A169) -> -249 | B169: =IF('DF raw data'!B169="","",'DF raw data'!B169) -> -1.45743e-05 | C169: =IF('DF raw data'!C169="","",'DF raw data'!C169) -> 0.000269032 | D169: =IF('DF raw data'!D169="","",'DF raw data'!D169) -> -3.28606e-05 | F169: -8.221774611e-07 | G169: 4.529976985e-05 | H169: -4.087337016e-06 | J169: 0.0001878792379 | K169: 0.00598029783 | L169: 0.002210979255 | M169: 0.05698387178 | N169: 8.446792074e-05
A170: =IF('DF raw data'!A170="","",'DF raw data'!A170) -> -248.5 | B170: =IF('DF raw data'!B170="","",'DF raw data'!B170) -> -4.38948e-06 | C170: =IF('DF raw data'!C170="","",'DF raw data'!C170) -> 0.000260074 | D170: =IF('DF raw data'!D170="","",'DF raw data'!D170) -> -3.23301e-05 | F170: 9.403381819e-06 | G170: 3.630593785e-05 | H170: -3.554715016e-06 | J170: 0.0001925809288 | K170: 0.006076588294 | L170: 0.002229132224 | M170: 0.05809843789 | N170: 8.697097968e-05
A171: =IF('DF raw data'!A171="","",'DF raw data'!A171) -> -248 | B171: =IF('DF raw data'!B171="","",'DF raw data'!B171) -> -1.08003e-05 | C171: =IF('DF raw data'!C171="","",'DF raw data'!C171) -> 0.000261966 | D171: =IF('DF raw data'!D171="","",'DF raw data'!D171) -> -2.46162e-05 | F171: 2.966918539e-06 | G171: 3.820550585e-05 | H171: 4.190040584e-06 | J171: 0.0001940643881 | K171: 0.006173620488 | L171: 0.002248234977 | M171: 0.05922255538 | N171: 8.951709043e-05
A172: =IF('DF raw data'!A172="","",'DF raw data'!A172) -> -247.5 | B172: =IF('DF raw data'!B172="","",'DF raw data'!B172) -> -7.20587e-06 | C172: =IF('DF raw data'!C172="","",'DF raw data'!C172) -> 0.000270681 | D172: =IF('DF raw data'!D172="","",'DF raw data'!D172) -> -3.54899e-05 | F172: 6.575726259e-06 | G172: 4.695536585e-05 | H172: -6.727154216e-06 | J172: 0.0001973522512 | K172: 0.006272296614 | L172: 0.00227171266 | M172: 0.06035841171 | N172: 9.211690359e-05
A173: =IF('DF raw data'!A173="","",'DF raw data'!A173) -> -247 | B173: =IF('DF raw data'!B173="","",'DF raw data'!B173) -> -1.25898e-05 | C173: =IF('DF raw data'!C173="","",'DF raw data'!C173) -> 0.000264309 | D173: =IF('DF raw data'!D173="","",'DF raw data'!D173) -> -3.07716e-05 | F173: 1.170260539e-06 | G173: 4.055787785e-05 | H173: -1.989981016e-06 | J173: 0.0001979373815 | K173: 0.006371265304 | L173: 0.002291991599 | M173: 0.06150440751 | N173: 9.476310594e-05
A174: =IF('DF raw data'!A174="","",'DF raw data'!A174) -> -246.5 | B174: =IF('DF raw data'!B174="","",'DF raw data'!B174) -> -2.55291e-05 | C174: =IF('DF raw data'!C174="","",'DF raw data'!C174) -> 0.000255492 | D174: =IF('DF raw data'!D174="","",'DF raw data'!D174) -> -3.19452e-05 | F174: -1.182079666e-05 | G174: 3.170560985e-05 | H174: -3.168275416e-06 | J174: 0.0001920269831 | K174: 0.006467278796 | L174: 0.002307844404 | M174: 0.06265832971 | N174: 9.744461602e-05
A175: =IF('DF raw data'!A175="","",'DF raw data'!A175) -> -246 | B175: =IF('DF raw data'!B175="","",'DF raw data'!B175) -> -8.17141e-06 | C175: =IF('DF raw data'!C175="","",'DF raw data'!C175) -> 0.000265515 | D175: =IF('DF raw data'!D175="","",'DF raw data'!D175) -> -2.84279e-05 | F175: 5.606324099e-06 | G175: 4.176870185e-05 | H175: 3.630937839e-07 | J175: 0.0001948301452 | K175: 0.006564693869 | L175: 0.002328728755 | M175: 0.06382269409 | N175: 0.0001001750842
A176: =IF('DF raw data'!A176="","",'DF raw data'!A176) -> -245.5 | B176: =IF('DF raw data'!B176="","",'DF raw data'!B176) -> -4.39062e-06 | C176: =IF('DF raw data'!C176="","",'DF raw data'!C176) -> 0.000265337 | D176: =IF('DF raw data'!D176="","",'DF raw data'!D176) -> -3.05663e-05 | F176: 9.402237259e-06 | G176: 4.158998985e-05 | H176: -1.783859816e-06 | J176: 0.0001995312638 | K176: 0.006664459501 | L176: 0.00234952375 | M176: 0.06499745597 | N176: 0.0001029551215
A177: =IF('DF raw data'!A177="","",'DF raw data'!A177) -> -245 | B177: =IF('DF raw data'!B177="","",'DF raw data'!B177) -> -3.88063e-06 | C177: =IF('DF raw data'!C177="","",'DF raw data'!C177) -> 0.000265796 | D177: =IF('DF raw data'!D177="","",'DF raw data'!D177) -> -2.67713e-05 | F177: 9.914267219e-06 | G177: 4.205082585e-05 | H177: 2.026320184e-06 | J177: 0.0002044883974 | K177: 0.006766703699 | L177: 0.002370549163 | M177: 0.06618273055 | N177: 0.0001057857809
A178: =IF('DF raw data'!A178="","",'DF raw data'!A178) -> -244.5 | B178: =IF('DF raw data'!B178="","",'DF raw data'!B178) -> -1.7775e-05 | C178: =IF('DF raw data'!C178="","",'DF raw data'!C178) -> 0.000264786 | D178: =IF('DF raw data'!D178="","",'DF raw data'!D178) -> -3.6645e-05 | F178: -4.035680261e-06 | G178: 4.103678585e-05 | H178: -7.886874616e-06 | J178: 0.0002024705573 | K178: 0.006867938978 | L178: 0.002391067556 | M178: 0.06737826432 | N178: 0.0001086648801
A179: =IF('DF raw data'!A179="","",'DF raw data'!A179) -> -244 | B179: =IF('DF raw data'!B179="","",'DF raw data'!B179) -> -2.0851e-05 | C179: =IF('DF raw data'!C179="","",'DF raw data'!C179) -> 0.000266445 | D179: =IF('DF raw data'!D179="","",'DF raw data'!D179) -> -3.44192e-05 | F179: -7.123984261e-06 | G179: 4.270242185e-05 | H179: -5.652171416e-06 | J179: 0.0001989085652 | K179: 0.006967393261 | L179: 0.002412418767 | M179: 0.06858447371 | N179: 0.0001115945446
A180: =IF('DF raw data'!A180="","",'DF raw data'!A180) -> -243.5 | B180: =IF('DF raw data'!B180="","",'DF raw data'!B180) -> -1.02844e-05 | C180: =IF('DF raw data'!C180="","",'DF raw data'!C180) -> 0.000265826 | D180: =IF('DF raw data'!D180="","",'DF raw data'!D180) -> -2.99479e-05 | F180: 3.484882139e-06 | G180: 4.208094585e-05 | H180: -1.162986216e-06 | J180: 0.0002006510062 | K180: 0.007067718764 | L180: 0.00243345924 | M180: 0.06980120333 | N180: 0.0001145755369
A181: =IF('DF raw data'!A181="","",'DF raw data'!A181) -> -243 | B181: =IF('DF raw data'!B181="","",'DF raw data'!B181) -> -2.61688e-05 | C181: =IF('DF raw data'!C181="","",'DF raw data'!C181) -> 0.000262776 | D181: =IF('DF raw data'!D181="","",'DF raw data'!D181) -> -3.32618e-05 | F181: -1.246305546e-05 | G181: 3.901874585e-05 | H181: -4.490141816e-06 | J181: 0.0001944194785 | K181: 0.007164928503 | L181: 0.002452968613 | M181: 0.07102768763 | N181: 0.0001176029639
A182: =IF('DF raw data'!A182="","",'DF raw data'!A182) -> -242.5 | B182: =IF('DF raw data'!B182="","",'DF raw data'!B182) -> -1.69484e-05 | C182: =IF('DF raw data'!C182="","",'DF raw data'!C182) -> 0.000272718 | D182: =IF('DF raw data'!D182="","",'DF raw data'!D182) -> -2.69557e-05 | F182: -3.205773861e-06 | G182: 4.900051385e-05 | H182: 1.841182584e-06 | J182: 0.0001928165916 | K182: 0.007261336799 | L182: 0.00247746887 | M182: 0.07226642207 | N182: 0.000120690479
A183: =IF('DF raw data'!A183="","",'DF raw data'!A183) -> -242 | B183: =IF('DF raw data'!B183="","",'DF raw data'!B183) -> -1.88652e-05 | C183: =IF('DF raw data'!C183="","",'DF raw data'!C183) -> 0.000269227 | D183: =IF('DF raw data'!D183="","",'DF raw data'!D183) -> -3.44004e-05 | F183: -5.130241061e-06 | G183: 4.549554985e-05 | H183: -5.633296216e-06 | J183: 0.000190251471 | K183: 0.007356462534 | L183: 0.002500216644 | M183: 0.07351653039 | N183: 0.0001238341185
A184: =IF('DF raw data'!A184="","",'DF raw data'!A184) -> -241.5 | B184: =IF('DF raw data'!B184="","",'DF raw data'!B184) -> -1.553e-05 | C184: =IF('DF raw data'!C184="","",'DF raw data'!C184) -> 0.000266781 | D184: =IF('DF raw data'!D184="","",'DF raw data'!D184) -> -4.10384e-05 | F184: -1.781700261e-06 | G184: 4.303976585e-05 | H184: -1.229784822e-05 | J184: 0.0001893606209 | K184: 0.007451142845 | L184: 0.002521736527 | M184: 0.07477739865 | N184: 0.0001270316247
A185: =IF('DF raw data'!A185="","",'DF raw data'!A185) -> -241 | B185: =IF('DF raw data'!B185="","",'DF raw data'!B185) -> -1.34245e-05 | C185: =IF('DF raw data'!C185="","",'DF raw data'!C185) -> 0.000265623 | D185: =IF('DF raw data'!D185="","",'DF raw data'!D185) -> -2.79445e-05 | F185: 3.322217389e-07 | G185: 4.187713385e-05 | H185: 8.484273839e-07 | J185: 0.0001895267318 | K185: 0.007545906211 | L185: 0.002542675094 | M185: 0.0760487362 | N185: 0.0001302821833
A186: =IF('DF raw data'!A186="","",'DF raw data'!A186) -> -240.5 | B186: =IF('DF raw data'!B186="","",'DF raw data'!B186) -> -1.50854e-05 | C186: =IF('DF raw data'!C186="","",'DF raw data'!C186) -> 0.000267698 | D186: =IF('DF raw data'!D186="","",'DF raw data'!D186) -> -3.49596e-05 | F186: -1.335321861e-06 | G186: 4.396043385e-05 | H186: -6.194733016e-06 | J186: 0.0001888590709 | K186: 0.007640335746 | L186: 0.002564655311 | M186: 0.07733106386 | N186: 0.0001335887456
A187: =IF('DF raw data'!A187="","",'DF raw data'!A187) -> -240 | B187: =IF('DF raw data'!B187="","",'DF raw data'!B187) -> -1.88047e-05 | C187: =IF('DF raw data'!C187="","",'DF raw data'!C187) -> 0.000276941 | D187: =IF('DF raw data'!D187="","",'DF raw data'!D187) -> -2.90786e-05 | F187: -5.069499061e-06 | G187: 5.324040585e-05 | H187: -2.902090161e-07 | J187: 0.0001863243213 | K187: 0.007733497907 | L187: 0.002591275514 | M187: 0.07862670161 | N187: 0.0001369634583
A188: =IF('DF raw data'!A188="","",'DF raw data'!A188) -> -239.5 | B188: =IF('DF raw data'!B188="","",'DF raw data'!B188) -> -2.18784e-05 | C188: =IF('DF raw data'!C188="","",'DF raw data'!C188) -> 0.000280833 | D188: =IF('DF raw data'!D188="","",'DF raw data'!D188) -> -3.05595e-05 | F188: -8.155493861e-06 | G188: 5.714797385e-05 | H188: -1.777032616e-06 | J188: 0.0001822465744 | K188: 0.007824621194 | L188: 0.002619849501 | M188: 0.07993662637 | N188: 0.0001404118709
A189: =IF('DF raw data'!A189="","",'DF raw data'!A189) -> -239 | B189: =IF('DF raw data'!B189="","",'DF raw data'!B189) -> -1.88074e-05 | C189: =IF('DF raw data'!C189="","",'DF raw data'!C189) -> 0.000271903 | D189: =IF('DF raw data'!D189="","",'DF raw data'!D189) -> -2.48901e-05 | F189: -5.072209861e-06 | G189: 4.818225385e-05 | H189: 3.915044984e-06 | J189: 0.0001797104695 | K189: 0.007914476429 | L189: 0.002643940628 | M189: 0.08125859668 | N189: 0.0001439232299
A190: =IF('DF raw data'!A190="","",'DF raw data'!A190) -> -238.5 | B190: =IF('DF raw data'!B190="","",'DF raw data'!B190) -> -1.64964e-05 | C190: =IF('DF raw data'!C190="","",'DF raw data'!C190) -> 0.000268267 | D190: =IF('DF raw data'!D190="","",'DF raw data'!D190) -> -3.2298e-05 | F190: -2.751965861e-06 | G190: 4.453170985e-05 | H190: -3.522486616e-06 | J190: 0.0001783344865 | K190: 0.008003643672 | L190: 0.002666206483 | M190: 0.08259169992 | N190: 0.00014749346
A191: =IF('DF raw data'!A191="","",'DF raw data'!A191) -> -238 | B191: =IF('DF raw data'!B191="","",'DF raw data'!B191) -> -1.22741e-05 | C191: =IF('DF raw data'!C191="","",'DF raw data'!C191) -> 0.000261421 | D191: =IF('DF raw data'!D191="","",'DF raw data'!D191) -> -2.39852e-05 | F191: 1.487223339e-06 | G191: 3.765832585e-05 | H191: 4.823564584e-06 | J191: 0.0001790780982 | K191: 0.008093182721 | L191: 0.002685035646 | M191: 0.08393421774 | N191: 0.0001511142027
A192: =IF('DF raw data'!A192="","",'DF raw data'!A192) -> -237.5 | B192: =IF('DF raw data'!B192="","",'DF raw data'!B192) -> -2.5402e-05 | C192: =IF('DF raw data'!C192="","",'DF raw data'!C192) -> 0.000264146 | D192: =IF('DF raw data'!D192="","",'DF raw data'!D192) -> -3.04202e-05 | F192: -1.169318826e-05 | G192: 4.039422585e-05 | H192: -1.637175416e-06 | J192: =F192*$G$3+J191 -> 0.0001732315041 | K192: =J192*$G$3+K191 -> 0.008179798473 | L192: =G192*$G$3+L191 -> 0.002705232759 | M192: =L192*$G$3+M191 -> 0.08528683412 | N192: =(J192^2+L192^2)*$G$3+N191 -> 0.0001547883494
A193: =IF('DF raw data'!A193="","",'DF raw data'!A193) -> -237 | B193: =IF('DF raw data'!B193="","",'DF raw data'!B193) -> -1.80988e-05 | C193: =IF('DF raw data'!C193="","",'DF raw data'!C193) -> 0.000270914 | D193: =IF('DF raw data'!D193="","",'DF raw data'!D193) -> -3.08253e-05 | F193: -4.360775461e-06 | G193: 4.718929785e-05 | H193: -2.043895816e-06 | J193: 0.0001710511163 | K193: 0.008265324031 | L193: 0.002728827408 | M193: 0.08665124783 | N193: 0.0001585262282
A194: =IF('DF raw data'!A194="","",'DF raw data'!A194) -> -236.5 | B194: =IF('DF raw data'!B194="","",'DF raw data'!B194) -> -2.23263e-05 | C194: =IF('DF raw data'!C194="","",'DF raw data'!C194) -> 0.000264029 | D194: =IF('DF raw data'!D194="","",'DF raw data'!D194) -> -3.15371e-05 | F194: -8.605185461e-06 | G194: 4.027675785e-05 | H194: -2.758543016e-06 | J194: 0.0001667485236 | K194: 0.008348698293 | L194: 0.002748965787 | M194: 0.08802573072 | N194: 0.0001623185371
A195: =IF('DF raw data'!A195="","",'DF raw data'!A195) -> -236 | B195: =IF('DF raw data'!B195="","",'DF raw data'!B195) -> -2.00183e-05 | C195: =IF('DF raw data'!C195="","",'DF raw data'!C195) -> 0.000258732 | D195: =IF('DF raw data'!D195="","",'DF raw data'!D195) -> -3.46864e-05 | F195: =(1-$G$1*($B$54-$G$2))*(B195-F$5) -> -6.287953461e-06 | G195: =(1-$G$1*($B$54-$G$2))*(C195-G$5) -> 3.495856985e-05 | H195: =(1-$G$1*($B$54-$G$2))*(D195-H$5) -> -5.920440216e-06 | J195: 0.0001636045469 | K195: 0.008430500566 | L195: 0.002766445072 | M195: 0.08940895326 | N195: 0.0001661585295
A196: =IF('DF raw data'!A196="","",'DF raw data'!A196) -> -235.5 | B196: =IF('DF raw data'!B196="","",'DF raw data'!B196) -> -1.5922e-05 | C196: =IF('DF raw data'!C196="","",'DF raw data'!C196) -> 0.000269598 | D196: =IF('DF raw data'!D196="","",'DF raw data'!D196) -> -2.92771e-05 | F196: -2.175268261e-06 | G196: 4.586803385e-05 | H196: -4.895030161e-07 | J196: 0.0001625169128 | K196: 0.008511759023 | L196: 0.002789379088 | M196: 0.0908036428 | N196: 0.0001700620533
A197: =IF('DF raw data'!A197="","",'DF raw data'!A197) -> -235 | B197: =IF('DF raw data'!B197="","",'DF raw data'!B197) -> -1.54147e-05 | C197: =IF('DF raw data'!C197="","",'DF raw data'!C197) -> 0.00027993 | D197: =IF('DF raw data'!D197="","",'DF raw data'!D197) -> -2.13503e-05 | F197: -1.665939061e-06 | G197: 5.624136185e-05 | H197: 7.469004184e-06 | J197: 0.0001616839432 | K197: 0.008592600994 | L197: 0.002817499769 | M197: 0.09221239268 | N197: 0.0001740442766
A198: =IF('DF raw data'!A198="","",'DF raw data'!A198) -> -234.5 | B198: =IF('DF raw data'!B198="","",'DF raw data'!B198) -> -1.70143e-05 | C198: =IF('DF raw data'!C198="","",'DF raw data'!C198) -> 0.000278482 | D198: =IF('DF raw data'!D198="","",'DF raw data'!D198) -> -2.43263e-05 | F198: -3.271937461e-06 | G198: 5.478756985e-05 | H198: 4.481100184e-06 | J198: 0.0001600479745 | K198: 0.008672624982 | L198: 0.002844893554 | M198: 0.09363483946 | N198: 0.0001781037939
A199: =IF('DF raw data'!A199="","",'DF raw data'!A199) -> -234 | B199: =IF('DF raw data'!B199="","",'DF raw data'!B199) -> -6.82671e-06 | C199: =IF('DF raw data'!C199="","",'DF raw data'!C199) -> 0.000276631 | D199: =IF('DF raw data'!D199="","",'DF raw data'!D199) -> -2.75057e-05 | F199: 6.956402899e-06 | G199: 5.292916585e-05 | H199: 1.288982584e-06 | J199: 0.0001635261759 | K199: 0.00875438807 | L199: 0.002871358137 | M199: 0.09507051853 | N199: 0.0001822395131
A200: =IF('DF raw data'!A200="","",'DF raw data'!A200) -> -233.5 | B200: =IF('DF raw data'!B200="","",'DF raw data'!B200) -> -7.02113e-06 | C200: =IF('DF raw data'!C200="","",'DF raw data'!C200) -> 0.000275085 | D200: =IF('DF raw data'!D200="","",'DF raw data'!D200) -> -2.42501e-05 | F200: 6.761205219e-06 | G200: 5.137698185e-05 | H200: 4.557604984e-06 | J200: 0.0001669067786 | K200: 0.008837841459 | L200: 0.002897046628 | M200: 0.09651904184 | N200: 0.0001864498816
... 1079 more rows

Sheet 15 mm
A1: =IF('DF raw data'!E1="","",'DF raw data'!E1) -> Number of header lines | B1: =IF('DF raw data'!F1="","",'DF raw data'!F1) -> 54 | C1: =IF('DF raw data'!C1="","",'DF raw data'!C1) ->  | D1: =IF('DF raw data'!D1="","",'DF raw data'!D1) ->  | F1: T_coeff | G1: -0.001 | H1: /degC | J1: IBy total | K1: =J1267*1000 -> 0.5960171254 | L1: muTm | M1: =L1267*1000 -> -21.86247202 | R1: DF ref | S1: 1
A2: =IF('DF raw data'!E2="","",'DF raw data'!E2) -> Measured by | B2: =IF('DF raw data'!F2="","",'DF raw data'!F2) -> Danfysik | C2: =IF('DF raw data'!C2="","",'DF raw data'!C2) ->  | D2: =IF('DF raw data'!D2="","",'DF raw data'!D2) ->  | F2: Tcorr | G2: 20 | H2: degC | J2: JBy total | K2: =K1267 -> -6.201163068 | L2: muTm^2 | M2: =M1267 -> -2.587599254
A3: =IF('DF raw data'!E3="","",'DF raw data'!E3) -> Operator | B3: =IF('DF raw data'!F3="","",'DF raw data'!F3) -> PMHA | C3: =IF('DF raw data'!C3="","",'DF raw data'!C3) ->  | D3: =IF('DF raw data'!D3="","",'DF raw data'!D3) ->  | F3: Step | G3: =A68-A67 -> 0.5 | H3: mm | J3: PI total | K3: =N1267 -> 7137.143396 | L3: T^2mm^3
A4: =IF('DF raw data'!E4="","",'DF raw data'!E4) -> Data-time | B4: =IF('DF raw data'!F4="","",'DF raw data'!F4) -> 26-09-2024, 17:52:15 | C4: =IF('DF raw data'!C4="","",'DF raw data'!C4) ->  | D4: =IF('DF raw data'!D4="","",'DF raw data'!D4) -> 
A5: =IF('DF raw data'!E5="","",'DF raw data'!E5) -> Project | B5: =IF('DF raw data'!F5="","",'DF raw data'!F5) -> 504314 | C5: =IF('DF raw data'!C5="","",'DF raw data'!C5) ->  | D5: Bamb avr | F5: =(AVERAGE(B67:B107) + AVERAGE(B1227:B1267))/2 -> -2.238530927e-05 | G5: =(AVERAGE(C67:C107) + AVERAGE(C1227:C1267))/2 -> 0.0001442258049 | H5: =(AVERAGE(D67:D107) + AVERAGE(D1227:D1267))/2 -> -3.639998415e-05
A6: =IF('DF raw data'!E6="","",'DF raw data'!E6) -> Magnet type | B6: =IF('DF raw data'!F6="","",'DF raw data'!F6) -> Dipole | C6: =IF('DF raw data'!C6="","",'DF raw data'!C6) -> 
A7: =IF('DF raw data'!E7="","",'DF raw data'!E7) -> Magnet nr. | B7: =IF('DF raw data'!F7="","",'DF raw data'!F7) -> 2410103 | C7: =IF('DF raw data'!C7="","",'DF raw data'!C7) -> 
A8: =IF('DF raw data'!E8="","",'DF raw data'!E8) -> Meas. number | B8: =IF('DF raw data'!F8="","",'DF raw data'!F8) -> 736 | C8: =IF('DF raw data'!C8="","",'DF raw data'!C8) -> 
A9: =IF('DF raw data'!E9="","",'DF raw data'!E9) -> Add. info | B9: =IF('DF raw data'!F9="","",'DF raw data'!F9) ->  | C9: =IF('DF raw data'!C9="","",'DF raw data'!C9) ->  | D9: =IF('DF raw data'!D9="","",'DF raw data'!D9) -> 
A10: =IF('DF raw data'!E10="","",'DF raw data'!E10) -> Device | B10: =IF('DF raw data'!F10="","",'DF raw data'!F10) -> (HAL) HALL-PROBE | C10: =IF('DF raw data'!C10="","",'DF raw data'!C10) ->  | D10: =IF('DF raw data'!D10="","",'DF raw data'!D10) -> 
A11: =IF('DF raw data'!E11="","",'DF raw data'!E11) -> Goal | B11: =IF('DF raw data'!F11="","",'DF raw data'!F11) -> (AXI) AXis Integral (Line, EFB) | C11: =IF('DF raw data'!C11="","",'DF raw data'!C11) ->  | D11: =IF('DF raw data'!D11="","",'DF raw data'!D11) -> 
A12: =IF('DF raw data'!E12="","",'DF raw data'!E12) -> Power supply mode | B12: =IF('DF raw data'!F12="","",'DF raw data'!F12) -> (PM) Permanent Magnet (no MPS in use) | C12: =IF('DF raw data'!C12="","",'DF raw data'!C12) ->  | D12: =IF('DF raw data'!D12="","",'DF raw data'!D12) -> 
A13: =IF('DF raw data'!E13="","",'DF raw data'!E13) -> Data format | B13: =IF('DF raw data'!F13="","",'DF raw data'!F13) -> Raw data text file | C13: =IF('DF raw data'!C13="","",'DF raw data'!C13) ->  | D13: =IF('DF raw data'!D13="","",'DF raw data'!D13) -> 
A14: =IF('DF raw data'!E14="","",'DF raw data'!E14) -> Direction of the pos. x-axis | B14: =IF('DF raw data'!F14="","",'DF raw data'!F14) -> See test program | C14: =IF('DF raw data'!C14="","",'DF raw data'!C14) ->  | D14: =IF('DF raw data'!D14="","",'DF raw data'!D14) -> 
A15: =IF('DF raw data'!E15="","",'DF raw data'!E15) -> Direction of the pos. y-axis | B15: =IF('DF raw data'!F15="","",'DF raw data'!F15) -> Vertical up | C15: =IF('DF raw data'!C15="","",'DF raw data'!C15) ->  | D15: =IF('DF raw data'!D15="","",'DF raw data'!D15) -> 
A16: =IF('DF raw data'!E16="","",'DF raw data'!E16) -> Direction of the pos. z-axis | B16: =IF('DF raw data'!F16="","",'DF raw data'!F16) -> See test program | C16: =IF('DF raw data'!C16="","",'DF raw data'!C16) ->  | D16: =IF('DF raw data'!D16="","",'DF raw data'!D16) -> 
A17: =IF('DF raw data'!E17="","",'DF raw data'!E17) -> Mapper type | B17: =IF('DF raw data'!F17="","",'DF raw data'!F17) -> Precision Hall Mapper | C17: =IF('DF raw data'!C17="","",'DF raw data'!C17) ->  | D17: =IF('DF raw data'!D17="","",'DF raw data'!D17) -> 
A18: =IF('DF raw data'!E18="","",'DF raw data'!E18) -> Mapper Danfysik Reg. Number | B18: =IF('DF raw data'!F18="","",'DF raw data'!F18) -> 2033-D (mapper 1) | C18: =IF('DF raw data'!C18="","",'DF raw data'!C18) ->  | D18: =IF('DF raw data'!D18="","",'DF raw data'!D18) -> 
A19: =IF('DF raw data'!E19="","",'DF raw data'!E19) -> Measurement consept | B19: =IF('DF raw data'!F19="","",'DF raw data'!F19) -> Square line grid | C19: =IF('DF raw data'!C19="","",'DF raw data'!C19) ->  | D19: =IF('DF raw data'!D19="","",'DF raw data'!D19) -> 
A20: =IF('DF raw data'!E20="","",'DF raw data'!E20) -> Mode | B20: =IF('DF raw data'!F20="","",'DF raw data'!F20) -> On-the-fly measurement | C20: =IF('DF raw data'!C20="","",'DF raw data'!C20) ->  | D20: =IF('DF raw data'!D20="","",'DF raw data'!D20) -> 
A21: =IF('DF raw data'!E21="","",'DF raw data'!E21) ->  | B21: =IF('DF raw data'!F21="","",'DF raw data'!F21) ->  | C21: =IF('DF raw data'!C21="","",'DF raw data'!C21) ->  | D21: =IF('DF raw data'!D21="","",'DF raw data'!D21) -> 
A22: =IF('DF raw data'!E22="","",'DF raw data'!E22) -> Probe Name | B22: =IF('DF raw data'!F22="","",'DF raw data'!F22) -> ID12_By | C22: =IF('DF raw data'!C22="","",'DF raw data'!C22) ->  | D22: =IF('DF raw data'!D22="","",'DF raw data'!D22) -> 
A23: =IF('DF raw data'!E23="","",'DF raw data'!E23) -> Probe Type | B23: =IF('DF raw data'!F23="","",'DF raw data'!F23) -> DF_ID_3D_Bxyz | C23: =IF('DF raw data'!C23="","",'DF raw data'!C23) ->  | D23: =IF('DF raw data'!D23="","",'DF raw data'!D23) -> 
A24: =IF('DF raw data'!E24="","",'DF raw data'!E24) -> Probe Danfysik Reg. Number | B24: =IF('DF raw data'!F24="","",'DF raw data'!F24) -> 2277 | C24: =IF('DF raw data'!C24="","",'DF raw data'!C24) ->  | D24: =IF('DF raw data'!D24="","",'DF raw data'!D24) -> 
A25: =IF('DF raw data'!E25="","",'DF raw data'!E25) -> Probe Axis | B25: =IF('DF raw data'!F25="","",'DF raw data'!F25) -> By | C25: =IF('DF raw data'!C25="","",'DF raw data'!C25) ->  | D25: =IF('DF raw data'!D25="","",'DF raw data'!D25) -> 
A26: =IF('DF raw data'!E26="","",'DF raw data'!E26) -> Probe Current Supply | B26: =IF('DF raw data'!F26="","",'DF raw data'!F26) -> 1825-D | C26: =IF('DF raw data'!C26="","",'DF raw data'!C26) ->  | D26: =IF('DF raw data'!D26="","",'DF raw data'!D26) -> 
A27: =IF('DF raw data'!E27="","",'DF raw data'!E27) -> Probe Gain Correction | B27: =IF('DF raw data'!F27="","",'DF raw data'!F27) -> 0.99611 | C27: =IF('DF raw data'!C27="","",'DF raw data'!C27) ->  | D27: =IF('DF raw data'!D27="","",'DF raw data'!D27) -> 
A28: =IF('DF raw data'!E28="","",'DF raw data'!E28) -> Probe Offset Correction | B28: =IF('DF raw data'!F28="","",'DF raw data'!F28) -> 0.0027577 | C28: =IF('DF raw data'!C28="","",'DF raw data'!C28) ->  | D28: =IF('DF raw data'!D28="","",'DF raw data'!D28) -> 
A29: =IF('DF raw data'!E29="","",'DF raw data'!E29) -> DVM Number | B29: =IF('DF raw data'!F29="","",'DF raw data'!F29) -> 2 | C29: =IF('DF raw data'!C29="","",'DF raw data'!C29) ->  | D29: =IF('DF raw data'!D29="","",'DF raw data'!D29) -> 
A30: =IF('DF raw data'!E30="","",'DF raw data'!E30) -> DVM Type | B30: =IF('DF raw data'!F30="","",'DF raw data'!F30) -> K2701 | C30: =IF('DF raw data'!C30="","",'DF raw data'!C30) ->  | D30: =IF('DF raw data'!D30="","",'DF raw data'!D30) -> 
A31: =IF('DF raw data'!E31="","",'DF raw data'!E31) -> DVM Danfysik Reg. Number | B31: =IF('DF raw data'!F31="","",'DF raw data'!F31) -> 1743-D | C31: =IF('DF raw data'!C31="","",'DF raw data'!C31) ->  | D31: =IF('DF raw data'!D31="","",'DF raw data'!D31) -> 
A32: =IF('DF raw data'!E32="","",'DF raw data'!E32) -> Probe Name | B32: =IF('DF raw data'!F32="","",'DF raw data'!F32) -> ID12_Bx | C32: =IF('DF raw data'!C32="","",'DF raw data'!C32) ->  | D32: =IF('DF raw data'!D32="","",'DF raw data'!D32) -> 
A33: =IF('DF raw data'!E33="","",'DF raw data'!E33) -> Probe Type | B33: =IF('DF raw data'!F33="","",'DF raw data'!F33) -> DF_ID_3D_Bxyz | C33: =IF('DF raw data'!C33="","",'DF raw data'!C33) ->  | D33: =IF('DF raw data'!D33="","",'DF raw data'!D33) -> 
A34: =IF('DF raw data'!E34="","",'DF raw data'!E34) -> Probe Danfysik Reg. Number | B34: =IF('DF raw data'!F34="","",'DF raw data'!F34) -> 2277 | C34: =IF('DF raw data'!C34="","",'DF raw data'!C34) ->  | D34: =IF('DF raw data'!D34="","",'DF raw data'!D34) -> 
A35: =IF('DF raw data'!E35="","",'DF raw data'!E35) -> Probe Axis | B35: =IF('DF raw data'!F35="","",'DF raw data'!F35) -> Bx | C35: =IF('DF raw data'!C35="","",'DF raw data'!C35) ->  | D35: =IF('DF raw data'!D35="","",'DF raw data'!D35) -> 
A36: =IF('DF raw data'!E36="","",'DF raw data'!E36) -> Probe Current Supply | B36: =IF('DF raw data'!F36="","",'DF raw data'!F36) -> 1825-D | C36: =IF('DF raw data'!C36="","",'DF raw data'!C36) ->  | D36: =IF('DF raw data'!D36="","",'DF raw data'!D36) -> 
A37: =IF('DF raw data'!E37="","",'DF raw data'!E37) -> Probe Gain Correction | B37: =IF('DF raw data'!F37="","",'DF raw data'!F37) -> 1 | C37: =IF('DF raw data'!C37="","",'DF raw data'!C37) ->  | D37: =IF('DF raw data'!D37="","",'DF raw data'!D37) -> 
A38: =IF('DF raw data'!E38="","",'DF raw data'!E38) -> Probe Offset Correction | B38: =IF('DF raw data'!F38="","",'DF raw data'!F38) -> -0.17545 | C38: =IF('DF raw data'!C38="","",'DF raw data'!C38) ->  | D38: =IF('DF raw data'!D38="","",'DF raw data'!D38) -> 
A39: =IF('DF raw data'!E39="","",'DF raw data'!E39) -> DVM Number | B39: =IF('DF raw data'!F39="","",'DF raw data'!F39) -> 3 | C39: =IF('DF raw data'!C39="","",'DF raw data'!C39) ->  | D39: =IF('DF raw data'!D39="","",'DF raw data'!D39) -> 
A40: =IF('DF raw data'!E40="","",'DF raw data'!E40) -> DVM Type | B40: =IF('DF raw data'!F40="","",'DF raw data'!F40) -> K2701 | C40: =IF('DF raw data'!C40="","",'DF raw data'!C40) ->  | D40: =IF('DF raw data'!D40="","",'DF raw data'!D40) -> 
A41: =IF('DF raw data'!E41="","",'DF raw data'!E41) -> DVM Danfysik Reg. Number | B41: =IF('DF raw data'!F41="","",'DF raw data'!F41) -> 1744-D | C41: =IF('DF raw data'!C41="","",'DF raw data'!C41) ->  | D41: =IF('DF raw data'!D41="","",'DF raw data'!D41) -> 
A42: =IF('DF raw data'!E42="","",'DF raw data'!E42) -> Probe Name | B42: =IF('DF raw data'!F42="","",'DF raw data'!F42) -> ID12_Bz | C42: =IF('DF raw data'!C42="","",'DF raw data'!C42) ->  | D42: =IF('DF raw data'!D42="","",'DF raw data'!D42) -> 
A43: =IF('DF raw data'!E43="","",'DF raw data'!E43) -> Probe Type | B43: =IF('DF raw data'!F43="","",'DF raw data'!F43) -> DF_ID_3D_Bxyz | C43: =IF('DF raw data'!C43="","",'DF raw data'!C43) ->  | D43: =IF('DF raw data'!D43="","",'DF raw data'!D43) -> 
A44: =IF('DF raw data'!E44="","",'DF raw data'!E44) -> Probe Danfysik Reg. Number | B44: =IF('DF raw data'!F44="","",'DF raw data'!F44) -> 2277 | C44: =IF('DF raw data'!C44="","",'DF raw data'!C44) ->  | D44: =IF('DF raw data'!D44="","",'DF raw data'!D44) -> 
A45: =IF('DF raw data'!E45="","",'DF raw data'!E45) -> Probe Axis | B45: =IF('DF raw data'!F45="","",'DF raw data'!F45) -> Bz | C45: =IF('DF raw data'!C45="","",'DF raw data'!C45) ->  | D45: =IF('DF raw data'!D45="","",'DF raw data'!D45) -> 
A46: =IF('DF raw data'!E46="","",'DF raw data'!E46) -> Probe Current Supply | B46: =IF('DF raw data'!F46="","",'DF raw data'!F46) -> 1825-D | C46: =IF('DF raw data'!C46="","",'DF raw data'!C46) ->  | D46: =IF('DF raw data'!D46="","",'DF raw data'!D46) -> 
A47: =IF('DF raw data'!E47="","",'DF raw data'!E47) -> Probe Gain Correction | B47: =IF('DF raw data'!F47="","",'DF raw data'!F47) -> 1 | C47: =IF('DF raw data'!C47="","",'DF raw data'!C47) ->  | D47: =IF('DF raw data'!D47="","",'DF raw data'!D47) -> 
A48: =IF('DF raw data'!E48="","",'DF raw data'!E48) -> Probe Offset Correction | B48: =IF('DF raw data'!F48="","",'DF raw data'!F48) -> 0.0072997 | C48: =IF('DF raw data'!C48="","",'DF raw data'!C48) ->  | D48: =IF('DF raw data'!D48="","",'DF raw data'!D48) -> 
A49: =IF('DF raw data'!E49="","",'DF raw data'!E49) -> DVM Number | B49: =IF('DF raw data'!F49="","",'DF raw data'!F49) -> 8 | C49: =IF('DF raw data'!C49="","",'DF raw data'!C49) ->  | D49: =IF('DF raw data'!D49="","",'DF raw data'!D49) -> 
A50: =IF('DF raw data'!E50="","",'DF raw data'!E50) -> DVM Type | B50: =IF('DF raw data'!F50="","",'DF raw data'!F50) -> K2700 | C50: =IF('DF raw data'!C50="","",'DF raw data'!C50) ->  | D50: =IF('DF raw data'!D50="","",'DF raw data'!D50) -> 
A51: =IF('DF raw data'!E51="","",'DF raw data'!E51) -> DVM Danfysik Reg. Number | B51: =IF('DF raw data'!F51="","",'DF raw data'!F51) -> 1756-D | C51: =IF('DF raw data'!C51="","",'DF raw data'!C51) ->  | D51: =IF('DF raw data'!D51="","",'DF raw data'!D51) -> 
A52: =IF('DF raw data'!E52="","",'DF raw data'!E52) -> NTC voltage | B52: =IF('DF raw data'!F52="","",'DF raw data'!F52) -> 0.42245 | C52: =IF('DF raw data'!C52="","",'DF raw data'!C52) ->  | D52: =IF('DF raw data'!D52="","",'DF raw data'!D52) -> 
A53: =IF('DF raw data'!E53="","",'DF raw data'!E53) -> PS-Gap: | B53: =IF('DF raw data'!F53="","",'DF raw data'!F53) -> 15 | C53: =IF('DF raw data'!C53="","",'DF raw data'!C53) ->  | D53: =IF('DF raw data'!D53="","",'DF raw data'!D53) -> 
A54: =IF('DF raw data'!E54="","",'DF raw data'!E54) -> PS-Temperature: | B54: =IF('DF raw data'!F54="","",'DF raw data'!F54) -> 24.5 | C54: =IF('DF raw data'!C54="","",'DF raw data'!C54) ->  | D54: =IF('DF raw data'!D54="","",'DF raw data'!D54) -> 
A55: =IF('DF raw data'!E55="","",'DF raw data'!E55) -> PS-Encoder: | B55: =IF('DF raw data'!F55="","",'DF raw data'!F55) -> 24.9254 | C55: =IF('DF raw data'!C55="","",'DF raw data'!C55) ->  | D55: =IF('DF raw data'!D55="","",'DF raw data'!D55) -> 
A56: =IF('DF raw data'!E56="","",'DF raw data'!E56) ->  | B56: =IF('DF raw data'!F56="","",'DF raw data'!F56) -> 
A57: =IF('DF raw data'!E57="","",'DF raw data'!E57) -> Monitor-Index | B57: =IF('DF raw data'!F57="","",'DF raw data'!F57) -> [1,1,4]
A58: =IF('DF raw data'!E58="","",'DF raw data'!E58) ->  | B58: =IF('DF raw data'!F58="","",'DF raw data'!F58) -> 
A59: =IF('DF raw data'!E59="","",'DF raw data'!E59) -> Time [s] | B59: =IF('DF raw data'!F59="","",'DF raw data'!F59) -> Y [mm]
A60: =IF('DF raw data'!E60="","",'DF raw data'!E60) ->  | B60: =IF('DF raw data'!F60="","",'DF raw data'!F60) -> 
A61: =IF('DF raw data'!E61="","",'DF raw data'!E61) -> 207.6 | B61: =IF('DF raw data'!F61="","",'DF raw data'!F61) -> 31.65
A62: =IF('DF raw data'!E62="","",'DF raw data'!E62) ->  | B62: =IF('DF raw data'!F62="","",'DF raw data'!F62) -> 
A63: =IF('DF raw data'!E63="","",'DF raw data'!E63) -> Measurement-Index | B63: =IF('DF raw data'!F63="","",'DF raw data'!F63) -> [1,1,1201,2]
A64: =IF('DF raw data'!E64="","",'DF raw data'!E64) ->  | B64: =IF('DF raw data'!F64="","",'DF raw data'!F64) -> 
A65: =IF('DF raw data'!E65="","",'DF raw data'!E65) -> Z [mm] | B65: =IF('DF raw data'!F65="","",'DF raw data'!F65) -> By [T] | C65: =IF('DF raw data'!G65="","",'DF raw data'!G65) -> Bx [T] | D65: =IF('DF raw data'!H65="","",'DF raw data'!H65) -> Bz [T] | F65: By_corr | G65: Bx_corr | H65: Bz_corr | J65: Iy | K65: Jy | L65: Ix | M65: Jx | N65: PI
B66: =IF('DF raw data'!F66="","",'DF raw data'!F66) ->  | C66: =IF('DF raw data'!G66="","",'DF raw data'!G66) ->  | D66: =IF('DF raw data'!H66="","",'DF raw data'!H66) -> 
A67: =IF('DF raw data'!E67="","",'DF raw data'!E67) -> -300 | B67: =IF('DF raw data'!F67="","",'DF raw data'!F67) -> -1.35011e-05 | C67: =IF('DF raw data'!G67="","",'DF raw data'!G67) -> 0.000172964 | D67: =IF('DF raw data'!H67="","",'DF raw data'!H67) -> -3.96197e-05 | F67: =(1-$G$1*($B$54-$G$2))*(B67-F$5) -> 8.92418821e-06 | G67: =(1-$G$1*($B$54-$G$2))*(C67-G$5) -> 2.8867517e-05 | H67: =(1-$G$1*($B$54-$G$2))*(D67-H$5) -> -3.234204575e-06 | J67: =F67*$G$3+J66 -> 4.462094105e-06 | K67: =J67*$G$3+K66 -> 2.231047052e-06 | L67: =G67*$G$3+L66 -> 1.44337585e-05 | M67: =L67*$G$3+M66 -> 7.21687925e-06 | N67: =(J67^2+L67^2)*$G$3+N66 -> 1.141218341e-10
A68: =IF('DF raw data'!E68="","",'DF raw data'!E68) -> -299.5 | B68: =IF('DF raw data'!F68="","",'DF raw data'!F68) -> -7.22316e-06 | C68: =IF('DF raw data'!G68="","",'DF raw data'!G68) -> 0.000171655 | D68: =IF('DF raw data'!H68="","",'DF raw data'!H68) -> -3.9988e-05 | F68: 1.523037894e-05 | G68: 2.75526265e-05 | H68: -3.604161925e-06 | J68: =F68*$G$3+J67 -> 1.207728357e-05 | K68: =J68*$G$3+K67 -> 8.26968884e-06 | L68: =G68*$G$3+L67 -> 2.821007175e-05 | M68: =L68*$G$3+M67 -> 2.132191513e-05 | N68: =(J68^2+L68^2)*$G$3+N67 -> 5.849562975e-10
A69: =IF('DF raw data'!E69="","",'DF raw data'!E69) -> -299 | B69: =IF('DF raw data'!F69="","",'DF raw data'!F69) -> -2.31105e-05 | C69: =IF('DF raw data'!G69="","",'DF raw data'!G69) -> 0.000159354 | D69: =IF('DF raw data'!H69="","",'DF raw data'!H69) -> -4.01356e-05 | F69: -7.2845409e-07 | G69: 1.5196272e-05 | H69: -3.752426125e-06 | J69: 1.171305653e-05 | K69: 1.41262171e-05 | L69: 3.580820775e-05 | M69: 3.9226019e-05 | N69: 1.294668015e-09
A70: =IF('DF raw data'!E70="","",'DF raw data'!E70) -> -298.5 | B70: =IF('DF raw data'!F70="","",'DF raw data'!F70) -> -1.89465e-05 | C70: =IF('DF raw data'!G70="","",'DF raw data'!G70) -> 0.000165172 | D70: =IF('DF raw data'!H70="","",'DF raw data'!H70) -> -3.97541e-05 | F70: 3.45428391e-06 | G70: 2.1040453e-05 | H70: -3.369209375e-06 | J70: 1.344019848e-05 | K70: 2.084631635e-05 | L70: 4.632843425e-05 | M70: 6.239023612e-05 | N70: 2.458149393e-09
A71: =IF('DF raw data'!E71="","",'DF raw data'!E71) -> -298 | B71: =IF('DF raw data'!F71="","",'DF raw data'!F71) -> -1.88185e-05 | C71: =IF('DF raw data'!G71="","",'DF raw data'!G71) -> 0.000171586 | D71: =IF('DF raw data'!H71="","",'DF raw data'!H71) -> -3.96495e-05 | F71: 3.58285991e-06 | G71: 2.7483316e-05 | H71: -3.264138675e-06 | J71: 1.523162844e-05 | K71: 2.846213057e-05 | L71: 6.007009225e-05 | M71: 9.242528225e-05 | N71: 4.378358637e-09
A72: =IF('DF raw data'!E72="","",'DF raw data'!E72) -> -297.5 | B72: =IF('DF raw data'!F72="","",'DF raw data'!F72) -> -1.91388e-05 | C72: =IF('DF raw data'!G72="","",'DF raw data'!G72) -> 0.000169172 | D72: =IF('DF raw data'!H72="","",'DF raw data'!H72) -> -3.98077e-05 | F72: 3.26111856e-06 | G72: 2.5058453e-05 | H72: -3.423050575e-06 | J72: 1.686218772e-05 | K72: 3.689322443e-05 | L72: 7.259931875e-05 | M72: 0.0001287249416 | N72: 7.155855866e-09
A73: =IF('DF raw data'!E73="","",'DF raw data'!E73) -> -297 | B73: =IF('DF raw data'!F73="","",'DF raw data'!F73) -> -2.73388e-05 | C73: =IF('DF raw data'!G73="","",'DF raw data'!G73) -> 0.000167878 | D73: =IF('DF raw data'!H73="","",'DF raw data'!H73) -> -3.95127e-05 | F73: -4.97578144e-06 | G73: 2.375863e-05 | H73: -3.126723075e-06 | J73: 1.4374297e-05 | K73: 4.408037293e-05 | L73: 8.447863375e-05 | M73: 0.0001709642585 | N73: 1.082748585e-08
A74: =IF('DF raw data'!E74="","",'DF raw data'!E74) -> -296.5 | B74: =IF('DF raw data'!F74="","",'DF raw data'!F74) -> -1.8947e-05 | C74: =IF('DF raw data'!G74="","",'DF raw data'!G74) -> 0.000168026 | D74: =IF('DF raw data'!H74="","",'DF raw data'!H74) -> -3.89073e-05 | F74: 3.45378166e-06 | G74: 2.3907296e-05 | H74: -2.518598775e-06 | J74: 1.610118783e-05 | K74: 5.213096684e-05 | L74: 9.643228175e-05 | M74: 0.0002191803994 | N74: 1.560670246e-08
A75: =IF('DF raw data'!E75="","",'DF raw data'!E75) -> -296 | B75: =IF('DF raw data'!F75="","",'DF raw data'!F75) -> -2.59301e-05 | C75: =IF('DF raw data'!G75="","",'DF raw data'!G75) -> 0.000173271 | D75: =IF('DF raw data'!H75="","",'DF raw data'!H75) -> -3.85433e-05 | F75: -3.56074229e-06 | G75: 2.91758985e-05 | H75: -2.152960775e-06 | J75: 1.432081668e-05 | K75: 5.929137518e-05 | L75: 0.000111020231 | M75: 0.0002746905149 | N75: 2.18719912e-08
A76: =IF('DF raw data'!E76="","",'DF raw data'!E76) -> -295.5 | B76: =IF('DF raw data'!F76="","",'DF raw data'!F76) -> -1.01066e-05 | C76: =IF('DF raw data'!G76="","",'DF raw data'!G76) -> 0.00017235 | D76: =IF('DF raw data'!H76="","",'DF raw data'!H76) -> -3.89839e-05 | F76: 1.233396346e-05 | G76: 2.8250754e-05 | H76: -2.595543475e-06 | J76: 2.048779841e-05 | K76: 6.953527439e-05 | L76: 0.000125145608 | M76: 0.0003372633189 | N76: 2.991257774e-08
A77: =IF('DF raw data'!E77="","",'DF raw data'!E77) -> -295 | B77: =IF('DF raw data'!F77="","",'DF raw data'!F77) -> -1.78579e-05 | C77: =IF('DF raw data'!G77="","",'DF raw data'!G77) -> 0.000168985 | D77: =IF('DF raw data'!H77="","",'DF raw data'!H77) -> -3.93915e-05 | F77: 4.54778261e-06 | G77: 2.48706115e-05 | H77: -3.004977675e-06 | J77: 2.276168972e-05 | K77: 8.091611925e-05 | L77: 0.0001375809137 | M77: 0.0004060537757 | N77: 3.963587892e-08
A78: =IF('DF raw data'!E78="","",'DF raw data'!E78) -> -294.5 | B78: =IF('DF raw data'!F78="","",'DF raw data'!F78) -> -2.31112e-05 | C78: =IF('DF raw data'!G78="","",'DF raw data'!G78) -> 0.000178768 | D78: =IF('DF raw data'!H78="","",'DF raw data'!H78) -> -3.90528e-05 | F78: -7.2915724e-07 | G78: 3.4697635e-05 | H78: -2.664753525e-06 | J78: 2.23971111e-05 | K78: 9.21146748e-05 | L78: 0.0001549297312 | M78: 0.0004835186414 | N78: 5.188830502e-08
A79: =IF('DF raw data'!E79="","",'DF raw data'!E79) -> -294 | B79: =IF('DF raw data'!F79="","",'DF raw data'!F79) -> -1.17723e-05 | C79: =IF('DF raw data'!G79="","",'DF raw data'!G79) -> 0.000183333 | D79: =IF('DF raw data'!H79="","",'DF raw data'!H79) -> -3.86738e-05 | F79: 1.066076781e-05 | G79: 3.92831775e-05 | H79: -2.284048025e-06 | J79: 2.7727495e-05 | K79: 0.0001059784223 | L79: 0.00017457132 | M79: 0.0005708043014 | N79: 6.75102849e-08
A80: =IF('DF raw data'!E80="","",'DF raw data'!E80) -> -293.5 | B80: =IF('DF raw data'!F80="","",'DF raw data'!F80) -> -1.42067e-05 | C80: =IF('DF raw data'!G80="","",'DF raw data'!G80) -> 0.000177913 | D80: =IF('DF raw data'!H80="","",'DF raw data'!H80) -> -3.88273e-05 | F80: 8.21541301e-06 | G80: 3.38387875e-05 | H80: -2.438238775e-06 | J80: 3.183520151e-05 | K80: 0.0001218960231 | L80: 0.0001914907137 | M80: 0.0006665496582 | N80: 8.635137165e-08
A81: =IF('DF raw data'!E81="","",'DF raw data'!E81) -> -293 | B81: =IF('DF raw data'!F81="","",'DF raw data'!F81) -> -1.15798e-05 | C81: =IF('DF raw data'!G81="","",'DF raw data'!G81) -> 0.000169734 | D81: =IF('DF raw data'!H81="","",'DF raw data'!H81) -> -3.93717e-05 | F81: 1.085413406e-05 | G81: 2.5622982e-05 | H81: -2.985088575e-06 | J81: 3.726226854e-05 | K81: 0.0001405271573 | L81: 0.0002043022047 | M81: 0.0007687007606 | N81: 1.079153054e-07
A82: =IF('DF raw data'!E82="","",'DF raw data'!E82) -> -292.5 | B82: =IF('DF raw data'!F82="","",'DF raw data'!F82) -> -1.01699e-05 | C82: =IF('DF raw data'!G82="","",'DF raw data'!G82) -> 0.000175451 | D82: =IF('DF raw data'!H82="","",'DF raw data'!H82) -> -3.99961e-05 | F82: 1.227037861e-05 | G82: 3.13657085e-05 | H82: -3.612298375e-06 | J82: 4.339745784e-05 | K82: 0.0001622258863 | L82: 0.000219985059 | M82: 0.0008786932901 | N82: 1.330536882e-07
A83: =IF('DF raw data'!E83="","",'DF raw data'!E83) -> -292 | B83: =IF('DF raw data'!F83="","",'DF raw data'!F83) -> -1.70246e-05 | C83: =IF('DF raw data'!G83="","",'DF raw data'!G83) -> 0.000179754 | D83: =IF('DF raw data'!H83="","",'DF raw data'!H83) -> -4.00373e-05 | F83: 5.38483246e-06 | G83: 3.5688072e-05 | H83: -3.653683775e-06 | J83: 4.608987407e-05 | K83: 0.0001852708233 | L83: 0.000237829095 | M83: 0.0009976078376 | N83: 1.623971656e-07
A84: =IF('DF raw data'!E84="","",'DF raw data'!E84) -> -291.5 | B84: =IF('DF raw data'!F84="","",'DF raw data'!F84) -> -2.20283e-05 | C84: =IF('DF raw data'!G84="","",'DF raw data'!G84) -> 0.000181294 | D84: =IF('DF raw data'!H84="","",'DF raw data'!H84) -> -2.95091e-05 | F84: 3.5861581e-07 | G84: 3.7235002e-05 | H84: 6.921893125e-06 | J84: 4.626918198e-05 | K84: 0.0002084054143 | L84: 0.000256446596 | M84: 0.001125831136 | N84: 1.963500125e-07
A85: =IF('DF raw data'!E85="","",'DF raw data'!E85) -> -291 | B85: =IF('DF raw data'!F85="","",'DF raw data'!F85) -> -1.46585e-05 | C85: =IF('DF raw data'!G85="","",'DF raw data'!G85) -> 0.000167844 | D85: =IF('DF raw data'!H85="","",'DF raw data'!H85) -> -3.34586e-05 | F85: 7.76157991e-06 | G85: 2.3724477e-05 | H85: 2.954620375e-06 | J85: 5.014997193e-05 | K85: 0.0002334804002 | L85: 0.0002683088345 | M85: 0.001259985553 | N85: 2.336023377e-07
A86: =IF('DF raw data'!E86="","",'DF raw data'!E86) -> -290.5 | B86: =IF('DF raw data'!F86="","",'DF raw data'!F86) -> -1.02407e-05 | C86: =IF('DF raw data'!G86="","",'DF raw data'!G86) -> 0.000170268 | D86: =IF('DF raw data'!H86="","",'DF raw data'!H86) -> -2.97517e-05 | F86: 1.219926001e-05 | G86: 2.6159385e-05 | H86: 6.678201425e-06 | J86: 5.624960194e-05 | K86: 0.0002616052012 | L86: 0.000281388527 | M86: 0.001400679816 | N86: 2.747740981e-07
A87: =IF('DF raw data'!E87="","",'DF raw data'!E87) -> -290 | B87: =IF('DF raw data'!F87="","",'DF raw data'!F87) -> -2.08627e-05 | C87: =IF('DF raw data'!G87="","",'DF raw data'!G87) -> 0.000170746 | D87: =IF('DF raw data'!H87="","",'DF raw data'!H87) -> -4.87617e-05 | F87: 1.52946101e-06 | G87: 2.6639536e-05 | H87: -1.241734357e-05 | J87: 5.701433244e-05 | K87: 0.0002901123674 | L87: 0.000294708295 | M87: 0.001548033964 | N87: 3.198259048e-07
A88: =IF('DF raw data'!E88="","",'DF raw data'!E88) -> -289.5 | B88: =IF('DF raw data'!F88="","",'DF raw data'!F88) -> -1.50406e-05 | C88: =IF('DF raw data'!G88="","",'DF raw data'!G88) -> 0.000173742 | D88: =IF('DF raw data'!H88="","",'DF raw data'!H88) -> -3.69532e-05 | F88: 7.37776046e-06 | G88: 2.9649018e-05 | H88: -5.55705325e-07 | J88: 6.070321267e-05 | K88: 0.0003204639738 | L88: 0.000309532804 | M88: 0.001702800366 | N88: 3.695736232e-07
A89: =IF('DF raw data'!E89="","",'DF raw data'!E89) -> -289 | B89: =IF('DF raw data'!F89="","",'DF raw data'!F89) -> -1.85713e-05 | C89: =IF('DF raw data'!G89="","",'DF raw data'!G89) -> 0.000180241 | D89: =IF('DF raw data'!H89="","",'DF raw data'!H89) -> -2.56571e-05 | F89: 3.83117231e-06 | G89: 3.61772635e-05 | H89: 1.079122713e-05 | J89: 6.261879883e-05 | K89: 0.0003517733732 | L89: 0.0003276214357 | M89: 0.001866611084 | N89: 4.252020827e-07
A90: =IF('DF raw data'!E90="","",'DF raw data'!E90) -> -288.5 | B90: =IF('DF raw data'!F90="","",'DF raw data'!F90) -> -1.24851e-05 | C90: =IF('DF raw data'!G90="","",'DF raw data'!G90) -> 0.00017555 | D90: =IF('DF raw data'!H90="","",'DF raw data'!H90) -> -2.64398e-05 | F90: 9.94476021e-06 | G90: 3.1465154e-05 | H90: 1.000500498e-05 | J90: 6.759117893e-05 | K90: 0.0003855689627 | L90: 0.0003433540127 | M90: 0.00203828809 | N90: 4.864323555e-07
A91: =IF('DF raw data'!E91="","",'DF raw data'!E91) -> -288 | B91: =IF('DF raw data'!F91="","",'DF raw data'!F91) -> -1.31232e-05 | C91: =IF('DF raw data'!G91="","",'DF raw data'!G91) -> 0.000169802 | D91: =IF('DF raw data'!H91="","",'DF raw data'!H91) -> -3.01947e-05 | F91: 9.30378876e-06 | G91: 2.5691288e-05 | H91: 6.233207925e-06 | J91: 7.224307331e-05 | K91: 0.0004216904993 | L91: 0.0003561996567 | M91: 0.002216387918 | N91: 5.52480984e-07
A92: =IF('DF raw data'!E92="","",'DF raw data'!E92) -> -287.5 | B92: =IF('DF raw data'!F92="","",'DF raw data'!F92) -> -1.34328e-05 | C92: =IF('DF raw data'!G92="","",'DF raw data'!G92) -> 0.000167971 | D92: =IF('DF raw data'!H92="","",'DF raw data'!H92) -> -4.65209e-05 | F92: 8.99279556e-06 | G92: 2.38520485e-05 | H92: -1.016645997e-05 | J92: 7.673947109e-05 | K92: 0.0004600602349 | L92: 0.000368125681 | M92: 0.002400450759 | N92: 6.231837158e-07
A93: =IF('DF raw data'!E93="","",'DF raw data'!E93) -> -287 | B93: =IF('DF raw data'!F93="","",'DF raw data'!F93) -> -1.29844e-05 | C93: =IF('DF raw data'!G93="","",'DF raw data'!G93) -> 0.000174104 | D93: =IF('DF raw data'!H93="","",'DF raw data'!H93) -> -4.66317e-05 | F93: 9.44321336e-06 | G93: 3.0012647e-05 | H93: -1.027775857e-05 | J93: 8.146107777e-05 | K93: 0.0005007907738 | L93: 0.0003831320045 | M93: 0.002592016761 | N93: 6.998967358e-07
A94: =IF('DF raw data'!E94="","",'DF raw data'!E94) -> -286.5 | B94: =IF('DF raw data'!F94="","",'DF raw data'!F94) -> -1.78562e-05 | C94: =IF('DF raw data'!G94="","",'DF raw data'!G94) -> 0.000174725 | D94: =IF('DF raw data'!H94="","",'DF raw data'!H94) -> -4.20736e-05 | F94: 4.54949026e-06 | G94: 3.06364415e-05 | H94: -5.699147125e-06 | J94: 8.37358229e-05 | K94: 0.0005426586852 | L94: 0.0003984502252 | M94: 0.002791241874 | N94: 7.827838708e-07
A95: =IF('DF raw data'!E95="","",'DF raw data'!E95) -> -286 | B95: =IF('DF raw data'!F95="","",'DF raw data'!F95) -> -2.15803e-05 | C95: =IF('DF raw data'!G95="","",'DF raw data'!G95) -> 0.000170409 | D95: =IF('DF raw data'!H95="","",'DF raw data'!H95) -> -2.85106e-05 | F95: 8.0863181e-07 | G95: 2.63010195e-05 | H95: 7.924886375e-06 | J95: 8.414013881e-05 | K95: 0.0005847287546 | L95: 0.000411600735 | M95: 0.002997042241 | N95: 8.710312348e-07
A96: =IF('DF raw data'!E96="","",'DF raw data'!E96) -> -285.5 | B96: =IF('DF raw data'!F96="","",'DF raw data'!F96) -> -2.38846e-05 | C96: =IF('DF raw data'!G96="","",'DF raw data'!G96) -> 0.000172391 | D96: =IF('DF raw data'!H96="","",'DF raw data'!H96) -> -3.18764e-05 | F96: -1.50603754e-06 | G96: 2.82919385e-05 | H96: 4.543940275e-06 | J96: 8.338712004e-05 | K96: 0.0006264223146 | L96: 0.0004257467042 | M96: 0.003209915593 | N96: 9.651380688e-07
A97: =IF('DF raw data'!E97="","",'DF raw data'!E97) -> -285 | B97: =IF('DF raw data'!F97="","",'DF raw data'!F97) -> -1.80475e-05 | C97: =IF('DF raw data'!G97="","",'DF raw data'!G97) -> 0.000172173 | D97: =IF('DF raw data'!H97="","",'DF raw data'!H97) -> -4.31358e-05 | F97: 4.35732941e-06 | G97: 2.80729575e-05 | H97: -6.766127025e-06 | J97: 8.556578474e-05 | K97: 0.000669205207 | L97: 0.000439783183 | M97: 0.003429807185 | N97: 1.065503445e-06
A98: =IF('DF raw data'!E98="","",'DF raw data'!E98) -> -284.5 | B98: =IF('DF raw data'!F98="","",'DF raw data'!F98) -> -1.4399e-05 | C98: =IF('DF raw data'!G98="","",'DF raw data'!G98) -> 0.000172349 | D98: =IF('DF raw data'!H98="","",'DF raw data'!H98) -> -3.85227e-05 | F98: 8.02224766e-06 | G98: 2.82497495e-05 | H98: -2.132268075e-06 | J98: 8.957690857e-05 | K98: 0.0007139936613 | L98: 0.0004539080577 | M98: 0.003656761214 | N98: 1.172531718e-06
A99: =IF('DF raw data'!E99="","",'DF raw data'!E99) -> -284 | B99: =IF('DF raw data'!F99="","",'DF raw data'!F99) -> -1.91369e-05 | C99: =IF('DF raw data'!G99="","",'DF raw data'!G99) -> 0.000166782 | D99: =IF('DF raw data'!H99="","",'DF raw data'!H99) -> -4.26041e-05 | F99: 3.26302711e-06 | G99: 2.2657698e-05 | H99: -6.232034375e-06 | J99: 9.120842213e-05 | K99: 0.0007595978724 | L99: 0.0004652369067 | M99: 0.003889379667 | N99: 1.284913896e-06
A100: =IF('DF raw data'!E100="","",'DF raw data'!E100) -> -283.5 | B100: =IF('DF raw data'!F100="","",'DF raw data'!F100) -> -2.43345e-05 | C100: =IF('DF raw data'!G100="","",'DF raw data'!G100) -> 0.000173657 | D100: =IF('DF raw data'!H100="","",'DF raw data'!H100) -> -2.94002e-05 | F100: -1.95796209e-06 | G100: 2.95636355e-05 | H100: 7.031283175e-06 | J100: 9.022944108e-05 | K100: 0.0008047125929 | L100: 0.0004800187245 | M100: 0.004129389029 | N100: 1.40419356e-06
A101: =IF('DF raw data'!E101="","",'DF raw data'!E101) -> -283 | B101: =IF('DF raw data'!F101="","",'DF raw data'!F101) -> -2.02386e-05 | C101: =IF('DF raw data'!G101="","",'DF raw data'!G101) -> 0.000177446 | D101: =IF('DF raw data'!H101="","",'DF raw data'!H101) -> -2.32258e-05 | F101: 2.15636946e-06 | G101: 3.3369686e-05 | H101: 1.323346798e-05 | J101: 9.130762581e-05 | K101: 0.0008503664058 | L101: 0.0004967035675 | M101: 0.004377740813 | N101: 1.531719318e-06
A102: =IF('DF raw data'!E102="","",'DF raw data'!E102) -> -282.5 | B102: =IF('DF raw data'!F102="","",'DF raw data'!F102) -> -1.85635e-05 | C102: =IF('DF raw data'!G102="","",'DF raw data'!G102) -> 0.000177178 | D102: =IF('DF raw data'!H102="","",'DF raw data'!H102) -> -3.78028e-05 | F102: 3.83900741e-06 | G102: 3.310048e-05 | H102: -1.409128525e-06 | J102: 9.322712952e-05 | K102: 0.0008969799706 | L102: 0.0005132538075 | M102: 0.004634367717 | N102: 1.667779703e-06
A103: =IF('DF raw data'!E103="","",'DF raw data'!E103) -> -282 | B103: =IF('DF raw data'!F103="","",'DF raw data'!F103) -> -1.67032e-05 | C103: =IF('DF raw data'!G103="","",'DF raw data'!G103) -> 0.000168439 | D103: =IF('DF raw data'!H103="","",'DF raw data'!H103) -> -4.19432e-05 | F103: 5.70767876e-06 | G103: 2.43221545e-05 | H103: -5.568160325e-06 | J103: 9.60809689e-05 | K103: 0.000945020455 | L103: 0.0005254148847 | M103: 0.004897075159 | N103: 1.810425879e-06
A104: =IF('DF raw data'!E104="","",'DF raw data'!E104) -> -281.5 | B104: =IF('DF raw data'!F104="","",'DF raw data'!F104) -> -1.23448e-05 | C104: =IF('DF raw data'!G104="","",'DF raw data'!G104) -> 0.000167331 | D104: =IF('DF raw data'!H104="","",'DF raw data'!H104) -> -4.51162e-05 | F104: 1.008569156e-05 | G104: 2.32091685e-05 | H104: -8.755438825e-06 | J104: 0.0001011238147 | K104: 0.0009955823624 | L104: 0.000537019469 | M104: 0.005165584894 | N104: 1.959733847e-06
A105: =IF('DF raw data'!E105="","",'DF raw data'!E105) -> -281 | B105: =IF('DF raw data'!F105="","",'DF raw data'!F105) -> -2.09421e-05 | C105: =IF('DF raw data'!G105="","",'DF raw data'!G105) -> 0.000165814 | D105: =IF('DF raw data'!H105="","",'DF raw data'!H105) -> -2.49458e-05 | F105: 1.44970371e-06 | G105: 2.1685342e-05 | H105: 1.150572798e-05 | J105: 0.0001018486665 | K105: 0.001046506696 | L105: 0.00054786214 | M105: 0.005439515964 | N105: 2.114996885e-06
A106: =IF('DF raw data'!E106="","",'DF raw data'!E106) -> -280.5 | B106: =IF('DF raw data'!F106="","",'DF raw data'!F106) -> -1.84332e-05 | C106: =IF('DF raw data'!G106="","",'DF raw data'!G106) -> 0.000167476 | D106: =IF('DF raw data'!H106="","",'DF raw data'!H106) -> -4.1015e-05 | F106: 3.96989376e-06 | G106: 2.3354821e-05 | H106: -4.635783425e-06 | J106: 0.0001038336134 | K106: 0.001098423502 | L106: 0.0005595395505 | M106: 0.005719285739 | N106: 2.276929849e-06
A107: =IF('DF raw data'!E107="","",'DF raw data'!E107) -> -280 | B107: =IF('DF raw data'!F107="","",'DF raw data'!F107) -> -1.08741e-05 | C107: =IF('DF raw data'!G107="","",'DF raw data'!G107) -> 0.000180283 | D107: =IF('DF raw data'!H107="","",'DF raw data'!H107) -> -4.08186e-05 | F107: 1.156300971e-05 | G107: 3.62194525e-05 | H107: -4.438499625e-06 | J107: 0.0001096151183 | K107: 0.001153231061 | L107: 0.0005776492767 | M107: 0.006008110377 | N107: 2.44977693e-06
A108: =IF('DF raw data'!E108="","",'DF raw data'!E108) -> -279.5 | B108: =IF('DF raw data'!F108="","",'DF raw data'!F108) -> -2.9065e-05 | C108: =IF('DF raw data'!G108="","",'DF raw data'!G108) -> 0.000175724 | D108: =IF('DF raw data'!H108="","",'DF raw data'!H108) -> -4.49865e-05 | F108: -6.70974934e-06 | G108: 3.1639937e-05 | H108: -8.625155175e-06 | J108: 0.0001062602436 | K108: 0.001206361183 | L108: 0.0005934692452 | M108: 0.006304845 | N108: 2.631525422e-06
A109: =IF('DF raw data'!E109="","",'DF raw data'!E109) -> -279 | B109: =IF('DF raw data'!F109="","",'DF raw data'!F109) -> -1.14453e-05 | C109: =IF('DF raw data'!G109="","",'DF raw data'!G109) -> 0.000170526 | D109: =IF('DF raw data'!H109="","",'DF raw data'!H109) -> -4.93163e-05 | F109: 1.098923931e-05 | G109: 2.6418546e-05 | H109: -1.297443927e-05 | J109: 0.0001117548633 | K109: 0.001262238615 | L109: 0.0006066785182 | M109: 0.006608184259 | N109: 2.821799409e-06
A110: =IF('DF raw data'!E110="","",'DF raw data'!E110) -> -278.5 | B110: =IF('DF raw data'!F110="","",'DF raw data'!F110) -> -6.83553e-06 | C110: =IF('DF raw data'!G110="","",'DF raw data'!G110) -> 0.000170984 | D110: =IF('DF raw data'!H110="","",'DF raw data'!H110) -> -4.50443e-05 | F110: 1.561975327e-05 | G110: 2.6878607e-05 | H110: -8.683215275e-06 | J110: 0.0001195647399 | K110: 0.001322020985 | L110: 0.0006201178217 | M110: 0.00691824317 | N110: 3.021220329e-06
A111: =IF('DF raw data'!E111="","",'DF raw data'!E111) -> -278 | B111: =IF('DF raw data'!F111="","",'DF raw data'!F111) -> -1.60663e-05 | C111: =IF('DF raw data'!G111="","",'DF raw data'!G111) -> 0.000172066 | D111: =IF('DF raw data'!H111="","",'DF raw data'!H111) -> -3.57253e-05 | F111: 6.34744481e-06 | G111: 2.7965476e-05 | H111: 6.77720225e-07 | J111: 0.0001227384623 | K111: 0.001383390216 | L111: 0.0006341005597 | M111: 0.00723529345 | N111: 3.229794454e-06
A112: =IF('DF raw data'!E112="","",'DF raw data'!E112) -> -277.5 | B112: =IF('DF raw data'!F112="","",'DF raw data'!F112) -> -2.25379e-05 | C112: =IF('DF raw data'!G112="","",'DF raw data'!G112) -> 0.000169314 | D112: =IF('DF raw data'!H112="","",'DF raw data'!H112) -> -3.37782e-05 | F112: -1.5327739e-07 | G112: 2.5201092e-05 | H112: 2.633582175e-06 | J112: 0.0001226618236 | K112: 0.001444721128 | L112: 0.0006467011057 | M112: 0.007558644003 | N112: 3.446428575e-06
A113: =IF('DF raw data'!E113="","",'DF raw data'!E113) -> -277 | B113: =IF('DF raw data'!F113="","",'DF raw data'!F113) -> -1.77925e-05 | C113: =IF('DF raw data'!G113="","",'DF raw data'!G113) -> 0.000171046 | D113: =IF('DF raw data'!H113="","",'DF raw data'!H113) -> -4.11626e-05 | F113: 4.61347691e-06 | G113: 2.6940886e-05 | H113: -4.784047625e-06 | J113: 0.0001249685621 | K113: 0.001507205409 | L113: 0.0006601715487 | M113: 0.007888729777 | N113: 3.672150383e-06
A114: =IF('DF raw data'!E114="","",'DF raw data'!E114) -> -276.5 | B114: =IF('DF raw data'!F114="","",'DF raw data'!F114) -> -2.38743e-05 | C114: =IF('DF raw data'!G114="","",'DF raw data'!G114) -> 0.000172004 | D114: =IF('DF raw data'!H114="","",'DF raw data'!H114) -> -4.76398e-05 | F114: -1.49569119e-06 | G114: 2.7903197e-05 | H114: -1.129039502e-05 | J114: 0.0001242207165 | K114: 0.001569315767 | L114: 0.0006741231472 | M114: 0.008225791351 | N114: 3.907086785e-06
A115: =IF('DF raw data'!E115="","",'DF raw data'!E115) -> -276 | B115: =IF('DF raw data'!F115="","",'DF raw data'!F115) -> -7.48319e-06 | C115: =IF('DF raw data'!G115="","",'DF raw data'!G115) -> 0.000163061 | D115: =IF('DF raw data'!H115="","",'DF raw data'!H115) -> -3.41456e-05 | F115: 1.49691788e-05 | G115: 1.89199535e-05 | H115: 2.264528875e-06 | J115: 0.0001317053059 | K115: 0.00163516842 | L115: 0.000683583124 | M115: 0.008567582913 | N115: 4.149402872e-06
A116: =IF('DF raw data'!E116="","",'DF raw data'!E116) -> -275.5 | B116: =IF('DF raw data'!F116="","",'DF raw data'!F116) -> -1.07423e-05 | C116: =IF('DF raw data'!G116="","",'DF raw data'!G116) -> 0.000163283 | D116: =IF('DF raw data'!H116="","",'DF raw data'!H116) -> -4.65021e-05 | F116: 1.169540281e-05 | G116: 1.91429525e-05 | H116: -1.014757537e-05 | J116: 0.0001375530073 | K116: 0.001703944924 | L116: 0.0006931546002 | M116: 0.008914160213 | N116: 4.399094937e-06
A117: =IF('DF raw data'!E117="","",'DF raw data'!E117) -> -275 | B117: =IF('DF raw data'!F117="","",'DF raw data'!F117) -> -1.21516e-05 | C117: =IF('DF raw data'!G117="","",'DF raw data'!G117) -> 0.000167029 | D117: =IF('DF raw data'!H117="","",'DF raw data'!H117) -> -4.64818e-05 | F117: 1.027976096e-05 | G117: 2.29058095e-05 | H117: -1.012718402e-05 | J117: 0.0001426928877 | K117: 0.001775291367 | L117: 0.000704607505 | M117: 0.009266463965 | N117: 4.657511435e-06
A118: =IF('DF raw data'!E118="","",'DF raw data'!E118) -> -274.5 | B118: =IF('DF raw data'!F118="","",'DF raw data'!F118) -> -9.14506e-06 | C118: =IF('DF raw data'!G118="","",'DF raw data'!G118) -> 0.000166905 | D118: =IF('DF raw data'!H118="","",'DF raw data'!H118) -> -3.97794e-05 | F118: 1.329983039e-05 | G118: 2.27812515e-05 | H118: -3.394623225e-06 | J118: 0.0001493428029 | K118: 0.001849962769 | L118: 0.0007159981307 | M118: 0.009624463031 | N118: 4.924989733e-06
A119: =IF('DF raw data'!E119="","",'DF raw data'!E119) -> -274 | B119: =IF('DF raw data'!F119="","",'DF raw data'!F119) -> -2.8301e-05 | C119: =IF('DF raw data'!G119="","",'DF raw data'!G119) -> 0.000171069 | D119: =IF('DF raw data'!H119="","",'DF raw data'!H119) -> -3.77221e-05 | F119: -5.94231134e-06 | G119: 2.69639895e-05 | H119: -1.328065375e-06 | J119: 0.0001463716473 | K119: 0.001923148593 | L119: 0.0007294801255 | M119: 0.009989203094 | N119: 5.20177269e-06
A120: =IF('DF raw data'!E120="","",'DF raw data'!E120) -> -273.5 | B120: =IF('DF raw data'!F120="","",'DF raw data'!F120) -> -2.24093e-05 | C120: =IF('DF raw data'!G120="","",'DF raw data'!G120) -> 0.000169218 | D120: =IF('DF raw data'!H120="","",'DF raw data'!H120) -> -3.45622e-05 | F120: -2.409869e-08 | G120: 2.510466e-05 | H120: 1.846054175e-06 | J120: 0.0001463595979 | K120: 0.001996328392 | L120: 0.0007420324555 | M120: 0.01036021932 | N120: 5.487789338e-06
A121: =IF('DF raw data'!E121="","",'DF raw data'!E121) -> -273 | B121: =IF('DF raw data'!F121="","",'DF raw data'!F121) -> -1.33793e-05 | C121: =IF('DF raw data'!G121="","",'DF raw data'!G121) -> 0.000161423 | D121: =IF('DF raw data'!H121="","",'DF raw data'!H121) -> -3.03946e-05 | F121: 9.04653631e-06 | G121: 1.72745825e-05 | H121: 6.032408375e-06 | J121: 0.0001508828661 | K121: 0.002071769825 | L121: 0.0007506697467 | M121: 0.01073555419 | N121: 5.780924692e-06
A122: =IF('DF raw data'!E122="","",'DF raw data'!E122) -> -272.5 | B122: =IF('DF raw data'!F122="","",'DF raw data'!F122) -> -1.59389e-05 | C122: =IF('DF raw data'!G122="","",'DF raw data'!G122) -> 0.000164809 | D122: =IF('DF raw data'!H122="","",'DF raw data'!H122) -> -3.46915e-05 | F122: 6.47541811e-06 | G122: 2.06758195e-05 | H122: 1.716172325e-06 | J122: 0.0001541205751 | K122: 0.002148830112 | L122: 0.0007610076565 | M122: 0.01111605802 | N122: 6.082367595e-06
A123: =IF('DF raw data'!E123="","",'DF raw data'!E123) -> -272 | B123: =IF('DF raw data'!F123="","",'DF raw data'!F123) -> -1.21552e-05 | C123: =IF('DF raw data'!G123="","",'DF raw data'!G123) -> 0.000165899 | D123: =IF('DF raw data'!H123="","",'DF raw data'!H123) -> -4.10121e-05 | F123: 1.027614476e-05 | G123: 2.17707245e-05 | H123: -4.632870375e-06 | J123: 0.0001592586475 | K123: 0.002228459436 | L123: 0.0007718930187 | M123: 0.01150200453 | N123: 6.392958669e-06
A124: =IF('DF raw data'!E124="","",'DF raw data'!E124) -> -271.5 | B124: =IF('DF raw data'!F124="","",'DF raw data'!F124) -> -2.57351e-05 | C124: =IF('DF raw data'!G124="","",'DF raw data'!G124) -> 0.000165107 | D124: =IF('DF raw data'!H124="","",'DF raw data'!H124) -> -4.32093e-05 | F124: -3.36486479e-06 | G124: 2.09751605e-05 | H124: -6.839957775e-06 | J124: 0.0001575762151 | K124: 0.002307247544 | L124: 0.000782380599 | M124: 0.01189319483 | N124: 6.711433502e-06
A125: =IF('DF raw data'!E125="","",'DF raw data'!E125) -> -271 | B125: =IF('DF raw data'!F125="","",'DF raw data'!F125) -> -2.25334e-05 | C125: =IF('DF raw data'!G125="","",'DF raw data'!G125) -> 0.000157464 | D125: =IF('DF raw data'!H125="","",'DF raw data'!H125) -> -4.0759e-05 | F125: -1.4875714e-07 | G125: 1.3297767e-05 | H125: -4.378631425e-06 | J125: 0.0001575018366 | K125: 0.002385998462 | L125: 0.0007890294825 | M125: 0.01228770957 | N125: 7.035120678e-06
A126: =IF('DF raw data'!E126="","",'DF raw data'!E126) -> -270.5 | B126: =IF('DF raw data'!F126="","",'DF raw data'!F126) -> -2.33687e-05 | C126: =IF('DF raw data'!G126="","",'DF raw data'!G126) -> 0.000165579 | D126: =IF('DF raw data'!H126="","",'DF raw data'!H126) -> -3.71523e-05 | F126: -9.8781599e-07 | G126: 2.14492845e-05 | H126: -7.55701275e-07 | J126: 0.0001570079286 | K126: 0.002464502426 | L126: 0.0007997541247 | M126: 0.01268758664 | N126: 7.367249753e-06
A127: =IF('DF raw data'!E127="","",'DF raw data'!E127) -> -270 | B127: =IF('DF raw data'!F127="","",'DF raw data'!F127) -> -1.99128e-05 | C127: =IF('DF raw data'!G127="","",'DF raw data'!G127) -> 0.000173385 | D127: =IF('DF raw data'!H127="","",'DF raw data'!H127) -> -3.1688e-05 | F127: 2.48363556e-06 | G127: 2.92904115e-05 | H127: 4.733188075e-06 | J127: 0.0001582497463 | K127: 0.002543627299 | L127: 0.0008143993305 | M127: 0.0130947863 | N127: 7.711394379e-06
A128: =IF('DF raw data'!E128="","",'DF raw data'!E128) -> -269.5 | B128: =IF('DF raw data'!F128="","",'DF raw data'!F128) -> -2.50351e-05 | C128: =IF('DF raw data'!G128="","",'DF raw data'!G128) -> 0.000166093 | D128: =IF('DF raw data'!H128="","",'DF raw data'!H128) -> -3.57404e-05 | F128: -2.66171479e-06 | G128: 2.19655975e-05 | H128: 6.62552275e-07 | J128: 0.0001569188889 | K128: 0.002622086744 | L128: 0.0008253821292 | M128: 0.01350747737 | N128: 8.064333978e-06
A129: =IF('DF raw data'!E129="","",'DF raw data'!E129) -> -269 | B129: =IF('DF raw data'!F129="","",'DF raw data'!F129) -> -7.60542e-06 | C129: =IF('DF raw data'!G129="","",'DF raw data'!G129) -> 0.000167326 | D129: =IF('DF raw data'!H129="","",'DF raw data'!H129) -> -4.3215e-05 | F129: 1.484639877e-05 | G129: 2.3204146e-05 | H129: -6.845683425e-06 | J129: 0.0001643420883 | K129: 0.002704257788 | L129: 0.0008369842022 | M129: 0.01392596947 | N129: 8.428109416e-06
A130: =IF('DF raw data'!E130="","",'DF raw data'!E130) -> -268.5 | B130: =IF('DF raw data'!F130="","",'DF raw data'!F130) -> -2.02255e-05 | C130: =IF('DF raw data'!G130="","",'DF raw data'!G130) -> 0.000170859 | D130: =IF('DF raw data'!H130="","",'DF raw data'!H130) -> -4.35314e-05 | F130: 2.16952841e-06 | G130: 2.67530445e-05 | H130: -7.163507225e-06 | J130: 0.0001654268525 | K130: 0.002786971214 | L130: 0.0008503607245 | M130: 0.01435114983 | N130: 8.803349119e-06
A131: =IF('DF raw data'!E131="","",'DF raw data'!E131) -> -268 | B131: =IF('DF raw data'!F131="","",'DF raw data'!F131) -> -1.30653e-05 | C131: =IF('DF raw data'!G131="","",'DF raw data'!G131) -> 0.000169354 | D131: =IF('DF raw data'!H131="","",'DF raw data'!H131) -> -2.04551e-05 | F131: =(1-$G$1*($B$54-$G$2))*(B131-F$5) -> 9.36194931e-06 | G131: =(1-$G$1*($B$54-$G$2))*(C131-G$5) -> 2.5241272e-05 | H131: =(1-$G$1*($B$54-$G$2))*(D131-H$5) -> 1.601663613e-05 | J131: 0.0001701078272 | K131: 0.002872025128 | L131: 0.0008629813605 | M131: 0.01478264051 | N131: 9.190185869e-06
A132: =IF('DF raw data'!E132="","",'DF raw data'!E132) -> -267.5 | B132: =IF('DF raw data'!F132="","",'DF raw data'!F132) -> -6.39751e-06 | C132: =IF('DF raw data'!G132="","",'DF raw data'!G132) -> 0.000171913 | D132: =IF('DF raw data'!H132="","",'DF raw data'!H132) -> -2.88148e-05 | F132: 1.605974436e-05 | G132: 2.78117875e-05 | H132: 7.619317475e-06 | J132: =F132*$G$3+J131 -> 0.0001781376994 | K132: =J132*$G$3+K131 -> 0.002961093977 | L132: =G132*$G$3+L131 -> 0.0008768872542 | M132: =L132*$G$3+M131 -> 0.01522108414 | N132: =(J132^2+L132^2)*$G$3+N131 -> 9.590518018e-06
A133: =IF('DF raw data'!E133="","",'DF raw data'!E133) -> -267 | B133: =IF('DF raw data'!F133="","",'DF raw data'!F133) -> -2.76032e-05 | C133: =IF('DF raw data'!G133="","",'DF raw data'!G133) -> 0.000159927 | D133: =IF('DF raw data'!H133="","",'DF raw data'!H133) -> -2.68729e-05 | F133: -5.24137124e-06 | G133: 1.57718505e-05 | H133: 9.569956025e-06 | J133: 0.0001755170138 | K133: 0.003048852484 | L133: 0.0008847731795 | M133: 0.01566347073 | N133: 9.997332918e-06
A134: =IF('DF raw data'!E134="","",'DF raw data'!E134) -> -266.5 | B134: =IF('DF raw data'!F134="","",'DF raw data'!F134) -> -1.47235e-05 | C134: =IF('DF raw data'!G134="","",'DF raw data'!G134) -> 0.000158623 | D134: =IF('DF raw data'!H134="","",'DF raw data'!H134) -> -3.22511e-05 | F134: 7.69628741e-06 | G134: 1.44619825e-05 | H134: 4.167554125e-06 | J134: 0.0001793651575 | K134: 0.003138535063 | L134: 0.0008920041707 | M134: 0.01610947281 | N134: 1.041125457e-05
A135: =IF('DF raw data'!E135="","",'DF raw data'!E135) -> -266 | B135: =IF('DF raw data'!F135="","",'DF raw data'!F135) -> -2.87444e-05 | C135: =IF('DF raw data'!G135="","",'DF raw data'!G135) -> 0.000169441 | D135: =IF('DF raw data'!H135="","",'DF raw data'!H135) -> -4.56176e-05 | F135: -6.38770664e-06 | G135: 2.53286635e-05 | H135: -9.259095125e-06 | J135: 0.0001761713041 | K135: 0.003226620715 | L135: 0.0009046685025 | M135: 0.01656180706 | N135: 1.083598528e-05
A136: =IF('DF raw data'!E136="","",'DF raw data'!E136) -> -265.5 | B136: =IF('DF raw data'!F136="","",'DF raw data'!F136) -> -2.28533e-05 | C136: =IF('DF raw data'!G136="","",'DF raw data'!G136) -> 0.00017527 | D136: =IF('DF raw data'!H136="","",'DF raw data'!H136) -> -4.16322e-05 | F136: -4.7009669e-07 | G136: 3.1183894e-05 | H136: -5.255760825e-06 | J136: 0.0001759362558 | K136: 0.003314588843 | L136: 0.0009202604495 | M136: 0.01702193729 | N136: 1.127490171e-05
A137: =IF('DF raw data'!E137="","",'DF raw data'!E137) -> -265 | B137: =IF('DF raw data'!F137="","",'DF raw data'!F137) -> -3.55411e-05 | C137: =IF('DF raw data'!G137="","",'DF raw data'!G137) -> 0.000174502 | D137: =IF('DF raw data'!H137="","",'DF raw data'!H137) -> -3.61146e-05 | F137: -1.321499179e-05 | G137: 3.0412438e-05 | H137: 2.86668375e-07 | J137: 0.0001693287599 | K137: 0.003399253223 | L137: 0.0009354666685 | M137: 0.01748967062 | N137: 1.172678677e-05
A138: =IF('DF raw data'!E138="","",'DF raw data'!E138) -> -264.5 | B138: =IF('DF raw data'!F138="","",'DF raw data'!F138) -> -2.81745e-05 | C138: =IF('DF raw data'!G138="","",'DF raw data'!G138) -> 0.000165863 | D138: =IF('DF raw data'!H138="","",'DF raw data'!H138) -> -3.52253e-05 | F138: -5.81524209e-06 | G138: 2.17345625e-05 | H138: 1.179970225e-06 | J138: 0.0001664211389 | K138: 0.003482463792 | L138: 0.0009463339497 | M138: 0.0179628376 | N138: 1.218840874e-05
A139: =IF('DF raw data'!E139="","",'DF raw data'!E139) -> -264 | B139: =IF('DF raw data'!F139="","",'DF raw data'!F139) -> -1.7733e-05 | C139: =IF('DF raw data'!G139="","",'DF raw data'!G139) -> 0.000167904 | D139: =IF('DF raw data'!H139="","",'DF raw data'!H139) -> -3.43826e-05 | F139: 4.67324466e-06 | G139: 2.3784747e-05 | H139: 2.026462375e-06 | J139: 0.0001687577612 | K139: 0.003566842673 | L139: 0.0009582263232 | M139: 0.01844195076 | N139: 1.266174718e-05
A140: =IF('DF raw data'!E140="","",'DF raw data'!E140) -> -263.5 | B140: =IF('DF raw data'!F140="","",'DF raw data'!F140) -> -2.14541e-05 | C140: =IF('DF raw data'!G140="","",'DF raw data'!G140) -> 0.000171272 | D140: =IF('DF raw data'!H140="","",'DF raw data'!H140) -> -2.56493e-05 | F140: 9.3539971e-07 | G140: 2.7167903e-05 | H140: 1.079906223e-05 | J140: 0.000169225461 | K140: 0.003651455403 | L140: 0.0009718102747 | M140: 0.0189278559 | N140: 1.314827341e-05
A141: =IF('DF raw data'!E141="","",'DF raw data'!E141) -> -263 | B141: =IF('DF raw data'!F141="","",'DF raw data'!F141) -> -2.19692e-05 | C141: =IF('DF raw data'!G141="","",'DF raw data'!G141) -> 0.000175844 | D141: =IF('DF raw data'!H141="","",'DF raw data'!H141) -> -2.15901e-05 | F141: 4.1798176e-07 | G141: 3.1760477e-05 | H141: 1.487652863e-05 | J141: 0.0001694344519 | K141: 0.003736172629 | L141: 0.0009876905132 | M141: 0.01942170115 | N141: 1.36503937e-05
A142: =IF('DF raw data'!E142="","",'DF raw data'!E142) -> -262.5 | B142: =IF('DF raw data'!F142="","",'DF raw data'!F142) -> -3.06014e-05 | C142: =IF('DF raw data'!G142="","",'DF raw data'!G142) -> 0.000170813 | D142: =IF('DF raw data'!H142="","",'DF raw data'!H142) -> -4.64375e-05 | F142: -8.25306314e-06 | G142: 2.67068375e-05 | H142: -1.008268467e-05 | J142: 0.0001653079203 | K142: 0.00381882659 | L142: 0.001001043932 | M142: 0.01992222312 | N142: 1.416510153e-05
A143: =IF('DF raw data'!E143="","",'DF raw data'!E143) -> -262 | B143: =IF('DF raw data'!F143="","",'DF raw data'!F143) -> -2.27852e-05 | C143: =IF('DF raw data'!G143="","",'DF raw data'!G143) -> 0.000148874 | D143: =IF('DF raw data'!H143="","",'DF raw data'!H143) -> -4.77074e-05 | F143: -4.0169024e-07 | G143: 4.669112e-06 | H143: -1.135829922e-05 | J143: 0.0001651070752 | K143: 0.003901380127 | L143: 0.001003378488 | M143: 0.02042391236 | N143: 1.46821159e-05
A144: =IF('DF raw data'!E144="","",'DF raw data'!E144) -> -261.5 | B144: =IF('DF raw data'!F144="","",'DF raw data'!F144) -> -1.96441e-05 | C144: =IF('DF raw data'!G144="","",'DF raw data'!G144) -> 0.000151245 | D144: =IF('DF raw data'!H144="","",'DF raw data'!H144) -> -5.0872e-05 | F144: 2.75354471e-06 | G144: 7.0507815e-06 | H144: -1.453713992e-05 | J144: 0.0001664838476 | K144: 0.003984622051 | L144: 0.001006903879 | M144: 0.0209273643 | N144: 1.520290205e-05
A145: =IF('DF raw data'!E145="","",'DF raw data'!E145) -> -261 | B145: =IF('DF raw data'!F145="","",'DF raw data'!F145) -> -2.27309e-05 | C145: =IF('DF raw data'!G145="","",'DF raw data'!G145) -> 0.000153737 | D145: =IF('DF raw data'!H145="","",'DF raw data'!H145) -> -3.28627e-05 | F145: -3.4714589e-07 | G145: 9.5539955e-06 | H145: 3.553201925e-06 | J145: 0.0001663102746 | K145: 0.004067777188 | L145: 0.001011680876 | M145: 0.02143320474 | N145: 1.57284807e-05
A146: =IF('DF raw data'!E146="","",'DF raw data'!E146) -> -260.5 | B146: =IF('DF raw data'!F146="","",'DF raw data'!F146) -> -3.59288e-05 | C146: =IF('DF raw data'!G146="","",'DF raw data'!G146) -> 0.000150845 | D146: =IF('DF raw data'!H146="","",'DF raw data'!H146) -> -3.09399e-05 | F146: -1.360443644e-05 | G146: 6.6489815e-06 | H146: 5.484654525e-06 | J146: 0.0001595080564 | K146: 0.004147531217 | L146: 0.001015005367 | M146: 0.02194070742 | N146: 1.625632006e-05
A147: =IF('DF raw data'!E147="","",'DF raw data'!E147) -> -260 | B147: =IF('DF raw data'!F147="","",'DF raw data'!F147) -> -1.1133e-05 | C147: =IF('DF raw data'!G147="","",'DF raw data'!G147) -> 0.000147415 | D147: =IF('DF raw data'!H147="","",'DF raw data'!H147) -> -3.68104e-05 | F147: 1.130294466e-05 | G147: 3.2035465e-06 | H147: -4.12262725e-07 | J147: 0.0001651595287 | K147: 0.004230110981 | L147: 0.00101660714 | M147: 0.02244901099 | N147: 1.678670393e-05
A148: =IF('DF raw data'!E148="","",'DF raw data'!E148) -> -259.5 | B148: =IF('DF raw data'!F148="","",'DF raw data'!F148) -> -2.69568e-05 | C148: =IF('DF raw data'!G148="","",'DF raw data'!G148) -> 0.000151655 | D148: =IF('DF raw data'!H148="","",'DF raw data'!H148) -> -3.58443e-05 | F148: -4.59206244e-06 | G148: 7.4626265e-06 | H148: 5.58184725e-07 | J148: 0.0001628634975 | K148: 0.00431154273 | L148: 0.001020338454 | M148: 0.02295918022 | N148: 1.732051147e-05
A149: =IF('DF raw data'!E149="","",'DF raw data'!E149) -> -259 | B149: =IF('DF raw data'!F149="","",'DF raw data'!F149) -> -2.06188e-05 | C149: =IF('DF raw data'!G149="","",'DF raw data'!G149) -> 0.000150654 | D149: =IF('DF raw data'!H149="","",'DF raw data'!H149) -> -2.97885e-05 | F149: 1.77445856e-06 | G149: 6.457122e-06 | H149: 6.641235825e-06 | J149: 0.0001637507268 | K149: 0.004393418093 | L149: 0.001023567015 | M149: 0.02347096373 | N149: 1.785776334e-05
A150: =IF('DF raw data'!E150="","",'DF raw data'!E150) -> -258.5 | B150: =IF('DF raw data'!F150="","",'DF raw data'!F150) -> -2.58074e-05 | C150: =IF('DF raw data'!G150="","",'DF raw data'!G150) -> 0.000151919 | D150: =IF('DF raw data'!H150="","",'DF raw data'!H150) -> -3.02692e-05 | F150: -3.43749014e-06 | G150: 7.7278145e-06 | H150: 6.158372675e-06 | J150: 0.0001620319817 | K150: 0.004474434084 | L150: 0.001027430922 | M150: 0.02398467919 | N150: 1.839869767e-05
A151: =IF('DF raw data'!E151="","",'DF raw data'!E151) -> -258 | B151: =IF('DF raw data'!F151="","",'DF raw data'!F151) -> -2.27863e-05 | C151: =IF('DF raw data'!G151="","",'DF raw data'!G151) -> 0.000160908 | D151: =IF('DF raw data'!H151="","",'DF raw data'!H151) -> -4.59864e-05 | F151: -4.0279519e-07 | G151: 1.6757265e-05 | H151: -9.629554725e-06 | J151: 0.0001618305841 | K151: 0.004555349376 | L151: 0.001035809554 | M151: 0.02450258397 | N151: 1.894824295e-05
A152: =IF('DF raw data'!E152="","",'DF raw data'!E152) -> -257.5 | B152: =IF('DF raw data'!F152="","",'DF raw data'!F152) -> -3.18837e-05 | C152: =IF('DF raw data'!G152="","",'DF raw data'!G152) -> 0.000164642 | D152: =IF('DF raw data'!H152="","",'DF raw data'!H152) -> -4.51494e-05 | F152: -9.54113349e-06 | G152: 2.0508068e-05 | H152: -8.788788225e-06 | J152: 0.0001570600174 | K152: 0.004633879385 | L152: 0.001046063588 | M152: 0.02502561576 | N152: 1.950770139e-05
A153: =IF('DF raw data'!E153="","",'DF raw data'!E153) -> -257 | B153: =IF('DF raw data'!F153="","",'DF raw data'!F153) -> -2.79177e-05 | C153: =IF('DF raw data'!G153="","",'DF raw data'!G153) -> 0.000166366 | D153: =IF('DF raw data'!H153="","",'DF raw data'!H153) -> -3.61217e-05 | F153: -5.55728649e-06 | G153: 2.2239826e-05 | H153: 2.79536425e-07 | J153: 0.0001542813742 | K153: 0.004711020072 | L153: 0.001057183501 | M153: 0.02555420751 | N153: 2.007842124e-05
A154: =IF('DF raw data'!E154="","",'DF raw data'!E154) -> -256.5 | B154: =IF('DF raw data'!F154="","",'DF raw data'!F154) -> -1.4979e-05 | C154: =IF('DF raw data'!G154="","",'DF raw data'!G154) -> 0.000164618 | D154: =IF('DF raw data'!H154="","",'DF raw data'!H154) -> -3.32799e-05 | F154: 7.43963766e-06 | G154: 2.048396e-05 | H154: 3.134124525e-06 | J154: 0.000158001193 | K154: 0.004790020668 | L154: 0.001067425481 | M154: 0.02608792025 | N154: 2.066060201e-05
A155: =IF('DF raw data'!E155="","",'DF raw data'!E155) -> -256 | B155: =IF('DF raw data'!F155="","",'DF raw data'!F155) -> -2.11283e-05 | C155: =IF('DF raw data'!G155="","",'DF raw data'!G155) -> 0.000165023 | D155: =IF('DF raw data'!H155="","",'DF raw data'!H155) -> -3.44234e-05 | F155: 1.26266581e-06 | G155: 2.08907825e-05 | H155: 1.985478775e-06 | J155: 0.0001586325259 | K155: 0.004869336931 | L155: 0.001077870873 | M155: 0.02662685569 | N155: 2.125408696e-05
A156: =IF('DF raw data'!E156="","",'DF raw data'!E156) -> -255.5 | B156: =IF('DF raw data'!F156="","",'DF raw data'!F156) -> -1.06184e-05 | C156: =IF('DF raw data'!G156="","",'DF raw data'!G156) -> 0.000158154 | D156: =IF('DF raw data'!H156="","",'DF raw data'!H156) -> -3.99471e-05 | F156: 1.181986036e-05 | G156: 1.3990872e-05 | H156: -3.563077875e-06 | J156: 0.0001645424561 | K156: 0.004951608159 | L156: 0.001084866309 | M156: 0.02716928884 | N156: 2.185609152e-05
A157: =IF('DF raw data'!E157="","",'DF raw data'!E157) -> -255 | B157: =IF('DF raw data'!F157="","",'DF raw data'!F157) -> -1.26069e-05 | C157: =IF('DF raw data'!G157="","",'DF raw data'!G157) -> 0.000167111 | D157: =IF('DF raw data'!H157="","",'DF raw data'!H157) -> -3.61163e-05 | F157: 9.82241211e-06 | G157: 2.29881785e-05 | H157: 2.84960725e-07 | J157: 0.0001694536621 | K157: 0.00503633499 | L157: 0.001096360398 | M157: 0.02771746904 | N157: 2.247145186e-05
A158: =IF('DF raw data'!E158="","",'DF raw data'!E158) -> -254.5 | B158: =IF('DF raw data'!F158="","",'DF raw data'!F158) -> -1.68983e-05 | C158: =IF('DF raw data'!G158="","",'DF raw data'!G158) -> 0.000174594 | D158: =IF('DF raw data'!H158="","",'DF raw data'!H158) -> -3.71344e-05 | F158: 5.51170081e-06 | G158: 3.0504852e-05 | H158: -7.37720725e-07 | J158: 0.0001722095125 | K158: 0.005122439747 | L158: 0.001111612824 | M158: 0.02827327545 | N158: 2.310412145e-05
A159: =IF('DF raw data'!E159="","",'DF raw data'!E159) -> -254 | B159: =IF('DF raw data'!F159="","",'DF raw data'!F159) -> -1.63203e-05 | C159: =IF('DF raw data'!G159="","",'DF raw data'!G159) -> 0.000177299 | D159: =IF('DF raw data'!H159="","",'DF raw data'!H159) -> -3.91765e-05 | F159: 6.09230181e-06 | G159: 3.32220245e-05 | H159: -2.789010175e-06 | J159: 0.0001752556634 | K159: 0.005210067578 | L159: 0.001128223836 | M159: 0.02883738737 | N159: 2.375592323e-05
A160: =IF('DF raw data'!E160="","",'DF raw data'!E160) -> -253.5 | B160: =IF('DF raw data'!F160="","",'DF raw data'!F160) -> -1.29204e-05 | C160: =IF('DF raw data'!G160="","",'DF raw data'!G160) -> 0.000178219 | D160: =IF('DF raw data'!H160="","",'DF raw data'!H160) -> -4.63862e-05 | F160: 9.50750136e-06 | G160: 3.41461645e-05 | H160: -1.003115382e-05 | J160: 0.0001800094141 | K160: 0.005300072285 | L160: 0.001145296918 | M160: 0.02941003583 | N160: 2.442797745e-05
A161: =IF('DF raw data'!E161="","",'DF raw data'!E161) -> -253 | B161: =IF('DF raw data'!F161="","",'DF raw data'!F161) -> -2.20225e-05 | C161: =IF('DF raw data'!G161="","",'DF raw data'!G161) -> 0.000177253 | D161: =IF('DF raw data'!H161="","",'DF raw data'!H161) -> -3.83782e-05 | F161: 3.6444191e-07 | G161: 3.31758175e-05 | H161: -1.987117825e-06 | J161: 0.0001801916351 | K161: 0.005390168103 | L161: 0.001161884827 | M161: 0.02999097824 | N161: 2.511920013e-05
A162: =IF('DF raw data'!E162="","",'DF raw data'!E162) -> -252.5 | B162: =IF('DF raw data'!F162="","",'DF raw data'!F162) -> -3.06765e-05 | C162: =IF('DF raw data'!G162="","",'DF raw data'!G162) -> 0.000165278 | D162: =IF('DF raw data'!H162="","",'DF raw data'!H162) -> -2.9698e-05 | F162: -8.32850109e-06 | G162: 2.114693e-05 | H162: 6.732143075e-06 | J162: 0.0001760273845 | K162: 0.005478181795 | L162: 0.001172458292 | M162: 0.03057720739 | N162: 2.582202218e-05
A163: =IF('DF raw data'!E163="","",'DF raw data'!E163) -> -252 | B163: =IF('DF raw data'!F163="","",'DF raw data'!F163) -> -1.3895e-05 | C163: =IF('DF raw data'!G163="","",'DF raw data'!G163) -> 0.000167518 | D163: =IF('DF raw data'!H163="","",'DF raw data'!H163) -> -2.54841e-05 | F163: 8.52851566e-06 | G163: 2.339701e-05 | H163: 1.096500563e-05 | J163: 0.0001802916424 | K163: 0.005568327616 | L163: 0.001184156797 | M163: 0.03116928579 | N163: 2.653938838e-05
A164: =IF('DF raw data'!E164="","",'DF raw data'!E164) -> -251.5 | B164: =IF('DF raw data'!F164="","",'DF raw data'!F164) -> -3.21546e-05 | C164: =IF('DF raw data'!G164="","",'DF raw data'!G164) -> 0.000165944 | D164: =IF('DF raw data'!H164="","",'DF raw data'!H164) -> -2.25176e-05 | F164: -9.81325254e-06 | G164: 2.1815927e-05 | H164: 1.394485488e-05 | J164: 0.0001753850161 | K164: 0.005656020124 | L164: 0.001195064761 | M164: 0.03176681817 | N164: 2.726885822e-05
A165: =IF('DF raw data'!E165="","",'DF raw data'!E165) -> -251 | B165: =IF('DF raw data'!F165="","",'DF raw data'!F165) -> -3.83635e-05 | C165: =IF('DF raw data'!G165="","",'DF raw data'!G165) -> 0.000170294 | D165: =IF('DF raw data'!H165="","",'DF raw data'!H165) -> -3.02573e-05 | F165: -1.605009259e-05 | G165: 2.6185502e-05 | H165: 6.170326225e-06 | J165: 0.0001673599698 | K165: 0.005739700109 | L165: 0.001208157512 | M165: 0.03237089693 | N165: 2.801268519e-05
A166: =IF('DF raw data'!E166="","",'DF raw data'!E166) -> -250.5 | B166: =IF('DF raw data'!F166="","",'DF raw data'!F166) -> -2.72783e-05 | C166: =IF('DF raw data'!G166="","",'DF raw data'!G166) -> 0.000173322 | D166: =IF('DF raw data'!H166="","",'DF raw data'!H166) -> -3.42162e-05 | F166: -4.91500919e-06 | G166: 2.9227128e-05 | H166: 2.193611175e-06 | J166: 0.0001649024652 | K166: 0.005822151342 | L166: 0.001222771076 | M166: 0.03298228246 | N166: 2.877386615e-05
A167: =IF('DF raw data'!E167="","",'DF raw data'!E167) -> -250 | B167: =IF('DF raw data'!F167="","",'DF raw data'!F167) -> -2.86922e-05 | C167: =IF('DF raw data'!G167="","",'DF raw data'!G167) -> 0.000168072 | D167: =IF('DF raw data'!H167="","",'DF raw data'!H167) -> -2.71084e-05 | F167: -6.33527174e-06 | G167: 2.3953503e-05 | H167: 9.333396275e-06 | J167: 0.0001617348293 | K167: 0.005903018757 | L167: 0.001234747827 | M167: 0.03359965638 | N167: 2.954924632e-05
A168: =IF('DF raw data'!E168="","",'DF raw data'!E168) -> -249.5 | B168: =IF('DF raw data'!F168="","",'DF raw data'!F168) -> -2.01058e-05 | C168: =IF('DF raw data'!G168="","",'DF raw data'!G168) -> 0.000170013 | D168: =IF('DF raw data'!H168="","",'DF raw data'!H168) -> -3.05423e-05 | F168: 2.28976706e-06 | G168: 2.59032375e-05 | H168: 5.884043725e-06 | J168: 0.0001628797129 | K168: 0.005984458613 | L168: 0.001247699446 | M168: 0.0342235061 | N168: 3.034088818e-05
A169: =IF('DF raw data'!E169="","",'DF raw data'!E169) -> -249 | B169: =IF('DF raw data'!F169="","",'DF raw data'!F169) -> -1.75411e-05 | C169: =IF('DF raw data'!G169="","",'DF raw data'!G169) -> 0.000163878 | D169: =IF('DF raw data'!H169="","",'DF raw data'!H169) -> -3.38168e-05 | F169: 4.86600821e-06 | G169: 1.974063e-05 | H169: 2.594808475e-06 | J169: 0.000165312717 | K169: 0.006067114971 | L169: 0.001257569761 | M169: 0.03485229098 | N169: 3.114529318e-05
A170: =IF('DF raw data'!E170="","",'DF raw data'!E170) -> -248.5 | B170: =IF('DF raw data'!F170="","",'DF raw data'!F170) -> -2.40765e-05 | C170: =IF('DF raw data'!G170="","",'DF raw data'!G170) -> 0.000164589 | D170: =IF('DF raw data'!H170="","",'DF raw data'!H170) -> -3.19838e-05 | F170: -1.69880109e-06 | G170: 2.04548295e-05 | H170: 4.436056975e-06 | J170: 0.0001644633164 | K170: 0.00614934663 | L170: 0.001267797176 | M170: 0.03548618957 | N170: 3.196247211e-05
A171: =IF('DF raw data'!E171="","",'DF raw data'!E171) -> -248 | B171: =IF('DF raw data'!F171="","",'DF raw data'!F171) -> -1.23601e-05 | C171: =IF('DF raw data'!G171="","",'DF raw data'!G171) -> 0.000167434 | D171: =IF('DF raw data'!H171="","",'DF raw data'!H171) -> -2.1636e-05 | F171: 1.007032271e-05 | G171: 2.3312632e-05 | H171: 1.483042208e-05 | J171: 0.0001694984778 | K171: 0.006234095869 | L171: 0.001279453492 | M171: 0.03612591631 | N171: 3.279533759e-05
A172: =IF('DF raw data'!E172="","",'DF raw data'!E172) -> -247.5 | B172: =IF('DF raw data'!F172="","",'DF raw data'!F172) -> -1.16505e-05 | C172: =IF('DF raw data'!G172="","",'DF raw data'!G172) -> 0.000166088 | D172: =IF('DF raw data'!H172="","",'DF raw data'!H172) -> -2.90394e-05 | F172: 1.078311591e-05 | G172: 2.1960575e-05 | H172: 7.393706775e-06 | J172: 0.0001748900357 | K172: 0.006321540886 | L172: 0.001290433779 | M172: 0.0367711332 | N172: 3.364324053e-05
A173: =IF('DF raw data'!E173="","",'DF raw data'!E173) -> -247 | B173: =IF('DF raw data'!F173="","",'DF raw data'!F173) -> -1.46567e-05 | C173: =IF('DF raw data'!G173="","",'DF raw data'!G173) -> 0.000158781 | D173: =IF('DF raw data'!H173="","",'DF raw data'!H173) -> -3.62961e-05 | F173: 7.76338801e-06 | G173: 1.46206935e-05 | H173: 1.04351625e-07 | J173: 0.0001787717297 | K173: 0.006410926751 | L173: 0.001297744126 | M173: 0.03742000527 | N173: 3.45012901e-05
A174: =IF('DF raw data'!E174="","",'DF raw data'!E174) -> -246.5 | B174: =IF('DF raw data'!F174="","",'DF raw data'!F174) -> -1.04283e-05 | C174: =IF('DF raw data'!G174="","",'DF raw data'!G174) -> 0.000146393 | D174: =IF('DF raw data'!H174="","",'DF raw data'!H174) -> -3.65367e-05 | F174: 1.201081581e-05 | G174: 2.1769475e-06 | H174: -1.37331075e-07 | J174: 0.0001847771376 | K174: 0.00650331532 | L174: 0.0012988326 | M174: 0.03806942157 | N174: 3.536184446e-05
A175: =IF('DF raw data'!E175="","",'DF raw data'!E175) -> -246 | B175: =IF('DF raw data'!F175="","",'DF raw data'!F175) -> -2.7407e-05 | C175: =IF('DF raw data'!G175="","",'DF raw data'!G175) -> 0.000151319 | D175: =IF('DF raw data'!H175="","",'DF raw data'!H175) -> -3.33849e-05 | F175: -5.04428834e-06 | G175: 7.1251145e-06 | H175: 3.028652025e-06 | J175: 0.0001822549935 | K175: 0.006594442817 | L175: 0.001302395157 | M175: 0.03872061915 | N175: 3.622656947e-05
A176: =IF('DF raw data'!E176="","",'DF raw data'!E176) -> -245.5 | B176: =IF('DF raw data'!F176="","",'DF raw data'!F176) -> -9.59834e-06 | C176: =IF('DF raw data'!G176="","",'DF raw data'!G176) -> 0.000158654 | D176: =IF('DF raw data'!H176="","",'DF raw data'!H176) -> -3.24878e-05 | F176: 1.284451063e-05 | G176: 1.4493122e-05 | H176: 3.929788975e-06 | J176: 0.0001886772488 | K176: 0.006688781441 | L176: 0.001309641718 | M176: 0.03937544 | N176: 3.710194974e-05
A177: =IF('DF raw data'!E177="","",'DF raw data'!E177) -> -245 | B177: =IF('DF raw data'!F177="","",'DF raw data'!F177) -> -1.88254e-05 | C177: =IF('DF raw data'!G177="","",'DF raw data'!G177) -> 0.000161825 | D177: =IF('DF raw data'!H177="","",'DF raw data'!H177) -> -2.90706e-05 | F177: 3.57592886e-06 | G177: 1.76783915e-05 | H177: 7.362366375e-06 | J177: 0.0001904652132 | K177: 0.006784014048 | L177: 0.001318480914 | M177: 0.04003468046 | N177: 3.79892842e-05
A178: =IF('DF raw data'!E178="","",'DF raw data'!E178) -> -244.5 | B178: =IF('DF raw data'!F178="","",'DF raw data'!F178) -> -1.70881e-05 | C178: =IF('DF raw data'!G178="","",'DF raw data'!G178) -> 0.000166227 | D178: =IF('DF raw data'!H178="","",'DF raw data'!H178) -> -4.10792e-05 | F178: 5.32104671e-06 | G178: 2.21002005e-05 | H178: -4.700272325e-06 | J178: 0.0001931257366 | K178: 0.006880576916 | L178: 0.001329531014 | M178: 0.04069944597 | N178: 3.889175933e-05
A179: =IF('DF raw data'!E179="","",'DF raw data'!E179) -> -244 | B179: =IF('DF raw data'!F179="","",'DF raw data'!F179) -> -2.42673e-05 | C179: =IF('DF raw data'!G179="","",'DF raw data'!G179) -> 0.000168282 | D179: =IF('DF raw data'!H179="","",'DF raw data'!H179) -> -3.43772e-05 | F179: -1.89045969e-06 | G179: 2.4164448e-05 | H179: 2.031886675e-06 | J179: 0.0001921805067 | K179: 0.006976667169 | L179: 0.001341613238 | M179: 0.04137025259 | N179: 3.981018904e-05
A180: =IF('DF raw data'!E180="","",'DF raw data'!E180) -> -243.5 | B180: =IF('DF raw data'!F180="","",'DF raw data'!F180) -> -1.70834e-05 | C180: =IF('DF raw data'!G180="","",'DF raw data'!G180) -> 0.000165765 | D180: =IF('DF raw data'!H180="","",'DF raw data'!H180) -> -4.8348e-05 | F180: 5.32576786e-06 | G180: 2.16361215e-05 | H180: -1.200178192e-05 | J180: 0.0001948433906 | K180: 0.007074088865 | L180: 0.001352431299 | M180: 0.04204646824 | N180: 4.074370623e-05
A181: =IF('DF raw data'!E181="","",'DF raw data'!E181) -> -243 | B181: =IF('DF raw data'!F181="","",'DF raw data'!F181) -> -1.29867e-05 | C181: =IF('DF raw data'!G181="","",'DF raw data'!G181) -> 0.000155302 | D181: =IF('DF raw data'!H181="","",'DF raw data'!H181) -> -4.31061e-05 | F181: 9.44090301e-06 | G181: 1.1126038e-05 | H181: -6.736293375e-06 | J181: 0.0001995638422 | K181: 0.007173870786 | L181: 0.001357994318 | M181: 0.0427254654 | N181: 4.168569337e-05
A182: =IF('DF raw data'!E182="","",'DF raw data'!E182) -> -242.5 | B182: =IF('DF raw data'!F182="","",'DF raw data'!F182) -> -1.41404e-05 | C182: =IF('DF raw data'!G182="","",'DF raw data'!G182) -> 0.000155113 | D182: =IF('DF raw data'!H182="","",'DF raw data'!H182) -> -4.21226e-05 | F182: 8.28201136e-06 | G182: 1.09361875e-05 | H182: -5.748367625e-06 | J182: 0.0002037048478 | K182: 0.00727572321 | L182: 0.001363462411 | M182: 0.0434071966 | N182: 4.263595608e-05
A183: =IF('DF raw data'!E183="","",'DF raw data'!E183) -> -242 | B183: =IF('DF raw data'!F183="","",'DF raw data'!F183) -> -1.56182e-05 | C183: =IF('DF raw data'!G183="","",'DF raw data'!G183) -> 0.000155842 | D183: =IF('DF raw data'!H183="","",'DF raw data'!H183) -> -3.54722e-05 | F183: 6.79756126e-06 | G183: 1.1668468e-05 | H183: 9.31959175e-07 | J183: 0.0002071036285 | K183: 0.007379275024 | L183: 0.001369296645 | M183: 0.04409184492 | N183: 4.359488869e-05
A184: =IF('DF raw data'!E184="","",'DF raw data'!E184) -> -241.5 | B184: =IF('DF raw data'!F184="","",'DF raw data'!F184) -> -2.70256e-05 | C184: =IF('DF raw data'!G184="","",'DF raw data'!G184) -> 0.000155641 | D184: =IF('DF raw data'!H184="","",'DF raw data'!H184) -> -2.88281e-05 | F184: -4.66117204e-06 | G184: 1.14665635e-05 | H184: 7.605957625e-06 | J184: 0.0002047730424 | K184: 0.007481661545 | L184: 0.001375029927 | M184: 0.04477935989 | N184: 4.456120834e-05
A185: =IF('DF raw data'!E185="","",'DF raw data'!E185) -> -241 | B185: =IF('DF raw data'!F185="","",'DF raw data'!F185) -> -1.29125e-05 | C185: =IF('DF raw data'!G185="","",'DF raw data'!G185) -> 0.000156523 | D185: =IF('DF raw data'!H185="","",'DF raw data'!H185) -> -5.86532e-05 | F185: 9.51543691e-06 | G185: 1.23525325e-05 | H185: -2.235335532e-05 | J185: 0.0002095307609 | K185: 0.007586426926 | L185: 0.001381206193 | M185: 0.04546996298 | N185: 4.553702518e-05
A186: =IF('DF raw data'!E186="","",'DF raw data'!E186) -> -240.5 | B186: =IF('DF raw data'!F186="","",'DF raw data'!F186) -> -2.21506e-05 | C186: =IF('DF raw data'!G186="","",'DF raw data'!G186) -> 0.000150316 | D186: =IF('DF raw data'!H186="","",'DF raw data'!H186) -> -3.84157e-05 | F186: 2.3576546e-07 | G186: 6.117601e-06 | H186: -2.024786575e-06 | J186: 0.0002096486436 | K186: 0.007691251247 | L186: 0.001384264994 | M186: 0.04616209548 | N186: 4.651709624e-05
A187: =IF('DF raw data'!E187="","",'DF raw data'!E187) -> -240 | B187: =IF('DF raw data'!F187="","",'DF raw data'!F187) -> -3.35438e-05 | C187: =IF('DF raw data'!G187="","",'DF raw data'!G187) -> 0.000153959 | D187: =IF('DF raw data'!H187="","",'DF raw data'!H187) -> -5.37313e-05 | F187: -1.120870394e-05 | G187: 9.7769945e-06 | H187: -1.740930677e-05 | J187: 0.0002040442917 | K187: 0.007793273393 | L187: 0.001389153491 | M187: 0.04685667223 | N187: 4.750278699e-05
A188: =IF('DF raw data'!E188="","",'DF raw data'!E188) -> -239.5 | B188: =IF('DF raw data'!F188="","",'DF raw data'!F188) -> -2.82235e-05 | C188: =IF('DF raw data'!G188="","",'DF raw data'!G188) -> 0.000155126 | D188: =IF('DF raw data'!H188="","",'DF raw data'!H188) -> -5.82006e-05 | F188: -5.86446259e-06 | G188: 1.0949246e-05 | H188: -2.189871862e-05 | J188: 0.0002011120604 | K188: 0.007893829423 | L188: 0.001394628114 | M188: 0.04755398628 | N188: 4.849550381e-05
A189: =IF('DF raw data'!E189="","",'DF raw data'!E189) -> -239 | B189: =IF('DF raw data'!F189="","",'DF raw data'!F189) -> -2.04194e-05 | C189: =IF('DF raw data'!G189="","",'DF raw data'!G189) -> 0.000161553 | D189: =IF('DF raw data'!H189="","",'DF raw data'!H189) -> -4.07636e-05 | F189: 1.97475586e-06 | G189: 1.74051675e-05 | H189: -4.383252125e-06 | J189: 0.0002020994383 | K189: 0.007994879143 | L189: 0.001403330698 | M189: 0.04825565163 | N189: 4.950059443e-05
A190: =IF('DF raw data'!E190="","",'DF raw data'!E190) -> -238.5 | B190: =IF('DF raw data'!F190="","",'DF raw data'!F190) -> -1.88245e-05 | C190: =IF('DF raw data'!G190="","",'DF raw data'!G190) -> 0.000161603 | D190: =IF('DF raw data'!H190="","",'DF raw data'!H190) -> -3.03114e-05 | F190: 3.57683291e-06 | G190: 1.74553925e-05 | H190: 6.115982775e-06 | J190: 0.0002038878547 | K190: 0.00809682307 | L190: 0.001412058394 | M190: 0.04896168083 | N190: 5.051833401e-05
A191: =IF('DF raw data'!E191="","",'DF raw data'!E191) -> -238 | B191: =IF('DF raw data'!F191="","",'DF raw data'!F191) -> -2.07436e-05 | C191: =IF('DF raw data'!G191="","",'DF raw data'!G191) -> 0.000162366 | D191: =IF('DF raw data'!H191="","",'DF raw data'!H191) -> -3.49293e-05 | F191: 1.64909696e-06 | G191: 1.8221826e-05 | H191: 1.477302225e-06 | J191: 0.0002047124032 | K191: 0.008199179272 | L191: 0.001421169307 | M191: 0.04967226548 | N191: 5.154914869e-05
A192: =IF('DF raw data'!E192="","",'DF raw data'!E192) -> -237.5 | B192: =IF('DF raw data'!F192="","",'DF raw data'!F192) -> -1.85638e-05 | C192: =IF('DF raw data'!G192="","",'DF raw data'!G192) -> 0.000156057 | D192: =IF('DF raw data'!H192="","",'DF raw data'!H192) -> -3.7213e-05 | F192: 3.83870606e-06 | G192: 1.18844355e-05 | H192: -8.16674425e-07 | J192: 0.0002066317563 | K192: 0.00830249515 | L192: 0.001427111525 | M192: 0.05038582125 | N192: 5.258882069e-05
A193: =IF('DF raw data'!E193="","",'DF raw data'!E193) -> -237 | B193: =IF('DF raw data'!F193="","",'DF raw data'!F193) -> -2.30523e-05 | C193: =IF('DF raw data'!G193="","",'DF raw data'!G193) -> 0.000151447 | D193: =IF('DF raw data'!H193="","",'DF raw data'!H193) -> -3.08922e-05 | F193: -6.6999219e-07 | G193: 7.2536905e-06 | H193: 5.532569175e-06 | J193: 0.0002062967602 | K193: 0.00840564353 | L193: 0.00143073837 | M193: 0.05110119043 | N193: 5.363360601e-05
A194: =IF('DF raw data'!E194="","",'DF raw data'!E194) -> -236.5 | B194: =IF('DF raw data'!F194="","",'DF raw data'!F194) -> -3.33684e-05 | C194: =IF('DF raw data'!G194="","",'DF raw data'!G194) -> 0.000154801 | D194: =IF('DF raw data'!H194="","",'DF raw data'!H194) -> -2.75901e-05 | F194: -1.103251464e-05 | G194: 1.06227835e-05 | H194: 8.849528625e-06 | J194: 0.0002007805028 | K194: 0.008506033781 | L194: 0.001436049762 | M194: 0.05181921531 | N194: 5.468488187e-05
A195: =IF('DF raw data'!E195="","",'DF raw data'!E195) -> -236 | B195: =IF('DF raw data'!F195="","",'DF raw data'!F195) -> -2.61901e-05 | C195: =IF('DF raw data'!G195="","",'DF raw data'!G195) -> 0.000164381 | D195: =IF('DF raw data'!H195="","",'DF raw data'!H195) -> -3.28526e-05 | F195: =(1-$G$1*($B$54-$G$2))*(B195-F$5) -> -3.82191229e-06 | G195: =(1-$G$1*($B$54-$G$2))*(C195-G$5) -> 2.02458935e-05 | H195: =(1-$G$1*($B$54-$G$2))*(D195-H$5) -> 3.563347375e-06 | J195: 0.0001988695467 | K195: 0.008605468555 | L195: 0.001446172709 | M195: 0.05254230167 | N195: 5.575036417e-05
A196: =IF('DF raw data'!E196="","",'DF raw data'!E196) -> -235.5 | B196: =IF('DF raw data'!F196="","",'DF raw data'!F196) -> -2.99639e-05 | C196: =IF('DF raw data'!G196="","",'DF raw data'!G196) -> 0.000163039 | D196: =IF('DF raw data'!H196="","",'DF raw data'!H196) -> -4.17721e-05 | F196: -7.61269439e-06 | G196: 1.88978545e-05 | H196: -5.396290375e-06 | J196: =F196*$G$3+J195 -> 0.0001950631995 | K196: =J196*$G$3+K195 -> 0.008703000154 | L196: =G196*$G$3+L195 -> 0.001455621636 | M196: =L196*$G$3+M195 -> 0.05327011248 | N196: =(J196^2+L196^2)*$G$3+N195 -> 5.682880617e-05
A197: =IF('DF raw data'!E197="","",'DF raw data'!E197) -> -235 | B197: =IF('DF raw data'!F197="","",'DF raw data'!F197) -> -1.91361e-05 | C197: =IF('DF raw data'!G197="","",'DF raw data'!G197) -> 0.000157874 | D197: =IF('DF raw data'!H197="","",'DF raw data'!H197) -> -4.39346e-05 | F197: 3.26383071e-06 | G197: 1.3709612e-05 | H197: -7.568521625e-06 | J197: 0.0001966951149 | K197: 0.008801347712 | L197: 0.001462476442 | M197: 0.05400135071 | N197: 5.791756933e-05
A198: =IF('DF raw data'!E198="","",'DF raw data'!E198) -> -234.5 | B198: =IF('DF raw data'!F198="","",'DF raw data'!F198) -> -2.07385e-05 | C198: =IF('DF raw data'!G198="","",'DF raw data'!G198) -> 0.000148312 | D198: =IF('DF raw data'!H198="","",'DF raw data'!H198) -> -4.28056e-05 | F198: 1.65421991e-06 | G198: 4.104583e-06 | H198: -6.434441125e-06 | J198: 0.0001975222248 | K198: 0.008900108824 | L198: 0.001464528733 | M198: 0.05473361507 | N198: 5.900949905e-05
A199: =IF('DF raw data'!E199="","",'DF raw data'!E199) -> -234 | B199: =IF('DF raw data'!F199="","",'DF raw data'!F199) -> -2.93893e-05 | C199: =IF('DF raw data'!G199="","",'DF raw data'!G199) -> 0.000149903 | D199: =IF('DF raw data'!H199="","",'DF raw data'!H199) -> -3.91165e-05 | F199: -7.03550869e-06 | G199: 5.7027425e-06 | H199: -2.728740175e-06 | J199: 0.0001940044705 | K199: 0.008997111059 | L199: 0.001467380105 | M199: 0.05546730512 | N199: 6.01049201e-05
A200: =IF('DF raw data'!E200="","",'DF raw data'!E200) -> -233.5 | B200: =IF('DF raw data'!F200="","",'DF raw data'!F200) -> -2.74705e-05 | C200: =IF('DF raw data'!G200="","",'DF raw data'!G200) -> 0.000152674 | D200: =IF('DF raw data'!H200="","",'DF raw data'!H200) -> -3.39513e-05 | F200: -5.10807409e-06 | G200: 8.486212e-06 | H200: 2.459703225e-06 | J200: 0.0001914504334 | K200: 0.009092836276 | L200: 0.001471623211 | M200: 0.05620311673 | N200: 6.120608417e-05
... 1079 more rows

Sheet 20 mm
A1: =IF('DF raw data'!I1="","",'DF raw data'!I1) -> Number of header lines | B1: =IF('DF raw data'!J1="","",'DF raw data'!J1) -> 54 | C1: =IF('DF raw data'!C1="","",'DF raw data'!C1) ->  | D1: =IF('DF raw data'!D1="","",'DF raw data'!D1) ->  | F1: T_coeff | G1: -0.001 | H1: /degC | J1: IBy total | K1: =J1267*1000 -> 1.903851557 | L1: muTm | M1: =L1267*1000 -> -25.25468435 | R1: DF ref | S1: 1
A2: =IF('DF raw data'!I2="","",'DF raw data'!I2) -> Measured by | B2: =IF('DF raw data'!J2="","",'DF raw data'!J2) -> Danfysik | C2: =IF('DF raw data'!C2="","",'DF raw data'!C2) ->  | D2: =IF('DF raw data'!D2="","",'DF raw data'!D2) ->  | F2: Tcorr | G2: 20 | H2: degC | J2: JBy total | K2: =K1267 -> -5.334590787 | L2: muTm^2 | M2: =M1267 -> -5.595633217
A3: =IF('DF raw data'!I3="","",'DF raw data'!I3) -> Operator | B3: =IF('DF raw data'!J3="","",'DF raw data'!J3) -> PMHA | C3: =IF('DF raw data'!C3="","",'DF raw data'!C3) ->  | D3: =IF('DF raw data'!D3="","",'DF raw data'!D3) ->  | F3: Step | G3: =A68-A67 -> 0.5 | H3: mm | J3: PI total | K3: =N1267 -> 4936.438636 | L3: T^2mm^3
A4: =IF('DF raw data'!I4="","",'DF raw data'!I4) -> Data-time | B4: =IF('DF raw data'!J4="","",'DF raw data'!J4) -> 26-09-2024, 17:59:02 | C4: =IF('DF raw data'!C4="","",'DF raw data'!C4) ->  | D4: =IF('DF raw data'!D4="","",'DF raw data'!D4) -> 
A5: =IF('DF raw data'!I5="","",'DF raw data'!I5) -> Project | B5: =IF('DF raw data'!J5="","",'DF raw data'!J5) -> 504314 | C5: =IF('DF raw data'!C5="","",'DF raw data'!C5) ->  | D5: Bamb avr | F5: =(AVERAGE(B67:B107) + AVERAGE(B1227:B1267))/2 -> -2.114961988e-05 | G5: =(AVERAGE(C67:C107) + AVERAGE(C1227:C1267))/2 -> 0.0001568453659 | H5: =(AVERAGE(D67:D107) + AVERAGE(D1227:D1267))/2 -> -3.694978537e-05
A6: =IF('DF raw data'!I6="","",'DF raw data'!I6) -> Magnet type | B6: =IF('DF raw data'!J6="","",'DF raw data'!J6) -> Dipole | C6: =IF('DF raw data'!C6="","",'DF raw data'!C6) -> 
A7: =IF('DF raw data'!I7="","",'DF raw data'!I7) -> Magnet nr. | B7: =IF('DF raw data'!J7="","",'DF raw data'!J7) -> 2410103 | C7: =IF('DF raw data'!C7="","",'DF raw data'!C7) -> 
A8: =IF('DF raw data'!I8="","",'DF raw data'!I8) -> Meas. number | B8: =IF('DF raw data'!J8="","",'DF raw data'!J8) -> 737 | C8: =IF('DF raw data'!C8="","",'DF raw data'!C8) -> 
A9: =IF('DF raw data'!I9="","",'DF raw data'!I9) -> Add. info | B9: =IF('DF raw data'!J9="","",'DF raw data'!J9) ->  | C9: =IF('DF raw data'!C9="","",'DF raw data'!C9) ->  | D9: =IF('DF raw data'!D9="","",'DF raw data'!D9) -> 
A10: =IF('DF raw data'!I10="","",'DF raw data'!I10) -> Device | B10: =IF('DF raw data'!J10="","",'DF raw data'!J10) -> (HAL) HALL-PROBE | C10: =IF('DF raw data'!C10="","",'DF raw data'!C10) ->  | D10: =IF('DF raw data'!D10="","",'DF raw data'!D10) -> 
A11: =IF('DF raw data'!I11="","",'DF raw data'!I11) -> Goal | B11: =IF('DF raw data'!J11="","",'DF raw data'!J11) -> (AXI) AXis Integral (Line, EFB) | C11: =IF('DF raw data'!C11="","",'DF raw data'!C11) ->  | D11: =IF('DF raw data'!D11="","",'DF raw data'!D11) -> 
A12: =IF('DF raw data'!I12="","",'DF raw data'!I12) -> Power supply mode | B12: =IF('DF raw data'!J12="","",'DF raw data'!J12) -> (PM) Permanent Magnet (no MPS in use) | C12: =IF('DF raw data'!C12="","",'DF raw data'!C12) ->  | D12: =IF('DF raw data'!D12="","",'DF raw data'!D12) -> 
A13: =IF('DF raw data'!I13="","",'DF raw data'!I13) -> Data format | B13: =IF('DF raw data'!J13="","",'DF raw data'!J13) -> Raw data text file | C13: =IF('DF raw data'!C13="","",'DF raw data'!C13) ->  | D13: =IF('DF raw data'!D13="","",'DF raw data'!D13) -> 
A14: =IF('DF raw data'!I14="","",'DF raw data'!I14) -> Direction of the pos. x-axis | B14: =IF('DF raw data'!J14="","",'DF raw data'!J14) -> See test program | C14: =IF('DF raw data'!C14="","",'DF raw data'!C14) ->  | D14: =IF('DF raw data'!D14="","",'DF raw data'!D14) -> 
A15: =IF('DF raw data'!I15="","",'DF raw data'!I15) -> Direction of the pos. y-axis | B15: =IF('DF raw data'!J15="","",'DF raw data'!J15) -> Vertical up | C15: =IF('DF raw data'!C15="","",'DF raw data'!C15) ->  | D15: =IF('DF raw data'!D15="","",'DF raw data'!D15) -> 
A16: =IF('DF raw data'!I16="","",'DF raw data'!I16) -> Direction of the pos. z-axis | B16: =IF('DF raw data'!J16="","",'DF raw data'!J16) -> See test program | C16: =IF('DF raw data'!C16="","",'DF raw data'!C16) ->  | D16: =IF('DF raw data'!D16="","",'DF raw data'!D16) -> 
A17: =IF('DF raw data'!I17="","",'DF raw data'!I17) -> Mapper type | B17: =IF('DF raw data'!J17="","",'DF raw data'!J17) -> Precision Hall Mapper | C17: =IF('DF raw data'!C17="","",'DF raw data'!C17) ->  | D17: =IF('DF raw data'!D17="","",'DF raw data'!D17) -> 
A18: =IF('DF raw data'!I18="","",'DF raw data'!I18) -> Mapper Danfysik Reg. Number | B18: =IF('DF raw data'!J18="","",'DF raw data'!J18) -> 2033-D (mapper 1) | C18: =IF('DF raw data'!C18="","",'DF raw data'!C18) ->  | D18: =IF('DF raw data'!D18="","",'DF raw data'!D18) -> 
A19: =IF('DF raw data'!I19="","",'DF raw data'!I19) -> Measurement consept | B19: =IF('DF raw data'!J19="","",'DF raw data'!J19) -> Square line grid | C19: =IF('DF raw data'!C19="","",'DF raw data'!C19) ->  | D19: =IF('DF raw data'!D19="","",'DF raw data'!D19) -> 
A20: =IF('DF raw data'!I20="","",'DF raw data'!I20) -> Mode | B20: =IF('DF raw data'!J20="","",'DF raw data'!J20) -> On-the-fly measurement | C20: =IF('DF raw data'!C20="","",'DF raw data'!C20) ->  | D20: =IF('DF raw data'!D20="","",'DF raw data'!D20) -> 
A21: =IF('DF raw data'!I21="","",'DF raw data'!I21) ->  | B21: =IF('DF raw data'!J21="","",'DF raw data'!J21) ->  | C21: =IF('DF raw data'!C21="","",'DF raw data'!C21) ->  | D21: =IF('DF raw data'!D21="","",'DF raw data'!D21) -> 
A22: =IF('DF raw data'!I22="","",'DF raw data'!I22) -> Probe Name | B22: =IF('DF raw data'!J22="","",'DF raw data'!J22) -> ID12_By | C22: =IF('DF raw data'!C22="","",'DF raw data'!C22) ->  | D22: =IF('DF raw data'!D22="","",'DF raw data'!D22) -> 
A23: =IF('DF raw data'!I23="","",'DF raw data'!I23) -> Probe Type | B23: =IF('DF raw data'!J23="","",'DF raw data'!J23) -> DF_ID_3D_Bxyz | C23: =IF('DF raw data'!C23="","",'DF raw data'!C23) ->  | D23: =IF('DF raw data'!D23="","",'DF raw data'!D23) -> 
A24: =IF('DF raw data'!I24="","",'DF raw data'!I24) -> Probe Danfysik Reg. Number | B24: =IF('DF raw data'!J24="","",'DF raw data'!J24) -> 2277 | C24: =IF('DF raw data'!C24="","",'DF raw data'!C24) ->  | D24: =IF('DF raw data'!D24="","",'DF raw data'!D24) -> 
A25: =IF('DF raw data'!I25="","",'DF raw data'!I25) -> Probe Axis | B25: =IF('DF raw data'!J25="","",'DF raw data'!J25) -> By | C25: =IF('DF raw data'!C25="","",'DF raw data'!C25) ->  | D25: =IF('DF raw data'!D25="","",'DF raw data'!D25) -> 
A26: =IF('DF raw data'!I26="","",'DF raw data'!I26) -> Probe Current Supply | B26: =IF('DF raw data'!J26="","",'DF raw data'!J26) -> 1825-D | C26: =IF('DF raw data'!C26="","",'DF raw data'!C26) ->  | D26: =IF('DF raw data'!D26="","",'DF raw data'!D26) -> 
A27: =IF('DF raw data'!I27="","",'DF raw data'!I27) -> Probe Gain Correction | B27: =IF('DF raw data'!J27="","",'DF raw data'!J27) -> 0.99611 | C27: =IF('DF raw data'!C27="","",'DF raw data'!C27) ->  | D27: =IF('DF raw data'!D27="","",'DF raw data'!D27) -> 
A28: =IF('DF raw data'!I28="","",'DF raw data'!I28) -> Probe Offset Correction | B28: =IF('DF raw data'!J28="","",'DF raw data'!J28) -> 0.0027577 | C28: =IF('DF raw data'!C28="","",'DF raw data'!C28) ->  | D28: =IF('DF raw data'!D28="","",'DF raw data'!D28) -> 
A29: =IF('DF raw data'!I29="","",'DF raw data'!I29) -> DVM Number | B29: =IF('DF raw data'!J29="","",'DF raw data'!J29) -> 2 | C29: =IF('DF raw data'!C29="","",'DF raw data'!C29) ->  | D29: =IF('DF raw data'!D29="","",'DF raw data'!D29) -> 
A30: =IF('DF raw data'!I30="","",'DF raw data'!I30) -> DVM Type | B30: =IF('DF raw data'!J30="","",'DF raw data'!J30) -> K2701 | C30: =IF('DF raw data'!C30="","",'DF raw data'!C30) ->  | D30: =IF('DF raw data'!D30="","",'DF raw data'!D30) -> 
A31: =IF('DF raw data'!I31="","",'DF raw data'!I31) -> DVM Danfysik Reg. Number | B31: =IF('DF raw data'!J31="","",'DF raw data'!J31) -> 1743-D | C31: =IF('DF raw data'!C31="","",'DF raw data'!C31) ->  | D31: =IF('DF raw data'!D31="","",'DF raw data'!D31) -> 
A32: =IF('DF raw data'!I32="","",'DF raw data'!I32) -> Probe Name | B32: =IF('DF raw data'!J32="","",'DF raw data'!J32) -> ID12_Bx | C32: =IF('DF raw data'!C32="","",'DF raw data'!C32) ->  | D32: =IF('DF raw data'!D32="","",'DF raw data'!D32) -> 
A33: =IF('DF raw data'!I33="","",'DF raw data'!I33) -> Probe Type | B33: =IF('DF raw data'!J33="","",'DF raw data'!J33) -> DF_ID_3D_Bxyz | C33: =IF('DF raw data'!C33="","",'DF raw data'!C33) ->  | D33: =IF('DF raw data'!D33="","",'DF raw data'!D33) -> 
A34: =IF('DF raw data'!I34="","",'DF raw data'!I34) -> Probe Danfysik Reg. Number | B34: =IF('DF raw data'!J34="","",'DF raw data'!J34) -> 2277 | C34: =IF('DF raw data'!C34="","",'DF raw data'!C34) ->  | D34: =IF('DF raw data'!D34="","",'DF raw data'!D34) -> 
A35: =IF('DF raw data'!I35="","",'DF raw data'!I35) -> Probe Axis | B35: =IF('DF raw data'!J35="","",'DF raw data'!J35) -> Bx | C35: =IF('DF raw data'!C35="","",'DF raw data'!C35) ->  | D35: =IF('DF raw data'!D35="","",'DF raw data'!D35) -> 
A36: =IF('DF raw data'!I36="","",'DF raw data'!I36) -> Probe Current Supply | B36: =IF('DF raw data'!J36="","",'DF raw data'!J36) -> 1825-D | C36: =IF('DF raw data'!C36="","",'DF raw data'!C36) ->  | D36: =IF('DF raw data'!D36="","",'DF raw data'!D36) -> 
A37: =IF('DF raw data'!I37="","",'DF raw data'!I37) -> Probe Gain Correction | B37: =IF('DF raw data'!J37="","",'DF raw data'!J37) -> 1 | C37: =IF('DF raw data'!C37="","",'DF raw data'!C37) ->  | D37: =IF('DF raw data'!D37="","",'DF raw data'!D37) -> 
A38: =IF('DF raw data'!I38="","",'DF raw data'!I38) -> Probe Offset Correction | B38: =IF('DF raw data'!J38="","",'DF raw data'!J38) -> -0.17545 | C38: =IF('DF raw data'!C38="","",'DF raw data'!C38) ->  | D38: =IF('DF raw data'!D38="","",'DF raw data'!D38) -> 
A39: =IF('DF raw data'!I39="","",'DF raw data'!I39) -> DVM Number | B39: =IF('DF raw data'!J39="","",'DF raw data'!J39) -> 3 | C39: =IF('DF raw data'!C39="","",'DF raw data'!C39) ->  | D39: =IF('DF raw data'!D39="","",'DF raw data'!D39) -> 
A40: =IF('DF raw data'!I40="","",'DF raw data'!I40) -> DVM Type | B40: =IF('DF raw data'!J40="","",'DF raw data'!J40) -> K2701 | C40: =IF('DF raw data'!C40="","",'DF raw data'!C40) ->  | D40: =IF('DF raw data'!D40="","",'DF raw data'!D40) -> 
A41: =IF('DF raw data'!I41="","",'DF raw data'!I41) -> DVM Danfysik Reg. Number | B41: =IF('DF raw data'!J41="","",'DF raw data'!J41) -> 1744-D | C41: =IF('DF raw data'!C41="","",'DF raw data'!C41) ->  | D41: =IF('DF raw data'!D41="","",'DF raw data'!D41) -> 
A42: =IF('DF raw data'!I42="","",'DF raw data'!I42) -> Probe Name | B42: =IF('DF raw data'!J42="","",'DF raw data'!J42) -> ID12_Bz | C42: =IF('DF raw data'!C42="","",'DF raw data'!C42) ->  | D42: =IF('DF raw data'!D42="","",'DF raw data'!D42) -> 
A43: =IF('DF raw data'!I43="","",'DF raw data'!I43) -> Probe Type | B43: =IF('DF raw data'!J43="","",'DF raw data'!J43) -> DF_ID_3D_Bxyz | C43: =IF('DF raw data'!C43="","",'DF raw data'!C43) ->  | D43: =IF('DF raw data'!D43="","",'DF raw data'!D43) -> 
A44: =IF('DF raw data'!I44="","",'DF raw data'!I44) -> Probe Danfysik Reg. Number | B44: =IF('DF raw data'!J44="","",'DF raw data'!J44) -> 2277 | C44: =IF('DF raw data'!C44="","",'DF raw data'!C44) ->  | D44: =IF('DF raw data'!D44="","",'DF raw data'!D44) -> 
A45: =IF('DF raw data'!I45="","",'DF raw data'!I45) -> Probe Axis | B45: =IF('DF raw data'!J45="","",'DF raw data'!J45) -> Bz | C45: =IF('DF raw data'!C45="","",'DF raw data'!C45) ->  | D45: =IF('DF raw data'!D45="","",'DF raw data'!D45) -> 
A46: =IF('DF raw data'!I46="","",'DF raw data'!I46) -> Probe Current Supply | B46: =IF('DF raw data'!J46="","",'DF raw data'!J46) -> 1825-D | C46: =IF('DF raw data'!C46="","",'DF raw data'!C46) ->  | D46: =IF('DF raw data'!D46="","",'DF raw data'!D46) -> 
A47: =IF('DF raw data'!I47="","",'DF raw data'!I47) -> Probe Gain Correction | B47: =IF('DF raw data'!J47="","",'DF raw data'!J47) -> 1 | C47: =IF('DF raw data'!C47="","",'DF raw data'!C47) ->  | D47: =IF('DF raw data'!D47="","",'DF raw data'!D47) -> 
A48: =IF('DF raw data'!I48="","",'DF raw data'!I48) -> Probe Offset Correction | B48: =IF('DF raw data'!J48="","",'DF raw data'!J48) -> 0.0072997 | C48: =IF('DF raw data'!C48="","",'DF raw data'!C48) ->  | D48: =IF('DF raw data'!D48="","",'DF raw data'!D48) -> 
A49: =IF('DF raw data'!I49="","",'DF raw data'!I49) -> DVM Number | B49: =IF('DF raw data'!J49="","",'DF raw data'!J49) -> 8 | C49: =IF('DF raw data'!C49="","",'DF raw data'!C49) ->  | D49: =IF('DF raw data'!D49="","",'DF raw data'!D49) -> 
A50: =IF('DF raw data'!I50="","",'DF raw data'!I50) -> DVM Type | B50: =IF('DF raw data'!J50="","",'DF raw data'!J50) -> K2700 | C50: =IF('DF raw data'!C50="","",'DF raw data'!C50) ->  | D50: =IF('DF raw data'!D50="","",'DF raw data'!D50) -> 
A51: =IF('DF raw data'!I51="","",'DF raw data'!I51) -> DVM Danfysik Reg. Number | B51: =IF('DF raw data'!J51="","",'DF raw data'!J51) -> 1756-D | C51: =IF('DF raw data'!C51="","",'DF raw data'!C51) ->  | D51: =IF('DF raw data'!D51="","",'DF raw data'!D51) -> 
A52: =IF('DF raw data'!I52="","",'DF raw data'!I52) -> NTC voltage | B52: =IF('DF raw data'!J52="","",'DF raw data'!J52) -> 0.42245 | C52: =IF('DF raw data'!C52="","",'DF raw data'!C52) ->  | D52: =IF('DF raw data'!D52="","",'DF raw data'!D52) -> 
A53: =IF('DF raw data'!I53="","",'DF raw data'!I53) -> PS-Gap: | B53: =IF('DF raw data'!J53="","",'DF raw data'!J53) -> 20 | C53: =IF('DF raw data'!C53="","",'DF raw data'!C53) ->  | D53: =IF('DF raw data'!D53="","",'DF raw data'!D53) -> 
A54: =IF('DF raw data'!I54="","",'DF raw data'!I54) -> PS-Temperature: | B54: =IF('DF raw data'!J54="","",'DF raw data'!J54) -> 24.5 | C54: =IF('DF raw data'!C54="","",'DF raw data'!C54) ->  | D54: =IF('DF raw data'!D54="","",'DF raw data'!D54) -> 
A55: =IF('DF raw data'!I55="","",'DF raw data'!I55) -> PS-Encoder: | B55: =IF('DF raw data'!J55="","",'DF raw data'!J55) -> 29.9245 | C55: =IF('DF raw data'!C55="","",'DF raw data'!C55) ->  | D55: =IF('DF raw data'!D55="","",'DF raw data'!D55) -> 
A56: =IF('DF raw data'!I56="","",'DF raw data'!I56) ->  | B56: =IF('DF raw data'!J56="","",'DF raw data'!J56) -> 
A57: =IF('DF raw data'!I57="","",'DF raw data'!I57) -> Monitor-Index | B57: =IF('DF raw data'!J57="","",'DF raw data'!J57) -> [1,1,4]
A58: =IF('DF raw data'!I58="","",'DF raw data'!I58) ->  | B58: =IF('DF raw data'!J58="","",'DF raw data'!J58) -> 
A59: =IF('DF raw data'!I59="","",'DF raw data'!I59) -> Time [s] | B59: =IF('DF raw data'!J59="","",'DF raw data'!J59) -> Y [mm]
A60: =IF('DF raw data'!I60="","",'DF raw data'!I60) ->  | B60: =IF('DF raw data'!J60="","",'DF raw data'!J60) -> 
A61: =IF('DF raw data'!I61="","",'DF raw data'!I61) -> 206.4 | B61: =IF('DF raw data'!J61="","",'DF raw data'!J61) -> 31.65
A62: =IF('DF raw data'!I62="","",'DF raw data'!I62) ->  | B62: =IF('DF raw data'!J62="","",'DF raw data'!J62) -> 
A63: =IF('DF raw data'!I63="","",'DF raw data'!I63) -> Measurement-Index | B63: =IF('DF raw data'!J63="","",'DF raw data'!J63) -> [1,1,1201,2]
A64: =IF('DF raw data'!I64="","",'DF raw data'!I64) ->  | B64: =IF('DF raw data'!J64="","",'DF raw data'!J64) -> 
A65: =IF('DF raw data'!I65="","",'DF raw data'!I65) -> Z [mm] | B65: =IF('DF raw data'!J65="","",'DF raw data'!J65) -> By [T] | C65: =IF('DF raw data'!K65="","",'DF raw data'!K65) -> Bx [T] | D65: =IF('DF raw data'!L65="","",'DF raw data'!L65) -> Bz [T] | F65: By_corr | G65: Bx_corr | H65: Bz_corr | J65: Iy | K65: Jy | L65: Ix | M65: Jx | N65: PI
A66: =IF('DF raw data'!I66="","",'DF raw data'!I66) -> [1, 0, 0, 0] | B66: =IF('DF raw data'!J66="","",'DF raw data'!J66) ->  | C66: =IF('DF raw data'!K66="","",'DF raw data'!K66) ->  | D66: =IF('DF raw data'!L66="","",'DF raw data'!L66) -> 
A67: =IF('DF raw data'!I67="","",'DF raw data'!I67) -> -300 | B67: =IF('DF raw data'!J67="","",'DF raw data'!J67) -> -1.82842e-05 | C67: =IF('DF raw data'!K67="","",'DF raw data'!K67) -> 0.000127532 | D67: =IF('DF raw data'!L67="","",'DF raw data'!L67) -> -4.46115e-05 | F67: =(1-$G$1*($B$54-$G$2))*(B67-F$5) -> 2.878314268e-06 | G67: =(1-$G$1*($B$54-$G$2))*(C67-G$5) -> -2.9445276e-05 | H67: =(1-$G$1*($B$54-$G$2))*(D67-H$5) -> -7.69619235e-06 | J67: =F67*$G$3+J66 -> 1.439157134e-06 | K67: =J67*$G$3+K66 -> 7.195785669e-07 | L67: =G67*$G$3+L66 -> -1.4722638e-05 | M67: =L67*$G$3+M66 -> -7.361319e-06 | N67: =(J67^2+L67^2)*$G$3+N66 -> 1.094136215e-10
A68: =IF('DF raw data'!I68="","",'DF raw data'!I68) -> -299.5 | B68: =IF('DF raw data'!J68="","",'DF raw data'!J68) -> -2.46927e-05 | C68: =IF('DF raw data'!K68="","",'DF raw data'!K68) -> 0.000132065 | D68: =IF('DF raw data'!L68="","",'DF raw data'!L68) -> -4.40809e-05 | F68: -3.559023982e-06 | G68: -2.48918775e-05 | H68: -7.16320465e-06 | J68: =F68*$G$3+J67 -> -3.403548575e-07 | K68: =J68*$G$3+K67 -> 5.494011381e-07 | L68: =G68*$G$3+L67 -> -2.716857675e-05 | M68: =L68*$G$3+M67 -> -2.094560737e-05 | N68: =(J68^2+L68^2)*$G$3+N67 -> 4.785373235e-10
A69: =IF('DF raw data'!I69="","",'DF raw data'!I69) -> -299 | B69: =IF('DF raw data'!J69="","",'DF raw data'!J69) -> -3.83397e-05 | C69: =IF('DF raw data'!K69="","",'DF raw data'!K69) -> 0.00012997 | D69: =IF('DF raw data'!L69="","",'DF raw data'!L69) -> -4.27801e-05 | F69: -1.726743548e-05 | G69: -2.6996305e-05 | H69: -5.85655105e-06 | J69: -8.974072599e-06 | K69: -3.937635161e-06 | L69: -4.066672925e-05 | M69: -4.1278972e-05 | N69: 1.345695747e-09
A70: =IF('DF raw data'!I70="","",'DF raw data'!I70) -> -298.5 | B70: =IF('DF raw data'!J70="","",'DF raw data'!J70) -> -2.50131e-05 | C70: =IF('DF raw data'!K70="","",'DF raw data'!K70) -> 0.000130556 | D70: =IF('DF raw data'!L70="","",'DF raw data'!L70) -> -4.14262e-05 | F70: -3.880865782e-06 | G70: -2.6407668e-05 | H70: -4.4965585e-06 | J70: -1.091450549e-05 | K70: -9.394887906e-06 | L70: -5.387056325e-05 | M70: -6.821425362e-05 | N70: 2.856277754e-09
A71: =IF('DF raw data'!I71="","",'DF raw data'!I71) -> -298 | B71: =IF('DF raw data'!J71="","",'DF raw data'!J71) -> -3.26389e-05 | C71: =IF('DF raw data'!K71="","",'DF raw data'!K71) -> 0.000133026 | D71: =IF('DF raw data'!L71="","",'DF raw data'!L71) -> -4.05543e-05 | F71: -1.154098188e-05 | G71: -2.3926553e-05 | H71: -3.62073495e-06 | J71: -1.668499643e-05 | K71: -1.773738612e-05 | L71: -6.583383975e-05 | M71: -0.0001011311735 | N71: 5.162519535e-09
A72: =IF('DF raw data'!I72="","",'DF raw data'!I72) -> -297.5 | B72: =IF('DF raw data'!J72="","",'DF raw data'!J72) -> -1.50196e-05 | C72: =IF('DF raw data'!K72="","",'DF raw data'!K72) -> 0.000135508 | D72: =IF('DF raw data'!L72="","",'DF raw data'!L72) -> -4.10468e-05 | F72: 6.157604968e-06 | G72: -2.1433384e-05 | H72: -4.1154512e-06 | J72: -1.360619395e-05 | K72: -2.45404831e-05 | L72: -7.655053175e-05 | M72: -0.0001394064394 | N72: 8.185075748e-09
A73: =IF('DF raw data'!I73="","",'DF raw data'!I73) -> -297 | B73: =IF('DF raw data'!J73="","",'DF raw data'!J73) -> -8.93365e-06 | C73: =IF('DF raw data'!K73="","",'DF raw data'!K73) -> 0.000134032 | D73: =IF('DF raw data'!L73="","",'DF raw data'!L73) -> -4.23394e-05 | F73: 1.227094174e-05 | G73: -2.2916026e-05 | H73: -5.4138679e-06 | J73: -7.470723076e-06 | K73: -2.827584463e-05 | L73: -8.800854475e-05 | M73: -0.0001834107117 | N73: 1.208573357e-08
A74: =IF('DF raw data'!I74="","",'DF raw data'!I74) -> -296.5 | B74: =IF('DF raw data'!J74="","",'DF raw data'!J74) -> -3.14185e-05 | C74: =IF('DF raw data'!K74="","",'DF raw data'!K74) -> 0.000130495 | D74: =IF('DF raw data'!L74="","",'DF raw data'!L74) -> -4.28816e-05 | F74: -1.031509008e-05 | G74: -2.64689425e-05 | H74: -5.9585078e-06 | J74: -1.262826812e-05 | K74: -3.458997869e-05 | L74: -0.000101243016 | M74: -0.0002340322197 | N74: 1.72905443e-08
A75: =IF('DF raw data'!I75="","",'DF raw data'!I75) -> -296 | B75: =IF('DF raw data'!J75="","",'DF raw data'!J75) -> -1.38662e-05 | C75: =IF('DF raw data'!K75="","",'DF raw data'!K75) -> 0.00013557 | D75: =IF('DF raw data'!L75="","",'DF raw data'!L75) -> -4.29138e-05 | F75: 7.316195268e-06 | G75: -2.1371105e-05 | H75: -5.9908527e-06 | J75: -8.970170484e-06 | K75: -3.907506393e-05 | L75: -0.0001119285685 | M75: -0.000289996504 | N75: 2.35947785e-08
A76: =IF('DF raw data'!I76="","",'DF raw data'!I76) -> -295.5 | B76: =IF('DF raw data'!J76="","",'DF raw data'!J76) -> -2.73185e-05 | C76: =IF('DF raw data'!K76="","",'DF raw data'!K76) -> 0.000144544 | D76: =IF('DF raw data'!L76="","",'DF raw data'!L76) -> -4.27694e-05 | F76: -6.196640082e-06 | G76: -1.2356722e-05 | H76: -5.8458029e-06 | J76: -1.206849052e-05 | K76: -4.51093092e-05 | L76: -0.0001181069295 | M76: -0.0003490499687 | N76: 3.064222613e-08
A77: =IF('DF raw data'!I77="","",'DF raw data'!I77) -> -295 | B77: =IF('DF raw data'!J77="","",'DF raw data'!J77) -> -2.88579e-05 | C77: =IF('DF raw data'!K77="","",'DF raw data'!K77) -> 0.000140108 | D77: =IF('DF raw data'!L77="","",'DF raw data'!L77) -> -4.21806e-05 | F77: -7.742967382e-06 | G77: -1.6812684e-05 | H77: -5.2543533e-06 | J77: -1.593997422e-05 | K77: -5.30792963e-05 | L77: -0.0001265132715 | M77: -0.0004123066045 | N77: 3.877207145e-08
A78: =IF('DF raw data'!I78="","",'DF raw data'!I78) -> -294.5 | B78: =IF('DF raw data'!J78="","",'DF raw data'!J78) -> -2.36683e-05 | C78: =IF('DF raw data'!K78="","",'DF raw data'!K78) -> 0.000143588 | D78: =IF('DF raw data'!L78="","",'DF raw data'!L78) -> -4.14137e-05 | F78: -2.530014182e-06 | G78: -1.3317024e-05 | H78: -4.48400225e-06 | J78: -1.720498131e-05 | K78: -6.168178696e-05 | L78: -0.0001331717835 | M78: -0.0004788924962 | N78: 4.77874391e-08
A79: =IF('DF raw data'!I79="","",'DF raw data'!I79) -> -294 | B79: =IF('DF raw data'!J79="","",'DF raw data'!J79) -> -2.2644e-05 | C79: =IF('DF raw data'!K79="","",'DF raw data'!K79) -> 0.000139897 | D79: =IF('DF raw data'!L79="","",'DF raw data'!L79) -> -4.12326e-05 | F79: -1.501104832e-06 | G79: -1.70246335e-05 | H79: -4.3020873e-06 | J79: -1.795553372e-05 | K79: -7.065955382e-05 | L79: -0.0001416841002 | M79: -0.0005497345464 | N79: 5.798583183e-08
A80: =IF('DF raw data'!I80="","",'DF raw data'!I80) -> -293.5 | B80: =IF('DF raw data'!J80="","",'DF raw data'!J80) -> -1.41868e-05 | C80: =IF('DF raw data'!K80="","",'DF raw data'!K80) -> 0.000148513 | D80: =IF('DF raw data'!L80="","",'DF raw data'!L80) -> -4.16605e-05 | F80: 6.994152568e-06 | G80: -8.3698615e-06 | H80: -4.73191285e-06 | J80: -1.445845744e-05 | K80: -7.788878254e-05 | L80: -0.000145869031 | M80: -0.0006226690619 | N80: 6.872924243e-08
A81: =IF('DF raw data'!I81="","",'DF raw data'!I81) -> -293 | B81: =IF('DF raw data'!J81="","",'DF raw data'!J81) -> -1.9248e-05 | C81: =IF('DF raw data'!K81="","",'DF raw data'!K81) -> 0.000147115 | D81: =IF('DF raw data'!L81="","",'DF raw data'!L81) -> -4.20823e-05 | F81: 1.910177168e-06 | G81: -9.7741525e-06 | H81: -5.15561095e-06 | J81: -1.350336886e-05 | K81: -8.464046697e-05 | L81: -0.0001507561072 | M81: -0.0006980471155 | N81: 8.018411485e-08
A82: =IF('DF raw data'!I82="","",'DF raw data'!I82) -> -292.5 | B82: =IF('DF raw data'!J82="","",'DF raw data'!J82) -> -1.66206e-05 | C82: =IF('DF raw data'!K82="","",'DF raw data'!K82) -> 0.000143761 | D82: =IF('DF raw data'!L82="","",'DF raw data'!L82) -> -4.24218e-05 | F82: 4.549400468e-06 | G82: -1.31432455e-05 | H82: -5.4966387e-06 | J82: -1.122866862e-05 | K82: -9.025480128e-05 | L82: -0.00015732773 | M82: -0.0007767109805 | N82: 9.262316366e-08
A83: =IF('DF raw data'!I83="","",'DF raw data'!I83) -> -292 | B83: =IF('DF raw data'!J83="","",'DF raw data'!J83) -> -1.73896e-05 | C83: =IF('DF raw data'!K83="","",'DF raw data'!K83) -> 0.000143026 | D83: =IF('DF raw data'!L83="","",'DF raw data'!L83) -> -4.28995e-05 | F83: 3.776939968e-06 | G83: -1.3881553e-05 | H83: -5.97648835e-06 | J83: -9.340198639e-06 | K83: -9.49249006e-05 | L83: -0.0001642685065 | M83: -0.0008588452337 | N83: 1.061588544e-07
A84: =IF('DF raw data'!I84="","",'DF raw data'!I84) -> -291.5 | B84: =IF('DF raw data'!J84="","",'DF raw data'!J84) -> -1.93834e-05 | C84: =IF('DF raw data'!K84="","",'DF raw data'!K84) -> 0.000147135 | D84: =IF('DF raw data'!L84="","",'DF raw data'!L84) -> -2.98132e-05 | F84: 1.774167868e-06 | G84: -9.7540625e-06 | H84: 7.1687e-06 | J84: -8.453114705e-06 | K84: -9.915145795e-05 | L84: -0.0001691455377 | M84: -0.0009434180026 | N84: 1.204996885e-07
A85: =IF('DF raw data'!I85="","",'DF raw data'!I85) -> -291 | B85: =IF('DF raw data'!J85="","",'DF raw data'!J85) -> -3.09698e-05 | C85: =IF('DF raw data'!K85="","",'DF raw data'!K85) -> 0.000148689 | D85: =IF('DF raw data'!L85="","",'DF raw data'!L85) -> -4.54764e-05 | F85: -9.864370932e-06 | G85: -8.1930695e-06 | H85: -8.5649844e-06 | J85: -1.338530017e-05 | K85: -0.000105844108 | L85: -0.0001732420725 | M85: -0.001030039039 | N85: 1.355956794e-07
A86: =IF('DF raw data'!I86="","",'DF raw data'!I86) -> -290.5 | B86: =IF('DF raw data'!J86="","",'DF raw data'!J86) -> -2.10392e-05 | C86: =IF('DF raw data'!K86="","",'DF raw data'!K86) -> 0.000146091 | D86: =IF('DF raw data'!L86="","",'DF raw data'!L86) -> -4.51246e-05 | F86: 1.109167675e-07 | G86: -1.08027605e-05 | H86: -8.2116013e-06 | J86: -1.332984179e-05 | K86: -0.0001125090289 | L86: -0.0001786434527 | M86: -0.001119360765 | N86: 1.516412634e-07
A87: =IF('DF raw data'!I87="","",'DF raw data'!I87) -> -290 | B87: =IF('DF raw data'!J87="","",'DF raw data'!J87) -> -1.25212e-05 | C87: =IF('DF raw data'!K87="","",'DF raw data'!K87) -> 0.000144737 | D87: =IF('DF raw data'!L87="","",'DF raw data'!L87) -> -4.20533e-05 | F87: 8.667247768e-06 | G87: -1.21628535e-05 | H87: -5.12648045e-06 | J87: -8.996217904e-06 | K87: -0.0001170071379 | L87: -0.0001847248795 | M87: -0.001211723205 | N87: 1.687433699e-07
A88: =IF('DF raw data'!I88="","",'DF raw data'!I88) -> -289.5 | B88: =IF('DF raw data'!J88="","",'DF raw data'!J88) -> -2.12295e-05 | C88: =IF('DF raw data'!K88="","",'DF raw data'!K88) -> 0.000133349 | D88: =IF('DF raw data'!L88="","",'DF raw data'!L88) -> -4.78693e-05 | F88: -8.02395825e-08 | G88: -2.36020995e-05 | H88: -1.096865245e-05 | J88: -9.036337695e-06 | K88: -0.0001215253067 | L88: -0.0001965259292 | M88: -0.00130998617 | N88: 1.88095418e-07
A89: =IF('DF raw data'!I89="","",'DF raw data'!I89) -> -289 | B89: =IF('DF raw data'!J89="","",'DF raw data'!J89) -> -2.04632e-05 | C89: =IF('DF raw data'!K89="","",'DF raw data'!K89) -> 0.00013369 | D89: =IF('DF raw data'!L89="","",'DF raw data'!L89) -> -4.52601e-05 | F89: 6.895087675e-07 | G89: -2.3259565e-05 | H89: -8.34771105e-06 | J89: -8.691583311e-06 | K89: -0.0001258710984 | L89: -0.0002081557117 | M89: -0.001414064025 | N89: 2.0979759e-07
A90: =IF('DF raw data'!I90="","",'DF raw data'!I90) -> -288.5 | B90: =IF('DF raw data'!J90="","",'DF raw data'!J90) -> -3.02005e-05 | C90: =IF('DF raw data'!K90="","",'DF raw data'!K90) -> 0.000135823 | D90: =IF('DF raw data'!L90="","",'DF raw data'!L90) -> -4.46979e-05 | F90: -9.091609082e-06 | G90: -2.11169665e-05 | H90: -7.78298115e-06 | J90: -1.323738785e-05 | K90: -0.0001324897923 | L90: -0.000218714195 | M90: -0.001523421123 | N90: 2.338031538e-07
A91: =IF('DF raw data'!I91="","",'DF raw data'!I91) -> -288 | B91: =IF('DF raw data'!J91="","",'DF raw data'!J91) -> -2.46275e-05 | C91: =IF('DF raw data'!K91="","",'DF raw data'!K91) -> 0.000139189 | D91: =IF('DF raw data'!L91="","",'DF raw data'!L91) -> -4.52928e-05 | F91: -3.493530582e-06 | G91: -1.77358195e-05 | H91: -8.3805582e-06 | J91: -1.498415314e-05 | K91: -0.0001399818689 | L91: -0.0002275821047 | M91: -0.001637212175 | N91: 2.598122234e-07
A92: =IF('DF raw data'!I92="","",'DF raw data'!I92) -> -287.5 | B92: =IF('DF raw data'!J92="","",'DF raw data'!J92) -> -2.26394e-05 | C92: =IF('DF raw data'!K92="","",'DF raw data'!K92) -> 0.000137723 | D92: =IF('DF raw data'!L92="","",'DF raw data'!L92) -> -4.72244e-05 | F92: -1.496484132e-06 | G92: -1.92084165e-05 | H92: -1.03208504e-05 | J92: -1.573239521e-05 | K92: -0.0001478480665 | L92: -0.000237186313 | M92: -0.001755805332 | N92: 2.880646511e-07
A93: =IF('DF raw data'!I93="","",'DF raw data'!I93) -> -287 | B93: =IF('DF raw data'!J93="","",'DF raw data'!J93) -> -2.69319e-05 | C93: =IF('DF raw data'!K93="","",'DF raw data'!K93) -> 0.000134099 | D93: =IF('DF raw data'!L93="","",'DF raw data'!L93) -> -4.80317e-05 | F93: -5.808300382e-06 | G93: -2.28487245e-05 | H93: -1.113178325e-05 | J93: -1.86365454e-05 | K93: -0.0001571663392 | L93: -0.0002486106752 | M93: -0.001880110669 | N93: 3.191419454e-07
A94: =IF('DF raw data'!I94="","",'DF raw data'!I94) -> -286.5 | B94: =IF('DF raw data'!J94="","",'DF raw data'!J94) -> -3.09688e-05 | C94: =IF('DF raw data'!K94="","",'DF raw data'!K94) -> 0.000133367 | D94: =IF('DF raw data'!L94="","",'DF raw data'!L94) -> -4.55238e-05 | F94: -9.863366432e-06 | G94: -2.35840185e-05 | H94: -8.6125977e-06 | J94: -2.356822862e-05 | K94: -0.0001689504535 | L94: -0.0002604026845 | M94: -0.002010312012 | N94: 3.533244552e-07
A95: =IF('DF raw data'!I95="","",'DF raw data'!I95) -> -286 | B95: =IF('DF raw data'!J95="","",'DF raw data'!J95) -> -2.02019e-05 | C95: =IF('DF raw data'!K95="","",'DF raw data'!K95) -> 0.000142085 | D95: =IF('DF raw data'!L95="","",'DF raw data'!L95) -> -5.30832e-05 | F95: 9.519846175e-07 | G95: -1.48267875e-05 | H95: -1.6206015e-05 | J95: -2.309223631e-05 | K95: -0.0001804965717 | L95: -0.0002678160782 | M95: -0.002144220051 | N95: 3.894538067e-07
A96: =IF('DF raw data'!I96="","",'DF raw data'!I96) -> -285.5 | B96: =IF('DF raw data'!J96="","",'DF raw data'!J96) -> -2.65605e-05 | C96: =IF('DF raw data'!K96="","",'DF raw data'!K96) -> 0.00013716 | D96: =IF('DF raw data'!L96="","",'DF raw data'!L96) -> -2.71452e-05 | F96: -5.435229082e-06 | G96: -1.977395e-05 | H96: 9.848706e-06 | J96: -2.580985085e-05 | K96: -0.0001934014971 | L96: -0.0002777030532 | M96: -0.002283071577 | N96: 4.283463738e-07
A97: =IF('DF raw data'!I97="","",'DF raw data'!I97) -> -285 | B97: =IF('DF raw data'!J97="","",'DF raw data'!J97) -> -2.54655e-05 | C97: =IF('DF raw data'!K97="","",'DF raw data'!K97) -> 0.000135741 | D97: =IF('DF raw data'!L97="","",'DF raw data'!L97) -> -3.70974e-05 | F97: -4.335301582e-06 | G97: -2.11993355e-05 | H97: -1.482789e-07 | J97: -2.797750164e-05 | K97: -0.0002073902479 | L97: -0.000288302721 | M97: -0.002427222938 | N97: 4.702969736e-07
A98: =IF('DF raw data'!I98="","",'DF raw data'!I98) -> -284.5 | B98: =IF('DF raw data'!J98="","",'DF raw data'!J98) -> -2.41225e-05 | C98: =IF('DF raw data'!K98="","",'DF raw data'!K98) -> 0.000139268 | D98: =IF('DF raw data'!L98="","",'DF raw data'!L98) -> -3.25497e-05 | F98: -2.986258082e-06 | G98: -1.7656464e-05 | H98: 4.41988575e-06 | J98: -2.947063068e-05 | K98: -0.0002221255632 | L98: -0.000297130953 | M98: -0.002575788414 | N98: 5.148746343e-07
A99: =IF('DF raw data'!I99="","",'DF raw data'!I99) -> -284 | B99: =IF('DF raw data'!J99="","",'DF raw data'!J99) -> -1.94454e-05 | C99: =IF('DF raw data'!K99="","",'DF raw data'!K99) -> 0.000138089 | D99: =IF('DF raw data'!L99="","",'DF raw data'!L99) -> -3.40859e-05 | F99: 1.711888868e-06 | G99: -1.88407695e-05 | H99: 2.87677285e-06 | J99: -2.861468625e-05 | K99: -0.0002364329064 | L99: -0.0003065513377 | M99: -0.002729064083 | N99: 5.622708957e-07
A100: =IF('DF raw data'!I100="","",'DF raw data'!I100) -> -283.5 | B100: =IF('DF raw data'!J100="","",'DF raw data'!J100) -> -2.32856e-05 | C100: =IF('DF raw data'!K100="","",'DF raw data'!K100) -> 0.000145156 | D100: =IF('DF raw data'!L100="","",'DF raw data'!L100) -> -3.91251e-05 | F100: -2.145592032e-06 | G100: -1.1741968e-05 | H100: -2.18510355e-06 | J100: -2.968748226e-05 | K100: -0.0002512766475 | L100: -0.0003124223217 | M100: -0.002885275244 | N100: 6.115154226e-07
A101: =IF('DF raw data'!I101="","",'DF raw data'!I101) -> -283 | B101: =IF('DF raw data'!J101="","",'DF raw data'!J101) -> -1.79029e-05 | C101: =IF('DF raw data'!K101="","",'DF raw data'!K101) -> 0.000138598 | D101: =IF('DF raw data'!L101="","",'DF raw data'!L101) -> -4.18954e-05 | F101: 3.261330118e-06 | G101: -1.8329479e-05 | H101: -4.9678699e-06 | J101: -2.805681721e-05 | K101: -0.0002653050561 | L101: -0.0003215870612 | M101: -0.003046068775 | N101: 6.636181341e-07
A102: =IF('DF raw data'!I102="","",'DF raw data'!I102) -> -282.5 | B102: =IF('DF raw data'!J102="","",'DF raw data'!J102) -> -1.57862e-05 | C102: =IF('DF raw data'!K102="","",'DF raw data'!K102) -> 0.000131195 | D102: =IF('DF raw data'!L102="","",'DF raw data'!L102) -> -4.52047e-05 | F102: 5.387555268e-06 | G102: -2.57657925e-05 | H102: -8.29206175e-06 | J102: -2.536303957e-05 | K102: -0.0002779865759 | L102: -0.0003344699575 | M102: -0.003213303754 | N102: 7.198748522e-07
A103: =IF('DF raw data'!I103="","",'DF raw data'!I103) -> -282 | B103: =IF('DF raw data'!J103="","",'DF raw data'!J103) -> -2.90557e-05 | C103: =IF('DF raw data'!K103="","",'DF raw data'!K103) -> 0.000141589 | D103: =IF('DF raw data'!L103="","",'DF raw data'!L103) -> -3.32817e-05 | F103: -7.941657482e-06 | G103: -1.53250195e-05 | H103: 3.68459175e-06 | J103: -2.933386831e-05 | K103: -0.00029265351 | L103: -0.0003421324672 | M103: -0.003384369987 | N103: 7.788324027e-07
A104: =IF('DF raw data'!I104="","",'DF raw data'!I104) -> -281.5 | B104: =IF('DF raw data'!J104="","",'DF raw data'!J104) -> -2.32162e-05 | C104: =IF('DF raw data'!K104="","",'DF raw data'!K104) -> 0.000141235 | D104: =IF('DF raw data'!L104="","",'DF raw data'!L104) -> -4.70355e-05 | F104: -2.075879732e-06 | G104: -1.56806125e-05 | H104: -1.013110035e-05 | J104: -3.037180818e-05 | K104: -0.0003078394141 | L104: -0.0003499727735 | M104: -0.003559356374 | N104: 8.405340971e-07
A105: =IF('DF raw data'!I105="","",'DF raw data'!I105) -> -281 | B105: =IF('DF raw data'!J105="","",'DF raw data'!J105) -> -2.89787e-05 | C105: =IF('DF raw data'!K105="","",'DF raw data'!K105) -> 0.000147455 | D105: =IF('DF raw data'!L105="","",'DF raw data'!L105) -> -5.31219e-05 | F105: -7.864310982e-06 | G105: -9.4326225e-06 | H105: -1.624488915e-05 | J105: -3.430396367e-05 | K105: -0.000324991396 | L105: -0.0003546890847 | M105: -0.003736700916 | N105: 9.040246515e-07
A106: =IF('DF raw data'!I106="","",'DF raw data'!I106) -> -280.5 | B106: =IF('DF raw data'!J106="","",'DF raw data'!J106) -> -1.59179e-05 | C106: =IF('DF raw data'!K106="","",'DF raw data'!K106) -> 0.00014891 | D106: =IF('DF raw data'!L106="","",'DF raw data'!L106) -> -3.95667e-05 | F106: 5.255262618e-06 | G106: -7.971075e-06 | H106: -2.62869075e-06 | J106: -3.167633236e-05 | K106: -0.0003408295621 | L106: -0.0003586746222 | M106: -0.003916038227 | N106: 9.688500889e-07
A107: =IF('DF raw data'!I107="","",'DF raw data'!I107) -> -280 | B107: =IF('DF raw data'!J107="","",'DF raw data'!J107) -> -3.06476e-05 | C107: =IF('DF raw data'!K107="","",'DF raw data'!K107) -> 0.000145255 | D107: =IF('DF raw data'!L107="","",'DF raw data'!L107) -> -4.81399e-05 | F107: -9.540721032e-06 | G107: -1.16425225e-05 | H107: -1.124047015e-05 | J107: -3.644669288e-05 | K107: -0.0003590529086 | L107: -0.0003644958835 | M107: -0.004098286169 | N107: 1.035942894e-06
A108: =IF('DF raw data'!I108="","",'DF raw data'!I108) -> -279.5 | B108: =IF('DF raw data'!J108="","",'DF raw data'!J108) -> -2.82799e-05 | C108: =IF('DF raw data'!K108="","",'DF raw data'!K108) -> 0.000144843 | D108: =IF('DF raw data'!L108="","",'DF raw data'!L108) -> -4.25989e-05 | F108: -7.162366382e-06 | G108: -1.20563765e-05 | H108: -5.67453565e-06 | J108: -4.002787607e-05 | K108: -0.0003790668466 | L108: -0.0003705240717 | M108: -0.004283548205 | N108: 1.105388053e-06
A109: =IF('DF raw data'!I109="","",'DF raw data'!I109) -> -279 | B109: =IF('DF raw data'!J109="","",'DF raw data'!J109) -> -3.45604e-05 | C109: =IF('DF raw data'!K109="","",'DF raw data'!K109) -> 0.000148749 | D109: =IF('DF raw data'!L109="","",'DF raw data'!L109) -> -4.11508e-05 | F109: -1.347112863e-05 | G109: -8.1327995e-06 | H109: -4.2199192e-06 | J109: -4.676344039e-05 | K109: -0.0004024485668 | L109: -0.0003745904715 | M109: -0.004470843441 | N109: 1.176640474e-06
A110: =IF('DF raw data'!I110="","",'DF raw data'!I110) -> -278.5 | B110: =IF('DF raw data'!J110="","",'DF raw data'!J110) -> -1.68822e-05 | C110: =IF('DF raw data'!K110="","",'DF raw data'!K110) -> 0.000148173 | D110: =IF('DF raw data'!L110="","",'DF raw data'!L110) -> -3.40037e-05 | F110: 4.286623268e-06 | G110: -8.7113915e-06 | H110: 2.95934275e-06 | J110: -4.462012875e-05 | K110: -0.0004247586312 | L110: -0.0003789461672 | M110: -0.004660316524 | N110: 1.249436051e-06
A111: =IF('DF raw data'!I111="","",'DF raw data'!I111) -> -278 | B111: =IF('DF raw data'!J111="","",'DF raw data'!J111) -> -9.51245e-06 | C111: =IF('DF raw data'!K111="","",'DF raw data'!K111) -> 0.000151874 | D111: =IF('DF raw data'!L111="","",'DF raw data'!L111) -> -3.85105e-05 | F111: 1.168953714e-05 | G111: -4.993737e-06 | H111: -1.56773785e-06 | J111: -3.877536018e-05 | K111: -0.0004441463113 | L111: -0.0003814430357 | M111: -0.004851038042 | N111: 1.32293721e-06
A112: =IF('DF raw data'!I112="","",'DF raw data'!I112) -> -277.5 | B112: =IF('DF raw data'!J112="","",'DF raw data'!J112) -> -2.14248e-05 | C112: =IF('DF raw data'!K112="","",'DF raw data'!K112) -> 0.000141735 | D112: =IF('DF raw data'!L112="","",'DF raw data'!L112) -> -4.33128e-05 | F112: -2.764184325e-07 | G112: -1.51783625e-05 | H112: -6.3916482e-06 | J112: -3.89135694e-05 | K112: -0.000463603096 | L112: -0.000389032217 | M112: -0.005045554151 | N112: 1.399367375e-06
A113: =IF('DF raw data'!I113="","",'DF raw data'!I113) -> -277 | B113: =IF('DF raw data'!J113="","",'DF raw data'!J113) -> -1.97615e-05 | C113: =IF('DF raw data'!K113="","",'DF raw data'!K113) -> 0.000138728 | D113: =IF('DF raw data'!L113="","",'DF raw data'!L113) -> -4.08184e-05 | F113: 1.394366418e-06 | G113: -1.8198894e-05 | H113: -3.8860234e-06 | J113: -3.821638619e-05 | K113: -0.0004827112891 | L113: -0.000398131664 | M113: -0.005244619983 | N113: 1.479352032e-06
A114: =IF('DF raw data'!I114="","",'DF raw data'!I114) -> -276.5 | B114: =IF('DF raw data'!J114="","",'DF raw data'!J114) -> -2.25114e-05 | C114: =IF('DF raw data'!K114="","",'DF raw data'!K114) -> 0.000142317 | D114: =IF('DF raw data'!L114="","",'DF raw data'!L114) -> -4.67261e-05 | F114: -1.367908132e-06 | G114: -1.45937435e-05 | H114: -9.82030805e-06 | J114: -3.890034025e-05 | K114: -0.0005021614592 | L114: -0.0004054285357 | M114: -0.005447334251 | N114: 1.5622948e-06
A115: =IF('DF raw data'!I115="","",'DF raw data'!I115) -> -276 | B115: =IF('DF raw data'!J115="","",'DF raw data'!J115) -> -8.61616e-06 | C115: =IF('DF raw data'!K115="","",'DF raw data'!K115) -> 0.000150081 | D115: =IF('DF raw data'!L115="","",'DF raw data'!L115) -> -3.76936e-05 | F115: 1.258986045e-05 | G115: -6.7948055e-06 | H115: -7.471618e-07 | J115: -3.260541003e-05 | K115: -0.0005184641642 | L115: -0.0004088259385 | M115: -0.00565174722 | N115: 1.64639568e-06
A116: =IF('DF raw data'!I116="","",'DF raw data'!I116) -> -275.5 | B116: =IF('DF raw data'!J116="","",'DF raw data'!J116) -> -2.73109e-05 | C116: =IF('DF raw data'!K116="","",'DF raw data'!K116) -> 0.000148824 | D116: =IF('DF raw data'!L116="","",'DF raw data'!L116) -> -5.49652e-05 | F116: -6.189005882e-06 | G116: -8.057462e-06 | H116: -1.8096484e-05 | J116: -3.569991297e-05 | K116: -0.0005363141207 | L116: -0.0004128546695 | M116: -0.005858174555 | N116: 1.732257411e-06
A117: =IF('DF raw data'!I117="","",'DF raw data'!I117) -> -275 | B117: =IF('DF raw data'!J117="","",'DF raw data'!J117) -> -2.57146e-05 | C117: =IF('DF raw data'!K117="","",'DF raw data'!K117) -> 0.000143788 | D117: =IF('DF raw data'!L117="","",'DF raw data'!L117) -> -4.85694e-05 | F117: -4.585522532e-06 | G117: -1.3116124e-05 | H117: -1.16719029e-05 | J117: -3.799267424e-05 | K117: -0.0005553104578 | L117: -0.0004194127315 | M117: -0.00606788092 | N117: 1.820932652e-06
A118: =IF('DF raw data'!I118="","",'DF raw data'!I118) -> -274.5 | B118: =IF('DF raw data'!J118="","",'DF raw data'!J118) -> -2.21347e-05 | C118: =IF('DF raw data'!K118="","",'DF raw data'!K118) -> 0.000142807 | D118: =IF('DF raw data'!L118="","",'DF raw data'!L118) -> -3.50065e-05 | F118: -9.895129825e-07 | G118: -1.41015385e-05 | H118: 1.95203015e-06 | J118: -3.848743073e-05 | K118: -0.0005745541732 | L118: -0.0004264635007 | M118: -0.006281112671 | N118: 1.912608852e-06
A119: =IF('DF raw data'!I119="","",'DF raw data'!I119) -> -274 | B119: =IF('DF raw data'!J119="","",'DF raw data'!J119) -> -1.72593e-05 | C119: =IF('DF raw data'!K119="","",'DF raw data'!K119) -> 0.000137237 | D119: =IF('DF raw data'!L119="","",'DF raw data'!L119) -> -4.64095e-05 | F119: 3.907826318e-06 | G119: -1.96966035e-05 | H119: -9.50228335e-06 | J119: -3.653351757e-05 | K119: -0.000592820932 | L119: -0.0004363118025 | M119: -0.006499268572 | N119: 2.008460196e-06
A120: =IF('DF raw data'!I120="","",'DF raw data'!I120) -> -273.5 | B120: =IF('DF raw data'!J120="","",'DF raw data'!J120) -> -2.95044e-05 | C120: =IF('DF raw data'!K120="","",'DF raw data'!K120) -> 0.000140594 | D120: =IF('DF raw data'!L120="","",'DF raw data'!L120) -> -3.11122e-05 | F120: -8.392376632e-06 | G120: -1.6324497e-05 | H120: 5.8638545e-06 | J120: -4.072970589e-05 | K120: -0.0006131857849 | L120: -0.000444474051 | M120: -0.006721505598 | N120: 2.108068241e-06
A121: =IF('DF raw data'!I121="","",'DF raw data'!I121) -> -273 | B121: =IF('DF raw data'!J121="","",'DF raw data'!J121) -> -2.12284e-05 | C121: =IF('DF raw data'!K121="","",'DF raw data'!K121) -> 0.000140153 | D121: =IF('DF raw data'!L121="","",'DF raw data'!L121) -> -5.1005e-05 | F121: -7.91346325e-08 | G121: -1.67674815e-05 | H121: -1.41184631e-05 | J121: -4.07692732e-05 | K121: -0.0006335704215 | L121: -0.0004528577917 | M121: -0.006947934493 | N121: 2.211439398e-06
A122: =IF('DF raw data'!I122="","",'DF raw data'!I122) -> -272.5 | B122: =IF('DF raw data'!J122="","",'DF raw data'!J122) -> -1.59824e-05 | C122: =IF('DF raw data'!K122="","",'DF raw data'!K122) -> 0.0001384 | D122: =IF('DF raw data'!L122="","",'DF raw data'!L122) -> -3.86099e-05 | F122: 5.190472368e-06 | G122: -1.852837e-05 | H122: -1.66758515e-06 | J122: -3.817403702e-05 | K122: -0.00065265744 | L122: -0.0004621219767 | M122: -0.007178995482 | N122: 2.318946387e-06
A123: =IF('DF raw data'!I123="","",'DF raw data'!I123) -> -272 | B123: =IF('DF raw data'!J123="","",'DF raw data'!J123) -> -2.45686e-05 | C123: =IF('DF raw data'!K123="","",'DF raw data'!K123) -> 0.000140366 | D123: =IF('DF raw data'!L123="","",'DF raw data'!L123) -> -3.74786e-05 | F123: -3.434365532e-06 | G123: -1.6553523e-05 | H123: -5.311943e-07 | J123: -3.989121979e-05 | K123: -0.0006726030499 | L123: -0.0004703987382 | M123: -0.007414194851 | N123: 2.430379528e-06
A124: =IF('DF raw data'!I124="","",'DF raw data'!I124) -> -271.5 | B124: =IF('DF raw data'!J124="","",'DF raw data'!J124) -> -2.48225e-05 | C124: =IF('DF raw data'!K124="","",'DF raw data'!K124) -> 0.000139061 | D124: =IF('DF raw data'!L124="","",'DF raw data'!L124) -> -3.96548e-05 | F124: -3.689408082e-06 | G124: -1.78643955e-05 | H124: -2.7171872e-06 | J124: -4.173592383e-05 | K124: -0.0006934710118 | L124: -0.000479330936 | M124: -0.007653860319 | N124: 2.546129545e-06
A125: =IF('DF raw data'!I125="","",'DF raw data'!I125) -> -271 | B125: =IF('DF raw data'!J125="","",'DF raw data'!J125) -> -2.18677e-05 | C125: =IF('DF raw data'!K125="","",'DF raw data'!K125) -> 0.000139967 | D125: =IF('DF raw data'!L125="","",'DF raw data'!L125) -> -5.29292e-05 | F125: -7.213114825e-07 | G125: -1.69543185e-05 | H125: -1.6051322e-05 | J125: -4.209657957e-05 | K125: -0.0007145193016 | L125: -0.0004878080952 | M125: -0.007897764367 | N125: 2.665993975e-06
A126: =IF('DF raw data'!I126="","",'DF raw data'!I126) -> -270.5 | B126: =IF('DF raw data'!J126="","",'DF raw data'!J126) -> -1.86745e-05 | C126: =IF('DF raw data'!K126="","",'DF raw data'!K126) -> 0.000139204 | D126: =IF('DF raw data'!L126="","",'DF raw data'!L126) -> -3.6733e-05 | F126: 2.486257918e-06 | G126: -1.7720752e-05 | H126: 2.177609e-07 | J126: -4.085345061e-05 | K126: -0.0007349460269 | L126: -0.0004966684712 | M126: -0.008146098602 | N126: 2.790168262e-06
A127: =IF('DF raw data'!I127="","",'DF raw data'!I127) -> -270 | B127: =IF('DF raw data'!J127="","",'DF raw data'!J127) -> -1.83499e-05 | C127: =IF('DF raw data'!K127="","",'DF raw data'!K127) -> 0.000143117 | D127: =IF('DF raw data'!L127="","",'DF raw data'!L127) -> -4.38688e-05 | F127: 2.812318618e-06 | G127: -1.37901435e-05 | H127: -6.9501502e-06 | J127: -3.94472913e-05 | K127: -0.0007546696726 | L127: -0.000503563543 | M127: -0.008397880374 | N127: 2.917734427e-06
A128: =IF('DF raw data'!I128="","",'DF raw data'!I128) -> -269.5 | B128: =IF('DF raw data'!J128="","",'DF raw data'!J128) -> -8.3563e-06 | C128: =IF('DF raw data'!K128="","",'DF raw data'!K128) -> 0.000138514 | D128: =IF('DF raw data'!L128="","",'DF raw data'!L128) -> -4.27816e-05 | F128: 1.285088982e-05 | G128: -1.8413857e-05 | H128: -5.8580578e-06 | J128: -3.302184639e-05 | K128: -0.0007711805958 | L128: -0.0005127704715 | M128: -0.00865426561 | N128: 3.049746427e-06
A129: =IF('DF raw data'!I129="","",'DF raw data'!I129) -> -269 | B129: =IF('DF raw data'!J129="","",'DF raw data'!J129) -> -1.8668e-05 | C129: =IF('DF raw data'!K129="","",'DF raw data'!K129) -> 0.00014161 | D129: =IF('DF raw data'!L129="","",'DF raw data'!L129) -> -4.75459e-05 | F129: 2.492787168e-06 | G129: -1.5303925e-05 | H129: -1.064379715e-05 | J129: -3.177545281e-05 | K129: -0.0007870683222 | L129: -0.000520422434 | M129: -0.008914476826 | N129: 3.185671021e-06
A130: =IF('DF raw data'!I130="","",'DF raw data'!I130) -> -268.5 | B130: =IF('DF raw data'!J130="","",'DF raw data'!J130) -> -2.257e-05 | C130: =IF('DF raw data'!K130="","",'DF raw data'!K130) -> 0.000142587 | D130: =IF('DF raw data'!L130="","",'DF raw data'!L130) -> -5.57412e-05 | F130: -1.426771832e-06 | G130: -1.43225285e-05 | H130: -1.8875976e-05 | J130: -3.248883872e-05 | K130: -0.0008033127415 | L130: -0.0005275836982 | M130: -0.009178268676 | N130: 3.325371063e-06
A131: =IF('DF raw data'!I131="","",'DF raw data'!I131) -> -268 | B131: =IF('DF raw data'!J131="","",'DF raw data'!J131) -> -2.18083e-05 | C131: =IF('DF raw data'!K131="","",'DF raw data'!K131) -> 0.000143914 | D131: =IF('DF raw data'!L131="","",'DF raw data'!L131) -> -4.57408e-05 | F131: =(1-$G$1*($B$54-$G$2))*(B131-F$5) -> -6.616441825e-07 | G131: =(1-$G$1*($B$54-$G$2))*(C131-G$5) -> -1.2989557e-05 | H131: =(1-$G$1*($B$54-$G$2))*(D131-H$5) -> -8.8305742e-06 | J131: -3.281966082e-05 | K131: -0.000819722572 | L131: -0.0005340784767 | M131: -0.009445307914 | N131: 3.468529538e-06
A132: =IF('DF raw data'!I132="","",'DF raw data'!I132) -> -267.5 | B132: =IF('DF raw data'!J132="","",'DF raw data'!J132) -> -3.24444e-05 | C132: =IF('DF raw data'!K132="","",'DF raw data'!K132) -> 0.000142296 | D132: =IF('DF raw data'!L132="","",'DF raw data'!L132) -> -4.24208e-05 | F132: -1.134560663e-05 | G132: -1.4614838e-05 | H132: -5.4956342e-06 | J132: =F132*$G$3+J131 -> -3.849246413e-05 | K132: =J132*$G$3+K131 -> -0.000838968804 | L132: =G132*$G$3+L131 -> -0.0005413858957 | M132: =L132*$G$3+M131 -> -0.009716000862 | N132: =(J132^2+L132^2)*$G$3+N131 -> 3.615819717e-06
A133: =IF('DF raw data'!I133="","",'DF raw data'!I133) -> -267 | B133: =IF('DF raw data'!J133="","",'DF raw data'!J133) -> -9.25478e-06 | C133: =IF('DF raw data'!K133="","",'DF raw data'!K133) -> 0.000136208 | D133: =IF('DF raw data'!L133="","",'DF raw data'!L133) -> -4.06479e-05 | F133: 1.194836666e-05 | G133: -2.0730234e-05 | H133: -3.71475615e-06 | J133: -3.25182808e-05 | K133: -0.0008552279444 | L133: -0.0005517510127 | M133: -0.009991876368 | N133: 3.768563026e-06
A134: =IF('DF raw data'!I134="","",'DF raw data'!I134) -> -266.5 | B134: =IF('DF raw data'!J134="","",'DF raw data'!J134) -> -1.51491e-05 | C134: =IF('DF raw data'!K134="","",'DF raw data'!K134) -> 0.000141806 | D134: =IF('DF raw data'!L134="","",'DF raw data'!L134) -> -3.9456e-05 | F134: 6.027522218e-06 | G134: -1.5107043e-05 | H134: -2.5174926e-06 | J134: -2.950451969e-05 | K134: -0.0008699802043 | L134: -0.0005593045342 | M134: -0.01027152864 | N134: 3.925409065e-06
A135: =IF('DF raw data'!I135="","",'DF raw data'!I135) -> -266 | B135: =IF('DF raw data'!J135="","",'DF raw data'!J135) -> -1.40633e-05 | C135: =IF('DF raw data'!K135="","",'DF raw data'!K135) -> 0.000153128 | D135: =IF('DF raw data'!L135="","",'DF raw data'!L135) -> -3.52876e-05 | F135: 7.118208318e-06 | G135: -3.734094e-06 | H135: 1.6696652e-06 | J135: -2.594541554e-05 | K135: -0.000882952912 | L135: -0.0005611715812 | M135: -0.01055211443 | N135: 4.08320242e-06
A136: =IF('DF raw data'!I136="","",'DF raw data'!I136) -> -265.5 | B136: =IF('DF raw data'!J136="","",'DF raw data'!J136) -> -3.76385e-05 | C136: =IF('DF raw data'!K136="","",'DF raw data'!K136) -> 0.000159334 | D136: =IF('DF raw data'!L136="","",'DF raw data'!L136) -> -3.4426e-05 | F136: -1.656308008e-05 | G136: 2.499833e-06 | H136: 2.5351424e-06 | J136: -3.422695558e-05 | K136: -0.0009000663898 | L136: -0.0005599216647 | M136: -0.01083207526 | N136: 4.240544297e-06
A137: =IF('DF raw data'!I137="","",'DF raw data'!I137) -> -265 | B137: =IF('DF raw data'!J137="","",'DF raw data'!J137) -> -3.08473e-05 | C137: =IF('DF raw data'!K137="","",'DF raw data'!K137) -> 0.000154518 | D137: =IF('DF raw data'!L137="","",'DF raw data'!L137) -> -3.6927e-05 | F137: -9.741319682e-06 | G137: -2.337839e-06 | H137: 2.28879e-08 | J137: -3.909761542e-05 | K137: -0.0009196151975 | L137: -0.0005610905842 | M137: -0.01111262055 | N137: 4.398719931e-06
A138: =IF('DF raw data'!I138="","",'DF raw data'!I138) -> -264.5 | B138: =IF('DF raw data'!J138="","",'DF raw data'!J138) -> -2.45095e-05 | C138: =IF('DF raw data'!K138="","",'DF raw data'!K138) -> 0.000147858 | D138: =IF('DF raw data'!L138="","",'DF raw data'!L138) -> -2.83695e-05 | F138: -3.374999582e-06 | G138: -9.027809e-06 | H138: 8.61889665e-06 | J138: -4.078511521e-05 | K138: -0.0009400077551 | L138: -0.0005656044887 | M138: -0.01139542279 | N138: 4.559505862e-06
A139: =IF('DF raw data'!I139="","",'DF raw data'!I139) -> -264 | B139: =IF('DF raw data'!J139="","",'DF raw data'!J139) -> -2.54665e-05 | C139: =IF('DF raw data'!K139="","",'DF raw data'!K139) -> 0.00015962 | D139: =IF('DF raw data'!L139="","",'DF raw data'!L139) -> -3.603e-05 | F139: -4.336306082e-06 | G139: 2.78712e-06 | H139: 9.239244e-07 | J139: -4.295326825e-05 | K139: -0.0009614843893 | L139: -0.0005642109287 | M139: -0.01167752826 | N139: 4.71959534e-06
A140: =IF('DF raw data'!I140="","",'DF raw data'!I140) -> -263.5 | B140: =IF('DF raw data'!J140="","",'DF raw data'!J140) -> -2.36049e-05 | C140: =IF('DF raw data'!K140="","",'DF raw data'!K140) -> 0.00016575 | D140: =IF('DF raw data'!L140="","",'DF raw data'!L140) -> -4.00936e-05 | F140: -2.466328882e-06 | G140: 8.944705e-06 | H140: -3.1579618e-06 | J140: -4.418643269e-05 | K140: -0.0009835776056 | L140: -0.0005597385762 | M140: -0.01195739755 | N140: 4.877225197e-06
A141: =IF('DF raw data'!I141="","",'DF raw data'!I141) -> -263 | B141: =IF('DF raw data'!J141="","",'DF raw data'!J141) -> -3.02668e-05 | C141: =IF('DF raw data'!K141="","",'DF raw data'!K141) -> 0.000154737 | D141: =IF('DF raw data'!L141="","",'DF raw data'!L141) -> -4.32662e-05 | F141: -9.158207432e-06 | G141: -2.1178535e-06 | H141: -6.3448385e-06 | J141: -4.876553641e-05 | K141: -0.001007960374 | L141: -0.000560797503 | M141: -0.0122377963 | N141: 5.035661156e-06
A142: =IF('DF raw data'!I142="","",'DF raw data'!I142) -> -262.5 | B142: =IF('DF raw data'!J142="","",'DF raw data'!J142) -> -2.3602e-05 | C142: =IF('DF raw data'!K142="","",'DF raw data'!K142) -> 0.00014801 | D142: =IF('DF raw data'!L142="","",'DF raw data'!L142) -> -4.44529e-05 | F142: -2.463415832e-06 | G142: -8.875125e-06 | H142: -7.53687865e-06 | J142: -4.999724432e-05 | K142: -0.001032958996 | L142: -0.0005652350655 | M142: -0.01252041383 | N142: 5.196656358e-06
A143: =IF('DF raw data'!I143="","",'DF raw data'!I143) -> -262 | B143: =IF('DF raw data'!J143="","",'DF raw data'!J143) -> -2.10405e-05 | C143: =IF('DF raw data'!K143="","",'DF raw data'!K143) -> 0.000145311 | D143: =IF('DF raw data'!L143="","",'DF raw data'!L143) -> -4.4879e-05 | F143: 1.096109175e-07 | G143: -1.15862705e-05 | H143: -7.9648961e-06 | J143: -4.994243887e-05 | K143: -0.001057930215 | L143: -0.0005710282007 | M143: -0.01280592793 | N143: 5.360940084e-06
A144: =IF('DF raw data'!I144="","",'DF raw data'!I144) -> -261.5 | B144: =IF('DF raw data'!J144="","",'DF raw data'!J144) -> -2.32196e-05 | C144: =IF('DF raw data'!K144="","",'DF raw data'!K144) -> 0.000139931 | D144: =IF('DF raw data'!L144="","",'DF raw data'!L144) -> -4.13887e-05 | F144: -2.079295032e-06 | G144: -1.69904805e-05 | H144: -4.45888975e-06 | J144: -5.098208638e-05 | K144: -0.001083421259 | L144: -0.000579523441 | M144: -0.01309568965 | N144: 5.53016338e-06
A145: =IF('DF raw data'!I145="","",'DF raw data'!I145) -> -261 | B145: =IF('DF raw data'!J145="","",'DF raw data'!J145) -> -2.02684e-05 | C145: =IF('DF raw data'!K145="","",'DF raw data'!K145) -> 0.000137284 | D145: =IF('DF raw data'!L145="","",'DF raw data'!L145) -> -4.95631e-05 | F145: 8.851853675e-07 | G145: -1.9649392e-05 | H145: -1.267007455e-05 | J145: -5.05394937e-05 | K145: -0.001108691005 | L145: -0.000589348137 | M145: -0.01339036372 | N145: 5.705106114e-06
A146: =IF('DF raw data'!I146="","",'DF raw data'!I146) -> -260.5 | B146: =IF('DF raw data'!J146="","",'DF raw data'!J146) -> -1.63623e-05 | C146: =IF('DF raw data'!K146="","",'DF raw data'!K146) -> 0.000137549 | D146: =IF('DF raw data'!L146="","",'DF raw data'!L146) -> -4.52973e-05 | F146: 4.808862818e-06 | G146: -1.93831995e-05 | H146: -8.38507845e-06 | J146: -4.813506229e-05 | K146: -0.001132758537 | L146: -0.0005990397367 | M146: -0.01368988359 | N146: 5.885688909e-06
A147: =IF('DF raw data'!I147="","",'DF raw data'!I147) -> -260 | B147: =IF('DF raw data'!J147="","",'DF raw data'!J147) -> -3.14172e-05 | C147: =IF('DF raw data'!K147="","",'DF raw data'!K147) -> 0.000132277 | D147: =IF('DF raw data'!L147="","",'DF raw data'!L147) -> -4.7882e-05 | F147: -1.031378423e-05 | G147: -2.46789235e-05 | H147: -1.09814096e-05 | J147: -5.329195441e-05 | K147: -0.001159404514 | L147: -0.0006113791985 | M147: -0.01399557319 | N147: 6.074001187e-06
A148: =IF('DF raw data'!I148="","",'DF raw data'!I148) -> -259.5 | B148: =IF('DF raw data'!J148="","",'DF raw data'!J148) -> -3.18705e-05 | C148: =IF('DF raw data'!K148="","",'DF raw data'!K148) -> 0.000137259 | D148: =IF('DF raw data'!L148="","",'DF raw data'!L148) -> -3.74625e-05 | F148: -1.076912408e-05 | G148: -1.96745045e-05 | H148: -5.1502185e-07 | J148: -5.867651645e-05 | K148: -0.001188742772 | L148: -0.0006212164507 | M148: -0.01430618141 | N148: 6.268677593e-06
A149: =IF('DF raw data'!I149="","",'DF raw data'!I149) -> -259 | B149: =IF('DF raw data'!J149="","",'DF raw data'!J149) -> -2.43119e-05 | C149: =IF('DF raw data'!K149="","",'DF raw data'!K149) -> 0.000151159 | D149: =IF('DF raw data'!L149="","",'DF raw data'!L149) -> -3.86056e-05 | F149: -3.176510382e-06 | G149: -5.7119545e-06 | H149: -1.6632658e-06 | J149: -6.026477164e-05 | K149: -0.001218875158 | L149: -0.000624072428 | M149: -0.01461821763 | N149: 6.465226712e-06
A150: =IF('DF raw data'!I150="","",'DF raw data'!I150) -> -258.5 | B150: =IF('DF raw data'!J150="","",'DF raw data'!J150) -> -2.67464e-05 | C150: =IF('DF raw data'!K150="","",'DF raw data'!K150) -> 0.000154328 | D150: =IF('DF raw data'!L150="","",'DF raw data'!L150) -> -3.61165e-05 | F150: -5.621965632e-06 | G150: -2.528694e-06 | H150: 8.3703515e-07 | J150: -6.307575445e-05 | K150: -0.001250413035 | L150: -0.000625336775 | M150: -0.01493088602 | N150: 6.662739029e-06
A151: =IF('DF raw data'!I151="","",'DF raw data'!I151) -> -258 | B151: =IF('DF raw data'!J151="","",'DF raw data'!J151) -> -3.0905e-05 | C151: =IF('DF raw data'!K151="","",'DF raw data'!K151) -> 0.000139905 | D151: =IF('DF raw data'!L151="","",'DF raw data'!L151) -> -4.70171e-05 | F151: -9.799279333e-06 | G151: -1.70165975e-05 | H151: -1.011261755e-05 | J151: -6.797539412e-05 | K151: -0.001284400732 | L151: -0.0006338450737 | M151: -0.01524780855 | N151: 6.865929145e-06
A152: =IF('DF raw data'!I152="","",'DF raw data'!I152) -> -257.5 | B152: =IF('DF raw data'!J152="","",'DF raw data'!J152) -> -2.37251e-05 | C152: =IF('DF raw data'!K152="","",'DF raw data'!K152) -> 0.00013711 | D152: =IF('DF raw data'!L152="","",'DF raw data'!L152) -> -5.23463e-05 | F152: -2.587069782e-06 | G152: -1.9824175e-05 | H152: -1.546579895e-05 | J152: -6.926892901e-05 | K152: -0.001319035197 | L152: -0.0006437571612 | M152: -0.01556968713 | N152: 7.075539878e-06
A153: =IF('DF raw data'!I153="","",'DF raw data'!I153) -> -257 | B153: =IF('DF raw data'!J153="","",'DF raw data'!J153) -> -3.38537e-05 | C153: =IF('DF raw data'!K153="","",'DF raw data'!K153) -> 0.000142767 | D153: =IF('DF raw data'!L153="","",'DF raw data'!L153) -> -4.44913e-05 | F153: -1.276124848e-05 | G153: -1.41417185e-05 | H153: -7.57545145e-06 | J153: -7.564955325e-05 | K153: -0.001356859973 | L153: -0.0006508280205 | M153: -0.01589510114 | N153: 7.290189862e-06
A154: =IF('DF raw data'!I154="","",'DF raw data'!I154) -> -256.5 | B154: =IF('DF raw data'!J154="","",'DF raw data'!J154) -> -3.61614e-05 | C154: =IF('DF raw data'!K154="","",'DF raw data'!K154) -> 0.000144914 | D154: =IF('DF raw data'!L154="","",'DF raw data'!L154) -> -3.96404e-05 | F154: -1.507933313e-05 | G154: -1.1985057e-05 | H154: -2.7027224e-06 | J154: -8.318921982e-05 | K154: -0.001398454583 | L154: -0.000656820549 | M154: -0.01622351142 | N154: 7.509356702e-06
A155: =IF('DF raw data'!I155="","",'DF raw data'!I155) -> -256 | B155: =IF('DF raw data'!J155="","",'DF raw data'!J155) -> -2.35963e-05 | C155: =IF('DF raw data'!K155="","",'DF raw data'!K155) -> 0.000148321 | D155: =IF('DF raw data'!L155="","",'DF raw data'!L155) -> -5.4951e-05 | F155: -2.457690182e-06 | G155: -8.5627255e-06 | H155: -1.80822201e-05 | J155: -8.441806491e-05 | K155: -0.001440663616 | L155: -0.0006611019117 | M155: -0.01655406237 | N155: 7.731447776e-06
A156: =IF('DF raw data'!I156="","",'DF raw data'!I156) -> -255.5 | B156: =IF('DF raw data'!J156="","",'DF raw data'!J156) -> -3.35323e-05 | C156: =IF('DF raw data'!K156="","",'DF raw data'!K156) -> 0.000148198 | D156: =IF('DF raw data'!L156="","",'DF raw data'!L156) -> -4.36061e-05 | F156: -1.243840218e-05 | G156: -8.686279e-06 | H156: -6.68626805e-06 | J156: -9.0637266e-05 | K156: -0.001485982249 | L156: -0.0006654450512 | M156: -0.0168867849 | N156: 7.956963891e-06
A157: =IF('DF raw data'!I157="","",'DF raw data'!I157) -> -255 | B157: =IF('DF raw data'!J157="","",'DF raw data'!J157) -> -2.71953e-05 | C157: =IF('DF raw data'!K157="","",'DF raw data'!K157) -> 0.000143976 | D157: =IF('DF raw data'!L157="","",'DF raw data'!L157) -> -3.76233e-05 | F157: -6.072885682e-06 | G157: -1.2927278e-05 | H157: -6.7654545e-07 | J157: -9.367370884e-05 | K157: -0.001532819103 | L157: -0.0006719086902 | M157: -0.01722273924 | N157: 8.187081917e-06
A158: =IF('DF raw data'!I158="","",'DF raw data'!I158) -> -254.5 | B158: =IF('DF raw data'!J158="","",'DF raw data'!J158) -> -3.53903e-05 | C158: =IF('DF raw data'!K158="","",'DF raw data'!K158) -> 0.000144444 | D158: =IF('DF raw data'!L158="","",'DF raw data'!L158) -> -4.34493e-05 | F158: -1.430476318e-05 | G158: -1.2457172e-05 | H158: -6.52876245e-06 | J158: -0.0001008260904 | K158: -0.001583232148 | L158: -0.0006781372762 | M158: -0.01756180788 | N158: 8.42209995e-06
A159: =IF('DF raw data'!I159="","",'DF raw data'!I159) -> -254 | B159: =IF('DF raw data'!J159="","",'DF raw data'!J159) -> -2.54632e-05 | C159: =IF('DF raw data'!K159="","",'DF raw data'!K159) -> 0.000154204 | D159: =IF('DF raw data'!L159="","",'DF raw data'!L159) -> -4.11435e-05 | F159: -4.332991232e-06 | G159: -2.653252e-06 | H159: -4.21258635e-06 | J159: -0.0001029925861 | K159: -0.001634728441 | L159: -0.0006794639022 | M159: -0.01790153983 | N159: 8.658239283e-06
A160: =IF('DF raw data'!I160="","",'DF raw data'!I160) -> -253.5 | B160: =IF('DF raw data'!J160="","",'DF raw data'!J160) -> -3.21889e-05 | C160: =IF('DF raw data'!K160="","",'DF raw data'!K160) -> 0.000150557 | D160: =IF('DF raw data'!L160="","",'DF raw data'!L160) -> -4.09758e-05 | F160: -1.108895688e-05 | G160: -6.3166635e-06 | H160: -4.0441317e-06 | J160: -0.0001085370645 | K160: -0.001688996974 | L160: -0.000682622234 | M160: -0.01824285095 | N160: 8.897115988e-06
A161: =IF('DF raw data'!I161="","",'DF raw data'!I161) -> -253 | B161: =IF('DF raw data'!J161="","",'DF raw data'!J161) -> -2.90459e-05 | C161: =IF('DF raw data'!K161="","",'DF raw data'!K161) -> 0.000150288 | D161: =IF('DF raw data'!L161="","",'DF raw data'!L161) -> -4.8927e-05 | F161: -7.931813382e-06 | G161: -6.586874e-06 | H161: -1.20311121e-05 | J161: -0.0001125029712 | K161: -0.001745248459 | L161: -0.000685915671 | M161: -0.01858580879 | N161: 9.138684601e-06
A162: =IF('DF raw data'!I162="","",'DF raw data'!I162) -> -252.5 | B162: =IF('DF raw data'!J162="","",'DF raw data'!J162) -> -3.02029e-05 | C162: =IF('DF raw data'!K162="","",'DF raw data'!K162) -> 0.000150283 | D162: =IF('DF raw data'!L162="","",'DF raw data'!L162) -> -4.10476e-05 | F162: -9.094019882e-06 | G162: -6.5918965e-06 | H162: -4.1162548e-06 | J162: -0.0001170499811 | K162: -0.00180377345 | L162: -0.0006892116192 | M162: -0.0189304146 | N162: 9.383041278e-06
A163: =IF('DF raw data'!I163="","",'DF raw data'!I163) -> -252 | B163: =IF('DF raw data'!J163="","",'DF raw data'!J163) -> -2.81466e-05 | C163: =IF('DF raw data'!K163="","",'DF raw data'!K163) -> 0.000152085 | D163: =IF('DF raw data'!L163="","",'DF raw data'!L163) -> -5.22687e-05 | F163: -7.028466532e-06 | G163: -4.7817875e-06 | H163: -1.538784975e-05 | J163: -0.0001205642144 | K163: -0.001864055557 | L163: -0.000691602513 | M163: -0.01927621585 | N163: 9.629466161e-06
A164: =IF('DF raw data'!I164="","",'DF raw data'!I164) -> -251.5 | B164: =IF('DF raw data'!J164="","",'DF raw data'!J164) -> -3.28915e-05 | C164: =IF('DF raw data'!K164="","",'DF raw data'!K164) -> 0.000152353 | D164: =IF('DF raw data'!L164="","",'DF raw data'!L164) -> -4.37781e-05 | F164: -1.179471858e-05 | G164: -4.5125815e-06 | H164: -6.85904205e-06 | J164: -0.0001264615737 | K164: -0.001927286344 | L164: -0.0006938588037 | M164: -0.01962314525 | N164: 9.878182445e-06
A165: =IF('DF raw data'!I165="","",'DF raw data'!I165) -> -251 | B165: =IF('DF raw data'!J165="","",'DF raw data'!J165) -> -2.46999e-05 | C165: =IF('DF raw data'!K165="","",'DF raw data'!K165) -> 0.000145243 | D165: =IF('DF raw data'!L165="","",'DF raw data'!L165) -> -3.27906e-05 | F165: -3.566256382e-06 | G165: -1.16545765e-05 | H165: 4.1779017e-06 | J165: -0.0001282447019 | K165: -0.001991408695 | L165: -0.000699686092 | M165: -0.0199729883 | N165: 1.013118611e-05
A166: =IF('DF raw data'!I166="","",'DF raw data'!I166) -> -250.5 | B166: =IF('DF raw data'!J166="","",'DF raw data'!J166) -> -2.70617e-05 | C166: =IF('DF raw data'!K166="","",'DF raw data'!K166) -> 0.00014181 | D166: =IF('DF raw data'!L166="","",'DF raw data'!L166) -> -4.40402e-05 | F166: -5.938684482e-06 | G166: -1.5103025e-05 | H166: -7.1223215e-06 | J166: -0.0001312140441 | K166: -0.002057015717 | L166: -0.0007072376045 | M166: -0.0203266071 | N166: 1.038988719e-05
A167: =IF('DF raw data'!I167="","",'DF raw data'!I167) -> -250 | B167: =IF('DF raw data'!J167="","",'DF raw data'!J167) -> -3.24465e-05 | C167: =IF('DF raw data'!K167="","",'DF raw data'!K167) -> 0.000148762 | D167: =IF('DF raw data'!L167="","",'DF raw data'!L167) -> -4.13008e-05 | F167: -1.134771608e-05 | G167: -8.119741e-06 | H167: -4.3705942e-06 | J167: -0.0001368879022 | K167: -0.002125459668 | L167: -0.000711297475 | M167: -0.02068225584 | N167: 1.065222839e-05
A168: =IF('DF raw data'!I168="","",'DF raw data'!I168) -> -249.5 | B168: =IF('DF raw data'!J168="","",'DF raw data'!J168) -> -2.75762e-05 | C168: =IF('DF raw data'!K168="","",'DF raw data'!K168) -> 0.000154121 | D168: =IF('DF raw data'!L168="","",'DF raw data'!L168) -> -4.09073e-05 | F168: -6.455499732e-06 | G168: -2.7366255e-06 | H168: -3.97532345e-06 | J168: -0.000140115652 | K168: -0.002195517494 | L168: -0.0007126657877 | M168: -0.02103858873 | N168: 1.091599085e-05
A169: =IF('DF raw data'!I169="","",'DF raw data'!I169) -> -249 | B169: =IF('DF raw data'!J169="","",'DF raw data'!J169) -> -3.15531e-05 | C169: =IF('DF raw data'!K169="","",'DF raw data'!K169) -> 0.000150924 | D169: =IF('DF raw data'!L169="","",'DF raw data'!L169) -> -3.6027e-05 | F169: -1.045029578e-05 | G169: -5.948012e-06 | H169: 9.269379e-07 | J169: -0.0001453407999 | K169: -0.002268187894 | L169: -0.0007156397937 | M169: -0.02139640863 | N169: 1.118262298e-05
A170: =IF('DF raw data'!I170="","",'DF raw data'!I170) -> -248.5 | B170: =IF('DF raw data'!J170="","",'DF raw data'!J170) -> -2.80938e-05 | C170: =IF('DF raw data'!K170="","",'DF raw data'!K170) -> 0.000154493 | D170: =IF('DF raw data'!L170="","",'DF raw data'!L170) -> -3.28393e-05 | F170: -6.975428932e-06 | G170: -2.3629515e-06 | H170: 4.12898255e-06 | J170: -0.0001488285144 | K170: -0.002342602151 | L170: -0.0007168212695 | M170: -0.02175481927 | N170: 1.145061431e-05
A171: =IF('DF raw data'!I171="","",'DF raw data'!I171) -> -248 | B171: =IF('DF raw data'!J171="","",'DF raw data'!J171) -> -1.65572e-05 | C171: =IF('DF raw data'!K171="","",'DF raw data'!K171) -> 0.000150931 | D171: =IF('DF raw data'!L171="","",'DF raw data'!L171) -> -4.2973e-05 | F171: 4.613085768e-06 | G171: -5.9409805e-06 | H171: -6.0503191e-06 | J171: -0.0001465219715 | K171: -0.002415863137 | L171: -0.0007197917597 | M171: -0.02211471515 | N171: 1.172039874e-05
A172: =IF('DF raw data'!I172="","",'DF raw data'!I172) -> -247.5 | B172: =IF('DF raw data'!J172="","",'DF raw data'!J172) -> -1.8099e-05 | C172: =IF('DF raw data'!K172="","",'DF raw data'!K172) -> 0.000148623 | D172: =IF('DF raw data'!L172="","",'DF raw data'!L172) -> -3.44851e-05 | F172: 3.064347668e-06 | G172: -8.2593665e-06 | H172: 2.47577645e-06 | J172: -0.0001449897977 | K172: -0.002488358036 | L172: -0.000723921443 | M172: -0.02247667587 | N172: 1.199294089e-05
A173: =IF('DF raw data'!I173="","",'DF raw data'!I173) -> -247 | B173: =IF('DF raw data'!J173="","",'DF raw data'!J173) -> -3.03248e-05 | C173: =IF('DF raw data'!K173="","",'DF raw data'!K173) -> 0.000140831 | D173: =IF('DF raw data'!L173="","",'DF raw data'!L173) -> -5.3094e-05 | F173: -9.216468432e-06 | G173: -1.60864305e-05 | H173: -1.62168636e-05 | J173: -0.0001495980319 | K173: -0.002563157051 | L173: -0.0007319646582 | M173: -0.0228426582 | N173: 1.22720168e-05
A174: =IF('DF raw data'!I174="","",'DF raw data'!I174) -> -246.5 | B174: =IF('DF raw data'!J174="","",'DF raw data'!J174) -> -1.82945e-05 | C174: =IF('DF raw data'!K174="","",'DF raw data'!K174) -> 0.000146256 | D174: =IF('DF raw data'!L174="","",'DF raw data'!L174) -> -2.95281e-05 | F174: 2.867967918e-06 | G174: -1.0637018e-05 | H174: 7.45508295e-06 | J174: -0.0001481640479 | K174: -0.002637239075 | L174: -0.0007372831672 | M174: -0.02321129978 | N174: 1.255478633e-05
A175: =IF('DF raw data'!I175="","",'DF raw data'!I175) -> -246 | B175: =IF('DF raw data'!J175="","",'DF raw data'!J175) -> -3.25697e-05 | C175: =IF('DF raw data'!K175="","",'DF raw data'!K175) -> 0.000149522 | D175: =IF('DF raw data'!L175="","",'DF raw data'!L175) -> -4.91396e-05 | F175: -1.147147048e-05 | G175: -7.356321e-06 | H175: -1.22446688e-05 | J175: -0.0001538997832 | K175: -0.002714188967 | L175: -0.0007409613277 | M175: -0.02358178044 | N175: 1.284114075e-05
A176: =IF('DF raw data'!I176="","",'DF raw data'!I176) -> -245.5 | B176: =IF('DF raw data'!J176="","",'DF raw data'!J176) -> -1.77166e-05 | C176: =IF('DF raw data'!K176="","",'DF raw data'!K176) -> 0.000150755 | D176: =IF('DF raw data'!L176="","",'DF raw data'!L176) -> -3.14549e-05 | F176: 3.448468468e-06 | G176: -6.1177725e-06 | H176: 5.51961235e-06 | J176: -0.0001521755489 | K176: -0.002790276741 | L176: -0.000744020214 | M176: -0.02395379055 | N176: 1.312950249e-05
A177: =IF('DF raw data'!I177="","",'DF raw data'!I177) -> -245 | B177: =IF('DF raw data'!J177="","",'DF raw data'!J177) -> -2.93768e-05 | C177: =IF('DF raw data'!K177="","",'DF raw data'!K177) -> 0.000153137 | D177: =IF('DF raw data'!L177="","",'DF raw data'!L177) -> -3.29139e-05 | F177: -8.264202432e-06 | G177: -3.7250535e-06 | H177: 4.05404685e-06 | J177: -0.0001563076501 | K177: -0.002868430567 | L177: -0.0007458827407 | M177: -0.02432673192 | N177: 1.341988906e-05
A178: =IF('DF raw data'!I178="","",'DF raw data'!I178) -> -244.5 | B178: =IF('DF raw data'!J178="","",'DF raw data'!J178) -> -2.62397e-05 | C178: =IF('DF raw data'!K178="","",'DF raw data'!K178) -> 0.00015038 | D178: =IF('DF raw data'!L178="","",'DF raw data'!L178) -> -2.696e-05 | F178: -5.112985482e-06 | G178: -6.49446e-06 | H178: 1.00347394e-05 | J178: -0.0001588641429 | K178: -0.002947862638 | L178: -0.0007491299707 | M178: -0.02470129691 | N178: 1.371310582e-05
A179: =IF('DF raw data'!I179="","",'DF raw data'!I179) -> -244 | B179: =IF('DF raw data'!J179="","",'DF raw data'!J179) -> -2.84858e-05 | C179: =IF('DF raw data'!K179="","",'DF raw data'!K179) -> 0.000145002 | D179: =IF('DF raw data'!L179="","",'DF raw data'!L179) -> -2.39979e-05 | F179: -7.369192932e-06 | G179: -1.1896661e-05 | H179: 1.301016885e-05 | J179: -0.0001625487394 | K179: -0.003029137008 | L179: -0.0007550783012 | M179: -0.02507883606 | N179: 1.401138849e-05
A180: =IF('DF raw data'!I180="","",'DF raw data'!I180) -> -243.5 | B180: =IF('DF raw data'!J180="","",'DF raw data'!J180) -> -1.31053e-05 | C180: =IF('DF raw data'!K180="","",'DF raw data'!K180) -> 0.000155191 | D180: =IF('DF raw data'!L180="","",'DF raw data'!L180) -> -2.9724e-05 | F180: 8.080519318e-06 | G180: -1.6618105e-06 | H180: 7.2583014e-06 | J180: -0.0001585084797 | K180: -0.003108391248 | L180: -0.0007559092065 | M180: -0.02545679066 | N180: 1.430965032e-05
A181: =IF('DF raw data'!I181="","",'DF raw data'!I181) -> -243 | B181: =IF('DF raw data'!J181="","",'DF raw data'!J181) -> -1.66202e-05 | C181: =IF('DF raw data'!K181="","",'DF raw data'!K181) -> 0.000152558 | D181: =IF('DF raw data'!L181="","",'DF raw data'!L181) -> -4.43944e-05 | F181: 4.549802268e-06 | G181: -4.306659e-06 | H181: -7.4781154e-06 | J181: -0.0001562335786 | K181: -0.003186508037 | L181: -0.000758062536 | M181: -0.02583582193 | N181: 1.460918419e-05
A182: =IF('DF raw data'!I182="","",'DF raw data'!I182) -> -242.5 | B182: =IF('DF raw data'!J182="","",'DF raw data'!J182) -> -1.93073e-05 | C182: =IF('DF raw data'!K182="","",'DF raw data'!K182) -> 0.000151851 | D182: =IF('DF raw data'!L182="","",'DF raw data'!L182) -> -4.8406e-05 | F182: 1.850610318e-06 | G182: -5.0168405e-06 | H182: -1.15077676e-05 | J182: -0.0001553082734 | K182: -0.003264162174 | L182: -0.0007605709562 | M182: -0.02621610741 | N182: 1.491047861e-05
A183: =IF('DF raw data'!I183="","",'DF raw data'!I183) -> -242 | B183: =IF('DF raw data'!J183="","",'DF raw data'!J183) -> -2.66139e-05 | C183: =IF('DF raw data'!K183="","",'DF raw data'!K183) -> 0.000150488 | D183: =IF('DF raw data'!L183="","",'DF raw data'!L183) -> -4.53349e-05 | F183: -5.488869382e-06 | G183: -6.385974e-06 | H183: -8.42284765e-06 | J183: -0.0001580527081 | K183: -0.003343188528 | L183: -0.0007637639432 | M183: -0.02659798938 | N183: 1.521463662e-05
A184: =IF('DF raw data'!I184="","",'DF raw data'!I184) -> -241.5 | B184: =IF('DF raw data'!J184="","",'DF raw data'!J184) -> -3.41708e-05 | C184: =IF('DF raw data'!K184="","",'DF raw data'!K184) -> 0.000149414 | D184: =IF('DF raw data'!L184="","",'DF raw data'!L184) -> -4.69376e-05 | F184: -1.307977543e-05 | G184: -7.464807e-06 | H184: -1.00327598e-05 | J184: -0.0001645925958 | K184: -0.003425484825 | L184: -0.0007674963467 | M184: -0.02698173755 | N184: 1.55227073e-05
A185: =IF('DF raw data'!I185="","",'DF raw data'!I185) -> -241 | B185: =IF('DF raw data'!J185="","",'DF raw data'!J185) -> -2.77018e-05 | C185: =IF('DF raw data'!K185="","",'DF raw data'!K185) -> 0.000154824 | D185: =IF('DF raw data'!L185="","",'DF raw data'!L185) -> -4.71929e-05 | F185: -6.581664932e-06 | G185: -2.030462e-06 | H185: -1.028920865e-05 | J185: -0.0001678834283 | K185: -0.00350942654 | L185: -0.0007685115777 | M185: -0.02736599334 | N185: 1.583210475e-05
A186: =IF('DF raw data'!I186="","",'DF raw data'!I186) -> -240.5 | B186: =IF('DF raw data'!J186="","",'DF raw data'!J186) -> -4.12885e-05 | C186: =IF('DF raw data'!K186="","",'DF raw data'!K186) -> 0.000156935 | D186: =IF('DF raw data'!L186="","",'DF raw data'!L186) -> -3.62075e-05 | F186: -2.022950508e-05 | G186: 9.00375e-08 | H186: 7.4562565e-07 | J186: -0.0001779981808 | K186: -0.00359842563 | L186: -0.000768466559 | M186: -0.02775022662 | N186: 1.614321685e-05
A187: =IF('DF raw data'!I187="","",'DF raw data'!I187) -> -240 | B187: =IF('DF raw data'!J187="","",'DF raw data'!J187) -> -2.82106e-05 | C187: =IF('DF raw data'!K187="","",'DF raw data'!K187) -> 0.000155049 | D187: =IF('DF raw data'!L187="","",'DF raw data'!L187) -> -5.28511e-05 | F187: -7.092754532e-06 | G187: -1.8044495e-06 | H187: -1.597287055e-05 | J187: -0.0001815445581 | K187: -0.003689197909 | L187: -0.0007693687837 | M187: -0.02813491101 | N187: 1.645566023e-05
A188: =IF('DF raw data'!I188="","",'DF raw data'!I188) -> -239.5 | B188: =IF('DF raw data'!J188="","",'DF raw data'!J188) -> -3.1925e-05 | C188: =IF('DF raw data'!K188="","",'DF raw data'!K188) -> 0.000148052 | D188: =IF('DF raw data'!L188="","",'DF raw data'!L188) -> -5.25455e-05 | F188: -1.082386933e-05 | G188: -8.832936e-06 | H188: -1.566589535e-05 | J188: -0.0001869564927 | K188: -0.003782676155 | L188: -0.0007737852517 | M188: -0.02852180364 | N188: 1.67725084e-05
A189: =IF('DF raw data'!I189="","",'DF raw data'!I189) -> -239 | B189: =IF('DF raw data'!J189="","",'DF raw data'!J189) -> -2.93031e-05 | C189: =IF('DF raw data'!K189="","",'DF raw data'!K189) -> 0.000143402 | D189: =IF('DF raw data'!L189="","",'DF raw data'!L189) -> -4.79129e-05 | F189: -8.190170782e-06 | G189: -1.3503861e-05 | H189: -1.101244865e-05 | J189: -0.0001910515781 | K189: -0.003878201944 | L189: -0.0007805371822 | M189: -0.02891207223 | N189: 1.70953779e-05
A190: =IF('DF raw data'!I190="","",'DF raw data'!I190) -> -238.5 | B190: =IF('DF raw data'!J190="","",'DF raw data'!J190) -> -1.53375e-05 | C190: =IF('DF raw data'!K190="","",'DF raw data'!K190) -> 0.000158496 | D190: =IF('DF raw data'!L190="","",'DF raw data'!L190) -> -4.52409e-05 | F190: 5.838274418e-06 | G190: 1.658062e-06 | H190: -8.32842465e-06 | J190: -0.0001881324409 | K190: -0.003972268165 | L190: -0.0007797081512 | M190: -0.0293019263 | N190: 1.741704721e-05
A191: =IF('DF raw data'!I191="","",'DF raw data'!I191) -> -238 | B191: =IF('DF raw data'!J191="","",'DF raw data'!J191) -> -2.09807e-05 | C191: =IF('DF raw data'!K191="","",'DF raw data'!K191) -> 0.000148338 | D191: =IF('DF raw data'!L191="","",'DF raw data'!L191) -> -3.81214e-05 | F191: 1.696800175e-07 | G191: -8.545649e-06 | H191: -1.1768869e-06 | J191: -0.0001880476009 | K191: -0.004066291965 | L191: -0.0007839809757 | M191: -0.02969391679 | N191: 1.774204124e-05
A192: =IF('DF raw data'!I192="","",'DF raw data'!I192) -> -237.5 | B192: =IF('DF raw data'!J192="","",'DF raw data'!J192) -> -2.90499e-05 | C192: =IF('DF raw data'!K192="","",'DF raw data'!K192) -> 0.000150328 | D192: =IF('DF raw data'!L192="","",'DF raw data'!L192) -> -4.06992e-05 | F192: -7.935831382e-06 | G192: -6.546694e-06 | H192: -3.766287e-06 | J192: -0.0001920155166 | K192: -0.004162299724 | L192: -0.0007872543227 | M192: -0.03008754395 | N192: 1.807036091e-05
A193: =IF('DF raw data'!I193="","",'DF raw data'!I193) -> -237 | B193: =IF('DF raw data'!J193="","",'DF raw data'!J193) -> -2.49465e-05 | C193: =IF('DF raw data'!K193="","",'DF raw data'!K193) -> 0.000151064 | D193: =IF('DF raw data'!L193="","",'DF raw data'!L193) -> -4.79327e-05 | F193: -3.813966082e-06 | G193: -5.807382e-06 | H193: -1.103233775e-05 | J193: -0.0001939224997 | K193: -0.004259260974 | L193: -0.0007901580137 | M193: -0.03048262296 | N193: 1.840133872e-05
A194: =IF('DF raw data'!I194="","",'DF raw data'!I194) -> -236.5 | B194: =IF('DF raw data'!J194="","",'DF raw data'!J194) -> -2.86611e-05 | C194: =IF('DF raw data'!K194="","",'DF raw data'!K194) -> 0.000156572 | D194: =IF('DF raw data'!L194="","",'DF raw data'!L194) -> -4.74717e-05 | F194: -7.545281782e-06 | G194: -2.74596e-07 | H194: -1.056926325e-05 | J194: -0.0001976951405 | K194: -0.004358108544 | L194: -0.0007902953117 | M194: -0.03087777062 | N194: 1.873316374e-05
A195: =IF('DF raw data'!I195="","",'DF raw data'!I195) -> -236 | B195: =IF('DF raw data'!J195="","",'DF raw data'!J195) -> -2.09119e-05 | C195: =IF('DF raw data'!K195="","",'DF raw data'!K195) -> 0.00015744 | D195: =IF('DF raw data'!L195="","",'DF raw data'!L195) -> -4.56994e-05 | F195: =(1-$G$1*($B$54-$G$2))*(B195-F$5) -> 2.387896175e-07 | G195: =(1-$G$1*($B$54-$G$2))*(C195-G$5) -> 5.9731e-07 | H195: =(1-$G$1*($B$54-$G$2))*(D195-H$5) -> -8.7889879e-06 | J195: -0.0001975757457 | K195: -0.004456896417 | L195: -0.0007899966567 | M195: -0.03127276894 | N195: 1.906472919e-05
A196: =IF('DF raw data'!I196="","",'DF raw data'!I196) -> -235.5 | B196: =IF('DF raw data'!J196="","",'DF raw data'!J196) -> -3.65422e-05 | C196: =IF('DF raw data'!K196="","",'DF raw data'!K196) -> 0.000155183 | D196: =IF('DF raw data'!L196="","",'DF raw data'!L196) -> -4.52429e-05 | F196: -1.546184673e-05 | G196: -1.6698465e-06 | H196: -8.33043365e-06 | J196: =F196*$G$3+J195 -> -0.0002053066691 | K196: =J196*$G$3+K195 -> -0.004559549751 | L196: =G196*$G$3+L195 -> -0.00079083158 | M196: =L196*$G$3+M195 -> -0.03166818473 | N196: =(J196^2+L196^2)*$G$3+N195 -> 1.93985119e-05
A197: =IF('DF raw data'!I197="","",'DF raw data'!I197) -> -235 | B197: =IF('DF raw data'!J197="","",'DF raw data'!J197) -> -2.78972e-05 | C197: =IF('DF raw data'!K197="","",'DF raw data'!K197) -> 0.000164127 | D197: =IF('DF raw data'!L197="","",'DF raw data'!L197) -> -4.23153e-05 | F197: -6.777944232e-06 | G197: 7.3144015e-06 | H197: -5.38965945e-06 | J197: -0.0002086956412 | K197: -0.004663897572 | L197: -0.0007871743792 | M197: -0.03206177192 | N197: 1.973011058e-05
A198: =IF('DF raw data'!I198="","",'DF raw data'!I198) -> -234.5 | B198: =IF('DF raw data'!J198="","",'DF raw data'!J198) -> -3.68623e-05 | C198: =IF('DF raw data'!K198="","",'DF raw data'!K198) -> 0.000162699 | D198: =IF('DF raw data'!L198="","",'DF raw data'!L198) -> -4.51286e-05 | F198: -1.578338718e-05 | G198: 5.8799755e-06 | H198: -8.2156193e-06 | J198: -0.0002165873348 | K198: -0.004772191239 | L198: -0.0007842343915 | M198: -0.03245388912 | N198: 2.006107741e-05
A199: =IF('DF raw data'!I199="","",'DF raw data'!I199) -> -234 | B199: =IF('DF raw data'!J199="","",'DF raw data'!J199) -> -2.5459e-05 | C199: =IF('DF raw data'!K199="","",'DF raw data'!K199) -> 0.000164745 | D199: =IF('DF raw data'!L199="","",'DF raw data'!L199) -> -4.82531e-05 | F199: -4.328772332e-06 | G199: 7.9351825e-06 | H199: -1.135417955e-05 | J199: -0.000218751721 | K199: -0.0048815671 | L199: -0.0007802668002 | M199: -0.03284402252 | N199: 2.038941171e-05
A200: =IF('DF raw data'!I200="","",'DF raw data'!I200) -> -233.5 | B200: =IF('DF raw data'!J200="","",'DF raw data'!J200) -> -2.35305e-05 | C200: =IF('DF raw data'!K200="","",'DF raw data'!K200) -> 0.000161883 | D200: =IF('DF raw data'!L200="","",'DF raw data'!L200) -> -5.59241e-05 | F200: -2.391594082e-06 | G200: 5.0603035e-06 | H200: -1.905969905e-05 | J200: -0.000219947518 | K200: -0.004991540859 | L200: -0.0007777366485 | M200: -0.03323289084 | N200: 2.071603731e-05
... 1079 more rows

Sheet 30 mm
A1: =IF('DF raw data'!M1="","",'DF raw data'!M1) -> Number of header lines | B1: =IF('DF raw data'!N1="","",'DF raw data'!N1) -> 54 | C1: =IF('DF raw data'!C1="","",'DF raw data'!C1) ->  | D1: =IF('DF raw data'!D1="","",'DF raw data'!D1) ->  | F1: T_coeff | G1: -0.001 | H1: /degC | J1: IBy total | K1: =J1267*1000 -> 3.854401616 | L1: muTm | M1: =L1267*1000 -> -11.90597314 | R1: DF ref | S1: 1
A2: =IF('DF raw data'!M2="","",'DF raw data'!M2) -> Measured by | B2: =IF('DF raw data'!N2="","",'DF raw data'!N2) -> Danfysik | C2: =IF('DF raw data'!C2="","",'DF raw data'!C2) ->  | D2: =IF('DF raw data'!D2="","",'DF raw data'!D2) ->  | F2: Tcorr | G2: 20 | H2: degC | J2: JBy total | K2: =K1267 -> -3.664665825 | L2: muTm^2 | M2: =M1267 -> 0.1712695651
A3: =IF('DF raw data'!M3="","",'DF raw data'!M3) -> Operator | B3: =IF('DF raw data'!N3="","",'DF raw data'!N3) -> PMHA | C3: =IF('DF raw data'!C3="","",'DF raw data'!C3) ->  | D3: =IF('DF raw data'!D3="","",'DF raw data'!D3) ->  | F3: Step | G3: =A68-A67 -> 0.5 | H3: mm | J3: PI total | K3: =N1267 -> 2430.389508 | L3: T^2mm^3
A4: =IF('DF raw data'!M4="","",'DF raw data'!M4) -> Data-time | B4: =IF('DF raw data'!N4="","",'DF raw data'!N4) -> 26-09-2024, 17:33:32 | C4: =IF('DF raw data'!C4="","",'DF raw data'!C4) ->  | D4: =IF('DF raw data'!D4="","",'DF raw data'!D4) -> 
A5: =IF('DF raw data'!M5="","",'DF raw data'!M5) -> Project | B5: =IF('DF raw data'!N5="","",'DF raw data'!N5) -> 504314 | C5: =IF('DF raw data'!C5="","",'DF raw data'!C5) ->  | D5: Bamb avr | F5: =(AVERAGE(B67:B107) + AVERAGE(B1227:B1267))/2 -> -2.24306961e-05 | G5: =(AVERAGE(C67:C107) + AVERAGE(C1227:C1267))/2 -> 0.0001339686768 | H5: =(AVERAGE(D67:D107) + AVERAGE(D1227:D1267))/2 -> -3.927316951e-05
A6: =IF('DF raw data'!M6="","",'DF raw data'!M6) -> Magnet type | B6: =IF('DF raw data'!N6="","",'DF raw data'!N6) -> Dipole | C6: =IF('DF raw data'!C6="","",'DF raw data'!C6) -> 
A7: =IF('DF raw data'!M7="","",'DF raw data'!M7) -> Magnet nr. | B7: =IF('DF raw data'!N7="","",'DF raw data'!N7) -> 2410103 | C7: =IF('DF raw data'!C7="","",'DF raw data'!C7) -> 
A8: =IF('DF raw data'!M8="","",'DF raw data'!M8) -> Meas. number | B8: =IF('DF raw data'!N8="","",'DF raw data'!N8) -> 733 | C8: =IF('DF raw data'!C8="","",'DF raw data'!C8) -> 
A9: =IF('DF raw data'!M9="","",'DF raw data'!M9) -> Add. info | B9: =IF('DF raw data'!N9="","",'DF raw data'!N9) -> X-alignment scan 3) | C9: =IF('DF raw data'!C9="","",'DF raw data'!C9) ->  | D9: =IF('DF raw data'!D9="","",'DF raw data'!D9) -> 
A10: =IF('DF raw data'!M10="","",'DF raw data'!M10) -> Device | B10: =IF('DF raw data'!N10="","",'DF raw data'!N10) -> (HAL) HALL-PROBE | C10: =IF('DF raw data'!C10="","",'DF raw data'!C10) ->  | D10: =IF('DF raw data'!D10="","",'DF raw data'!D10) -> 
A11: =IF('DF raw data'!M11="","",'DF raw data'!M11) -> Goal | B11: =IF('DF raw data'!N11="","",'DF raw data'!N11) -> (AXI) AXis Integral (Line, EFB) | C11: =IF('DF raw data'!C11="","",'DF raw data'!C11) ->  | D11: =IF('DF raw data'!D11="","",'DF raw data'!D11) -> 
A12: =IF('DF raw data'!M12="","",'DF raw data'!M12) -> Power supply mode | B12: =IF('DF raw data'!N12="","",'DF raw data'!N12) -> (PM) Permanent Magnet (no MPS in use) | C12: =IF('DF raw data'!C12="","",'DF raw data'!C12) ->  | D12: =IF('DF raw data'!D12="","",'DF raw data'!D12) -> 
A13: =IF('DF raw data'!M13="","",'DF raw data'!M13) -> Data format | B13: =IF('DF raw data'!N13="","",'DF raw data'!N13) -> Raw data text file | C13: =IF('DF raw data'!C13="","",'DF raw data'!C13) ->  | D13: =IF('DF raw data'!D13="","",'DF raw data'!D13) -> 
A14: =IF('DF raw data'!M14="","",'DF raw data'!M14) -> Direction of the pos. x-axis | B14: =IF('DF raw data'!N14="","",'DF raw data'!N14) -> See test program | C14: =IF('DF raw data'!C14="","",'DF raw data'!C14) ->  | D14: =IF('DF raw data'!D14="","",'DF raw data'!D14) -> 
A15: =IF('DF raw data'!M15="","",'DF raw data'!M15) -> Direction of the pos. y-axis | B15: =IF('DF raw data'!N15="","",'DF raw data'!N15) -> Vertical up | C15: =IF('DF raw data'!C15="","",'DF raw data'!C15) ->  | D15: =IF('DF raw data'!D15="","",'DF raw data'!D15) -> 
A16: =IF('DF raw data'!M16="","",'DF raw data'!M16) -> Direction of the pos. z-axis | B16: =IF('DF raw data'!N16="","",'DF raw data'!N16) -> See test program | C16: =IF('DF raw data'!C16="","",'DF raw data'!C16) ->  | D16: =IF('DF raw data'!D16="","",'DF raw data'!D16) -> 
A17: =IF('DF raw data'!M17="","",'DF raw data'!M17) -> Mapper type | B17: =IF('DF raw data'!N17="","",'DF raw data'!N17) -> Precision Hall Mapper | C17: =IF('DF raw data'!C17="","",'DF raw data'!C17) ->  | D17: =IF('DF raw data'!D17="","",'DF raw data'!D17) -> 
A18: =IF('DF raw data'!M18="","",'DF raw data'!M18) -> Mapper Danfysik Reg. Number | B18: =IF('DF raw data'!N18="","",'DF raw data'!N18) -> 2033-D (mapper 1) | C18: =IF('DF raw data'!C18="","",'DF raw data'!C18) ->  | D18: =IF('DF raw data'!D18="","",'DF raw data'!D18) -> 
A19: =IF('DF raw data'!M19="","",'DF raw data'!M19) -> Measurement consept | B19: =IF('DF raw data'!N19="","",'DF raw data'!N19) -> Square line grid | C19: =IF('DF raw data'!C19="","",'DF raw data'!C19) ->  | D19: =IF('DF raw data'!D19="","",'DF raw data'!D19) -> 
A20: =IF('DF raw data'!M20="","",'DF raw data'!M20) -> Mode | B20: =IF('DF raw data'!N20="","",'DF raw data'!N20) -> On-the-fly measurement | C20: =IF('DF raw data'!C20="","",'DF raw data'!C20) ->  | D20: =IF('DF raw data'!D20="","",'DF raw data'!D20) -> 
A21: =IF('DF raw data'!M21="","",'DF raw data'!M21) ->  | B21: =IF('DF raw data'!N21="","",'DF raw data'!N21) ->  | C21: =IF('DF raw data'!C21="","",'DF raw data'!C21) ->  | D21: =IF('DF raw data'!D21="","",'DF raw data'!D21) -> 
A22: =IF('DF raw data'!M22="","",'DF raw data'!M22) -> Probe Name | B22: =IF('DF raw data'!N22="","",'DF raw data'!N22) -> ID12_By | C22: =IF('DF raw data'!C22="","",'DF raw data'!C22) ->  | D22: =IF('DF raw data'!D22="","",'DF raw data'!D22) -> 
A23: =IF('DF raw data'!M23="","",'DF raw data'!M23) -> Probe Type | B23: =IF('DF raw data'!N23="","",'DF raw data'!N23) -> DF_ID_3D_Bxyz | C23: =IF('DF raw data'!C23="","",'DF raw data'!C23) ->  | D23: =IF('DF raw data'!D23="","",'DF raw data'!D23) -> 
A24: =IF('DF raw data'!M24="","",'DF raw data'!M24) -> Probe Danfysik Reg. Number | B24: =IF('DF raw data'!N24="","",'DF raw data'!N24) -> 2277 | C24: =IF('DF raw data'!C24="","",'DF raw data'!C24) ->  | D24: =IF('DF raw data'!D24="","",'DF raw data'!D24) -> 
A25: =IF('DF raw data'!M25="","",'DF raw data'!M25) -> Probe Axis | B25: =IF('DF raw data'!N25="","",'DF raw data'!N25) -> By | C25: =IF('DF raw data'!C25="","",'DF raw data'!C25) ->  | D25: =IF('DF raw data'!D25="","",'DF raw data'!D25) -> 
A26: =IF('DF raw data'!M26="","",'DF raw data'!M26) -> Probe Current Supply | B26: =IF('DF raw data'!N26="","",'DF raw data'!N26) -> 1825-D | C26: =IF('DF raw data'!C26="","",'DF raw data'!C26) ->  | D26: =IF('DF raw data'!D26="","",'DF raw data'!D26) -> 
A27: =IF('DF raw data'!M27="","",'DF raw data'!M27) -> Probe Gain Correction | B27: =IF('DF raw data'!N27="","",'DF raw data'!N27) -> 0.99611 | C27: =IF('DF raw data'!C27="","",'DF raw data'!C27) ->  | D27: =IF('DF raw data'!D27="","",'DF raw data'!D27) -> 
A28: =IF('DF raw data'!M28="","",'DF raw data'!M28) -> Probe Offset Correction | B28: =IF('DF raw data'!N28="","",'DF raw data'!N28) -> 0.0027577 | C28: =IF('DF raw data'!C28="","",'DF raw data'!C28) ->  | D28: =IF('DF raw data'!D28="","",'DF raw data'!D28) -> 
A29: =IF('DF raw data'!M29="","",'DF raw data'!M29) -> DVM Number | B29: =IF('DF raw data'!N29="","",'DF raw data'!N29) -> 2 | C29: =IF('DF raw data'!C29="","",'DF raw data'!C29) ->  | D29: =IF('DF raw data'!D29="","",'DF raw data'!D29) -> 
A30: =IF('DF raw data'!M30="","",'DF raw data'!M30) -> DVM Type | B30: =IF('DF raw data'!N30="","",'DF raw data'!N30) -> K2701 | C30: =IF('DF raw data'!C30="","",'DF raw data'!C30) ->  | D30: =IF('DF raw data'!D30="","",'DF raw data'!D30) -> 
A31: =IF('DF raw data'!M31="","",'DF raw data'!M31) -> DVM Danfysik Reg. Number | B31: =IF('DF raw data'!N31="","",'DF raw data'!N31) -> 1743-D | C31: =IF('DF raw data'!C31="","",'DF raw data'!C31) ->  | D31: =IF('DF raw data'!D31="","",'DF raw data'!D31) -> 
A32: =IF('DF raw data'!M32="","",'DF raw data'!M32) -> Probe Name | B32: =IF('DF raw data'!N32="","",'DF raw data'!N32) -> ID12_Bx | C32: =IF('DF raw data'!C32="","",'DF raw data'!C32) ->  | D32: =IF('DF raw data'!D32="","",'DF raw data'!D32) -> 
A33: =IF('DF raw data'!M33="","",'DF raw data'!M33) -> Probe Type | B33: =IF('DF raw data'!N33="","",'DF raw data'!N33) -> DF_ID_3D_Bxyz | C33: =IF('DF raw data'!C33="","",'DF raw data'!C33) ->  | D33: =IF('DF raw data'!D33="","",'DF raw data'!D33) -> 
A34: =IF('DF raw data'!M34="","",'DF raw data'!M34) -> Probe Danfysik Reg. Number | B34: =IF('DF raw data'!N34="","",'DF raw data'!N34) -> 2277 | C34: =IF('DF raw data'!C34="","",'DF raw data'!C34) ->  | D34: =IF('DF raw data'!D34="","",'DF raw data'!D34) -> 
A35: =IF('DF raw data'!M35="","",'DF raw data'!M35) -> Probe Axis | B35: =IF('DF raw data'!N35="","",'DF raw data'!N35) -> Bx | C35: =IF('DF raw data'!C35="","",'DF raw data'!C35) ->  | D35: =IF('DF raw data'!D35="","",'DF raw data'!D35) -> 
A36: =IF('DF raw data'!M36="","",'DF raw data'!M36) -> Probe Current Supply | B36: =IF('DF raw data'!N36="","",'DF raw data'!N36) -> 1825-D | C36: =IF('DF raw data'!C36="","",'DF raw data'!C36) ->  | D36: =IF('DF raw data'!D36="","",'DF raw data'!D36) -> 
A37: =IF('DF raw data'!M37="","",'DF raw data'!M37) -> Probe Gain Correction | B37: =IF('DF raw data'!N37="","",'DF raw data'!N37) -> 1 | C37: =IF('DF raw data'!C37="","",'DF raw data'!C37) ->  | D37: =IF('DF raw data'!D37="","",'DF raw data'!D37) -> 
A38: =IF('DF raw data'!M38="","",'DF raw data'!M38) -> Probe Offset Correction | B38: =IF('DF raw data'!N38="","",'DF raw data'!N38) -> -0.17545 | C38: =IF('DF raw data'!C38="","",'DF raw data'!C38) ->  | D38: =IF('DF raw data'!D38="","",'DF raw data'!D38) -> 
A39: =IF('DF raw data'!M39="","",'DF raw data'!M39) -> DVM Number | B39: =IF('DF raw data'!N39="","",'DF raw data'!N39) -> 3 | C39: =IF('DF raw data'!C39="","",'DF raw data'!C39) ->  | D39: =IF('DF raw data'!D39="","",'DF raw data'!D39) -> 
A40: =IF('DF raw data'!M40="","",'DF raw data'!M40) -> DVM Type | B40: =IF('DF raw data'!N40="","",'DF raw data'!N40) -> K2701 | C40: =IF('DF raw data'!C40="","",'DF raw data'!C40) ->  | D40: =IF('DF raw data'!D40="","",'DF raw data'!D40) -> 
A41: =IF('DF raw data'!M41="","",'DF raw data'!M41) -> DVM Danfysik Reg. Number | B41: =IF('DF raw data'!N41="","",'DF raw data'!N41) -> 1744-D | C41: =IF('DF raw data'!C41="","",'DF raw data'!C41) ->  | D41: =IF('DF raw data'!D41="","",'DF raw data'!D41) -> 
A42: =IF('DF raw data'!M42="","",'DF raw data'!M42) -> Probe Name | B42: =IF('DF raw data'!N42="","",'DF raw data'!N42) -> ID12_Bz | C42: =IF('DF raw data'!C42="","",'DF raw data'!C42) ->  | D42: =IF('DF raw data'!D42="","",'DF raw data'!D42) -> 
A43: =IF('DF raw data'!M43="","",'DF raw data'!M43) -> Probe Type | B43: =IF('DF raw data'!N43="","",'DF raw data'!N43) -> DF_ID_3D_Bxyz | C43: =IF('DF raw data'!C43="","",'DF raw data'!C43) ->  | D43: =IF('DF raw data'!D43="","",'DF raw data'!D43) -> 
A44: =IF('DF raw data'!M44="","",'DF raw data'!M44) -> Probe Danfysik Reg. Number | B44: =IF('DF raw data'!N44="","",'DF raw data'!N44) -> 2277 | C44: =IF('DF raw data'!C44="","",'DF raw data'!C44) ->  | D44: =IF('DF raw data'!D44="","",'DF raw data'!D44) -> 
A45: =IF('DF raw data'!M45="","",'DF raw data'!M45) -> Probe Axis | B45: =IF('DF raw data'!N45="","",'DF raw data'!N45) -> Bz | C45: =IF('DF raw data'!C45="","",'DF raw data'!C45) ->  | D45: =IF('DF raw data'!D45="","",'DF raw data'!D45) -> 
A46: =IF('DF raw data'!M46="","",'DF raw data'!M46) -> Probe Current Supply | B46: =IF('DF raw data'!N46="","",'DF raw data'!N46) -> 1825-D | C46: =IF('DF raw data'!C46="","",'DF raw data'!C46) ->  | D46: =IF('DF raw data'!D46="","",'DF raw data'!D46) -> 
A47: =IF('DF raw data'!M47="","",'DF raw data'!M47) -> Probe Gain Correction | B47: =IF('DF raw data'!N47="","",'DF raw data'!N47) -> 1 | C47: =IF('DF raw data'!C47="","",'DF raw data'!C47) ->  | D47: =IF('DF raw data'!D47="","",'DF raw data'!D47) -> 
A48: =IF('DF raw data'!M48="","",'DF raw data'!M48) -> Probe Offset Correction | B48: =IF('DF raw data'!N48="","",'DF raw data'!N48) -> 0.0072997 | C48: =IF('DF raw data'!C48="","",'DF raw data'!C48) ->  | D48: =IF('DF raw data'!D48="","",'DF raw data'!D48) -> 
A49: =IF('DF raw data'!M49="","",'DF raw data'!M49) -> DVM Number | B49: =IF('DF raw data'!N49="","",'DF raw data'!N49) -> 8 | C49: =IF('DF raw data'!C49="","",'DF raw data'!C49) ->  | D49: =IF('DF raw data'!D49="","",'DF raw data'!D49) -> 
A50: =IF('DF raw data'!M50="","",'DF raw data'!M50) -> DVM Type | B50: =IF('DF raw data'!N50="","",'DF raw data'!N50) -> K2700 | C50: =IF('DF raw data'!C50="","",'DF raw data'!C50) ->  | D50: =IF('DF raw data'!D50="","",'DF raw data'!D50) -> 
A51: =IF('DF raw data'!M51="","",'DF raw data'!M51) -> DVM Danfysik Reg. Number | B51: =IF('DF raw data'!N51="","",'DF raw data'!N51) -> 1756-D | C51: =IF('DF raw data'!C51="","",'DF raw data'!C51) ->  | D51: =IF('DF raw data'!D51="","",'DF raw data'!D51) -> 
A52: =IF('DF raw data'!M52="","",'DF raw data'!M52) -> NTC voltage | B52: =IF('DF raw data'!N52="","",'DF raw data'!N52) -> 0.42245 | C52: =IF('DF raw data'!C52="","",'DF raw data'!C52) ->  | D52: =IF('DF raw data'!D52="","",'DF raw data'!D52) -> 
A53: =IF('DF raw data'!M53="","",'DF raw data'!M53) -> PS-Gap: | B53: =IF('DF raw data'!N53="","",'DF raw data'!N53) -> 30 | C53: =IF('DF raw data'!C53="","",'DF raw data'!C53) ->  | D53: =IF('DF raw data'!D53="","",'DF raw data'!D53) -> 
A54: =IF('DF raw data'!M54="","",'DF raw data'!M54) -> PS-Temperature: | B54: =IF('DF raw data'!N54="","",'DF raw data'!N54) -> 24.5 | C54: =IF('DF raw data'!C54="","",'DF raw data'!C54) ->  | D54: =IF('DF raw data'!D54="","",'DF raw data'!D54) -> 
A55: =IF('DF raw data'!M55="","",'DF raw data'!M55) -> PS-Encoder: | B55: =IF('DF raw data'!N55="","",'DF raw data'!N55) -> 39.9213 | C55: =IF('DF raw data'!C55="","",'DF raw data'!C55) ->  | D55: =IF('DF raw data'!D55="","",'DF raw data'!D55) -> 
A56: =IF('DF raw data'!M56="","",'DF raw data'!M56) ->  | B56: =IF('DF raw data'!N56="","",'DF raw data'!N56) -> 
A57: =IF('DF raw data'!M57="","",'DF raw data'!M57) -> Monitor-Index | B57: =IF('DF raw data'!N57="","",'DF raw data'!N57) -> [1,1,4]
A58: =IF('DF raw data'!M58="","",'DF raw data'!M58) ->  | B58: =IF('DF raw data'!N58="","",'DF raw data'!N58) -> 
A59: =IF('DF raw data'!M59="","",'DF raw data'!M59) -> Time [s] | B59: =IF('DF raw data'!N59="","",'DF raw data'!N59) -> Y [mm]
A60: =IF('DF raw data'!M60="","",'DF raw data'!M60) ->  | B60: =IF('DF raw data'!N60="","",'DF raw data'!N60) -> 
A61: =IF('DF raw data'!M61="","",'DF raw data'!M61) -> 208 | B61: =IF('DF raw data'!N61="","",'DF raw data'!N61) -> 31.65
A62: =IF('DF raw data'!M62="","",'DF raw data'!M62) ->  | B62: =IF('DF raw data'!N62="","",'DF raw data'!N62) -> 
A63: =IF('DF raw data'!M63="","",'DF raw data'!M63) -> Measurement-Index | B63: =IF('DF raw data'!N63="","",'DF raw data'!N63) -> [1,1,1201,2]
A64: =IF('DF raw data'!M64="","",'DF raw data'!M64) ->  | B64: =IF('DF raw data'!N64="","",'DF raw data'!N64) -> 
A65: =IF('DF raw data'!M65="","",'DF raw data'!M65) -> Z [mm] | B65: =IF('DF raw data'!N65="","",'DF raw data'!N65) -> By [T] | C65: =IF('DF raw data'!O65="","",'DF raw data'!O65) -> Bx [T] | D65: =IF('DF raw data'!P65="","",'DF raw data'!P65) -> Bz [T] | F65: By_corr | G65: Bx_corr | H65: Bz_corr | J65: Iy | K65: Jy | L65: Ix | M65: Jx | N65: PI
B66: =IF('DF raw data'!N66="","",'DF raw data'!N66) ->  | C66: =IF('DF raw data'!O66="","",'DF raw data'!O66) ->  | D66: =IF('DF raw data'!P66="","",'DF raw data'!P66) -> 
A67: =IF('DF raw data'!M67="","",'DF raw data'!M67) -> -300 | B67: =IF('DF raw data'!N67="","",'DF raw data'!N67) -> -1.4694e-05 | C67: =IF('DF raw data'!O67="","",'DF raw data'!O67) -> 0.000162015 | D67: =IF('DF raw data'!P67="","",'DF raw data'!P67) -> -3.91875e-05 | F67: =(1-$G$1*($B$54-$G$2))*(B67-F$5) -> 7.77151123e-06 | G67: =(1-$G$1*($B$54-$G$2))*(C67-G$5) -> 2.817253162e-05 | H67: =(1-$G$1*($B$54-$G$2))*(D67-H$5) -> 8.6055025e-08 | J67: =F67*$G$3+J66 -> 3.885755615e-06 | K67: =J67*$G$3+K66 -> 1.942877807e-06 | L67: =G67*$G$3+L66 -> 1.408626581e-05 | M67: =L67*$G$3+M66 -> 7.043132906e-06 | N67: =(J67^2+L67^2)*$G$3+N66 -> 1.067609906e-10
A68: =IF('DF raw data'!M68="","",'DF raw data'!M68) -> -299.5 | B68: =IF('DF raw data'!N68="","",'DF raw data'!N68) -> -2.00112e-05 | C68: =IF('DF raw data'!O68="","",'DF raw data'!O68) -> 0.000168086 | D68: =IF('DF raw data'!P68="","",'DF raw data'!P68) -> -3.92116e-05 | F68: 2.43038383e-06 | G68: 3.427085112e-05 | H68: 6.1846575e-08 | J68: =F68*$G$3+J67 -> 5.10094753e-06 | K68: =J68*$G$3+K67 -> 4.493351572e-06 | L68: =G68*$G$3+L67 -> 3.122169137e-05 | M68: =L68*$G$3+M67 -> 2.265397859e-05 | N68: =(J68^2+L68^2)*$G$3+N67 -> 6.071678296e-10
A69: =IF('DF raw data'!M69="","",'DF raw data'!M69) -> -299 | B69: =IF('DF raw data'!N69="","",'DF raw data'!N69) -> -1.16824e-05 | C69: =IF('DF raw data'!O69="","",'DF raw data'!O69) -> 0.000166151 | D69: =IF('DF raw data'!P69="","",'DF raw data'!P69) -> -3.94451e-05 | F69: 1.079666343e-05 | G69: 3.232714362e-05 | H69: -1.72704175e-07 | J69: 1.049927924e-05 | K69: 9.742991195e-06 | L69: 4.738526319e-05 | M69: 4.634661019e-05 | N69: 1.784966846e-09
A70: =IF('DF raw data'!M70="","",'DF raw data'!M70) -> -298.5 | B70: =IF('DF raw data'!N70="","",'DF raw data'!N70) -> -2.488e-05 | C70: =IF('DF raw data'!O70="","",'DF raw data'!O70) -> 0.000170909 | D70: =IF('DF raw data'!P70="","",'DF raw data'!P70) -> -3.94316e-05 | F70: -2.46032577e-06 | G70: 3.710655463e-05 | H70: -1.59143425e-07 | J70: 9.26911636e-06 | K70: 1.437754937e-05 | L70: 6.59385405e-05 | M70: 7.931588044e-05 | N70: 4.001870666e-09
A71: =IF('DF raw data'!M71="","",'DF raw data'!M71) -> -298 | B71: =IF('DF raw data'!N71="","",'DF raw data'!N71) -> -2.42395e-05 | C71: =IF('DF raw data'!O71="","",'DF raw data'!O71) -> 0.000170644 | D71: =IF('DF raw data'!P71="","",'DF raw data'!P71) -> -3.89715e-05 | F71: -1.81694352e-06 | G71: 3.684036212e-05 | H71: 3.03027025e-07 | J71: 8.3606446e-06 | K71: 1.855787167e-05 | L71: 8.435872156e-05 | M71: 0.0001214952412 | N71: 7.595017807e-09
A72: =IF('DF raw data'!M72="","",'DF raw data'!M72) -> -297.5 | B72: =IF('DF raw data'!N72="","",'DF raw data'!N72) -> -2.09724e-05 | C72: =IF('DF raw data'!O72="","",'DF raw data'!O72) -> 0.000164674 | D72: =IF('DF raw data'!P72="","",'DF raw data'!P72) -> -3.85705e-05 | F72: 1.46485843e-06 | G72: 3.084349712e-05 | H72: 7.05831525e-07 | J72: 9.093073815e-06 | K72: 2.310440858e-05 | L72: 9.978047012e-05 | M72: 0.0001713854763 | N72: 1.261443091e-08
A73: =IF('DF raw data'!M73="","",'DF raw data'!M73) -> -297 | B73: =IF('DF raw data'!N73="","",'DF raw data'!N73) -> -2.49446e-05 | C73: =IF('DF raw data'!O73="","",'DF raw data'!O73) -> 0.00016732 | D73: =IF('DF raw data'!P73="","",'DF raw data'!P73) -> -3.85865e-05 | F73: -2.52521647e-06 | G73: 3.350140412e-05 | H73: 6.89759525e-07 | J73: 7.83046558e-06 | K73: 2.701964137e-05 | L73: 0.0001165311722 | M73: 0.0002296510624 | N73: 1.943484605e-08
A74: =IF('DF raw data'!M74="","",'DF raw data'!M74) -> -296.5 | B74: =IF('DF raw data'!N74="","",'DF raw data'!N74) -> -1.74487e-05 | C74: =IF('DF raw data'!O74="","",'DF raw data'!O74) -> 0.000169857 | D74: =IF('DF raw data'!P74="","",'DF raw data'!P74) -> -3.88329e-05 | F74: 5.00441508e-06 | G74: 3.604982063e-05 | H74: 4.42250725e-07 | J74: 1.033267312e-05 | K74: 3.218597793e-05 | L74: 0.0001345560825 | M74: 0.0002969291036 | N74: 2.854089779e-08
A75: =IF('DF raw data'!M75="","",'DF raw data'!M75) -> -296 | B75: =IF('DF raw data'!N75="","",'DF raw data'!N75) -> -2.79555e-05 | C75: =IF('DF raw data'!O75="","",'DF raw data'!O75) -> 0.000153571 | D75: =IF('DF raw data'!P75="","",'DF raw data'!P75) -> -3.87833e-05 | F75: -5.54966552e-06 | G75: 1.969053362e-05 | H75: 4.92073925e-07 | J75: 7.55784036e-06 | K75: 3.596489811e-05 | L75: 0.0001444013493 | M75: 0.0003691297783 | N75: 3.899533311e-08
A76: =IF('DF raw data'!M76="","",'DF raw data'!M76) -> -295.5 | B76: =IF('DF raw data'!N76="","",'DF raw data'!N76) -> -2.05242e-05 | C76: =IF('DF raw data'!O76="","",'DF raw data'!O76) -> 0.000150625 | D76: =IF('DF raw data'!P76="","",'DF raw data'!P76) -> -3.84404e-05 | F76: 1.91507533e-06 | G76: 1.673127662e-05 | H76: 8.36516975e-07 | J76: 8.515378025e-06 | K76: 4.022258712e-05 | L76: 0.0001527669876 | M76: 0.0004455132721 | N76: 5.070046519e-08
A77: =IF('DF raw data'!M77="","",'DF raw data'!M77) -> -295 | B77: =IF('DF raw data'!N77="","",'DF raw data'!N77) -> -2.6034e-05 | C77: =IF('DF raw data'!O77="","",'DF raw data'!O77) -> 0.000160756 | D77: =IF('DF raw data'!P77="","",'DF raw data'!P77) -> -3.82647e-05 | F77: -3.61951877e-06 | G77: 2.690786612e-05 | H77: 1.013007625e-06 | J77: 6.70561864e-06 | K77: 4.357539644e-05 | L77: 0.0001662209207 | M77: 0.0005286237324 | N77: 6.453764509e-08
A78: =IF('DF raw data'!M78="","",'DF raw data'!M78) -> -294.5 | B78: =IF('DF raw data'!N78="","",'DF raw data'!N78) -> -1.46297e-05 | C78: =IF('DF raw data'!O78="","",'DF raw data'!O78) -> 0.000158449 | D78: =IF('DF raw data'!P78="","",'DF raw data'!P78) -> -3.87882e-05 | F78: 7.83610058e-06 | G78: 2.459048462e-05 | H78: 4.87151875e-07 | J78: 1.062366893e-05 | K78: 4.888723091e-05 | L78: 0.000178516163 | M78: 0.0006178818139 | N78: 8.052808649e-08
A79: =IF('DF raw data'!M79="","",'DF raw data'!M79) -> -294 | B79: =IF('DF raw data'!N79="","",'DF raw data'!N79) -> -2.28299e-05 | C79: =IF('DF raw data'!O79="","",'DF raw data'!O79) -> 0.000161951 | D79: =IF('DF raw data'!P79="","",'DF raw data'!P79) -> -3.92686e-05 | F79: -4.0100032e-07 | G79: 2.810824362e-05 | H79: 4.590075e-09 | J79: 1.042316877e-05 | K79: 5.409881529e-05 | L79: 0.0001925702848 | M79: 0.0007141669563 | N79: 9.912406501e-08
A80: =IF('DF raw data'!M80="","",'DF raw data'!M80) -> -293.5 | B80: =IF('DF raw data'!N80="","",'DF raw data'!N80) -> -2.86601e-05 | C80: =IF('DF raw data'!O80="","",'DF raw data'!O80) -> 0.000168244 | D80: =IF('DF raw data'!P80="","",'DF raw data'!P80) -> -3.90957e-05 | F80: -6.25743622e-06 | G80: 3.442956213e-05 | H80: 1.78268125e-07 | J80: 7.29445066e-06 | K80: 5.774604062e-05 | L80: 0.0002097850659 | M80: 0.0008190594893 | N80: 1.211555564e-07
A81: =IF('DF raw data'!M81="","",'DF raw data'!M81) -> -293 | B81: =IF('DF raw data'!N81="","",'DF raw data'!N81) -> -2.11647e-05 | C81: =IF('DF raw data'!O81="","",'DF raw data'!O81) -> 0.000169895 | D81: =IF('DF raw data'!P81="","",'DF raw data'!P81) -> -3.86163e-05 | F81: 1.27169308e-06 | G81: 3.608799163e-05 | H81: 6.59825425e-07 | J81: 7.9302972e-06 | K81: 6.171118922e-05 | L81: 0.0002278290617 | M81: 0.0009329740201 | N81: 1.471400419e-07
A82: =IF('DF raw data'!M82="","",'DF raw data'!M82) -> -292.5 | B82: =IF('DF raw data'!N82="","",'DF raw data'!N82) -> -2.98779e-05 | C82: =IF('DF raw data'!O82="","",'DF raw data'!O82) -> 0.000166647 | D82: =IF('DF raw data'!P82="","",'DF raw data'!P82) -> -3.833e-05 | F82: -7.48071632e-06 | G82: 3.282537562e-05 | H82: 9.47413775e-07 | J82: 4.18993904e-06 | K82: 6.380615874e-05 | L82: 0.0002442417495 | M82: 0.001055094895 | N82: 1.769758358e-07
A83: =IF('DF raw data'!M83="","",'DF raw data'!M83) -> -292 | B83: =IF('DF raw data'!N83="","",'DF raw data'!N83) -> -1.80254e-05 | C83: =IF('DF raw data'!O83="","",'DF raw data'!O83) -> 0.000153465 | D83: =IF('DF raw data'!P83="","",'DF raw data'!P83) -> -3.87653e-05 | F83: 4.42511993e-06 | G83: 1.958405663e-05 | H83: 5.10154925e-07 | J83: 6.402499005e-06 | K83: 6.700740825e-05 | L83: 0.0002540337778 | M83: 0.001182111784 | N83: 2.09262912e-07
A84: =IF('DF raw data'!M84="","",'DF raw data'!M84) -> -291.5 | B84: =IF('DF raw data'!N84="","",'DF raw data'!N84) -> -2.2438e-05 | C84: =IF('DF raw data'!O84="","",'DF raw data'!O84) -> 0.000160015 | D84: =IF('DF raw data'!P84="","",'DF raw data'!P84) -> -5.08999e-05 | F84: -7.33677e-09 | G84: 2.616353163e-05 | H84: -1.167905078e-05 | J84: 6.39883062e-06 | K84: 7.020682356e-05 | L84: 0.0002671155436 | M84: 0.001315669556 | N84: 2.449587413e-07
A85: =IF('DF raw data'!M85="","",'DF raw data'!M85) -> -291 | B85: =IF('DF raw data'!N85="","",'DF raw data'!N85) -> -3.23038e-05 | C85: =IF('DF raw data'!O85="","",'DF raw data'!O85) -> 0.000162961 | D85: =IF('DF raw data'!P85="","",'DF raw data'!P85) -> -5.13999e-05 | F85: -9.91753287e-06 | G85: 2.912278862e-05 | H85: -1.218130078e-05 | J85: 1.440064185e-06 | K85: 7.092685565e-05 | L85: 0.0002816769379 | M85: 0.001456508025 | N85: 2.846307269e-07
A86: =IF('DF raw data'!M86="","",'DF raw data'!M86) -> -290.5 | B86: =IF('DF raw data'!N86="","",'DF raw data'!N86) -> -2.97454e-05 | C86: =IF('DF raw data'!O86="","",'DF raw data'!O86) -> 0.000162199 | D86: =IF('DF raw data'!P86="","",'DF raw data'!P86) -> -4.50406e-05 | F86: -7.34762007e-06 | G86: 2.835735962e-05 | H86: -5.793383925e-06 | J86: -2.23374585e-06 | K86: 6.980998272e-05 | L86: 0.0002958556178 | M86: 0.001604435833 | N86: 3.28398495e-07
A87: =IF('DF raw data'!M87="","",'DF raw data'!M87) -> -290 | B87: =IF('DF raw data'!N87="","",'DF raw data'!N87) -> -2.28887e-05 | C87: =IF('DF raw data'!O87="","",'DF raw data'!O87) -> 0.000157359 | D87: =IF('DF raw data'!P87="","",'DF raw data'!P87) -> -4.76792e-05 | F87: -4.6006492e-07 | G87: 2.349557963e-05 | H87: -8.443857625e-06 | J87: -2.46377831e-06 | K87: 6.857809357e-05 | L87: 0.0003076034076 | M87: 0.001758237537 | N87: 3.757114582e-07
A88: =IF('DF raw data'!M88="","",'DF raw data'!M88) -> -289.5 | B88: =IF('DF raw data'!N88="","",'DF raw data'!N88) -> -9.49453e-06 | C88: =IF('DF raw data'!O88="","",'DF raw data'!O88) -> 0.000166266 | D88: =IF('DF raw data'!P88="","",'DF raw data'!P88) -> -5.40549e-05 | F88: 1.299437884e-05 | G88: 3.244266113e-05 | H88: -1.484824828e-05 | J88: 4.033411112e-06 | K88: 7.059479913e-05 | L88: 0.0003238247381 | M88: 0.001920149906 | N88: 4.281508229e-07
A89: =IF('DF raw data'!M89="","",'DF raw data'!M89) -> -289 | B89: =IF('DF raw data'!N89="","",'DF raw data'!N89) -> -2.37852e-05 | C89: =IF('DF raw data'!O89="","",'DF raw data'!O89) -> 0.000164173 | D89: =IF('DF raw data'!P89="","",'DF raw data'!P89) -> -4.81689e-05 | F89: -1.36059917e-06 | G89: 3.034024262e-05 | H89: -8.935761275e-06 | J89: 3.353111527e-06 | K89: 7.227135489e-05 | L89: 0.0003389948594 | M89: 0.002089647336 | N89: 4.85615202e-07
A90: =IF('DF raw data'!M90="","",'DF raw data'!M90) -> -288.5 | B90: =IF('DF raw data'!N90="","",'DF raw data'!N90) -> -2.26993e-05 | C90: =IF('DF raw data'!O90="","",'DF raw data'!O90) -> 0.000153105 | D90: =IF('DF raw data'!P90="","",'DF raw data'!P90) -> -4.30296e-05 | F90: -2.6981262e-07 | G90: 1.922243663e-05 | H90: -3.773334425e-06 | J90: 3.218205217e-06 | K90: 7.38804575e-05 | L90: 0.0003486060778 | M90: 0.002263950375 | N90: 5.463834791e-07
A91: =IF('DF raw data'!M91="","",'DF raw data'!M91) -> -288 | B91: =IF('DF raw data'!N91="","",'DF raw data'!N91) -> -2.25049e-05 | C91: =IF('DF raw data'!O91="","",'DF raw data'!O91) -> 0.000154652 | D91: =IF('DF raw data'!P91="","",'DF raw data'!P91) -> -4.67818e-05 | F91: -7.453782e-08 | G91: 2.077639812e-05 | H91: -7.542419325e-06 | J91: 3.180936307e-06 | K91: 7.547092565e-05 | L91: 0.0003589942768 | M91: 0.002443447513 | N91: 6.108269837e-07
A92: =IF('DF raw data'!M92="","",'DF raw data'!M92) -> -287.5 | B92: =IF('DF raw data'!N92="","",'DF raw data'!N92) -> -3.6409e-05 | C92: =IF('DF raw data'!O92="","",'DF raw data'!O92) -> 0.000154538 | D92: =IF('DF raw data'!P92="","",'DF raw data'!P92) -> -4.38162e-05 | F92: -1.404120627e-05 | G92: 2.066188512e-05 | H92: -4.563474125e-06 | J92: -3.839666828e-06 | K92: 7.355109224e-05 | L92: 0.0003693252194 | M92: 0.002628110123 | N92: 6.79034914e-07
A93: =IF('DF raw data'!M93="","",'DF raw data'!M93) -> -287 | B93: =IF('DF raw data'!N93="","",'DF raw data'!N93) -> -3.00023e-05 | C93: =IF('DF raw data'!O93="","",'DF raw data'!O93) -> 0.000152601 | D93: =IF('DF raw data'!P93="","",'DF raw data'!P93) -> -4.41969e-05 | F93: -7.60567612e-06 | G93: 1.871616863e-05 | H93: -4.945887275e-06 | J93: -7.642504888e-06 | K93: 6.972983979e-05 | L93: 0.0003786833037 | M93: 0.002817451775 | N93: 7.507646402e-07
A94: =IF('DF raw data'!M94="","",'DF raw data'!M94) -> -286.5 | B94: =IF('DF raw data'!N94="","",'DF raw data'!N94) -> -2.51338e-05 | C94: =IF('DF raw data'!O94="","",'DF raw data'!O94) -> 0.000155239 | D94: =IF('DF raw data'!P94="","",'DF raw data'!P94) -> -4.33023e-05 | F94: -2.71526787e-06 | G94: 2.136603962e-05 | H94: -4.047261575e-06 | J94: -9.000138823e-06 | K94: 6.522977038e-05 | L94: 0.0003893663235 | M94: 0.003012134937 | N94: 8.266082084e-07
A95: =IF('DF raw data'!M95="","",'DF raw data'!M95) -> -286 | B95: =IF('DF raw data'!N95="","",'DF raw data'!N95) -> -2.27649e-05 | C95: =IF('DF raw data'!O95="","",'DF raw data'!O95) -> 0.000156039 | D95: =IF('DF raw data'!P95="","",'DF raw data'!P95) -> -4.0884e-05 | F95: -3.3570782e-07 | G95: 2.216963962e-05 | H95: -1.618079225e-06 | J95: -9.167992733e-06 | K95: 6.064577402e-05 | L95: 0.0004004511433 | M95: 0.003212360508 | N95: 9.068307936e-07
A96: =IF('DF raw data'!M96="","",'DF raw data'!M96) -> -285.5 | B96: =IF('DF raw data'!N96="","",'DF raw data'!N96) -> -2.66748e-05 | C96: =IF('DF raw data'!O96="","",'DF raw data'!O96) -> 0.000164888 | D96: =IF('DF raw data'!P96="","",'DF raw data'!P96) -> -3.79616e-05 | F96: -4.26320237e-06 | G96: 3.105846012e-05 | H96: 1.317471575e-06 | J96: -1.129959392e-05 | K96: 5.499597706e-05 | L96: 0.0004159803734 | M96: 0.003420350695 | N96: 9.934144695e-07
A97: =IF('DF raw data'!M97="","",'DF raw data'!M97) -> -285 | B97: =IF('DF raw data'!N97="","",'DF raw data'!N97) -> -2.09774e-05 | C97: =IF('DF raw data'!O97="","",'DF raw data'!O97) -> 0.000158994 | D97: =IF('DF raw data'!P97="","",'DF raw data'!P97) -> -3.08357e-05 | F97: 1.45983593e-06 | G97: 2.513793713e-05 | H97: 8.475438125e-06 | J97: -1.056967595e-05 | K97: 4.971113908e-05 | L97: 0.0004285493419 | M97: 0.003634625366 | N97: 1.085297598e-06
A98: =IF('DF raw data'!M98="","",'DF raw data'!M98) -> -284.5 | B98: =IF('DF raw data'!N98="","",'DF raw data'!N98) -> -1.34109e-05 | C98: =IF('DF raw data'!O98="","",'DF raw data'!O98) -> 0.000158858 | D98: =IF('DF raw data'!P98="","",'DF raw data'!P98) -> -4.14856e-05 | F98: 9.06038518e-06 | G98: 2.500132513e-05 | H98: -2.222386425e-06 | J98: -6.039483363e-06 | K98: 4.66913974e-05 | L98: 0.0004410500045 | M98: 0.003855150368 | N98: 1.182578389e-06
A99: =IF('DF raw data'!M99="","",'DF raw data'!M99) -> -284 | B99: =IF('DF raw data'!N99="","",'DF raw data'!N99) -> -1.84027e-05 | C99: =IF('DF raw data'!O99="","",'DF raw data'!O99) -> 0.000165969 | D99: =IF('DF raw data'!P99="","",'DF raw data'!P99) -> -4.97765e-05 | F99: 4.04612208e-06 | G99: 3.214432462e-05 | H99: -1.055059548e-05 | J99: -4.016422323e-06 | K99: 4.468318624e-05 | L99: 0.0004571221668 | M99: 0.004083711452 | N99: 1.287066792e-06
A100: =IF('DF raw data'!M100="","",'DF raw data'!M100) -> -283.5 | B100: =IF('DF raw data'!N100="","",'DF raw data'!N100) -> -1.63567e-05 | C100: =IF('DF raw data'!O100="","",'DF raw data'!O100) -> 0.000164641 | D100: =IF('DF raw data'!P100="","",'DF raw data'!P100) -> -4.31458e-05 | F100: 6.10132908e-06 | G100: 3.081034863e-05 | H100: -3.890057325e-06 | J100: -9.657577825e-07 | K100: 4.420030735e-05 | L100: 0.0004725273411 | M100: 0.004319975122 | N100: 1.398708303e-06
A101: =IF('DF raw data'!M101="","",'DF raw data'!M101) -> -283 | B101: =IF('DF raw data'!N101="","",'DF raw data'!N101) -> -2.39798e-05 | C101: =IF('DF raw data'!O101="","",'DF raw data'!O101) -> 0.000163632 | D101: =IF('DF raw data'!P101="","",'DF raw data'!P101) -> -4.42873e-05 | F101: -1.55607487e-06 | G101: 2.979680813e-05 | H101: -5.036694075e-06 | J101: -1.743795218e-06 | K101: 4.332840974e-05 | L101: 0.0004874257452 | M101: 0.004563687995 | N101: 1.517501752e-06
A102: =IF('DF raw data'!M102="","",'DF raw data'!M102) -> -282.5 | B102: =IF('DF raw data'!N102="","",'DF raw data'!N102) -> -2.67401e-05 | C102: =IF('DF raw data'!O102="","",'DF raw data'!O102) -> 0.000168913 | D102: =IF('DF raw data'!P102="","",'DF raw data'!P102) -> -3.59557e-05 | F102: -4.32879622e-06 | G102: 3.510157262e-05 | H102: 3.332398125e-06 | J102: -3.908193328e-06 | K102: 4.137431308e-05 | L102: 0.0005049765315 | M102: 0.00481617626 | N102: 1.645010037e-06
A103: =IF('DF raw data'!M103="","",'DF raw data'!M103) -> -282 | B103: =IF('DF raw data'!N103="","",'DF raw data'!N103) -> -2.70558e-05 | C103: =IF('DF raw data'!O103="","",'DF raw data'!O103) -> 0.000164963 | D103: =IF('DF raw data'!P103="","",'DF raw data'!P103) -> -4.32177e-05 | F103: -4.64591687e-06 | G103: 3.113379763e-05 | H103: -3.962280875e-06 | J103: -6.231151763e-06 | K103: 3.825873719e-05 | L103: 0.0005205434303 | M103: 0.005076447976 | N103: 1.780512182e-06
A104: =IF('DF raw data'!M104="","",'DF raw data'!M104) -> -281.5 | B104: =IF('DF raw data'!N104="","",'DF raw data'!N104) -> -1.40492e-05 | C104: =IF('DF raw data'!O104="","",'DF raw data'!O104) -> 0.000170217 | D104: =IF('DF raw data'!P104="","",'DF raw data'!P104) -> -4.5081e-05 | F104: 8.41921283e-06 | G104: 3.641144062e-05 | H104: -5.833965725e-06 | J104: -2.021545348e-06 | K104: 3.724796452e-05 | L104: 0.0005387491506 | M104: 0.005345822551 | N104: 1.925639549e-06
A105: =IF('DF raw data'!M105="","",'DF raw data'!M105) -> -281 | B105: =IF('DF raw data'!N105="","",'DF raw data'!N105) -> -2.67999e-05 | C105: =IF('DF raw data'!O105="","",'DF raw data'!O105) -> 0.00016472 | D105: =IF('DF raw data'!P105="","",'DF raw data'!P105) -> -4.26495e-05 | F105: -4.38886532e-06 | G105: 3.088970413e-05 | H105: -3.391523975e-06 | J105: -4.215978008e-06 | K105: 3.513997552e-05 | L105: 0.0005541940027 | M105: 0.005622919552 | N105: 2.079213933e-06
A106: =IF('DF raw data'!M106="","",'DF raw data'!M106) -> -280.5 | B106: =IF('DF raw data'!N106="","",'DF raw data'!N106) -> -2.73182e-05 | C106: =IF('DF raw data'!O106="","",'DF raw data'!O106) -> 0.000167061 | D106: =IF('DF raw data'!P106="","",'DF raw data'!P106) -> -3.37534e-05 | F106: -4.90949767e-06 | G106: 3.324123863e-05 | H106: 5.544608475e-06 | J106: -6.670726843e-06 | K106: 3.18046121e-05 | L106: 0.000570814622 | M106: 0.005908326863 | N106: 2.242150848e-06
A107: =IF('DF raw data'!M107="","",'DF raw data'!M107) -> -280 | B107: =IF('DF raw data'!N107="","",'DF raw data'!N107) -> -2.49439e-05 | C107: =IF('DF raw data'!O107="","",'DF raw data'!O107) -> 0.00016631 | D107: =IF('DF raw data'!P107="","",'DF raw data'!P107) -> -3.96473e-05 | F107: -2.52451332e-06 | G107: 3.248685912e-05 | H107: -3.75814075e-07 | J107: -7.932983503e-06 | K107: 2.783812034e-05 | L107: 0.0005870580516 | M107: 0.006201855889 | N107: 2.414500892e-06
A108: =IF('DF raw data'!M108="","",'DF raw data'!M108) -> -279.5 | B108: =IF('DF raw data'!N108="","",'DF raw data'!N108) -> -2.35971e-05 | C108: =IF('DF raw data'!O108="","",'DF raw data'!O108) -> 0.000158994 | D108: =IF('DF raw data'!P108="","",'DF raw data'!P108) -> -4.17302e-05 | F108: -1.17165272e-06 | G108: 2.513793713e-05 | H108: -2.468087125e-06 | J108: -8.518809863e-06 | K108: 2.357871541e-05 | L108: 0.0005996270201 | M108: 0.006501669399 | N108: 2.594313459e-06
A109: =IF('DF raw data'!M109="","",'DF raw data'!M109) -> -279 | B109: =IF('DF raw data'!N109="","",'DF raw data'!N109) -> -3.64721e-05 | C109: =IF('DF raw data'!O109="","",'DF raw data'!O109) -> 0.000155846 | D109: =IF('DF raw data'!P109="","",'DF raw data'!P109) -> -4.51473e-05 | F109: -1.410459022e-05 | G109: 2.197577113e-05 | H109: -5.900564075e-06 | J109: -1.557110497e-05 | K109: 1.579316293e-05 | L109: 0.0006106149057 | M109: 0.006806976852 | N109: 2.78085997e-06
A110: =IF('DF raw data'!M110="","",'DF raw data'!M110) -> -278.5 | B110: =IF('DF raw data'!N110="","",'DF raw data'!N110) -> -2.51912e-05 | C110: =IF('DF raw data'!O110="","",'DF raw data'!O110) -> 0.00015606 | D110: =IF('DF raw data'!P110="","",'DF raw data'!P110) -> -5.34663e-05 | F110: -2.77292617e-06 | G110: 2.219073412e-05 | H110: -1.425699958e-05 | J110: -1.695756806e-05 | K110: 7.314378899e-06 | L110: 0.0006217102727 | M110: 0.007117831988 | N110: 2.974265582e-06
A111: =IF('DF raw data'!M111="","",'DF raw data'!M111) -> -278 | B111: =IF('DF raw data'!N111="","",'DF raw data'!N111) -> -2.58993e-05 | C111: =IF('DF raw data'!O111="","",'DF raw data'!O111) -> 0.000161221 | D111: =IF('DF raw data'!P111="","",'DF raw data'!P111) -> -4.83812e-05 | F111: -3.48421262e-06 | G111: 2.737495862e-05 | H111: -9.149016625e-06 | J111: -1.869967437e-05 | K111: -2.035458285e-06 | L111: 0.0006353977521 | M111: 0.007435530864 | N111: 3.176305572e-06
A112: =IF('DF raw data'!M112="","",'DF raw data'!M112) -> -277.5 | B112: =IF('DF raw data'!N112="","",'DF raw data'!N112) -> -2.60367e-05 | C112: =IF('DF raw data'!O112="","",'DF raw data'!O112) -> 0.000165335 | D112: =IF('DF raw data'!P112="","",'DF raw data'!P112) -> -3.40175e-05 | F112: -3.62223092e-06 | G112: 3.150747162e-05 | H112: 5.279320025e-06 | J112: -2.051078983e-05 | K112: -1.22908532e-05 | L112: 0.0006511514879 | M112: 0.007761106608 | N112: 3.388515048e-06
A113: =IF('DF raw data'!M113="","",'DF raw data'!M113) -> -277 | B113: =IF('DF raw data'!N113="","",'DF raw data'!N113) -> -2.91743e-05 | C113: =IF('DF raw data'!O113="","",'DF raw data'!O113) -> 0.000163573 | D113: =IF('DF raw data'!P113="","",'DF raw data'!P113) -> -3.66388e-05 | F113: -6.77395012e-06 | G113: 2.973754263e-05 | H113: 2.646224175e-06 | J113: -2.389776489e-05 | K113: -2.423973564e-05 | L113: 0.0006660202592 | M113: 0.008094116738 | N113: 3.610592093e-06
A114: =IF('DF raw data'!M114="","",'DF raw data'!M114) -> -276.5 | B114: =IF('DF raw data'!N114="","",'DF raw data'!N114) -> -2.69908e-05 | C114: =IF('DF raw data'!O114="","",'DF raw data'!O114) -> 0.000159327 | D114: =IF('DF raw data'!P114="","",'DF raw data'!P114) -> -4.43758e-05 | F114: -4.58062437e-06 | G114: 2.547243562e-05 | H114: -5.125592325e-06 | J114: -2.618807707e-05 | K114: -3.733377418e-05 | L114: 0.000678756477 | M114: 0.008433494976 | N114: 3.841290178e-06
A115: =IF('DF raw data'!M115="","",'DF raw data'!M115) -> -276 | B115: =IF('DF raw data'!N115="","",'DF raw data'!N115) -> -1.96222e-05 | C115: =IF('DF raw data'!O115="","",'DF raw data'!O115) -> 0.000160556 | D115: =IF('DF raw data'!P115="","",'DF raw data'!P115) -> -4.5978e-05 | F115: 2.82113433e-06 | G115: 2.670696613e-05 | H115: -6.735002225e-06 | J115: -2.477750991e-05 | K115: -4.972252913e-05 | L115: 0.0006921099601 | M115: 0.008779549956 | N115: 4.081105239e-06
A116: =IF('DF raw data'!M116="","",'DF raw data'!M116) -> -275.5 | B116: =IF('DF raw data'!N116="","",'DF raw data'!N116) -> -2.74446e-05 | C116: =IF('DF raw data'!O116="","",'DF raw data'!O116) -> 0.000165902 | D116: =IF('DF raw data'!P116="","",'DF raw data'!P116) -> -3.62823e-05 | F116: -5.03646647e-06 | G116: 3.207702312e-05 | H116: 3.004328425e-06 | J116: -2.729574314e-05 | K116: -6.33704007e-05 | L116: 0.0007081484716 | M116: 0.009133624192 | N116: 4.332214897e-06
A117: =IF('DF raw data'!M117="","",'DF raw data'!M117) -> -275 | B117: =IF('DF raw data'!N117="","",'DF raw data'!N117) -> -2.00706e-05 | C117: =IF('DF raw data'!O117="","",'DF raw data'!O117) -> 0.000167985 | D117: =IF('DF raw data'!P117="","",'DF raw data'!P117) -> -4.6261e-05 | F117: 2.37071653e-06 | G117: 3.416939662e-05 | H117: -7.019275725e-06 | J117: -2.611038488e-05 | K117: -7.642559314e-05 | L117: 0.0007252331699 | M117: 0.009496240777 | N117: 4.595537348e-06
A118: =IF('DF raw data'!M118="","",'DF raw data'!M118) -> -274.5 | B118: =IF('DF raw data'!N118="","",'DF raw data'!N118) -> -2.36006e-05 | C118: =IF('DF raw data'!O118="","",'DF raw data'!O118) -> 0.000168464 | D118: =IF('DF raw data'!P118="","",'DF raw data'!P118) -> -3.62715e-05 | F118: -1.17516847e-06 | G118: 3.465055213e-05 | H118: 3.015177025e-06 | J118: -2.669796911e-05 | K118: -8.97745777e-05 | L118: 0.000742558446 | M118: 0.00986752 | N118: 4.871590262e-06
A119: =IF('DF raw data'!M119="","",'DF raw data'!M119) -> -274 | B119: =IF('DF raw data'!N119="","",'DF raw data'!N119) -> -2.88546e-05 | C119: =IF('DF raw data'!O119="","",'DF raw data'!O119) -> 0.000161443 | D119: =IF('DF raw data'!P119="","",'DF raw data'!P119) -> -3.54102e-05 | F119: -6.45281147e-06 | G119: 2.759795762e-05 | H119: 3.880352875e-06 | J119: -2.992437485e-05 | K119: -0.0001047367651 | L119: 0.0007563574248 | M119: 0.01024569871 | N119: 5.158076273e-06
A120: =IF('DF raw data'!M120="","",'DF raw data'!M120) -> -273.5 | B120: =IF('DF raw data'!N120="","",'DF raw data'!N120) -> -2.76966e-05 | C120: =IF('DF raw data'!O120="","",'DF raw data'!O120) -> 0.000160986 | D120: =IF('DF raw data'!P120="","",'DF raw data'!P120) -> -4.28344e-05 | F120: -5.28960047e-06 | G120: 2.713890113e-05 | H120: -3.577256025e-06 | J120: -3.256917508e-05 | K120: -0.0001210213527 | L120: 0.0007699268754 | M120: 0.01063066215 | N120: 5.455000345e-06
A121: =IF('DF raw data'!M121="","",'DF raw data'!M121) -> -273 | B121: =IF('DF raw data'!N121="","",'DF raw data'!N121) -> -3.3843e-05 | C121: =IF('DF raw data'!O121="","",'DF raw data'!O121) -> 0.000154896 | D121: =IF('DF raw data'!P121="","",'DF raw data'!P121) -> -4.88849e-05 | F121: -1.146365927e-05 | G121: 2.102149612e-05 | H121: -9.654983275e-06 | J121: -3.830100472e-05 | K121: -0.000140171855 | L121: 0.0007804376234 | M121: 0.01102088096 | N121: 5.760275271e-06
A122: =IF('DF raw data'!M122="","",'DF raw data'!M122) -> -272.5 | B122: =IF('DF raw data'!N122="","",'DF raw data'!N122) -> -1.98128e-05 | C122: =IF('DF raw data'!O122="","",'DF raw data'!O122) -> 0.000149858 | D122: =IF('DF raw data'!P122="","",'DF raw data'!P122) -> -4.85974e-05 | F122: 2.62967663e-06 | G122: 1.596082512e-05 | H122: -9.366189525e-06 | J122: -3.69861664e-05 | K122: -0.0001586649382 | L122: 0.000788418036 | M122: 0.01141508998 | N122: 6.071760759e-06
A123: =IF('DF raw data'!M123="","",'DF raw data'!M123) -> -272 | B123: =IF('DF raw data'!N123="","",'DF raw data'!N123) -> -3.33391e-05 | C123: =IF('DF raw data'!O123="","",'DF raw data'!O123) -> 0.000162826 | D123: =IF('DF raw data'!P123="","",'DF raw data'!P123) -> -3.55821e-05 | F123: -1.095749172e-05 | G123: 2.898718113e-05 | H123: 3.707679325e-06 | J123: -4.246491226e-05 | K123: -0.0001798973944 | L123: 0.0008029116266 | M123: 0.01181654579 | N123: 6.394995933e-06
A124: =IF('DF raw data'!M124="","",'DF raw data'!M124) -> -271.5 | B124: =IF('DF raw data'!N124="","",'DF raw data'!N124) -> -2.59059e-05 | C124: =IF('DF raw data'!O124="","",'DF raw data'!O124) -> 0.000166551 | D124: =IF('DF raw data'!P124="","",'DF raw data'!P124) -> -3.81684e-05 | F124: -3.49084232e-06 | G124: 3.272894362e-05 | H124: 1.109740975e-06 | J124: -4.421033342e-05 | K124: -0.0002020025611 | L124: 0.0008192760984 | M124: 0.01222618384 | N124: 6.731579873e-06
A125: =IF('DF raw data'!M125="","",'DF raw data'!M125) -> -271 | B125: =IF('DF raw data'!N125="","",'DF raw data'!N125) -> -3.30788e-05 | C125: =IF('DF raw data'!O125="","",'DF raw data'!O125) -> 0.000160413 | D125: =IF('DF raw data'!P125="","",'DF raw data'!P125) -> -4.19184e-05 | F125: -1.069602037e-05 | G125: 2.656332263e-05 | H125: -2.657134025e-06 | J125: -4.955834361e-05 | K125: -0.0002267817329 | L125: 0.0008325577597 | M125: 0.01264246272 | N125: 7.079384099e-06
A126: =IF('DF raw data'!M126="","",'DF raw data'!M126) -> -270.5 | B126: =IF('DF raw data'!N126="","",'DF raw data'!N126) -> -2.30854e-05 | C126: =IF('DF raw data'!O126="","",'DF raw data'!O126) -> 0.000167926 | D126: =IF('DF raw data'!P126="","",'DF raw data'!P126) -> -4.04493e-05 | F126: -6.5765007e-07 | G126: 3.411013112e-05 | H126: -1.181423075e-06 | J126: -4.988716864e-05 | K126: -0.0002517253172 | L126: 0.0008496128252 | M126: 0.01306726913 | N126: 7.44154944e-06
A127: =IF('DF raw data'!M127="","",'DF raw data'!M127) -> -270 | B127: =IF('DF raw data'!N127="","",'DF raw data'!N127) -> -2.94204e-05 | C127: =IF('DF raw data'!O127="","",'DF raw data'!O127) -> 0.00016019 | D127: =IF('DF raw data'!P127="","",'DF raw data'!P127) -> -5.21963e-05 | F127: -7.02115757e-06 | G127: 2.633931912e-05 | H127: -1.298128458e-05 | J127: -5.339774743e-05 | K127: -0.0002784241909 | L127: 0.0008627824848 | M127: 0.01349866038 | N127: 7.815171908e-06
A128: =IF('DF raw data'!M128="","",'DF raw data'!M128) -> -269.5 | B128: =IF('DF raw data'!N128="","",'DF raw data'!N128) -> -3.5765e-05 | C128: =IF('DF raw data'!O128="","",'DF raw data'!O128) -> 0.000157313 | D128: =IF('DF raw data'!P128="","",'DF raw data'!P128) -> -4.90641e-05 | F128: -1.339430827e-05 | G128: 2.344937262e-05 | H128: -9.834989675e-06 | J128: -6.009490156e-05 | K128: -0.0003084716417 | L128: 0.0008745071711 | M128: 0.01393591396 | N128: 8.199359003e-06
A129: =IF('DF raw data'!M129="","",'DF raw data'!M129) -> -269 | B129: =IF('DF raw data'!N129="","",'DF raw data'!N129) -> -2.69894e-05 | C129: =IF('DF raw data'!O129="","",'DF raw data'!O129) -> 0.000170454 | D129: =IF('DF raw data'!P129="","",'DF raw data'!P129) -> -4.65331e-05 | F129: -4.57921807e-06 | G129: 3.664950713e-05 | H129: -7.292600175e-06 | J129: -6.23845106e-05 | K129: -0.000339663897 | L129: 0.0008928319247 | M129: 0.01438232993 | N129: 8.599879339e-06
A130: =IF('DF raw data'!M130="","",'DF raw data'!M130) -> -268.5 | B130: =IF('DF raw data'!N130="","",'DF raw data'!N130) -> -2.42346e-05 | C130: =IF('DF raw data'!O130="","",'DF raw data'!O130) -> 0.000167367 | D130: =IF('DF raw data'!P130="","",'DF raw data'!P130) -> -4.64875e-05 | F130: -1.81202147e-06 | G130: 3.354861562e-05 | H130: -7.246794975e-06 | J130: -6.329052133e-05 | K130: -0.0003713091577 | L130: 0.0009096062325 | M130: 0.01483713304 | N130: 9.015573933e-06
A131: =IF('DF raw data'!M131="","",'DF raw data'!M131) -> -268 | B131: =IF('DF raw data'!N131="","",'DF raw data'!N131) -> -3.18013e-05 | C131: =IF('DF raw data'!O131="","",'DF raw data'!O131) -> 0.000154872 | D131: =IF('DF raw data'!P131="","",'DF raw data'!P131) -> -3.60328e-05 | F131: =(1-$G$1*($B$54-$G$2))*(B131-F$5) -> -9.41277162e-06 | G131: =(1-$G$1*($B$54-$G$2))*(C131-G$5) -> 2.099738812e-05 | H131: =(1-$G$1*($B$54-$G$2))*(D131-H$5) -> 3.254951175e-06 | J131: -6.799690714e-05 | K131: -0.0004053076112 | L131: 0.0009201049266 | M131: 0.0152971855 | N131: 9.441182261e-06
A132: =IF('DF raw data'!M132="","",'DF raw data'!M132) -> -267.5 | B132: =IF('DF raw data'!N132="","",'DF raw data'!N132) -> -2.30828e-05 | C132: =IF('DF raw data'!O132="","",'DF raw data'!O132) -> 0.000157968 | D132: =IF('DF raw data'!P132="","",'DF raw data'!P132) -> -4.44684e-05 | F132: -6.5503837e-07 | G132: 2.410732013e-05 | H132: -5.218609025e-06 | J132: =F132*$G$3+J131 -> -6.832442633e-05 | K132: =J132*$G$3+K131 -> -0.0004394698244 | L132: =G132*$G$3+L131 -> 0.0009321585866 | M132: =L132*$G$3+M131 -> 0.0157632648 | N132: =(J132^2+L132^2)*$G$3+N131 -> 9.87797619e-06
A133: =IF('DF raw data'!M133="","",'DF raw data'!M133) -> -267 | B133: =IF('DF raw data'!N133="","",'DF raw data'!N133) -> -2.14825e-05 | C133: =IF('DF raw data'!O133="","",'DF raw data'!O133) -> 0.000164672 | D133: =IF('DF raw data'!P133="","",'DF raw data'!P133) -> -4.2307e-05 | F133: 9.5246298e-07 | G133: 3.084148813e-05 | H133: -3.047482725e-06 | J133: -6.784819484e-05 | K133: -0.0004733939218 | L133: 0.0009475793307 | M133: 0.01623705446 | N133: 1.032923117e-05
A134: =IF('DF raw data'!M134="","",'DF raw data'!M134) -> -266.5 | B134: =IF('DF raw data'!N134="","",'DF raw data'!N134) -> -1.98793e-05 | C134: =IF('DF raw data'!O134="","",'DF raw data'!O134) -> 0.000174765 | D134: =IF('DF raw data'!P134="","",'DF raw data'!P134) -> -4.50148e-05 | F134: 2.56287738e-06 | G134: 4.097990663e-05 | H134: -5.767467825e-06 | J134: -6.656675615e-05 | K134: -0.0005066772999 | L134: 0.000968069284 | M134: 0.01672108911 | N134: 1.080002581e-05
A135: =IF('DF raw data'!M135="","",'DF raw data'!M135) -> -266 | B135: =IF('DF raw data'!N135="","",'DF raw data'!N135) -> -3.53855e-05 | C135: =IF('DF raw data'!O135="","",'DF raw data'!O135) -> 0.000166451 | D135: =IF('DF raw data'!P135="","",'DF raw data'!P135) -> -4.17203e-05 | F135: -1.301310052e-05 | G135: 3.262849362e-05 | H135: -2.458142575e-06 | J135: -7.307330641e-05 | K135: -0.0005432139531 | L135: 0.0009843835308 | M135: 0.01721328087 | N135: 1.128720113e-05
A136: =IF('DF raw data'!M136="","",'DF raw data'!M136) -> -265.5 | B136: =IF('DF raw data'!N136="","",'DF raw data'!N136) -> -2.35384e-05 | C136: =IF('DF raw data'!O136="","",'DF raw data'!O136) -> 0.000160864 | D136: =IF('DF raw data'!P136="","",'DF raw data'!P136) -> -3.37441e-05 | F136: -1.11268857e-06 | G136: 2.701635213e-05 | H136: 5.553950325e-06 | J136: -7.362965069e-05 | K136: -0.0005800287784 | L136: 0.0009978917069 | M136: 0.01771222672 | N136: 1.178780572e-05
A137: =IF('DF raw data'!M137="","",'DF raw data'!M137) -> -265 | B137: =IF('DF raw data'!N137="","",'DF raw data'!N137) -> -2.92323e-05 | C137: =IF('DF raw data'!O137="","",'DF raw data'!O137) -> 0.000163157 | D137: =IF('DF raw data'!P137="","",'DF raw data'!P137) -> -4.56974e-05 | F137: -6.83221112e-06 | G137: 2.931967063e-05 | H137: -6.453139525e-06 | J137: -7.704575625e-05 | K137: -0.0006185516566 | L137: 0.001012551542 | M137: 0.0182185025 | N137: 1.230340406e-05
A138: =IF('DF raw data'!M138="","",'DF raw data'!M138) -> -264.5 | B138: =IF('DF raw data'!N138="","",'DF raw data'!N138) -> -3.56402e-05 | C138: =IF('DF raw data'!O138="","",'DF raw data'!O138) -> 0.000165158 | D138: =IF('DF raw data'!P138="","",'DF raw data'!P138) -> -4.4046e-05 | F138: -1.326894667e-05 | G138: 3.132967512e-05 | H138: -4.794308225e-06 | J138: -8.368022959e-05 | K138: -0.0006603917713 | L138: 0.00102821638 | M138: 0.01873261069 | N138: 1.283551971e-05
A139: =IF('DF raw data'!M139="","",'DF raw data'!M139) -> -264 | B139: =IF('DF raw data'!N139="","",'DF raw data'!N139) -> -3.75618e-05 | C139: =IF('DF raw data'!O139="","",'DF raw data'!O139) -> 0.000163367 | D139: =IF('DF raw data'!P139="","",'DF raw data'!P139) -> -4.45505e-05 | F139: -1.519919387e-05 | G139: 2.953061563e-05 | H139: -5.301078475e-06 | J139: -9.127982652e-05 | K139: -0.0007060316846 | L139: 0.001042981688 | M139: 0.01925410153 | N139: 1.338359112e-05
A140: =IF('DF raw data'!M140="","",'DF raw data'!M140) -> -263.5 | B140: =IF('DF raw data'!N140="","",'DF raw data'!N140) -> -3.35253e-05 | C140: =IF('DF raw data'!O140="","",'DF raw data'!O140) -> 0.00016939 | D140: =IF('DF raw data'!P140="","",'DF raw data'!P140) -> -4.50101e-05 | F140: -1.114452962e-05 | G140: 3.558071913e-05 | H140: -5.762746675e-06 | J140: -9.685209133e-05 | K140: -0.0007544577303 | L140: 0.001060772047 | M140: 0.01978448755 | N140: 1.395089995e-05
A141: =IF('DF raw data'!M141="","",'DF raw data'!M141) -> -263 | B141: =IF('DF raw data'!N141="","",'DF raw data'!N141) -> -2.9941e-05 | C141: =IF('DF raw data'!O141="","",'DF raw data'!O141) -> 0.000171869 | D141: =IF('DF raw data'!P141="","",'DF raw data'!P141) -> -3.97626e-05 | F141: -7.54410027e-06 | G141: 3.807087463e-05 | H141: -4.91632925e-07 | J141: -0.0001006241415 | K141: -0.000804769801 | L141: 0.001079807484 | M141: 0.02032439129 | N141: 1.453895466e-05
A142: =IF('DF raw data'!M142="","",'DF raw data'!M142) -> -262.5 | B142: =IF('DF raw data'!N142="","",'DF raw data'!N142) -> -3.51963e-05 | C142: =IF('DF raw data'!O142="","",'DF raw data'!O142) -> 0.000163016 | D142: =IF('DF raw data'!P142="","",'DF raw data'!P142) -> -3.68377e-05 | F142: -1.282304912e-05 | G142: 2.917803613e-05 | H142: 2.446429125e-06 | J142: -0.000107035666 | K142: -0.000858287634 | L142: 0.001094396502 | M142: 0.02087158955 | N142: 1.514353483e-05
A143: =IF('DF raw data'!M143="","",'DF raw data'!M143) -> -262 | B143: =IF('DF raw data'!N143="","",'DF raw data'!N143) -> -2.66665e-05 | C143: =IF('DF raw data'!O143="","",'DF raw data'!O143) -> 0.000156398 | D143: =IF('DF raw data'!P143="","",'DF raw data'!P143) -> -5.08552e-05 | F143: -4.25486502e-06 | G143: 2.253025512e-05 | H143: -1.163414963e-05 | J143: -0.0001091630985 | K143: -0.0009128691833 | L143: 0.00110566163 | M143: 0.02142442036 | N143: 1.576073694e-05
A144: =IF('DF raw data'!M144="","",'DF raw data'!M144) -> -261.5 | B144: =IF('DF raw data'!N144="","",'DF raw data'!N144) -> -2.2574e-05 | C144: =IF('DF raw data'!O144="","",'DF raw data'!O144) -> 0.000151579 | D144: =IF('DF raw data'!P144="","",'DF raw data'!P144) -> -3.88373e-05 | F144: -1.4394877e-07 | G144: 1.768956962e-05 | H144: 4.37830925e-07 | J144: -0.0001092350729 | K144: -0.0009674867198 | L144: 0.001114506415 | M144: 0.02198167357 | N144: 1.638776536e-05
A145: =IF('DF raw data'!M145="","",'DF raw data'!M145) -> -261 | B145: =IF('DF raw data'!N145="","",'DF raw data'!N145) -> -2.82123e-05 | C145: =IF('DF raw data'!O145="","",'DF raw data'!O145) -> 0.000163273 | D145: =IF('DF raw data'!P145="","",'DF raw data'!P145) -> -3.80616e-05 | F145: -5.80762112e-06 | G145: 2.943619262e-05 | H145: 1.217021575e-06 | J145: -0.0001121388835 | K145: -0.001023556161 | L145: 0.001129224511 | M145: 0.02254628582 | N145: 1.703162693e-05
A146: =IF('DF raw data'!M146="","",'DF raw data'!M146) -> -260.5 | B146: =IF('DF raw data'!N146="","",'DF raw data'!N146) -> -1.84713e-05 | C146: =IF('DF raw data'!O146="","",'DF raw data'!O146) -> 0.000169863 | D146: =IF('DF raw data'!P146="","",'DF raw data'!P146) -> -4.26166e-05 | F146: 3.97721338e-06 | G146: 3.605584762e-05 | H146: -3.358475925e-06 | J146: -0.0001101502768 | K146: -0.0010786313 | L146: 0.001147252435 | M146: 0.02311991204 | N146: 1.769578754e-05
A147: =IF('DF raw data'!M147="","",'DF raw data'!M147) -> -260 | B147: =IF('DF raw data'!N147="","",'DF raw data'!N147) -> -1.69839e-05 | C147: =IF('DF raw data'!O147="","",'DF raw data'!O147) -> 0.000160355 | D147: =IF('DF raw data'!P147="","",'DF raw data'!P147) -> -6.39616e-05 | F147: 5.47130668e-06 | G147: 2.650506162e-05 | H147: -2.479952843e-05 | J147: -0.0001074146235 | K147: -0.001132338612 | L147: 0.001160504966 | M147: 0.02370016452 | N147: 1.837494238e-05
A148: =IF('DF raw data'!M148="","",'DF raw data'!M148) -> -259.5 | B148: =IF('DF raw data'!N148="","",'DF raw data'!N148) -> -3.03825e-05 | C148: =IF('DF raw data'!O148="","",'DF raw data'!O148) -> 0.000158925 | D148: =IF('DF raw data'!P148="","",'DF raw data'!P148) -> -5.06588e-05 | F148: -7.98758702e-06 | G148: 2.506862662e-05 | H148: -1.143686583e-05 | J148: -0.000111408417 | K148: -0.00118804282 | L148: 0.001173039279 | M148: 0.02428668416 | N148: 1.906915887e-05
A149: =IF('DF raw data'!M149="","",'DF raw data'!M149) -> -259 | B149: =IF('DF raw data'!N149="","",'DF raw data'!N149) -> -3.63445e-05 | C149: =IF('DF raw data'!O149="","",'DF raw data'!O149) -> 0.000160646 | D149: =IF('DF raw data'!P149="","",'DF raw data'!P149) -> -4.44731e-05 | F149: -1.397641602e-05 | G149: 2.679737112e-05 | H149: -5.223330175e-06 | J149: -0.000118396625 | K149: -0.001247241133 | L149: 0.001186437965 | M149: 0.02487990315 | N149: 1.977998528e-05
A150: =IF('DF raw data'!M150="","",'DF raw data'!M150) -> -258.5 | B150: =IF('DF raw data'!N150="","",'DF raw data'!N150) -> -1.81473e-05 | C150: =IF('DF raw data'!O150="","",'DF raw data'!O150) -> 0.000153256 | D150: =IF('DF raw data'!P150="","",'DF raw data'!P150) -> -4.84555e-05 | F150: 4.30267138e-06 | G150: 1.937411612e-05 | H150: -9.223650975e-06 | J150: -0.0001162452893 | K150: -0.001305363777 | L150: 0.001196125023 | M150: 0.02547796566 | N150: 2.05020993e-05
A151: =IF('DF raw data'!M151="","",'DF raw data'!M151) -> -258 | B151: =IF('DF raw data'!N151="","",'DF raw data'!N151) -> -2.31444e-05 | C151: =IF('DF raw data'!O151="","",'DF raw data'!O151) -> 0.000148158 | D151: =IF('DF raw data'!P151="","",'DF raw data'!P151) -> -4.8524e-05 | F151: -7.1691557e-07 | G151: 1.425317512e-05 | H151: -9.292459225e-06 | J151: -0.0001166037471 | K151: -0.001363665651 | L151: 0.00120325161 | M151: 0.02607959146 | N151: 2.123280473e-05
A152: =IF('DF raw data'!M152="","",'DF raw data'!M152) -> -257.5 | B152: =IF('DF raw data'!N152="","",'DF raw data'!N152) -> -2.09693e-05 | C152: =IF('DF raw data'!O152="","",'DF raw data'!O152) -> 0.000146618 | D152: =IF('DF raw data'!P152="","",'DF raw data'!P152) -> -4.34617e-05 | F152: 1.46797238e-06 | G152: 1.270624512e-05 | H152: -4.207378875e-06 | J152: -0.0001158697609 | K152: -0.001421600531 | L152: 0.001209604733 | M152: 0.02668439383 | N152: 2.197108944e-05
A153: =IF('DF raw data'!M153="","",'DF raw data'!M153) -> -257 | B153: =IF('DF raw data'!N153="","",'DF raw data'!N153) -> -2.16102e-05 | C153: =IF('DF raw data'!O153="","",'DF raw data'!O153) -> 0.000155468 | D153: =IF('DF raw data'!P153="","",'DF raw data'!P153) -> -4.30116e-05 | F153: 8.2418833e-07 | G153: 2.159607012e-05 | H153: -3.755253425e-06 | J153: -0.0001154576667 | K153: -0.001479329365 | L153: 0.001220402768 | M153: 0.02729459521 | N153: 2.272244613e-05
A154: =IF('DF raw data'!M154="","",'DF raw data'!M154) -> -256.5 | B154: =IF('DF raw data'!N154="","",'DF raw data'!N154) -> -3.8652e-05 | C154: =IF('DF raw data'!O154="","",'DF raw data'!O154) -> 0.000162824 | D154: =IF('DF raw data'!P154="","",'DF raw data'!P154) -> -4.28921e-05 | F154: -1.629429977e-05 | G154: 2.898517212e-05 | H154: -3.635215675e-06 | J154: -0.0001236048166 | K154: -0.001541131773 | L154: 0.001234895354 | M154: 0.02791204289 | N154: 2.349256847e-05
A155: =IF('DF raw data'!M155="","",'DF raw data'!M155) -> -256 | B155: =IF('DF raw data'!N155="","",'DF raw data'!N155) -> -3.12199e-05 | C155: =IF('DF raw data'!O155="","",'DF raw data'!O155) -> 0.000168132 | D155: =IF('DF raw data'!P155="","",'DF raw data'!P155) -> -4.34513e-05 | F155: -8.82875532e-06 | G155: 3.431705813e-05 | H155: -4.196932075e-06 | J155: -0.0001280191943 | K155: -0.00160514137 | L155: 0.001252053883 | M155: 0.02853806983 | N155: 2.428458239e-05
A156: =IF('DF raw data'!M156="","",'DF raw data'!M156) -> -255.5 | B156: =IF('DF raw data'!N156="","",'DF raw data'!N156) -> -3.30098e-05 | C156: =IF('DF raw data'!O156="","",'DF raw data'!O156) -> 0.00016722 | D156: =IF('DF raw data'!P156="","",'DF raw data'!P156) -> -4.97261e-05 | F156: -1.062670987e-05 | G156: 3.340095412e-05 | H156: -1.049996868e-05 | J156: -0.0001333325492 | K156: -0.001671807645 | L156: 0.00126875436 | M156: 0.02917244701 | N156: 2.509833999e-05
A157: =IF('DF raw data'!M157="","",'DF raw data'!M157) -> -255 | B157: =IF('DF raw data'!N157="","",'DF raw data'!N157) -> -2.58401e-05 | C157: =IF('DF raw data'!O157="","",'DF raw data'!O157) -> 0.000166526 | D157: =IF('DF raw data'!P157="","",'DF raw data'!P157) -> -4.08029e-05 | F157: -3.42474622e-06 | G157: 3.270383113e-05 | H157: -1.536614275e-06 | J157: -0.0001350449223 | K157: -0.001739330106 | L157: 0.001285106276 | M157: 0.02981500015 | N157: 2.593320763e-05
A158: =IF('DF raw data'!M158="","",'DF raw data'!M158) -> -254.5 | B158: =IF('DF raw data'!N158="","",'DF raw data'!N158) -> -3.69245e-05 | C158: =IF('DF raw data'!O158="","",'DF raw data'!O158) -> 0.000167001 | D158: =IF('DF raw data'!P158="","",'DF raw data'!P158) -> -3.92815e-05 | F158: -1.455902602e-05 | G158: 3.318096863e-05 | H158: -8.367975e-09 | J158: -0.0001423244353 | K158: -0.001810492323 | L158: 0.00130169676 | M158: 0.03046584853 | N158: 2.679054298e-05
A159: =IF('DF raw data'!M159="","",'DF raw data'!M159) -> -254 | B159: =IF('DF raw data'!N159="","",'DF raw data'!N159) -> -3.59588e-05 | C159: =IF('DF raw data'!O159="","",'DF raw data'!O159) -> 0.000172745 | D159: =IF('DF raw data'!P159="","",'DF raw data'!P159) -> -4.65191e-05 | F159: -1.358898037e-05 | G159: 3.895081663e-05 | H159: -7.278537175e-06 | J159: -0.0001491189255 | K159: -0.001885051786 | L159: 0.001321172168 | M159: 0.03112643461 | N159: 2.767440915e-05
A160: =IF('DF raw data'!M160="","",'DF raw data'!M160) -> -253.5 | B160: =IF('DF raw data'!N160="","",'DF raw data'!N160) -> -2.30153e-05 | C160: =IF('DF raw data'!O160="","",'DF raw data'!O160) -> 0.000178631 | D160: =IF('DF raw data'!P160="","",'DF raw data'!P160) -> -4.99754e-05 | F160: -5.8723462e-07 | G160: 4.486330363e-05 | H160: -1.075039053e-05 | J160: -0.0001494125428 | K160: -0.001959758058 | L160: 0.00134360382 | M160: 0.03179823652 | N160: 2.858820682e-05
A161: =IF('DF raw data'!M161="","",'DF raw data'!M161) -> -253 | B161: =IF('DF raw data'!N161="","",'DF raw data'!N161) -> -3.19888e-05 | C161: =IF('DF raw data'!O161="","",'DF raw data'!O161) -> 0.000172766 | D161: =IF('DF raw data'!P161="","",'DF raw data'!P161) -> -4.321e-05 | F161: -9.60111537e-06 | G161: 3.897191113e-05 | H161: -3.954546225e-06 | J161: -0.0001542131005 | K161: -0.002036864608 | L161: 0.001363089776 | M161: 0.03247978141 | N161: 2.952910453e-05
A162: =IF('DF raw data'!M162="","",'DF raw data'!M162) -> -252.5 | B162: =IF('DF raw data'!N162="","",'DF raw data'!N162) -> -1.79578e-05 | C162: =IF('DF raw data'!O162="","",'DF raw data'!O162) -> 0.000160225 | D162: =IF('DF raw data'!P162="","",'DF raw data'!P162) -> -4.41601e-05 | F162: 4.49302413e-06 | G162: 2.637447663e-05 | H162: -4.908921675e-06 | J162: -0.0001519665884 | K162: -0.002112847902 | L162: 0.001376277014 | M162: 0.03316791992 | N162: 3.048772066e-05
